Workbook

Sheet Summary
B1: AOM CTC | C1: 7.3.2 Reg
B2: CTC Version | C2: v4 | G2: Averages | AE2: Minimum | AZ2: Maximum
H3: PSNR | M3: SSIM | N3: MS-SSIM | O3: VMAF | P3: nVMAF | Q3: PSNR HVS | R3: DE 2K | S3: APSNR | X3: CAMBI | Y3: Monotonicity | AA3: Run-time (%) | AC3: Perf Stats (%) | AE3: PSNR | AJ3: SSIM | AK3: MS-SSIM | AL3: VMAF | AM3: nVMAF | AN3: PSNR HVS | AO3: DE 2K | AP3: APSNR | AU3: CAMBI | AV3: Run-time (%) | AX3: Perf Stats(%) | AZ3: PSNR | BE3: SSIM | BF3: MS-SSIM | BG3: VMAF | BH3: nVMAF | BI3: PSNR HVS | BJ3: DE 2K | BK3: APSNR | BP3: CAMBI | BQ3: Run-time (%) | BS3: Perf Stats (%)
B4: Classes | C4: Success | G4: Summary | H4: Y | I4: U | J4: V | K4: YUV | L4: wAverage | M4: Y | N4: Y | O4: Y | P4: Y | Q4: Y | S4: Y | T4: U | U4: V | V4: YUV | W4: wAverage | X4: Y | Y4: VMAF | Z4: VMAF neg | AA4: Enc-time | AB4: Dec-time | AC4: Enc Instr | AD4: Dec Instr | AE4: Y | AF4: U | AG4: V | AH4: YUV | AI4: wAverage | AJ4: Y | AK4: Y | AL4: Y | AM4: Y | AN4: Y | AP4: Y | AQ4: U | AR4: V | AS4: YUV | AT4: wAverage | AU4: Y | AV4: Enc-time | AW4: Dec-time | AX4: Enc Instr | AY4: Dec Instr | AZ4: Y | BA4: U | BB4: V | BC4: YUV | BD4: wAverage | BE4: Y | BF4: Y | BG4: Y | BH4: Y | BI4: Y | BK4: Y | BL4: U | BM4: V | BN4: YUV | BO4: wAverage | BP4: Y | BQ4: Enc-time | BR4: Dec-time | BS4: Enc Instr | BT4: Dec Instr
B5: =Intra!C559 -> Class A1_4K | C5: =Intra!AX558 -> 0 | E5: Overall | F5: Intra | G5: =Intra!C559 -> Class A1_4K | H5: =Intra!BF559 ->  | I5: =Intra!BG559 ->  | J5: =Intra!BH559 ->  | K5: =Intra!BI559 ->  | L5: =Intra!BJ559 ->  | M5: =Intra!BL559 ->  | N5: =Intra!BN559 ->  | O5: =Intra!BP559 ->  | P5: =Intra!BR559 ->  | Q5: =Intra!BT559 ->  | R5: =Intra!BV559 ->  | S5: =Intra!BX559 ->  | T5: =Intra!BY559 ->  | U5: =Intra!BZ559 ->  | V5: =Intra!CA559 ->  | W5: =Intra!CB559 ->  | X5: =Intra!CD559 ->  | Y5: =Intra!CF559 -> 0 | Z5: =Intra!CH559 -> 0 | AA5: =Intra!AX559 ->  | AB5: =Intra!AY559 ->  | AC5: =Intra!AZ559 ->  | AD5: =Intra!BA559 ->  | AE5: =Intra!BF560 ->  | AF5: =Intra!BG560 ->  | AG5: =Intra!BH560 ->  | AH5: =Intra!BI560 ->  | AI5: =Intra!BJ560 ->  | AJ5: =Intra!BL560 ->  | AK5: =Intra!BN560 ->  | AL5: =Intra!BP560 ->  | AM5: =Intra!BR560 ->  | AN5: =Intra!BT560 ->  | AO5: =Intra!BV560 ->  | AP5: =Intra!BX560 ->  | AQ5: =Intra!BY560 ->  | AR5: =Intra!BZ560 ->  | AS5: =Intra!CA560 ->  | AT5: =Intra!CB560 ->  | AU5: =Intra!CD560 ->  | AV5: =Intra!AX562 ->  | AW5: =Intra!AY562 ->  | AX5: =Intra!AZ562 ->  | AY5: =Intra!BA562 ->  | AZ5: =Intra!BF561 ->  | BA5: =Intra!BG561 ->  | BB5: =Intra!BH561 ->  | BC5: =Intra!BI561 ->  | BD5: =Intra!BJ561 ->  | BE5: =Intra!BL561 ->  | BF5: =Intra!BN561 ->  | BG5: =Intra!BP561 ->  | BH5: =Intra!BR561 ->  | BI5: =Intra!BT561 ->  | BJ5: =Intra!BV561 ->  | BK5: =Intra!BX561 ->  | BL5: =Intra!BY561 ->  | BM5: =Intra!BZ561 ->  | BN5: =Intra!CA561 ->  | BO5: =Intra!CB561 ->  | BP5: =Intra!CD561 ->  | BQ5: =Intra!AX561 ->  | BR5: =Intra!AY561 ->  | BS5: =Intra!AZ561 ->  | BT5: =Intra!BA561 -> 
B6: =Intra!C568 -> Class A2_2K | C6: =Intra!AX567 -> 0 | G6: =Intra!C568 -> Class A2_2K | H6: =Intra!BF568 ->  | I6: =Intra!BG568 ->  | J6: =Intra!BH568 ->  | K6: =Intra!BI568 ->  | L6: =Intra!BJ568 ->  | M6: =Intra!BL568 ->  | N6: =Intra!BN568 ->  | O6: =Intra!BP568 ->  | P6: =Intra!BR568 ->  | Q6: =Intra!BT568 ->  | R6: =Intra!BV568 ->  | S6: =Intra!BX568 ->  | T6: =Intra!BY568 ->  | U6: =Intra!BZ568 ->  | V6: =Intra!CA568 ->  | W6: =Intra!CB568 ->  | X6: =Intra!CD568 ->  | Y6: =Intra!CF568 -> 0 | Z6: =Intra!CH568 -> 0 | AA6: =Intra!AX568 ->  | AB6: =Intra!AY568 ->  | AC6: =Intra!AZ568 ->  | AD6: =Intra!BA568 ->  | AE6: =Intra!BF569 ->  | AF6: =Intra!BG569 ->  | AG6: =Intra!BH569 ->  | AH6: =Intra!BI569 ->  | AI6: =Intra!BJ569 ->  | AJ6: =Intra!BL569 ->  | AK6: =Intra!BN569 ->  | AL6: =Intra!BP569 ->  | AM6: =Intra!BR569 ->  | AN6: =Intra!BT569 ->  | AO6: =Intra!BV569 ->  | AP6: =Intra!BX569 ->  | AQ6: =Intra!BY569 ->  | AR6: =Intra!BZ569 ->  | AS6: =Intra!CA569 ->  | AT6: =Intra!CB569 ->  | AU6: =Intra!CD569 ->  | AV6: =Intra!AX571 ->  | AW6: =Intra!AY571 ->  | AX6: =Intra!AZ571 ->  | AY6: =Intra!BA571 ->  | AZ6: =Intra!BF570 ->  | BA6: =Intra!BG570 ->  | BB6: =Intra!BH570 ->  | BC6: =Intra!BI570 ->  | BD6: =Intra!BJ570 ->  | BE6: =Intra!BL570 ->  | BF6: =Intra!BN570 ->  | BG6: =Intra!BP570 ->  | BH6: =Intra!BR570 ->  | BI6: =Intra!BT570 ->  | BJ6: =Intra!BV570 ->  | BK6: =Intra!BX570 ->  | BL6: =Intra!BY570 ->  | BM6: =Intra!BZ570 ->  | BN6: =Intra!CA570 ->  | BO6: =Intra!CB570 ->  | BP6: =Intra!CD570 ->  | BQ6: =Intra!AX570 ->  | BR6: =Intra!AY570 ->  | BS6: =Intra!AZ570 ->  | BT6: =Intra!BA570 -> 
B7: =Intra!C577 -> Class A3_720p | C7: =Intra!AX576 -> 0 | G7: =Intra!C577 -> Class A3_720p | H7: =Intra!BF577 ->  | I7: =Intra!BG577 ->  | J7: =Intra!BH577 ->  | K7: =Intra!BI577 ->  | L7: =Intra!BJ577 ->  | M7: =Intra!BL577 ->  | N7: =Intra!BN577 ->  | O7: =Intra!BP577 ->  | P7: =Intra!BR577 ->  | Q7: =Intra!BT577 ->  | R7: =Intra!BV577 ->  | S7: =Intra!BX577 ->  | T7: =Intra!BY577 ->  | U7: =Intra!BZ577 ->  | V7: =Intra!CA577 ->  | W7: =Intra!CB577 ->  | X7: =Intra!CD577 ->  | Y7: =Intra!CF577 -> 0 | Z7: =Intra!CH577 -> 0 | AA7: =Intra!AX577 ->  | AB7: =Intra!AY577 ->  | AC7: =Intra!AZ577 ->  | AD7: =Intra!BA577 ->  | AE7: =Intra!BF578 ->  | AF7: =Intra!BG578 ->  | AG7: =Intra!BH578 ->  | AH7: =Intra!BI578 ->  | AI7: =Intra!BJ578 ->  | AJ7: =Intra!BL578 ->  | AK7: =Intra!BN578 ->  | AL7: =Intra!BP578 ->  | AM7: =Intra!BR578 ->  | AN7: =Intra!BT578 ->  | AO7: =Intra!BV578 ->  | AP7: =Intra!BX578 ->  | AQ7: =Intra!BY578 ->  | AR7: =Intra!BZ578 ->  | AS7: =Intra!CA578 ->  | AT7: =Intra!CB578 ->  | AU7: =Intra!CD578 ->  | AV7: =Intra!AX580 ->  | AW7: =Intra!AY580 ->  | AX7: =Intra!AZ580 ->  | AY7: =Intra!BA580 ->  | AZ7: =Intra!BF579 ->  | BA7: =Intra!BG579 ->  | BB7: =Intra!BH579 ->  | BC7: =Intra!BI579 ->  | BD7: =Intra!BJ579 ->  | BE7: =Intra!BL579 ->  | BF7: =Intra!BN579 ->  | BG7: =Intra!BP579 ->  | BH7: =Intra!BR579 ->  | BI7: =Intra!BT579 ->  | BJ7: =Intra!BV579 ->  | BK7: =Intra!BX579 ->  | BL7: =Intra!BY579 ->  | BM7: =Intra!BZ579 ->  | BN7: =Intra!CA579 ->  | BO7: =Intra!CB579 ->  | BP7: =Intra!CD579 ->  | BQ7: =Intra!AX579 ->  | BR7: =Intra!AY579 ->  | BS7: =Intra!AZ579 ->  | BT7: =Intra!BA579 -> 
B8: =Intra!C586 -> Class A4_360p | C8: =Intra!AX585 -> 0 | G8: =Intra!C586 -> Class A4_360p | H8: =Intra!BF586 ->  | I8: =Intra!BG586 ->  | J8: =Intra!BH586 ->  | K8: =Intra!BI586 ->  | L8: =Intra!BJ586 ->  | M8: =Intra!BL586 ->  | N8: =Intra!BN586 ->  | O8: =Intra!BP586 ->  | P8: =Intra!BR586 ->  | Q8: =Intra!BT586 ->  | R8: =Intra!BV586 ->  | S8: =Intra!BX586 ->  | T8: =Intra!BY586 ->  | U8: =Intra!BZ586 ->  | V8: =Intra!CA586 ->  | W8: =Intra!CB586 ->  | X8: =Intra!CD586 ->  | Y8: =Intra!CF586 -> 0 | Z8: =Intra!CH586 -> 0 | AA8: =Intra!AX586 ->  | AB8: =Intra!AY586 ->  | AC8: =Intra!AZ586 ->  | AD8: =Intra!BA586 ->  | AE8: =Intra!BF587 ->  | AF8: =Intra!BG587 ->  | AG8: =Intra!BH587 ->  | AH8: =Intra!BI587 ->  | AI8: =Intra!BJ587 ->  | AJ8: =Intra!BL587 ->  | AK8: =Intra!BN587 ->  | AL8: =Intra!BP587 ->  | AM8: =Intra!BR587 ->  | AN8: =Intra!BT587 ->  | AO8: =Intra!BV587 ->  | AP8: =Intra!BX587 ->  | AQ8: =Intra!BY587 ->  | AR8: =Intra!BZ587 ->  | AS8: =Intra!CA587 ->  | AT8: =Intra!CB587 ->  | AU8: =Intra!CD587 ->  | AV8: =Intra!AX589 ->  | AW8: =Intra!AY589 ->  | AX8: =Intra!AZ589 ->  | AY8: =Intra!BA589 ->  | AZ8: =Intra!BF588 ->  | BA8: =Intra!BG588 ->  | BB8: =Intra!BH588 ->  | BC8: =Intra!BI588 ->  | BD8: =Intra!BJ588 ->  | BE8: =Intra!BL588 ->  | BF8: =Intra!BN588 ->  | BG8: =Intra!BP588 ->  | BH8: =Intra!BR588 ->  | BI8: =Intra!BT588 ->  | BJ8: =Intra!BV588 ->  | BK8: =Intra!BX588 ->  | BL8: =Intra!BY588 ->  | BM8: =Intra!BZ588 ->  | BN8: =Intra!CA588 ->  | BO8: =Intra!CB588 ->  | BP8: =Intra!CD588 ->  | BQ8: =Intra!AX588 ->  | BR8: =Intra!AY588 ->  | BS8: =Intra!AZ588 ->  | BT8: =Intra!BA588 -> 
B9: =Intra!C595 -> Class A5_270p | C9: =Intra!AX594 -> 0 | G9: =Intra!C595 -> Class A5_270p | H9: =Intra!BF595 ->  | I9: =Intra!BG595 ->  | J9: =Intra!BH595 ->  | K9: =Intra!BI595 ->  | L9: =Intra!BJ595 ->  | M9: =Intra!BL595 ->  | N9: =Intra!BN595 ->  | O9: =Intra!BP595 ->  | P9: =Intra!BR595 ->  | Q9: =Intra!BT595 ->  | R9: =Intra!BV595 ->  | S9: =Intra!BX595 ->  | T9: =Intra!BY595 ->  | U9: =Intra!BZ595 ->  | V9: =Intra!CA595 ->  | W9: =Intra!CB595 ->  | X9: =Intra!CD595 ->  | Y9: =Intra!CF595 -> 0 | Z9: =Intra!CH595 -> 0 | AA9: =Intra!AX595 ->  | AB9: =Intra!AY595 ->  | AC9: =Intra!AZ595 ->  | AD9: =Intra!BA595 ->  | AE9: =Intra!BF596 ->  | AF9: =Intra!BG596 ->  | AG9: =Intra!BH596 ->  | AH9: =Intra!BI596 ->  | AI9: =Intra!BJ596 ->  | AJ9: =Intra!BL596 ->  | AK9: =Intra!BN596 ->  | AL9: =Intra!BP596 ->  | AM9: =Intra!BR596 ->  | AN9: =Intra!BT596 ->  | AO9: =Intra!BV596 ->  | AP9: =Intra!BX596 ->  | AQ9: =Intra!BY596 ->  | AR9: =Intra!BZ596 ->  | AS9: =Intra!CA596 ->  | AT9: =Intra!CB596 ->  | AU9: =Intra!CD596 ->  | AV9: =Intra!AX598 ->  | AW9: =Intra!AY598 ->  | AX9: =Intra!AZ598 ->  | AY9: =Intra!BA598 ->  | AZ9: =Intra!BF597 ->  | BA9: =Intra!BG597 ->  | BB9: =Intra!BH597 ->  | BC9: =Intra!BI597 ->  | BD9: =Intra!BJ597 ->  | BE9: =Intra!BL597 ->  | BF9: =Intra!BN597 ->  | BG9: =Intra!BP597 ->  | BH9: =Intra!BR597 ->  | BI9: =Intra!BT597 ->  | BJ9: =Intra!BV597 ->  | BK9: =Intra!BX597 ->  | BL9: =Intra!BY597 ->  | BM9: =Intra!BZ597 ->  | BN9: =Intra!CA597 ->  | BO9: =Intra!CB597 ->  | BP9: =Intra!CD597 ->  | BQ9: =Intra!AX597 ->  | BR9: =Intra!AY597 ->  | BS9: =Intra!AZ597 ->  | BT9: =Intra!BA597 -> 
B10: =Intra!C604 -> Class B1_SYN | C10: =Intra!AX603 -> 0 | G10: =Intra!C604 -> Class B1_SYN | H10: =Intra!BF604 ->  | I10: =Intra!BG604 ->  | J10: =Intra!BH604 ->  | K10: =Intra!BI604 ->  | L10: =Intra!BJ604 ->  | M10: =Intra!BL604 ->  | N10: =Intra!BN604 ->  | O10: =Intra!BP604 ->  | P10: =Intra!BR604 ->  | Q10: =Intra!BT604 ->  | R10: =Intra!BV604 ->  | S10: =Intra!BX604 ->  | T10: =Intra!BY604 ->  | U10: =Intra!BZ604 ->  | V10: =Intra!CA604 ->  | W10: =Intra!CB604 ->  | X10: =Intra!CD604 ->  | Y10: =Intra!CF604 -> 0 | Z10: =Intra!CH604 -> 0 | AA10: =Intra!AX604 ->  | AB10: =Intra!AY604 ->  | AC10: =Intra!AZ604 ->  | AD10: =Intra!BA604 ->  | AE10: =Intra!BF605 ->  | AF10: =Intra!BG605 ->  | AG10: =Intra!BH605 ->  | AH10: =Intra!BI605 ->  | AI10: =Intra!BJ605 ->  | AJ10: =Intra!BL605 ->  | AK10: =Intra!BN605 ->  | AL10: =Intra!BP605 ->  | AM10: =Intra!BR605 ->  | AN10: =Intra!BT605 ->  | AO10: =Intra!BV605 ->  | AP10: =Intra!BX605 ->  | AQ10: =Intra!BY605 ->  | AR10: =Intra!BZ605 ->  | AS10: =Intra!CA605 ->  | AT10: =Intra!CB605 ->  | AU10: =Intra!CD605 ->  | AV10: =Intra!AX607 ->  | AW10: =Intra!AY607 ->  | AX10: =Intra!AZ607 ->  | AY10: =Intra!BA607 ->  | AZ10: =Intra!BF606 ->  | BA10: =Intra!BG606 ->  | BB10: =Intra!BH606 ->  | BC10: =Intra!BI606 ->  | BD10: =Intra!BJ606 ->  | BE10: =Intra!BL606 ->  | BF10: =Intra!BN606 ->  | BG10: =Intra!BP606 ->  | BH10: =Intra!BR606 ->  | BI10: =Intra!BT606 ->  | BJ10: =Intra!BV606 ->  | BK10: =Intra!BX606 ->  | BL10: =Intra!BY606 ->  | BM10: =Intra!BZ606 ->  | BN10: =Intra!CA606 ->  | BO10: =Intra!CB606 ->  | BP10: =Intra!CD606 ->  | BQ10: =Intra!AX606 ->  | BR10: =Intra!AY606 ->  | BS10: =Intra!AZ606 ->  | BT10: =Intra!BA606 -> 
B11: =Intra!C613 -> Class B2_SCC | C11: =Intra!AX612 -> 0 | G11: =Intra!C613 -> Class B2_SCC | H11: =Intra!BF613 ->  | I11: =Intra!BG613 ->  | J11: =Intra!BH613 ->  | K11: =Intra!BI613 ->  | L11: =Intra!BJ613 ->  | M11: =Intra!BL613 ->  | N11: =Intra!BN613 ->  | O11: =Intra!BP613 ->  | P11: =Intra!BR613 ->  | Q11: =Intra!BT613 ->  | R11: =Intra!BV613 ->  | S11: =Intra!BX613 ->  | T11: =Intra!BY613 ->  | U11: =Intra!BZ613 ->  | V11: =Intra!CA613 ->  | W11: =Intra!CB613 ->  | X11: =Intra!CD613 ->  | Y11: =Intra!CF613 -> 0 | Z11: =Intra!CH613 -> 0 | AA11: =Intra!AX613 ->  | AB11: =Intra!AY613 ->  | AC11: =Intra!AZ613 ->  | AD11: =Intra!BA613 ->  | AE11: =Intra!BF614 ->  | AF11: =Intra!BG614 ->  | AG11: =Intra!BH614 ->  | AH11: =Intra!BI614 ->  | AI11: =Intra!BJ614 ->  | AJ11: =Intra!BL614 ->  | AK11: =Intra!BN614 ->  | AL11: =Intra!BP614 ->  | AM11: =Intra!BR614 ->  | AN11: =Intra!BT614 ->  | AO11: =Intra!BV614 ->  | AP11: =Intra!BX614 ->  | AQ11: =Intra!BY614 ->  | AR11: =Intra!BZ614 ->  | AS11: =Intra!CA614 ->  | AT11: =Intra!CB614 ->  | AU11: =Intra!CD614 ->  | AV11: =Intra!AX616 ->  | AW11: =Intra!AY616 ->  | AX11: =Intra!AZ616 ->  | AY11: =Intra!BA616 ->  | AZ11: =Intra!BF615 ->  | BA11: =Intra!BG615 ->  | BB11: =Intra!BH615 ->  | BC11: =Intra!BI615 ->  | BD11: =Intra!BJ615 ->  | BE11: =Intra!BL615 ->  | BF11: =Intra!BN615 ->  | BG11: =Intra!BP615 ->  | BH11: =Intra!BR615 ->  | BI11: =Intra!BT615 ->  | BJ11: =Intra!BV615 ->  | BK11: =Intra!BX615 ->  | BL11: =Intra!BY615 ->  | BM11: =Intra!BZ615 ->  | BN11: =Intra!CA615 ->  | BO11: =Intra!CB615 ->  | BP11: =Intra!CD615 ->  | BQ11: =Intra!AX615 ->  | BR11: =Intra!AY615 ->  | BS11: =Intra!AZ615 ->  | BT11: =Intra!BA615 -> 
B12: =Intra!C662 -> Overall Mandatory w/o B2 | C12: =Intra!AX661 -> 0 | G12: =Intra!C662 -> Overall Mandatory w/o B2 | H12: =Intra!BF662 ->  | I12: =Intra!BG662 ->  | J12: =Intra!BH662 ->  | K12: =Intra!BI662 ->  | L12: =Intra!BJ662 ->  | M12: =Intra!BL662 ->  | N12: =Intra!BN662 ->  | O12: =Intra!BP662 ->  | P12: =Intra!BR662 ->  | Q12: =Intra!BT662 ->  | R12: =Intra!BV662 ->  | S12: =Intra!BX662 ->  | T12: =Intra!BY662 ->  | U12: =Intra!BZ662 ->  | V12: =Intra!CA662 ->  | W12: =Intra!CB662 ->  | X12: =Intra!CD662 ->  | Y12: =Intra!CF662 -> 0 | Z12: =Intra!CH662 -> 0 | AA12: =Intra!AX662 ->  | AB12: =Intra!AY662 ->  | AC12: =Intra!AZ662 ->  | AD12: =Intra!BA662 ->  | AE12: =Intra!BF663 ->  | AF12: =Intra!BG663 ->  | AG12: =Intra!BH663 ->  | AH12: =Intra!BI663 ->  | AI12: =Intra!BJ663 ->  | AJ12: =Intra!BL663 ->  | AK12: =Intra!BN663 ->  | AL12: =Intra!BP663 ->  | AM12: =Intra!BR663 ->  | AN12: =Intra!BT663 ->  | AO12: =Intra!BV663 ->  | AP12: =Intra!BX663 ->  | AQ12: =Intra!BY663 ->  | AR12: =Intra!BZ663 ->  | AS12: =Intra!CA663 ->  | AT12: =Intra!CB663 ->  | AU12: =Intra!CD663 ->  | AV12: =Intra!AX665 ->  | AW12: =Intra!AY665 ->  | AX12: =Intra!AZ665 ->  | AY12: =Intra!BA665 ->  | AZ12: =Intra!BF664 ->  | BA12: =Intra!BG664 ->  | BB12: =Intra!BH664 ->  | BC12: =Intra!BI664 ->  | BD12: =Intra!BJ664 ->  | BE12: =Intra!BL664 ->  | BF12: =Intra!BN664 ->  | BG12: =Intra!BP664 ->  | BH12: =Intra!BR664 ->  | BI12: =Intra!BT664 ->  | BJ12: =Intra!BV664 ->  | BK12: =Intra!BX664 ->  | BL12: =Intra!BY664 ->  | BM12: =Intra!BZ664 ->  | BN12: =Intra!CA664 ->  | BO12: =Intra!CB664 ->  | BP12: =Intra!CD664 ->  | BQ12: =Intra!AX664 ->  | BR12: =Intra!AY664 ->  | BS12: =Intra!AZ664 ->  | BT12: =Intra!BA664 -> 
B13: =Intra!$C$673 -> Overall Mandatory w/ B2 | C13: =Intra!$AX$672 -> 0 | G13: =Intra!$C$673 -> Overall Mandatory w/ B2 | H13: =Intra!BF673 ->  | I13: =Intra!BG673 ->  | J13: =Intra!BH673 ->  | K13: =Intra!BI673 ->  | L13: =Intra!BJ673 ->  | M13: =Intra!BL673 ->  | N13: =Intra!BN673 ->  | O13: =Intra!BP673 ->  | P13: =Intra!BR673 ->  | Q13: =Intra!BT673 ->  | R13: =Intra!BV673 ->  | S13: =Intra!BX673 ->  | T13: =Intra!BY673 ->  | U13: =Intra!BZ673 ->  | V13: =Intra!CA673 ->  | W13: =Intra!CB673 ->  | X13: =Intra!CD673 ->  | Y13: =Intra!CF673 -> 0 | Z13: =Intra!CH673 -> 0 | AA13: =Intra!AX673 ->  | AB13: =Intra!AY673 ->  | AC13: =Intra!AZ673 ->  | AD13: =Intra!BA673 ->  | AE13: =Intra!BF674 ->  | AF13: =Intra!BG674 ->  | AG13: =Intra!BH674 ->  | AH13: =Intra!BI674 ->  | AI13: =Intra!BJ674 ->  | AJ13: =Intra!BL674 ->  | AK13: =Intra!BN674 ->  | AL13: =Intra!BP674 ->  | AM13: =Intra!BR674 ->  | AN13: =Intra!BT674 ->  | AO13: =Intra!BV674 ->  | AP13: =Intra!BX674 ->  | AQ13: =Intra!BY674 ->  | AR13: =Intra!BZ674 ->  | AS13: =Intra!CA674 ->  | AT13: =Intra!CB674 ->  | AU13: =Intra!CD674 ->  | AV13: =Intra!AX676 ->  | AW13: =Intra!AY676 ->  | AX13: =Intra!AZ676 ->  | AY13: =Intra!BA676 ->  | AZ13: =Intra!BF675 ->  | BA13: =Intra!BG675 ->  | BB13: =Intra!BH675 ->  | BC13: =Intra!BI675 ->  | BD13: =Intra!BJ675 ->  | BE13: =Intra!BL675 ->  | BF13: =Intra!BN675 ->  | BG13: =Intra!BP675 ->  | BH13: =Intra!BR675 ->  | BI13: =Intra!BT675 ->  | BJ13: =Intra!BV675 ->  | BK13: =Intra!BX675 ->  | BL13: =Intra!BY675 ->  | BM13: =Intra!BZ675 ->  | BN13: =Intra!CA675 ->  | BO13: =Intra!CB675 ->  | BP13: =Intra!CD675 ->  | BQ13: =Intra!AX675 ->  | BR13: =Intra!AY675 ->  | BS13: =Intra!AZ675 ->  | BT13: =Intra!BA675 -> 
B15: =Intra!C622 -> Class HDR1_4K | C15: =Intra!AX621 -> 0 | G15: =Intra!C622 -> Class HDR1_4K | H15: =Intra!BF622 ->  | I15: =Intra!BG622 ->  | J15: =Intra!BH622 ->  | K15: =Intra!BI622 ->  | L15: =Intra!BJ622 ->  | M15: =Intra!BL622 ->  | N15: =Intra!BN622 ->  | O15: =Intra!BP622 ->  | P15: =Intra!BR622 ->  | Q15: =Intra!BT622 ->  | R15: =Intra!BV622 ->  | S15: =Intra!BX622 ->  | T15: =Intra!BY622 ->  | U15: =Intra!BZ622 ->  | V15: =Intra!CA622 ->  | W15: =Intra!CB622 ->  | X15: =Intra!CD622 ->  | Y15: =Intra!CF622 -> 0 | Z15: =Intra!CH622 -> 0 | AA15: =Intra!AX622 ->  | AB15: =Intra!AY622 ->  | AC15: =Intra!AZ622 ->  | AD15: =Intra!BA622 ->  | AE15: =Intra!BF623 ->  | AF15: =Intra!BG623 ->  | AG15: =Intra!BH623 ->  | AH15: =Intra!BI623 ->  | AI15: =Intra!BJ623 ->  | AJ15: =Intra!BL623 ->  | AK15: =Intra!BN623 ->  | AL15: =Intra!BP623 ->  | AM15: =Intra!BR623 ->  | AN15: =Intra!BT623 ->  | AO15: =Intra!BV623 ->  | AP15: =Intra!BX623 ->  | AQ15: =Intra!BY623 ->  | AR15: =Intra!BZ623 ->  | AS15: =Intra!CA623 ->  | AT15: =Intra!CB623 ->  | AU15: =Intra!CD623 ->  | AV15: =Intra!AX625 ->  | AW15: =Intra!AY625 ->  | AX15: =Intra!AZ625 ->  | AY15: =Intra!BA625 ->  | AZ15: =Intra!BF624 ->  | BA15: =Intra!BG624 ->  | BB15: =Intra!BH624 ->  | BC15: =Intra!BI624 ->  | BD15: =Intra!BJ624 ->  | BE15: =Intra!BL624 ->  | BF15: =Intra!BN624 ->  | BG15: =Intra!BP624 ->  | BH15: =Intra!BR624 ->  | BI15: =Intra!BT624 ->  | BJ15: =Intra!BV624 ->  | BK15: =Intra!BX624 ->  | BL15: =Intra!BY624 ->  | BM15: =Intra!BZ624 ->  | BN15: =Intra!CA624 ->  | BO15: =Intra!CB624 ->  | BP15: =Intra!CD624 ->  | BQ15: =Intra!AX624 ->  | BR15: =Intra!AY624 ->  | BS15: =Intra!AZ624 ->  | BT15: =Intra!BA624 -> 
B16: =Intra!C631 -> Class HDR2_2K | C16: =Intra!AX630 -> 0 | G16: =Intra!C631 -> Class HDR2_2K | H16: =Intra!BF631 ->  | I16: =Intra!BG631 ->  | J16: =Intra!BH631 ->  | K16: =Intra!BI631 ->  | L16: =Intra!BJ631 ->  | M16: =Intra!BL631 ->  | N16: =Intra!BN631 ->  | O16: =Intra!BP631 ->  | P16: =Intra!BR631 ->  | Q16: =Intra!BT631 ->  | R16: =Intra!BV631 ->  | S16: =Intra!BX631 ->  | T16: =Intra!BY631 ->  | U16: =Intra!BZ631 ->  | V16: =Intra!CA631 ->  | W16: =Intra!CB631 ->  | X16: =Intra!CD631 ->  | Y16: =Intra!CF631 -> 0 | Z16: =Intra!CH631 -> 0 | AA16: =Intra!AX631 ->  | AB16: =Intra!AY631 ->  | AC16: =Intra!AZ631 ->  | AD16: =Intra!BA631 ->  | AE16: =Intra!BF632 ->  | AF16: =Intra!BG632 ->  | AG16: =Intra!BH632 ->  | AH16: =Intra!BI632 ->  | AI16: =Intra!BJ632 ->  | AJ16: =Intra!BL632 ->  | AK16: =Intra!BN632 ->  | AL16: =Intra!BP632 ->  | AM16: =Intra!BR632 ->  | AN16: =Intra!BT632 ->  | AO16: =Intra!BV632 ->  | AP16: =Intra!BX632 ->  | AQ16: =Intra!BY632 ->  | AR16: =Intra!BZ632 ->  | AS16: =Intra!CA632 ->  | AT16: =Intra!CB632 ->  | AU16: =Intra!CD632 ->  | AV16: =Intra!AX634 ->  | AW16: =Intra!AY634 ->  | AX16: =Intra!AZ634 ->  | AY16: =Intra!BA634 ->  | AZ16: =Intra!BF633 ->  | BA16: =Intra!BG633 ->  | BB16: =Intra!BH633 ->  | BC16: =Intra!BI633 ->  | BD16: =Intra!BJ633 ->  | BE16: =Intra!BL633 ->  | BF16: =Intra!BN633 ->  | BG16: =Intra!BP633 ->  | BH16: =Intra!BR633 ->  | BI16: =Intra!BT633 ->  | BJ16: =Intra!BV633 ->  | BK16: =Intra!BX633 ->  | BL16: =Intra!BY633 ->  | BM16: =Intra!BZ633 ->  | BN16: =Intra!CA633 ->  | BO16: =Intra!CB633 ->  | BP16: =Intra!CD633 ->  | BQ16: =Intra!AX633 ->  | BR16: =Intra!AY633 ->  | BS16: =Intra!AZ633 ->  | BT16: =Intra!BA633 -> 
B17: =Intra!C684 -> Overall HDR | C17: =Intra!AX683 -> 0 | G17: =Intra!C684 -> Overall HDR | H17: =Intra!BF684 ->  | I17: =Intra!BG684 ->  | J17: =Intra!BH684 ->  | K17: =Intra!BI684 ->  | L17: =Intra!BJ684 ->  | M17: =Intra!BL684 ->  | N17: =Intra!BN684 ->  | O17: =Intra!BP684 ->  | P17: =Intra!BR684 ->  | Q17: =Intra!BT684 ->  | R17: =Intra!BV684 ->  | S17: =Intra!BX684 ->  | T17: =Intra!BY684 ->  | U17: =Intra!BZ684 ->  | V17: =Intra!CA684 ->  | W17: =Intra!CB684 ->  | X17: =Intra!CD684 ->  | Y17: =Intra!CF684 -> 0 | Z17: =Intra!CH684 -> 0 | AA17: =Intra!AX684 ->  | AB17: =Intra!AY684 ->  | AC17: =Intra!AZ684 ->  | AD17: =Intra!BA684 ->  | AE17: =Intra!BF685 ->  | AF17: =Intra!BG685 ->  | AG17: =Intra!BH685 ->  | AH17: =Intra!BI685 ->  | AI17: =Intra!BJ685 ->  | AJ17: =Intra!BL685 ->  | AK17: =Intra!BN685 ->  | AL17: =Intra!BP685 ->  | AM17: =Intra!BR685 ->  | AN17: =Intra!BT685 ->  | AO17: =Intra!BV685 ->  | AP17: =Intra!BX685 ->  | AQ17: =Intra!BY685 ->  | AR17: =Intra!BZ685 ->  | AS17: =Intra!CA685 ->  | AT17: =Intra!CB685 ->  | AU17: =Intra!CD685 ->  | AV17: =Intra!AX687 ->  | AW17: =Intra!AY687 ->  | AX17: =Intra!AZ687 ->  | AY17: =Intra!BA687 ->  | AZ17: =Intra!BF686 ->  | BA17: =Intra!BG686 ->  | BB17: =Intra!BH686 ->  | BC17: =Intra!BI686 ->  | BD17: =Intra!BJ686 ->  | BE17: =Intra!BL686 ->  | BF17: =Intra!BN686 ->  | BG17: =Intra!BP686 ->  | BH17: =Intra!BR686 ->  | BI17: =Intra!BT686 ->  | BJ17: =Intra!BV686 ->  | BK17: =Intra!BX686 ->  | BL17: =Intra!BY686 ->  | BM17: =Intra!BZ686 ->  | BN17: =Intra!CA686 ->  | BO17: =Intra!CB686 ->  | BP17: =Intra!CD686 ->  | BQ17: =Intra!AX686 ->  | BR17: =Intra!AY686 ->  | BS17: =Intra!AZ686 ->  | BT17: =Intra!BA686 -> 
B18: =Intra!C640 -> Class E | C18: =Intra!AX639 -> 0 | G18: =Intra!C640 -> Class E | H18: =Intra!BF640 ->  | I18: =Intra!BG640 ->  | J18: =Intra!BH640 ->  | K18: =Intra!BI640 ->  | L18: =Intra!BJ640 ->  | M18: =Intra!BL640 ->  | N18: =Intra!BN640 ->  | O18: =Intra!BP640 ->  | P18: =Intra!BR640 ->  | Q18: =Intra!BT640 ->  | R18: =Intra!BV640 ->  | S18: =Intra!BX640 ->  | T18: =Intra!BY640 ->  | U18: =Intra!BZ640 ->  | V18: =Intra!CA640 ->  | W18: =Intra!CB640 ->  | X18: =Intra!CD640 ->  | Y18: =Intra!CF640 -> 0 | Z18: =Intra!CH640 -> 0 | AA18: =Intra!AX640 ->  | AB18: =Intra!AY640 ->  | AC18: =Intra!AZ640 ->  | AD18: =Intra!BA640 ->  | AE18: =Intra!BF641 ->  | AF18: =Intra!BG641 ->  | AG18: =Intra!BH641 ->  | AH18: =Intra!BI641 ->  | AI18: =Intra!BJ641 ->  | AJ18: =Intra!BL641 ->  | AK18: =Intra!BN641 ->  | AL18: =Intra!BP641 ->  | AM18: =Intra!BR641 ->  | AN18: =Intra!BT641 ->  | AO18: =Intra!BV641 ->  | AP18: =Intra!BX641 ->  | AQ18: =Intra!BY641 ->  | AR18: =Intra!BZ641 ->  | AS18: =Intra!CA641 ->  | AT18: =Intra!CB641 ->  | AU18: =Intra!CD641 ->  | AV18: =Intra!AX643 ->  | AW18: =Intra!AY643 ->  | AX18: =Intra!AZ643 ->  | AY18: =Intra!BA643 ->  | AZ18: =Intra!BF642 ->  | BA18: =Intra!BG642 ->  | BB18: =Intra!BH642 ->  | BC18: =Intra!BI642 ->  | BD18: =Intra!BJ642 ->  | BE18: =Intra!BL642 ->  | BF18: =Intra!BN642 ->  | BG18: =Intra!BP642 ->  | BH18: =Intra!BR642 ->  | BI18: =Intra!BT642 ->  | BJ18: =Intra!BV642 ->  | BK18: =Intra!BX642 ->  | BL18: =Intra!BY642 ->  | BM18: =Intra!BZ642 ->  | BN18: =Intra!CA642 ->  | BO18: =Intra!CB642 ->  | BP18: =Intra!CD642 ->  | BQ18: =Intra!AX642 ->  | BR18: =Intra!AY642 ->  | BS18: =Intra!AZ642 ->  | BT18: =Intra!BA642 -> 
B19: =Intra!C651 -> Overall | C19: =Intra!AX650 -> 0 | G19: =Intra!C651 -> Overall | H19: =Intra!BF651 ->  | I19: =Intra!BG651 ->  | J19: =Intra!BH651 ->  | K19: =Intra!BI651 ->  | L19: =Intra!BJ651 ->  | M19: =Intra!BL651 ->  | N19: =Intra!BN651 ->  | O19: =Intra!BP651 ->  | P19: =Intra!BR651 ->  | Q19: =Intra!BT651 ->  | R19: =Intra!BV651 ->  | S19: =Intra!BX651 ->  | T19: =Intra!BY651 ->  | U19: =Intra!BZ651 ->  | V19: =Intra!CA651 ->  | W19: =Intra!CB651 ->  | X19: =Intra!CD651 ->  | Y19: =Intra!CF651 -> 0 | Z19: =Intra!CH651 -> 0 | AA19: =Intra!AX651 ->  | AB19: =Intra!AY651 ->  | AC19: =Intra!AZ651 ->  | AD19: =Intra!BA651 ->  | AE19: =Intra!BF652 ->  | AF19: =Intra!BG652 ->  | AG19: =Intra!BH652 ->  | AH19: =Intra!BI652 ->  | AI19: =Intra!BJ652 ->  | AJ19: =Intra!BL652 ->  | AK19: =Intra!BN652 ->  | AL19: =Intra!BO652 ->  | AM19: =Intra!BR652 ->  | AN19: =Intra!BT652 ->  | AO19: =Intra!BV652 ->  | AP19: =Intra!BX652 ->  | AQ19: =Intra!BY652 ->  | AR19: =Intra!BS652 ->  | AS19: =Intra!CA652 ->  | AT19: =Intra!CB652 ->  | AU19: =Intra!CD652 ->  | AV19: =Intra!AX654 ->  | AW19: =Intra!AY654 ->  | AX19: =Intra!AZ654 ->  | AY19: =Intra!BA654 ->  | AZ19: =Intra!BF653 ->  | BA19: =Intra!BG653 ->  | BB19: =Intra!BH653 ->  | BC19: =Intra!BI653 ->  | BD19: =Intra!BJ653 ->  | BE19: =Intra!BL653 ->  | BF19: =Intra!BN653 ->  | BG19: =Intra!BP653 ->  | BH19: =Intra!BR653 ->  | BI19: =Intra!BT653 ->  | BJ19: =Intra!BV653 ->  | BK19: =Intra!BX653 ->  | BL19: =Intra!BY653 ->  | BM19: =Intra!BZ653 ->  | BN19: =Intra!CA653 ->  | BO19: =Intra!CB653 ->  | BP19: =Intra!CD653 ->  | BQ19: =Intra!AX653 ->  | BR19: =Intra!AY653 ->  | BS19: =Intra!AZ653 ->  | BT19: =Intra!BA653 -> 
B21: =RA!C559 -> Class A1_4K | C21: =RA!AX558 -> 1 | F21: RA | G21: =RA!C559 -> Class A1_4K | H21: =RA!BF559 -> 0.01723254478 | I21: =RA!BG559 -> 0.03229801716 | J21: =RA!BH559 -> 0.02350897348 | K21: =RA!BI559 -> 0.01782572788 | L21: =RA!BJ559 -> 0.01808622083 | M21: =RA!BL559 -> -0.01102601419 | N21: =RA!BN559 -> -0.002084900614 | O21: =RA!BP559 -> 0.003200282111 | P21: =RA!BR559 -> 0.004000565862 | Q21: =RA!BT559 -> 0.009665332886 | R21: =RA!BV559 -> 0.007232289246 | S21: =RA!BX559 -> 0.01093856547 | T21: =RA!BY559 -> 0.02823256266 | U21: =RA!BZ559 -> 0.01965504758 | V21: =RA!CA559 -> 0.01265577586 | W21: =RA!CB559 -> 0.01197898465 | X21: =RA!CD559 -> 0.01124543114 | Y21: =RA!CF559 -> 0 | Z21: =RA!CH559 -> 0 | AA21: =RA!AX559 -> 0.9569750163 | AB21: =RA!AY559 -> 0.9680316833 | AC21: =RA!AZ559 -> 0.9483002493 | AD21: =RA!BA559 -> 0.907765541 | AE21: =RA!BF560 -> -0.01845066318 | AF21: =RA!BG560 -> -0.0144577992 | AG21: =RA!BH560 -> -0.02063597724 | AH21: =RA!BI560 -> -0.01833782164 | AI21: =RA!BJ560 -> -0.01837836118 | AJ21: =RA!BL560 -> -0.03199677778 | AK21: =RA!BN560 -> -0.04080577197 | AL21: =RA!BP560 -> -0.02453478493 | AM21: =RA!BR560 -> -0.02786733162 | AN21: =RA!BT560 -> -0.02423062539 | AO21: =RA!BV560 -> -0.04251611555 | AP21: =RA!BX560 -> -0.02090089987 | AQ21: =RA!BY560 -> -0.01471167848 | AR21: =RA!BZ560 -> -0.01997867892 | AS21: =RA!CA560 -> -0.02001024835 | AT21: =RA!CB560 -> -0.02008490429 | AU21: =RA!CD560 -> -0.04588390929 | AV21: =RA!AX562 -> 0.7226184107 | AW21: =RA!AY562 -> 0.5374119718 | AX21: =RA!AZ562 -> 0.8406599749 | AY21: =RA!BA562 -> 0.7683201859 | AZ21: =RA!BF561 -> 0.07362773131 | BA21: =RA!BG561 -> 0.07393883771 | BB21: =RA!BH561 -> 0.07353484149 | BC21: =RA!BI561 -> 0.0733467054 | BD21: =RA!BJ561 -> 0.07339061288 | BE21: =RA!BL561 -> 0.008421057518 | BF21: =RA!BN561 -> 0.01553320713 | BG21: =RA!BP561 -> 0.03863233397 | BH21: =RA!BR561 -> 0.03676995705 | BI21: =RA!BT561 -> 0.06002534252 | BJ21: =RA!BV561 -> 0.02789938873 | BK21: =RA!BX561 -> 0.05096720997 | BL21: =RA!BY561 -> 0.05793485556 | BM21: =RA!BZ561 -> 0.0675901434 | BN21: =RA!CA561 -> 0.05126655713 | BO21: =RA!CB561 -> 0.05119671213 | BP21: =RA!CD561 -> 0.130838026 | BQ21: =RA!AX561 -> 1.231273464 | BR21: =RA!AY561 -> 1.774748924 | BS21: =RA!AZ561 -> 1.006309483 | BT21: =RA!BA561 -> 1.032758029
B22: =RA!C568 -> Class A2_2K | C22: =RA!AX567 -> 1 | G22: =RA!C568 -> Class A2_2K | H22: =RA!BF568 -> 0.01212711772 | I22: =RA!BG568 ->  | J22: =RA!BH568 -> 0.01183618248 | K22: =RA!BI568 -> 0.01252101902 | L22: =RA!BJ568 ->  | M22: =RA!BL568 -> -0.01616025395 | N22: =RA!BN568 -> -0.009763109846 | O22: =RA!BP568 -> -0.007803452958 | P22: =RA!BR568 -> -0.009668945376 | Q22: =RA!BT568 -> 0.001289127404 | R22: =RA!BV568 -> 0.002256257567 | S22: =RA!BX568 -> 0.0003600754513 | T22: =RA!BY568 ->  | U22: =RA!BZ568 -> 0.006233194266 | V22: =RA!CA568 -> 0.00106863784 | W22: =RA!CB568 ->  | X22: =RA!CD568 -> 0.01365936948 | Y22: =RA!CF568 -> 0 | Z22: =RA!CH568 -> 0 | AA22: =RA!AX568 -> 0.9216543105 | AB22: =RA!AY568 -> 0.9448636576 | AC22: =RA!AZ568 -> 0.9633629509 | AD22: =RA!BA568 -> 0.9239042333 | AE22: =RA!BF569 -> -0.08848897599 | AF22: =RA!BG569 ->  | AG22: =RA!BH569 -> -0.02647871694 | AH22: =RA!BI569 -> -0.08023325231 | AI22: =RA!BJ569 ->  | AJ22: =RA!BL569 -> -0.06932330273 | AK22: =RA!BN569 -> -0.07694643107 | AL22: =RA!BP569 -> -0.08398901837 | AM22: =RA!BR569 -> -0.08169012208 | AN22: =RA!BT569 -> -0.06607993724 | AO22: =RA!BV569 -> -0.06600194436 | AP22: =RA!BX569 -> -0.106063571 | AQ22: =RA!BY569 ->  | AR22: =RA!BZ569 -> -0.02816021307 | AS22: =RA!CA569 -> -0.1026714085 | AT22: =RA!CB569 ->  | AU22: =RA!CD569 -> -0.04361860077 | AV22: =RA!AX571 -> 0.6835596824 | AW22: =RA!AY571 -> 0.470790378 | AX22: =RA!AZ571 -> 0.7101714751 | AY22: =RA!BA571 -> 0.5845435545 | AZ22: =RA!BF570 -> 0.04894368574 | BA22: =RA!BG570 ->  | BB22: =RA!BH570 -> 0.04295483942 | BC22: =RA!BI570 -> 0.04788734049 | BD22: =RA!BJ570 ->  | BE22: =RA!BL570 -> 0.007075640493 | BF22: =RA!BN570 -> 0.01128319942 | BG22: =RA!BP570 -> 0.05533092483 | BH22: =RA!BR570 -> 0.02874114284 | BI22: =RA!BT570 -> 0.02513754405 | BJ22: =RA!BV570 -> 0.03320588931 | BK22: =RA!BX570 -> 0.03670014249 | BL22: =RA!BY570 ->  | BM22: =RA!BZ570 -> 0.04194598441 | BN22: =RA!CA570 -> 0.03710981835 | BO22: =RA!CB570 ->  | BP22: =RA!CD570 -> 0.210920125 | BQ22: =RA!AX570 -> 1.338045558 | BR22: =RA!AY570 -> 1.822706065 | BS22: =RA!AZ570 -> 1.108620885 | BT22: =RA!BA570 -> 1.084606424
B23: =RA!C577 -> Class A3_720p | C23: =RA!AX576 -> 1 | G23: =RA!C577 -> Class A3_720p | H23: =RA!BF577 -> 0.01819015974 | I23: =RA!BG577 -> 0.02701174457 | J23: =RA!BH577 -> 0.002287362591 | K23: =RA!BI577 -> 0.01793063459 | L23: =RA!BJ577 -> 0.01790691124 | M23: =RA!BL577 -> -0.002039841644 | N23: =RA!BN577 -> 0.001396651478 | O23: =RA!BP577 -> -0.007631510824 | P23: =RA!BR577 -> -0.007309262662 | Q23: =RA!BT577 -> 0.001699333186 | R23: =RA!BV577 -> 0.01588112741 | S23: =RA!BX577 -> 0.01532958339 | T23: =RA!BY577 -> 0.02496231102 | U23: =RA!BZ577 -> 0.0001284810315 | V23: =RA!CA577 -> 0.01539383924 | W23: =RA!CB577 -> 0.0151068484 | X23: =RA!CD577 -> 6.670283896e-05 | Y23: =RA!CF577 -> 0 | Z23: =RA!CH577 -> 0 | AA23: =RA!AX577 -> 0.9387027023 | AB23: =RA!AY577 -> 0.8397272714 | AC23: =RA!AZ577 -> 0.9673880353 | AD23: =RA!BA577 -> 0.9040369087 | AE23: =RA!BF578 -> -0.008078949975 | AF23: =RA!BG578 -> -0.02041223499 | AG23: =RA!BH578 -> -0.03891631373 | AH23: =RA!BI578 -> -0.006543169358 | AI23: =RA!BJ578 -> -0.005180577557 | AJ23: =RA!BL578 -> -0.02954255759 | AK23: =RA!BN578 -> -0.01995877339 | AL23: =RA!BP578 -> -0.02573078548 | AM23: =RA!BR578 -> -0.02454432614 | AN23: =RA!BT578 -> -0.01598132305 | AO23: =RA!BV578 -> -0.0110732647 | AP23: =RA!BX578 -> -0.008598140777 | AQ23: =RA!BY578 -> -0.02480911651 | AR23: =RA!BZ578 -> -0.04132311908 | AS23: =RA!CA578 -> -0.007305430534 | AT23: =RA!CB578 -> -0.005695800328 | AU23: =RA!CD578 -> -0.1956516473 | AV23: =RA!AX580 -> 0.7061655474 | AW23: =RA!AY580 -> 0.4252873563 | AX23: =RA!AZ580 -> 0.8668922442 | AY23: =RA!BA580 -> 0.7838751894 | AZ23: =RA!BF579 -> 0.04003909829 | BA23: =RA!BG579 -> 0.06669985436 | BB23: =RA!BH579 -> 0.02309640692 | BC23: =RA!BI579 -> 0.04013871029 | BD23: =RA!BJ579 -> 0.04008951489 | BE23: =RA!BL579 -> 0.02827879422 | BF23: =RA!BN579 -> 0.02358387027 | BG23: =RA!BP579 -> 0.01671848236 | BH23: =RA!BR579 -> 0.01557924081 | BI23: =RA!BT579 -> 0.01080336727 | BJ23: =RA!BV579 -> 0.03783246899 | BK23: =RA!BX579 -> 0.03167709992 | BL23: =RA!BY579 -> 0.06636019967 | BM23: =RA!BZ579 -> 0.02160533531 | BN23: =RA!CA579 -> 0.03163620031 | BO23: =RA!CB579 -> 0.03112025498 | BP23: =RA!CD579 -> 0.2824515232 | BQ23: =RA!AX579 -> 1.252901024 | BR23: =RA!AY579 -> 1.741116751 | BS23: =RA!AZ579 -> 1.062201547 | BT23: =RA!BA579 -> 0.9691030272
B24: =RA!C586 -> Class A4_360p | C24: =RA!AX585 -> 1 | G24: =RA!C586 -> Class A4_360p | H24: =RA!BF586 -> 0.02110038628 | I24: =RA!BG586 -> 0.01358808974 | J24: =RA!BH586 -> -0.005568896751 | K24: =RA!BI586 -> 0.02036934013 | L24: =RA!BJ586 -> 0.0197331231 | M24: =RA!BL586 -> 0.01022730307 | N24: =RA!BN586 -> -0.01433992217 | O24: =RA!BP586 -> -0.01392775832 | P24: =RA!BR586 -> -0.01149245567 | Q24: =RA!BT586 -> -0.007909790105 | R24: =RA!BV586 -> 0.003062526203 | S24: =RA!BX586 -> 0.01032566551 | T24: =RA!BY586 -> 0.00864819443 | U24: =RA!BZ586 -> -0.007990335297 | V24: =RA!CA586 -> 0.01004312462 | W24: =RA!CB586 -> 0.009525926637 | X24: =RA!CD586 -> -0.001244487808 | Y24: =RA!CF586 -> 0 | Z24: =RA!CH586 -> 0 | AA24: =RA!AX586 -> 0.9322768605 | AB24: =RA!AY586 -> 0.8176171809 | AC24: =RA!AZ586 -> 0.9685324968 | AD24: =RA!BA586 -> 0.9139251217 | AE24: =RA!BF587 -> -0.003136686156 | AF24: =RA!BG587 -> -0.02518048759 | AG24: =RA!BH587 -> -0.05349108841 | AH24: =RA!BI587 -> -0.0008271621176 | AI24: =RA!BJ587 -> -0.0003912560646 | AJ24: =RA!BL587 -> -0.02352733681 | AK24: =RA!BN587 -> -0.05142843929 | AL24: =RA!BP587 -> -0.03361083026 | AM24: =RA!BR587 -> -0.02917105393 | AN24: =RA!BT587 -> -0.03003264262 | AO24: =RA!BV587 -> -0.009401544651 | AP24: =RA!BX587 -> -0.004091237438 | AQ24: =RA!BY587 -> -0.03986456721 | AR24: =RA!BZ587 -> -0.05676210332 | AS24: =RA!CA587 -> -0.003167239959 | AT24: =RA!CB587 -> -0.001371250827 | AU24: =RA!CD587 -> -0.02596034284 | AV24: =RA!AX589 -> 0.6836864407 | AW24: =RA!AY589 -> 0.4 | AX24: =RA!AZ589 -> 0.8658089636 | AY24: =RA!BA589 -> 0.8165225501 | AZ24: =RA!BF588 -> 0.08448895988 | BA24: =RA!BG588 -> 0.05652249676 | BB24: =RA!BH588 -> 0.03108987886 | BC24: =RA!BI588 -> 0.0792807278 | BD24: =RA!BJ588 -> 0.07458298005 | BE24: =RA!BL588 -> 0.03696087807 | BF24: =RA!BN588 -> 0.02488742156 | BG24: =RA!BP588 -> 0.009823047315 | BH24: =RA!BR588 -> 0.006980851438 | BI24: =RA!BT588 -> 0.009113872965 | BJ24: =RA!BV588 -> 0.02363581355 | BK24: =RA!BX588 -> 0.02801838925 | BL24: =RA!BY588 -> 0.05651902297 | BM24: =RA!BZ588 -> 0.0309659522 | BN24: =RA!CA588 -> 0.02736884164 | BO24: =RA!CB588 -> 0.02191185129 | BP24: =RA!CD588 -> 0.02497349035 | BQ24: =RA!AX588 -> 1.329847909 | BR24: =RA!AY588 -> 1.857142857 | BS24: =RA!AZ588 -> 1.099770329 | BT24: =RA!BA588 -> 1.05873849
B25: =RA!C595 -> Class A5_270p | C25: =RA!AX594 -> 1 | G25: =RA!C595 -> Class A5_270p | H25: =RA!BF595 -> -0.009605142009 | I25: =RA!BG595 -> -0.03581301913 | J25: =RA!BH595 -> -0.06931021779 | K25: =RA!BI595 -> -0.01315714934 | L25: =RA!BJ595 -> -0.01304166013 | M25: =RA!BL595 -> -0.01514279885 | N25: =RA!BN595 -> -0.02630980074 | O25: =RA!BP595 -> -0.05875762244 | P25: =RA!BR595 -> -0.05496755731 | Q25: =RA!BT595 -> -0.02483823244 | R25: =RA!BV595 -> -0.0258599774 | S25: =RA!BX595 -> -0.01494388936 | T25: =RA!BY595 -> -0.03694953708 | U25: =RA!BZ595 -> -0.07117280229 | V25: =RA!CA595 -> -0.0150514586 | W25: =RA!CB595 -> -0.01807327178 | X25: =RA!CD595 -> -0.04496980232 | Y25: =RA!CF595 -> 0 | Z25: =RA!CH595 -> 0 | AA25: =RA!AX595 -> 0.8851265599 | AB25: =RA!AY595 -> 0.8382960551 | AC25: =RA!AZ595 -> 0.9487771463 | AD25: =RA!BA595 -> 0.9060747554 | AE25: =RA!BF596 -> -0.02643147635 | AF25: =RA!BG596 -> -0.1515211849 | AG25: =RA!BH596 -> -0.1795541969 | AH25: =RA!BI596 -> -0.03017736144 | AI25: =RA!BJ596 -> -0.02935699159 | AJ25: =RA!BL596 -> -0.05689572832 | AK25: =RA!BN596 -> -0.07515216174 | AL25: =RA!BP596 -> -0.116183705 | AM25: =RA!BR596 -> -0.118036285 | AN25: =RA!BT596 -> -0.03110681244 | AO25: =RA!BV596 -> -0.06703654225 | AP25: =RA!BX596 -> -0.02649760523 | AQ25: =RA!BY596 -> -0.1616144345 | AR25: =RA!BZ596 -> -0.1883701885 | AS25: =RA!CA596 -> -0.02749983951 | AT25: =RA!CB596 -> -0.03710517901 | AU25: =RA!CD596 -> -0.1006464534 | AV25: =RA!AX598 -> 0.68799547 | AW25: =RA!AY598 -> 0.2741935484 | AX25: =RA!AZ598 -> 0.8837920549 | AY25: =RA!BA598 -> 0.8196429354 | AZ25: =RA!BF597 -> 0.004526303395 | BA25: =RA!BG597 -> 0.08833673496 | BB25: =RA!BH597 -> 0.003577902818 | BC25: =RA!BI597 -> 0.004091839895 | BD25: =RA!BJ597 -> 0.004596398355 | BE25: =RA!BL597 -> 0.01264147933 | BF25: =RA!BN597 -> -0.006135084864 | BG25: =RA!BP597 -> -0.02771245379 | BH25: =RA!BR597 -> -0.02559734533 | BI25: =RA!BT597 -> -0.01282325127 | BJ25: =RA!BV597 -> -0.002841453833 | BK25: =RA!BX597 -> -0.001980871861 | BL25: =RA!BY597 -> 0.0945676248 | BM25: =RA!BZ597 -> 0.008031200223 | BN25: =RA!CA597 -> 0.001475206356 | BO25: =RA!CB597 -> 0.002281550889 | BP25: =RA!CD597 -> 0.002705870408 | BQ25: =RA!AX597 -> 1.172922252 | BR25: =RA!AY597 -> 1.694444444 | BS25: =RA!AZ597 -> 1.017282865 | BT25: =RA!BA597 -> 0.9902641846
B26: =RA!C604 -> Class B1_SYN | C26: =RA!AX603 -> 1 | G26: =RA!C604 -> Class B1_SYN | H26: =RA!BF604 -> 0.02119844577 | I26: =RA!BG604 -> 0.04668391747 | J26: =RA!BH604 -> 0.01934422371 | K26: =RA!BI604 -> 0.02226665763 | L26: =RA!BJ604 -> 0.02214369576 | M26: =RA!BL604 -> -0.022722888 | N26: =RA!BN604 -> -0.01465479143 | O26: =RA!BP604 -> -0.01335513408 | P26: =RA!BR604 -> -0.01364510561 | Q26: =RA!BT604 -> -0.0002187324478 | R26: =RA!BV604 -> -2.406925818e-05 | S26: =RA!BX604 -> 0.003536183133 | T26: =RA!BY604 -> 0.04212913249 | U26: =RA!BZ604 -> 0.01342288129 | V26: =RA!CA604 -> 0.00520318565 | W26: =RA!CB604 -> 0.005475369034 | X26: =RA!CD604 -> -0.03804335629 | Y26: =RA!CF604 -> 0 | Z26: =RA!CH604 -> 0 | AA26: =RA!AX604 -> 0.8526064477 | AB26: =RA!AY604 -> 1.001900346 | AC26: =RA!AZ604 -> 0.9174859825 | AD26: =RA!BA604 -> 0.8656782233 | AE26: =RA!BF605 -> -0.02734916522 | AF26: =RA!BG605 -> 0.007584564553 | AG26: =RA!BH605 -> -0.05584354922 | AH26: =RA!BI605 -> -0.02608854255 | AI26: =RA!BJ605 -> -0.02598796897 | AJ26: =RA!BL605 -> -0.06623705451 | AK26: =RA!BN605 -> -0.06623705451 | AL26: =RA!BP605 -> -0.06682047404 | AM26: =RA!BR605 -> -0.06666781352 | AN26: =RA!BT605 -> -0.02903779121 | AO26: =RA!BV605 -> -0.04600736779 | AP26: =RA!BX605 -> -0.02700237365 | AQ26: =RA!BY605 -> 0.008143685846 | AR26: =RA!BZ605 -> -0.05779820086 | AS26: =RA!CA605 -> -0.02625566241 | AT26: =RA!CB605 -> -0.0256627975 | AU26: =RA!CD605 -> -0.1876365281 | AV26: =RA!AX607 -> 0.6143302983 | AW26: =RA!AY607 -> 0.5141388175 | AX26: =RA!AZ607 -> 0.7285453742 | AY26: =RA!BA607 -> 0.6605253232 | AZ26: =RA!BF606 -> 0.0966109885 | BA26: =RA!BG606 -> 0.1161060032 | BB26: =RA!BH606 -> 0.1470012297 | BC26: =RA!BI606 -> 0.1012497918 | BD26: =RA!BJ606 -> 0.09940639874 | BE26: =RA!BL606 -> 0.09521458716 | BF26: =RA!BN606 -> 0.09521458716 | BG26: =RA!BP606 -> 0.1089825945 | BH26: =RA!BR606 -> 0.1110347013 | BI26: =RA!BT606 -> 0.1059548155 | BJ26: =RA!BV606 -> 0.08510427317 | BK26: =RA!BX606 -> 0.07611579527 | BL26: =RA!BY606 -> 0.1006199764 | BM26: =RA!BZ606 -> 0.1198033789 | BN26: =RA!CA606 -> 0.08167025955 | BO26: =RA!CB606 -> 0.07884346586 | BP26: =RA!CD606 -> 0.03522507094 | BQ26: =RA!AX606 -> 1.221790704 | BR26: =RA!AY606 -> 1.76 | BS26: =RA!AZ606 -> 1.064054885 | BT26: =RA!BA606 -> 1.107695827
B27: =RA!C613 -> Class B2_SCC | C27: =RA!AX612 -> 1 | G27: =RA!C613 -> Class B2_SCC | H27: =RA!BF613 -> 0.02051922105 | I27: =RA!BG613 -> -0.0009464602453 | J27: =RA!BH613 -> 0.004652764187 | K27: =RA!BI613 -> 0.0191192583 | L27: =RA!BJ613 -> 0.01902593552 | M27: =RA!BL613 -> 0.01475473642 | N27: =RA!BN613 -> 0.02389730084 | O27: =RA!BP613 -> 0.01168563948 | P27: =RA!BR613 -> 0.01131811581 | Q27: =RA!BT613 -> 0.01800241347 | R27: =RA!BV613 -> 0.01123611652 | S27: =RA!BX613 -> 0.01298813729 | T27: =RA!BY613 -> -0.008514366524 | U27: =RA!BZ613 -> -0.004256027055 | V27: =RA!CA613 -> 0.01180791801 | W27: =RA!CB613 -> 0.01143827056 | X27: =RA!CD613 -> -0.06943012328 | Y27: =RA!CF613 -> 0 | Z27: =RA!CH613 -> 0 | AA27: =RA!AX613 -> 0.9479049493 | AB27: =RA!AY613 -> 1.106975891 | AC27: =RA!AZ613 -> 1.035231042 | AD27: =RA!BA613 -> 0.9481806621 | AE27: =RA!BF614 -> -0.08255711804 | AF27: =RA!BG614 -> -0.1536668627 | AG27: =RA!BH614 -> -0.1261456084 | AH27: =RA!BI614 -> -0.08720858009 | AI27: =RA!BJ614 -> -0.08714504744 | AJ27: =RA!BL614 -> -0.05574072693 | AK27: =RA!BN614 -> -0.04563995787 | AL27: =RA!BP614 -> -0.07417164656 | AM27: =RA!BR614 -> -0.07094014814 | AN27: =RA!BT614 -> -0.05050583154 | AO27: =RA!BV614 -> -0.09340932614 | AP27: =RA!BX614 -> -0.1102336735 | AQ27: =RA!BY614 -> -0.1371833166 | AR27: =RA!BZ614 -> -0.1194589838 | AS27: =RA!CA614 -> -0.1118356676 | AT27: =RA!CB614 -> -0.1116806717 | AU27: =RA!CD614 -> -0.6646718814 | AV27: =RA!AX616 -> 0.8193792662 | AW27: =RA!AY616 -> 0.5421686747 | AX27: =RA!AZ616 -> 0.937233788 | AY27: =RA!BA616 -> 0.8178794975 | AZ27: =RA!BF615 -> 0.2900067155 | BA27: =RA!BG615 -> 0.2542461107 | BB27: =RA!BH615 -> 0.2395493069 | BC27: =RA!BI615 -> 0.2865594727 | BD27: =RA!BJ615 -> 0.286557995 | BE27: =RA!BL615 -> 0.2209765505 | BF27: =RA!BN615 -> 0.2405291689 | BG27: =RA!BP615 -> 0.2530900297 | BH27: =RA!BR615 -> 0.2560785635 | BI27: =RA!BT615 -> 0.2420746811 | BJ27: =RA!BV615 -> 0.2780049869 | BK27: =RA!BX615 -> 0.2887126538 | BL27: =RA!BY615 -> 0.2534816622 | BM27: =RA!BZ615 -> 0.2394628121 | BN27: =RA!CA615 -> 0.2868678274 | BO27: =RA!CB615 -> 0.2853334204 | BP27: =RA!CD615 -> 0.01553469223 | BQ27: =RA!AX615 -> 1.216011683 | BR27: =RA!AY615 -> 1.774509804 | BS27: =RA!AZ615 -> 1.113400421 | BT27: =RA!BA615 -> 1.051951915
B28: =RA!C662 -> Overall Mandatory w/o B2 | C28: =RA!AX661 -> 1 | G28: =RA!C662 -> Overall Mandatory w/o B2 | H28: =RA!BF662 -> 0.01466111092 | I28: =RA!BG662 ->  | J28: =RA!BH662 -> 0.006026804974 | K28: =RA!BI662 -> 0.01472012652 | L28: =RA!BJ662 ->  | M28: =RA!BL662 -> -0.01183601191 | N28: =RA!BN662 -> -0.009622776898 | O28: =RA!BP662 -> -0.01136679613 | P28: =RA!BR662 -> -0.01145624814 | Q28: =RA!BT662 -> -0.0005124286793 | R28: =RA!BV662 -> 0.002573095772 | S28: =RA!BX662 -> 0.004407019273 | T28: =RA!BY662 ->  | U28: =RA!BZ662 -> 0.001672311978 | V28: =RA!CA662 -> 0.005172271089 | W28: =RA!CB662 ->  | X28: =RA!CD662 -> -0.003047870667 | Y28: =RA!CF662 -> 0 | Z28: =RA!CH662 -> 0 | AA28: =RA!AX662 -> 0.9149375308 | AB28: =RA!AY662 -> 0.9205767027 | AC28: =RA!AZ662 -> 0.9532913455 | AD28: =RA!BA662 -> 0.9064072908 | AE28: =RA!BF663 -> -0.08848897599 | AF28: =RA!BG663 ->  | AG28: =RA!BH663 -> -0.1795541969 | AH28: =RA!BI663 -> -0.08023325231 | AI28: =RA!BJ663 ->  | AJ28: =RA!BL663 -> -0.06932330273 | AK28: =RA!BN663 -> -0.07694643107 | AL28: =RA!BP663 -> -0.116183705 | AM28: =RA!BR663 -> -0.118036285 | AN28: =RA!BT663 -> -0.06607993724 | AO28: =RA!BV663 -> -0.06703654225 | AP28: =RA!BX663 -> -0.106063571 | AQ28: =RA!BY663 ->  | AR28: =RA!BZ663 -> -0.1883701885 | AS28: =RA!CA663 -> -0.1026714085 | AT28: =RA!CB663 ->  | AU28: =RA!CD663 -> -0.1956516473 | AV28: =RA!AX665 -> 0.6143302983 | AW28: =RA!AY665 -> 0.2741935484 | AX28: =RA!AZ665 -> 0.7101714751 | AY28: =RA!BA665 -> 0.5845435545 | AZ28: =RA!BF664 -> 0.0966109885 | BA28: =RA!BG664 ->  | BB28: =RA!BH664 -> 0.1470012297 | BC28: =RA!BI664 -> 0.1012497918 | BD28: =RA!BJ664 ->  | BE28: =RA!BL664 -> 0.09521458716 | BF28: =RA!BN664 -> 0.08559209877 | BG28: =RA!BP664 -> 0.1089825945 | BH28: =RA!BR664 -> 0.1110347013 | BI28: =RA!BT664 -> 0.1059548155 | BJ28: =RA!BV664 -> 0.08510427317 | BK28: =RA!BX664 -> 0.07611579527 | BL28: =RA!BY664 ->  | BM28: =RA!BZ664 -> 0.1198033789 | BN28: =RA!CA664 -> 0.08167025955 | BO28: =RA!CB664 ->  | BP28: =RA!CD664 -> 0.2824515232 | BQ28: =RA!AX664 -> 1.338045558 | BR28: =RA!AY664 -> 1.857142857 | BS28: =RA!AZ664 -> 1.108620885 | BT28: =RA!BA664 -> 1.107695827
B29: =RA!$C$673 -> Overall Mandatory w/ B2 | C29: =RA!$AX$672 -> 1 | G29: =RA!$C$673 -> Overall Mandatory w/ B2 | H29: =RA!BF673 -> 0.01559501253 | I29: =RA!BG673 ->  | J29: =RA!BH673 -> 0.005807754994 | K29: =RA!BI673 -> 0.01542143738 | L29: =RA!BJ673 ->  | M29: =RA!BL673 -> -0.007596907102 | N29: =RA!BN673 -> -0.004278996389 | O29: =RA!BP673 -> -0.00769177016 | P29: =RA!BR673 -> -0.007825552435 | Q29: =RA!BT673 -> 0.002439212822 | R29: =RA!BV673 -> 0.003954157051 | S29: =RA!BX673 -> 0.005775023594 | T29: =RA!BY673 ->  | U29: =RA!BZ673 -> 0.0007272144512 | V29: =RA!CA673 -> 0.006230127846 | W29: =RA!CB673 ->  | X29: =RA!CD673 -> -0.01363054862 | Y29: =RA!CF673 -> 0 | Z29: =RA!CH673 -> 0 | AA29: =RA!AX673 -> 0.9201153297 | AB29: =RA!AY673 -> 0.9480387019 | AC29: =RA!AZ673 -> 0.9659057504 | AD29: =RA!BA673 -> 0.9129413522 | AE29: =RA!BF674 -> -0.08848897599 | AF29: =RA!BG674 ->  | AG29: =RA!BH674 -> -0.1795541969 | AH29: =RA!BI674 -> -0.08720858009 | AI29: =RA!BJ674 ->  | AJ29: =RA!BL674 -> -0.06932330273 | AK29: =RA!BN674 -> -0.07694643107 | AL29: =RA!BP674 -> -0.116183705 | AM29: =RA!BR674 -> -0.118036285 | AN29: =RA!BT674 -> -0.06607993724 | AO29: =RA!BV674 -> -0.09340932614 | AP29: =RA!BX674 -> -0.1102336735 | AQ29: =RA!BY674 ->  | AR29: =RA!BZ674 -> -0.1883701885 | AS29: =RA!CA674 -> -0.1118356676 | AT29: =RA!CB674 ->  | AU29: =RA!CD674 -> -0.6646718814 | AV29: =RA!AX676 -> 0.6143302983 | AW29: =RA!AY676 -> 0.2741935484 | AX29: =RA!AZ676 -> 0.7101714751 | AY29: =RA!BA676 -> 0.5845435545 | AZ29: =RA!BF675 -> 0.2900067155 | BA29: =RA!BG675 ->  | BB29: =RA!BH675 -> 0.2395493069 | BC29: =RA!BI675 -> 0.2865594727 | BD29: =RA!BJ675 ->  | BE29: =RA!BL675 -> 0.2209765505 | BF29: =RA!BN675 -> 0.2405291689 | BG29: =RA!BP675 -> 0.2530900297 | BH29: =RA!BR675 -> 0.2560785635 | BI29: =RA!BT675 -> 0.2420746811 | BJ29: =RA!BV675 -> 0.2780049869 | BK29: =RA!BX675 -> 0.2887126538 | BL29: =RA!BY675 ->  | BM29: =RA!BZ675 -> 0.2394628121 | BN29: =RA!CA675 -> 0.2868678274 | BO29: =RA!CB675 ->  | BP29: =RA!CD675 -> 0.2824515232 | BQ29: =RA!AX675 -> 1.338045558 | BR29: =RA!AY675 -> 1.857142857 | BS29: =RA!AZ675 -> 1.113400421 | BT29: =RA!BA675 -> 1.107695827
B31: =RA!C622 -> Class HDR1_4K | C31: =RA!AX621 -> 1 | G31: =RA!C622 -> Class HDR1_4K | H31: =RA!BF622 -> 0.05247544949 | I31: =RA!BG622 -> 0.04808812673 | J31: =RA!BH622 -> 0.0339730227 | K31: =RA!BI622 -> 0.05155405996 | L31: =RA!BJ622 -> 0.0515598595 | M31: =RA!BL622 -> 0.005920955762 | N31: =RA!BN622 -> 0.008291306859 | O31: =RA!BP622 -> 0.02092789128 | P31: =RA!BR622 -> 0.02086326937 | Q31: =RA!BT622 -> 0.02965068491 | R31: =RA!BV622 -> 0.0181603761 | S31: =RA!BX622 -> 0.03558211364 | T31: =RA!BY622 -> 0.03920260517 | U31: =RA!BZ622 -> 0.02520975141 | V31: =RA!CA622 -> 0.03465066855 | W31: =RA!CB622 -> 0.03531203881 | X31: =RA!CD622 -> 0.02693423384 | Y31: =RA!CF622 -> 0 | Z31: =RA!CH622 -> 0 | AA31: =RA!AX622 -> 0.9316284167 | AB31: =RA!AY622 -> 1.105975476 | AC31: =RA!AZ622 -> 0.956569477 | AD31: =RA!BA622 -> 0.9309565907 | AE31: =RA!BF623 -> 0.01454200286 | AF31: =RA!BG623 -> 0.03222310281 | AG31: =RA!BH623 -> 0.01898730743 | AH31: =RA!BI623 -> 0.01705102596 | AI31: =RA!BJ623 -> 0.01750265915 | AJ31: =RA!BL623 -> -0.01696966405 | AK31: =RA!BN623 -> -0.02096377467 | AL31: =RA!BP623 -> -0.0138245107 | AM31: =RA!BR623 -> -0.01154122486 | AN31: =RA!BT623 -> 0.003446592097 | AO31: =RA!BV623 -> -0.009674938496 | AP31: =RA!BX623 -> -0.01987993101 | AQ31: =RA!BY623 -> 0.0260770547 | AR31: =RA!BZ623 -> -0.004556890131 | AS31: =RA!CA623 -> -0.01901471225 | AT31: =RA!CB623 -> -0.01466401385 | AU31: =RA!CD623 -> -0.006522524016 | AV31: =RA!AX625 -> 0.7911714771 | AW31: =RA!AY625 -> 0.5532646048 | AX31: =RA!AZ625 -> 0.8981014547 | AY31: =RA!BA625 -> 0.8569156265 | AZ31: =RA!BF624 -> 0.08183077093 | BA31: =RA!BG624 -> 0.06386793994 | BB31: =RA!BH624 -> 0.05756824533 | BC31: =RA!BI624 -> 0.07774504082 | BD31: =RA!BJ624 -> 0.07737739597 | BE31: =RA!BL624 -> 0.02355717138 | BF31: =RA!BN624 -> 0.02605679868 | BG31: =RA!BP624 -> 0.04946434954 | BH31: =RA!BR624 -> 0.04952030021 | BI31: =RA!BT624 -> 0.04445340411 | BJ31: =RA!BV624 -> 0.03320407772 | BK31: =RA!BX624 -> 0.06963684186 | BL31: =RA!BY624 -> 0.05733615509 | BM31: =RA!BZ624 -> 0.04870337198 | BN31: =RA!CA624 -> 0.06693492733 | BO31: =RA!CB624 -> 0.06564396121 | BP31: =RA!CD624 -> 0.08521088378 | BQ31: =RA!AX624 -> 1.105443472 | BR31: =RA!AY624 -> 1.892523364 | BS31: =RA!AZ624 -> 1.014045212 | BT31: =RA!BA624 -> 0.9978367766
B32: =RA!C631 -> Class HDR2_2K | C32: =RA!AX630 -> 1 | G32: =RA!C631 -> Class HDR2_2K | H32: =RA!BF631 ->  | I32: =RA!BG631 -> 0.07248832685 | J32: =RA!BH631 -> 0.03343927117 | K32: =RA!BI631 -> 0.05588027443 | L32: =RA!BJ631 ->  | M32: =RA!BL631 -> 0.01971380232 | N32: =RA!BN631 -> 0.02801123638 | O32: =RA!BP631 -> 0.02796542081 | P32: =RA!BR631 -> 0.02630245333 | Q32: =RA!BT631 -> 0.03973420772 | R32: =RA!BV631 -> 0.02526423498 | S32: =RA!BX631 -> 0.05331952246 | T32: =RA!BY631 -> 0.07663895175 | U32: =RA!BZ631 -> 0.02956647149 | V32: =RA!CA631 -> 0.05261310254 | W32: =RA!CB631 -> 0.0533021776 | X32: =RA!CD631 -> 0.01159200544 | Y32: =RA!CF631 -> 0 | Z32: =RA!CH631 -> 0 | AA32: =RA!AX631 -> 0.9117556852 | AB32: =RA!AY631 -> 0.9895567373 | AC32: =RA!AZ631 -> 0.9714664602 | AD32: =RA!BA631 -> 0.8998863767 | AE32: =RA!BF632 ->  | AF32: =RA!BG632 -> -0.06045563621 | AG32: =RA!BH632 -> -0.0635664768 | AH32: =RA!BI632 -> 0.009316991133 | AI32: =RA!BJ632 ->  | AJ32: =RA!BL632 -> -0.04040520127 | AK32: =RA!BN632 -> -0.01493912964 | AL32: =RA!BP632 -> -0.04941760786 | AM32: =RA!BR632 -> -0.0443443892 | AN32: =RA!BT632 -> -0.01005410947 | AO32: =RA!BV632 -> -0.002384209995 | AP32: =RA!BX632 -> -0.04782822944 | AQ32: =RA!BY632 -> -0.06315148757 | AR32: =RA!BZ632 -> -0.07098335264 | AS32: =RA!CA632 -> -0.04613683594 | AT32: =RA!CB632 -> -0.03845709219 | AU32: =RA!CD632 -> -0.1219104651 | AV32: =RA!AX634 -> 0.7032134196 | AW32: =RA!AY634 -> 0.5431034483 | AX32: =RA!AZ634 -> 0.7970956472 | AY32: =RA!BA634 -> 0.6598655735 | AZ32: =RA!BF633 ->  | BA32: =RA!BG633 -> 0.1446633949 | BB32: =RA!BH633 -> 0.08947923918 | BC32: =RA!BI633 -> 0.08868349352 | BD32: =RA!BJ633 ->  | BE32: =RA!BL633 -> 0.1003603442 | BF32: =RA!BN633 -> 0.09134446398 | BG32: =RA!BP633 -> 0.1203516759 | BH32: =RA!BR633 -> 0.1014077193 | BI32: =RA!BT633 -> 0.08025901937 | BJ32: =RA!BV633 -> 0.08303662413 | BK32: =RA!BX633 -> 0.1103175499 | BL32: =RA!BY633 -> 0.1422012869 | BM32: =RA!BZ633 -> 0.08358825784 | BN32: =RA!CA633 -> 0.1032311311 | BO32: =RA!CB633 -> 0.1043349455 | BP32: =RA!CD633 -> 0.2537241557 | BQ32: =RA!AX633 -> 1.242000869 | BR32: =RA!AY633 -> 1.874439462 | BS32: =RA!AZ633 -> 1.08121982 | BT32: =RA!BA633 -> 1.078016002
B33: =RA!C684 -> Overall HDR | C33: =RA!AX683 -> 1 | G33: =RA!C684 -> Overall HDR | H33: =RA!BF684 ->  | I33: =RA!BG684 -> 0.0636155268 | J33: =RA!BH684 -> 0.03363336264 | K33: =RA!BI684 -> 0.05430710553 | L33: =RA!BJ684 ->  | M33: =RA!BL684 -> 0.01469822176 | N33: =RA!BN684 -> 0.02084035292 | O33: =RA!BP684 -> 0.02540631916 | P33: =RA!BR684 -> 0.02432456826 | Q33: =RA!BT684 -> 0.03606747215 | R33: =RA!BV684 -> 0.02268101356 | S33: =RA!BX684 -> 0.04686955562 | T33: =RA!BY684 -> 0.06302573481 | U33: =RA!BZ684 -> 0.02798220964 | V33: =RA!CA684 -> 0.04608130836 | W33: =RA!CB684 -> 0.04676030895 | X33: =RA!CD684 -> 0.01717099758 | Y33: =RA!CF684 -> 0 | Z33: =RA!CH684 -> 0 | AA33: =RA!AX684 -> 0.9189326041 | AB33: =RA!AY684 -> 1.030400547 | AC33: =RA!AZ684 -> 0.9660227212 | AD33: =RA!BA684 -> 0.9110628015 | AE33: =RA!BF685 ->  | AF33: =RA!BG685 -> -0.06045563621 | AG33: =RA!BH685 -> -0.0635664768 | AH33: =RA!BI685 -> 0.009316991133 | AI33: =RA!BJ685 ->  | AJ33: =RA!BL685 -> -0.04040520127 | AK33: =RA!BN685 -> -0.02096377467 | AL33: =RA!BP685 -> -0.04941760786 | AM33: =RA!BR685 -> -0.0443443892 | AN33: =RA!BT685 -> -0.01005410947 | AO33: =RA!BV685 -> -0.009674938496 | AP33: =RA!BX685 -> -0.04782822944 | AQ33: =RA!BY685 -> -0.06315148757 | AR33: =RA!BZ685 -> -0.07098335264 | AS33: =RA!CA685 -> -0.04613683594 | AT33: =RA!CB685 -> -0.03845709219 | AU33: =RA!CD685 -> -0.1219104651 | AV33: =RA!AX687 -> 0.7032134196 | AW33: =RA!AY687 -> 0.5431034483 | AX33: =RA!AZ687 -> 0.7970956472 | AY33: =RA!BA687 -> 0.6598655735 | AZ33: =RA!BF686 ->  | BA33: =RA!BG686 -> 0.1446633949 | BB33: =RA!BH686 -> 0.08947923918 | BC33: =RA!BI686 -> 0.08868349352 | BD33: =RA!BJ686 ->  | BE33: =RA!BL686 -> 0.1003603442 | BF33: =RA!BN686 -> 0.09134446398 | BG33: =RA!BP686 -> 0.1203516759 | BH33: =RA!BR686 -> 0.1014077193 | BI33: =RA!BT686 -> 0.08025901937 | BJ33: =RA!BV686 -> 0.08303662413 | BK33: =RA!BX686 -> 0.1103175499 | BL33: =RA!BY686 -> 0.1422012869 | BM33: =RA!BZ686 -> 0.08358825784 | BN33: =RA!CA686 -> 0.1032311311 | BO33: =RA!CB686 -> 0.1043349455 | BP33: =RA!CD686 -> 0.2537241557 | BQ33: =RA!AX686 -> 1.242000869 | BR33: =RA!AY686 -> 1.892523364 | BS33: =RA!AZ686 -> 1.08121982 | BT33: =RA!BA686 -> 1.078016002
B34: =RA!C640 -> Class E | C34: =RA!AX639 -> 1 | G34: =RA!C640 -> Class E | H34: =RA!BF640 -> 0.009582227437 | I34: =RA!BG640 -> 0.004822343836 | J34: =RA!BH640 -> 0.003800776768 | K34: =RA!BI640 -> 0.009193054301 | L34: =RA!BJ640 -> 0.009160574066 | M34: =RA!BL640 -> -0.002691777218 | N34: =RA!BN640 -> 0.006975762099 | O34: =RA!BP640 -> -0.009812876484 | P34: =RA!BR640 -> -0.007074279867 | Q34: =RA!BT640 -> 0.005969659742 | R34: =RA!BV640 -> 0.008431239602 | S34: =RA!BX640 -> 0.007538813546 | T34: =RA!BY640 -> 0.004112759553 | U34: =RA!BZ640 -> 0.002816215616 | V34: =RA!CA640 -> 0.007299937545 | W34: =RA!CB640 -> 0.007212867469 | X34: =RA!CD640 -> -0.002596440451 | Y34: =RA!CF640 -> 0 | Z34: =RA!CH640 -> 0 | AA34: =RA!AX640 -> 0.7838058833 | AB34: =RA!AY640 -> 1.033819923 | AC34: =RA!AZ640 -> 0.8735407644 | AD34: =RA!BA640 -> 0.8659802002 | AE34: =RA!BF641 -> 0.003864085859 | AF34: =RA!BG641 -> -0.008278588236 | AG34: =RA!BH641 -> -0.008156699135 | AH34: =RA!BI641 -> 0.003410729376 | AI34: =RA!BJ641 -> 0.003208091213 | AJ34: =RA!BL641 -> -0.006737311816 | AK34: =RA!BN641 -> -0.001519884818 | AL34: =RA!BP641 -> -0.02399218781 | AM34: =RA!BR641 -> -0.02039921778 | AN34: =RA!BT641 -> 0.002538173693 | AO34: =RA!BV641 -> 0.004465442148 | AP34: =RA!BX641 -> 0.003864085859 | AQ34: =RA!BY641 -> -0.008278588236 | AR34: =RA!BZ641 -> -0.01194358333 | AS34: =RA!CA641 -> 0.003711040879 | AT34: =RA!CB641 -> 0.003208091213 | AU34: =RA!CD641 -> -0.1078595407 | AV34: =RA!AX643 -> 0.5227272727 | AW34: =RA!AY643 -> 0.5652173913 | AX34: =RA!AZ643 -> 0.5989495032 | AY34: =RA!BA643 -> 0.5705253002 | AZ34: =RA!BF642 -> 0.03542885323 | BA34: =RA!BG642 -> 0.03472575829 | BB34: =RA!BH642 -> 0.03295631495 | BC34: =RA!BI642 -> 0.03384389473 | BD34: =RA!BJ642 -> 0.0336809711 | BE34: =RA!BL642 -> 0.0003316688623 | BF34: =RA!BN642 -> 0.01297279091 | BG34: =RA!BP642 -> 0.002810357836 | BH34: =RA!BR642 -> 0.004116104504 | BI34: =RA!BT642 -> 0.01469821302 | BJ34: =RA!BV642 -> 0.0153030726 | BK34: =RA!BX642 -> 0.01254770102 | BL34: =RA!BY642 -> 0.03472575829 | BM34: =RA!BZ642 -> 0.03295631495 | BN34: =RA!CA642 -> 0.01281868253 | BO34: =RA!CB642 -> 0.01425116787 | BP34: =RA!CD642 -> 0.02987252778 | BQ34: =RA!AX642 -> 0.9958419958 | BR34: =RA!AY642 -> 1.727272727 | BS34: =RA!AZ642 -> 0.9989328737 | BT34: =RA!BA642 -> 0.9733897961
B35: =RA!C651 -> Overall | C35: =RA!AX650 -> 1 | G35: =RA!C651 -> Overall | H35: =RA!BF651 ->  | I35: =RA!BG651 ->  | J35: =RA!BH651 -> 0.008872950052 | K35: =RA!BI651 -> 0.01925841295 | L35: =RA!BJ651 ->  | M35: =RA!BL651 -> -0.004291385623 | N35: =RA!BN651 -> 0.0001924160484 | O35: =RA!BP651 -> -0.004011055957 | P35: =RA!BR651 -> -0.003883524192 | Q35: =RA!BT651 -> 0.006920476036 | R35: =RA!BV651 -> 0.00677720501 | S35: =RA!BX651 -> 0.01091855981 | T35: =RA!BY651 ->  | U35: =RA!BZ651 -> 0.004258442289 | V35: =RA!CA651 -> 0.0111344833 | W35: =RA!CB651 ->  | X35: =RA!CD651 -> -0.008508523552 | Y35: =RA!CF651 -> 0 | Z35: =RA!CH651 -> 0 | AA35: =RA!AX651 -> 0.9009336618 | AB35: =RA!AY651 -> 0.9684088332 | AC35: =RA!AZ651 -> 0.953338991 | AD35: =RA!BA651 -> 0.9064511609 | AE35: =RA!BF652 ->  | AF35: =RA!BG652 ->  | AG35: =RA!BH652 -> -0.1795541969 | AH35: =RA!BI652 -> -0.08720858009 | AI35: =RA!BJ652 ->  | AJ35: =RA!BL652 -> -0.06932330273 | AK35: =RA!BN652 -> -0.07694643107 | AL35: =RA!BP652 -> -0.116183705 | AM35: =RA!BR652 -> -0.118036285 | AN35: =RA!BT652 -> -0.06607993724 | AO35: =RA!BV652 -> -0.09340932614 | AP35: =RA!BX652 -> -0.1102336735 | AQ35: =RA!BY652 ->  | AR35: =RA!BS652 -> -0.06863783107 | AS35: =RA!CA652 -> -0.1118356676 | AT35: =RA!CB652 ->  | AU35: =RA!CD652 -> -0.6646718814 | AV35: =RA!AX654 -> 0.5227272727 | AW35: =RA!AY654 -> 0.2741935484 | AX35: =RA!AZ654 -> 0.5989495032 | AY35: =RA!BA654 -> 0.5705253002 | AZ35: =RA!BF653 ->  | BA35: =RA!BG653 ->  | BB35: =RA!BH653 -> 0.2395493069 | BC35: =RA!BI653 -> 0.2865594727 | BD35: =RA!BJ653 ->  | BE35: =RA!BL653 -> 0.2209765505 | BF35: =RA!BN653 -> 0.2405291689 | BG35: =RA!BP653 -> 0.2530900297 | BH35: =RA!BR653 -> 0.2560785635 | BI35: =RA!BT653 -> 0.2420746811 | BJ35: =RA!BV653 -> 0.2780049869 | BK35: =RA!BX653 -> 0.2887126538 | BL35: =RA!BY653 ->  | BM35: =RA!BZ653 -> 0.2394628121 | BN35: =RA!CA653 -> 0.2868678274 | BO35: =RA!CB653 ->  | BP35: =RA!CD653 -> 0.2824515232 | BQ35: =RA!AX653 -> 1.338045558 | BR35: =RA!AY653 -> 1.892523364 | BS35: =RA!AZ653 -> 1.113400421 | BT35: =RA!BA653 -> 1.107695827
B37: =LD!C559 -> Class A1_4K | C37: =LD!AX558 -> 0 | F37: LD | G37: =LD!C559 -> Class A1_4K
B38: =LD!C568 -> Class A2_2K | C38: =LD!AX567 -> 0 | G38: =LD!C568 -> Class A2_2K | H38: =LD!BF568 ->  | I38: =LD!BG568 ->  | J38: =LD!BH568 ->  | K38: =LD!BI568 ->  | L38: =LD!BJ568 ->  | M38: =LD!BL568 ->  | N38: =LD!BN568 ->  | O38: =LD!BP568 ->  | P38: =LD!BR568 ->  | Q38: =LD!BT568 ->  | R38: =LD!BV568 ->  | S38: =LD!BX568 ->  | T38: =LD!BY568 ->  | U38: =LD!BZ568 ->  | V38: =LD!CA568 ->  | W38: =LD!CB568 ->  | X38: =LD!CD568 ->  | Y38: =LD!CF568 -> 0 | Z38: =LD!CH568 -> 0 | AA38: =LD!AX568 ->  | AB38: =LD!AY568 ->  | AC38: =LD!AZ568 ->  | AD38: =LD!BA568 ->  | AE38: =LD!BF569 ->  | AF38: =LD!BG569 ->  | AG38: =LD!BH569 ->  | AH38: =LD!BI569 ->  | AI38: =LD!BJ569 ->  | AJ38: =LD!BL569 ->  | AK38: =LD!BN569 ->  | AL38: =LD!BP569 ->  | AM38: =LD!BR569 ->  | AN38: =LD!BT569 ->  | AO38: =LD!BV569 ->  | AP38: =LD!BX569 ->  | AQ38: =LD!BY569 ->  | AR38: =LD!BZ569 ->  | AS38: =LD!CA569 ->  | AT38: =LD!CB569 ->  | AU38: =LD!CD569 ->  | AV38: =LD!AX571 ->  | AW38: =LD!AY571 ->  | AX38: =LD!AZ571 ->  | AY38: =LD!BA571 ->  | AZ38: =LD!BF570 ->  | BA38: =LD!BG570 ->  | BB38: =LD!BH570 ->  | BC38: =LD!BI570 ->  | BD38: =LD!BJ570 ->  | BE38: =LD!BL570 ->  | BF38: =LD!BN570 ->  | BG38: =LD!BP570 ->  | BH38: =LD!BR570 ->  | BI38: =LD!BT570 ->  | BJ38: =LD!BV570 ->  | BK38: =LD!BX570 ->  | BL38: =LD!BY570 ->  | BM38: =LD!BZ570 ->  | BN38: =LD!CA570 ->  | BO38: =LD!CB570 ->  | BP38: =LD!CD570 ->  | BQ38: =LD!AX570 ->  | BR38: =LD!AY570 ->  | BS38: =LD!AZ570 ->  | BT38: =LD!BA570 -> 
B39: =LD!C577 -> Class A3_720p | C39: =LD!AX576 -> 0 | G39: =LD!C577 -> Class A3_720p | H39: =LD!BF577 ->  | I39: =LD!BG577 ->  | J39: =LD!BH577 ->  | K39: =LD!BI577 ->  | L39: =LD!BJ577 ->  | M39: =LD!BL577 ->  | N39: =LD!BN577 ->  | O39: =LD!BP577 ->  | P39: =LD!BR577 ->  | Q39: =LD!BT577 ->  | R39: =LD!BV577 ->  | S39: =LD!BX577 ->  | T39: =LD!BY577 ->  | U39: =LD!BZ577 ->  | V39: =LD!CA577 ->  | W39: =LD!CB577 ->  | X39: =LD!CD577 ->  | Y39: =LD!CF577 -> 0 | Z39: =LD!CH577 -> 0 | AA39: =LD!AX577 ->  | AB39: =LD!AY577 ->  | AC39: =LD!AZ577 ->  | AD39: =LD!BA577 ->  | AE39: =LD!BF578 ->  | AF39: =LD!BG578 ->  | AG39: =LD!BH578 ->  | AH39: =LD!BI578 ->  | AI39: =LD!BJ578 ->  | AJ39: =LD!BL578 ->  | AK39: =LD!BN578 ->  | AL39: =LD!BP578 ->  | AM39: =LD!BR578 ->  | AN39: =LD!BT578 ->  | AO39: =LD!BV578 ->  | AP39: =LD!BX578 ->  | AQ39: =LD!BY578 ->  | AR39: =LD!BZ578 ->  | AS39: =LD!CA578 ->  | AT39: =LD!CB578 ->  | AU39: =LD!CD578 ->  | AV39: =LD!AX580 ->  | AW39: =LD!AY580 ->  | AX39: =LD!AZ580 ->  | AY39: =LD!BA580 ->  | AZ39: =LD!BF579 ->  | BA39: =LD!BG579 ->  | BB39: =LD!BH579 ->  | BC39: =LD!BI579 ->  | BD39: =LD!BJ579 ->  | BE39: =LD!BL579 ->  | BF39: =LD!BN579 ->  | BG39: =LD!BP579 ->  | BH39: =LD!BR579 ->  | BI39: =LD!BT579 ->  | BJ39: =LD!BV579 ->  | BK39: =LD!BX579 ->  | BL39: =LD!BY579 ->  | BM39: =LD!BZ579 ->  | BN39: =LD!CA579 ->  | BO39: =LD!CB579 ->  | BP39: =LD!CD579 ->  | BQ39: =LD!AX579 ->  | BR39: =LD!AY579 ->  | BS39: =LD!AZ579 ->  | BT39: =LD!BA579 -> 
B40: =LD!C586 -> Class A4_360p | C40: =LD!AX585 -> 0 | G40: =LD!C586 -> Class A4_360p | H40: =LD!BF586 ->  | I40: =LD!BG586 ->  | J40: =LD!BH586 ->  | K40: =LD!BI586 ->  | L40: =LD!BJ586 ->  | M40: =LD!BL586 ->  | N40: =LD!BN586 ->  | O40: =LD!BP586 ->  | P40: =LD!BR586 ->  | Q40: =LD!BT586 ->  | R40: =LD!BV586 ->  | S40: =LD!BX586 ->  | T40: =LD!BY586 ->  | U40: =LD!BZ586 ->  | V40: =LD!CA586 ->  | W40: =LD!CB586 ->  | X40: =LD!CD586 ->  | Y40: =LD!CF586 -> 0 | Z40: =LD!CH586 -> 0 | AA40: =LD!AX586 ->  | AB40: =LD!AY586 ->  | AC40: =LD!AZ586 ->  | AD40: =LD!BA586 ->  | AE40: =LD!BF587 ->  | AF40: =LD!BG587 ->  | AG40: =LD!BH587 ->  | AH40: =LD!BI587 ->  | AI40: =LD!BJ587 ->  | AJ40: =LD!BL587 ->  | AK40: =LD!BN587 ->  | AL40: =LD!BP587 ->  | AM40: =LD!BR587 ->  | AN40: =LD!BT587 ->  | AO40: =LD!BV587 ->  | AP40: =LD!BX587 ->  | AQ40: =LD!BY587 ->  | AR40: =LD!BZ587 ->  | AS40: =LD!CA587 ->  | AT40: =LD!CB587 ->  | AU40: =LD!CD587 ->  | AV40: =LD!AX589 ->  | AW40: =LD!AY589 ->  | AX40: =LD!AZ589 ->  | AY40: =LD!BA589 ->  | AZ40: =LD!BF588 ->  | BA40: =LD!BG588 ->  | BB40: =LD!BH588 ->  | BC40: =LD!BI588 ->  | BD40: =LD!BJ588 ->  | BE40: =LD!BL588 ->  | BF40: =LD!BN588 ->  | BG40: =LD!BP588 ->  | BH40: =LD!BR588 ->  | BI40: =LD!BT588 ->  | BJ40: =LD!BV588 ->  | BK40: =LD!BX588 ->  | BL40: =LD!BY588 ->  | BM40: =LD!BZ588 ->  | BN40: =LD!CA588 ->  | BO40: =LD!CB588 ->  | BP40: =LD!CD588 ->  | BQ40: =LD!AX588 ->  | BR40: =LD!AY588 ->  | BS40: =LD!AZ588 ->  | BT40: =LD!BA588 -> 
B41: =LD!C595 -> Class A5_270p | C41: =LD!AX594 -> 0 | G41: =LD!C595 -> Class A5_270p | H41: =LD!BF595 ->  | I41: =LD!BG595 ->  | J41: =LD!BH595 ->  | K41: =LD!BI595 ->  | L41: =LD!BJ595 ->  | M41: =LD!BL595 ->  | N41: =LD!BN595 ->  | O41: =LD!BP595 ->  | P41: =LD!BR595 ->  | Q41: =LD!BT595 ->  | R41: =LD!BV595 ->  | S41: =LD!BX595 ->  | T41: =LD!BY595 ->  | U41: =LD!BZ595 ->  | V41: =LD!CA595 ->  | W41: =LD!CB595 ->  | X41: =LD!CD595 ->  | Y41: =LD!CF595 -> 0 | Z41: =LD!CH595 -> 0 | AA41: =LD!AX595 ->  | AB41: =LD!AY595 ->  | AC41: =LD!AZ595 ->  | AD41: =LD!BA595 ->  | AE41: =LD!BF596 ->  | AF41: =LD!BG596 ->  | AG41: =LD!BH596 ->  | AH41: =LD!BI596 ->  | AI41: =LD!BJ596 ->  | AJ41: =LD!BL596 ->  | AK41: =LD!BN596 ->  | AL41: =LD!BP596 ->  | AM41: =LD!BR596 ->  | AN41: =LD!BT596 ->  | AO41: =LD!BV596 ->  | AP41: =LD!BX596 ->  | AQ41: =LD!BY596 ->  | AR41: =LD!BZ596 ->  | AS41: =LD!CA596 ->  | AT41: =LD!CB596 ->  | AU41: =LD!CD596 ->  | AV41: =LD!AX598 ->  | AW41: =LD!AY598 ->  | AX41: =LD!AZ598 ->  | AY41: =LD!BA598 ->  | AZ41: =LD!BF597 ->  | BA41: =LD!BG597 ->  | BB41: =LD!BH597 ->  | BC41: =LD!BI597 ->  | BD41: =LD!BJ597 ->  | BE41: =LD!BL597 ->  | BF41: =LD!BN597 ->  | BG41: =LD!BP597 ->  | BH41: =LD!BR597 ->  | BI41: =LD!BT597 ->  | BJ41: =LD!BV597 ->  | BK41: =LD!BX597 ->  | BL41: =LD!BY597 ->  | BM41: =LD!BZ597 ->  | BN41: =LD!CA597 ->  | BO41: =LD!CB597 ->  | BP41: =LD!CD597 ->  | BQ41: =LD!AX597 ->  | BR41: =LD!AY597 ->  | BS41: =LD!AZ597 ->  | BT41: =LD!BA597 -> 
B42: =LD!C604 -> Class B1_SYN | C42: =LD!AX603 -> 0 | G42: =LD!C604 -> Class B1_SYN | H42: =LD!BF604 ->  | I42: =LD!BG604 ->  | J42: =LD!BH604 ->  | K42: =LD!BI604 ->  | L42: =LD!BJ604 ->  | M42: =LD!BL604 ->  | N42: =LD!BN604 ->  | O42: =LD!BP604 ->  | P42: =LD!BR604 ->  | Q42: =LD!BT604 ->  | R42: =LD!BV604 ->  | S42: =LD!BX604 ->  | T42: =LD!BY604 ->  | U42: =LD!BZ604 ->  | V42: =LD!CA604 ->  | W42: =LD!CB604 ->  | X42: =LD!CD604 ->  | Y42: =LD!CF604 -> 0 | Z42: =LD!CH604 -> 0 | AA42: =LD!AX604 ->  | AB42: =LD!AY604 ->  | AC42: =LD!AZ604 ->  | AD42: =LD!BA604 ->  | AE42: =LD!BF605 ->  | AF42: =LD!BG605 ->  | AG42: =LD!BH605 ->  | AH42: =LD!BI605 ->  | AI42: =LD!BJ605 ->  | AJ42: =LD!BL605 ->  | AK42: =LD!BN605 ->  | AL42: =LD!BP605 ->  | AM42: =LD!BR605 ->  | AN42: =LD!BT605 ->  | AO42: =LD!BV605 ->  | AP42: =LD!BX605 ->  | AQ42: =LD!BY605 ->  | AR42: =LD!BZ605 ->  | AS42: =LD!CA605 ->  | AT42: =LD!CB605 ->  | AU42: =LD!CD605 ->  | AV42: =LD!AX607 ->  | AW42: =LD!AY607 ->  | AX42: =LD!AZ607 ->  | AY42: =LD!BA607 ->  | AZ42: =LD!BF606 ->  | BA42: =LD!BG606 ->  | BB42: =LD!BH606 ->  | BC42: =LD!BI606 ->  | BD42: =LD!BJ606 ->  | BE42: =LD!BL606 ->  | BF42: =LD!BN606 ->  | BG42: =LD!BP606 ->  | BH42: =LD!BR606 ->  | BI42: =LD!BT606 ->  | BJ42: =LD!BV606 ->  | BK42: =LD!BX606 ->  | BL42: =LD!BY606 ->  | BM42: =LD!BZ606 ->  | BN42: =LD!CA606 ->  | BO42: =LD!CB606 ->  | BP42: =LD!CD606 ->  | BQ42: =LD!AX606 ->  | BR42: =LD!AY606 ->  | BS42: =LD!AZ606 ->  | BT42: =LD!BA606 -> 
B43: =LD!C613 -> Class B2_SCC | C43: =LD!AX612 -> 0 | G43: =LD!C613 -> Class B2_SCC | H43: =LD!BF613 ->  | I43: =LD!BG613 ->  | J43: =LD!BH613 ->  | K43: =LD!BI613 ->  | L43: =LD!BJ613 ->  | M43: =LD!BL613 ->  | N43: =LD!BN613 ->  | O43: =LD!BP613 ->  | P43: =LD!BR613 ->  | Q43: =LD!BT613 ->  | R43: =LD!BV613 ->  | S43: =LD!BX613 ->  | T43: =LD!BY613 ->  | U43: =LD!BZ613 ->  | V43: =LD!CA613 ->  | W43: =LD!CB613 ->  | X43: =LD!CD613 ->  | Y43: =LD!CF613 -> 0 | Z43: =LD!CH613 -> 0 | AA43: =LD!AX613 ->  | AB43: =LD!AY613 ->  | AC43: =LD!AZ613 ->  | AD43: =LD!BA613 ->  | AE43: =LD!BF614 ->  | AF43: =LD!BG614 ->  | AG43: =LD!BH614 ->  | AH43: =LD!BI614 ->  | AI43: =LD!BJ614 ->  | AJ43: =LD!BL614 ->  | AK43: =LD!BN614 ->  | AL43: =LD!BP614 ->  | AM43: =LD!BR614 ->  | AN43: =LD!BT614 ->  | AO43: =LD!BV614 ->  | AP43: =LD!BX614 ->  | AQ43: =LD!BY614 ->  | AR43: =LD!BZ614 ->  | AS43: =LD!CA614 ->  | AT43: =LD!CB614 ->  | AU43: =LD!CD614 ->  | AV43: =LD!AX616 ->  | AW43: =LD!AY616 ->  | AX43: =LD!AZ616 ->  | AY43: =LD!BA616 ->  | AZ43: =LD!BF615 ->  | BA43: =LD!BG615 ->  | BB43: =LD!BH615 ->  | BC43: =LD!BI615 ->  | BD43: =LD!BJ615 ->  | BE43: =LD!BL615 ->  | BF43: =LD!BN615 ->  | BG43: =LD!BP615 ->  | BH43: =LD!BR615 ->  | BI43: =LD!BT615 ->  | BJ43: =LD!BV615 ->  | BK43: =LD!BX615 ->  | BL43: =LD!BY615 ->  | BM43: =LD!BZ615 ->  | BN43: =LD!CA615 ->  | BO43: =LD!CB615 ->  | BP43: =LD!CD615 ->  | BQ43: =LD!AX615 ->  | BR43: =LD!AY615 ->  | BS43: =LD!AZ615 ->  | BT43: =LD!BA615 -> 
B44: =LD!C662 -> Overall Mandatory w/o B2 | C44: =LD!AX661 -> 0 | G44: =LD!C662 -> Overall Mandatory w/o B2 | H44: =LD!BF662 ->  | I44: =LD!BG662 ->  | J44: =LD!BH662 ->  | K44: =LD!BI662 ->  | L44: =LD!BJ662 ->  | M44: =LD!BL662 ->  | N44: =LD!BN662 ->  | O44: =LD!BP662 ->  | P44: =LD!BR662 ->  | Q44: =LD!BT662 ->  | R44: =LD!BV662 ->  | S44: =LD!BX662 ->  | T44: =LD!BY662 ->  | U44: =LD!BZ662 ->  | V44: =LD!CA662 ->  | W44: =LD!CB662 ->  | X44: =LD!CD662 ->  | Y44: =LD!CF662 -> 0 | Z44: =LD!CH662 -> 0 | AA44: =LD!AX662 ->  | AB44: =LD!AY662 ->  | AC44: =LD!AZ662 ->  | AD44: =LD!BA662 ->  | AE44: =LD!BF663 ->  | AF44: =LD!BG663 ->  | AG44: =LD!BH663 ->  | AH44: =LD!BI663 ->  | AI44: =LD!BJ663 ->  | AJ44: =LD!BL663 ->  | AK44: =LD!BN663 ->  | AL44: =LD!BP663 ->  | AM44: =LD!BR663 ->  | AN44: =LD!BT663 ->  | AO44: =LD!BV663 ->  | AP44: =LD!BX663 ->  | AQ44: =LD!BY663 ->  | AR44: =LD!BZ663 ->  | AS44: =LD!CA663 ->  | AT44: =LD!CB663 ->  | AU44: =LD!CD663 ->  | AV44: =LD!AX665 ->  | AW44: =LD!AY665 ->  | AX44: =LD!AZ665 ->  | AY44: =LD!BA665 ->  | AZ44: =LD!BF664 ->  | BA44: =LD!BG664 ->  | BB44: =LD!BH664 ->  | BC44: =LD!BI664 ->  | BD44: =LD!BJ664 ->  | BE44: =LD!BL664 ->  | BF44: =LD!BN664 ->  | BG44: =LD!BP664 ->  | BH44: =LD!BR664 ->  | BI44: =LD!BT664 ->  | BJ44: =LD!BV664 ->  | BK44: =LD!BX664 ->  | BL44: =LD!BY664 ->  | BM44: =LD!BZ664 ->  | BN44: =LD!CA664 ->  | BO44: =LD!CB664 ->  | BP44: =LD!CD664 ->  | BQ44: =LD!AX664 ->  | BR44: =LD!AY664 ->  | BS44: =LD!AZ664 ->  | BT44: =LD!BA664 -> 
B45: =LD!$C$673 -> Overall Mandatory w/ B2 | C45: =LD!$AX$672 -> 0 | G45: =LD!$C$673 -> Overall Mandatory w/ B2 | H45: =LD!BF673 ->  | I45: =LD!BG673 ->  | J45: =LD!BH673 ->  | K45: =LD!BI673 ->  | L45: =LD!BJ673 ->  | M45: =LD!BL673 ->  | N45: =LD!BN673 ->  | O45: =LD!BP673 ->  | P45: =LD!BR673 ->  | Q45: =LD!BT673 ->  | R45: =LD!BV673 ->  | S45: =LD!BX673 ->  | T45: =LD!BY673 ->  | U45: =LD!BZ673 ->  | V45: =LD!CA673 ->  | W45: =LD!CB673 ->  | X45: =LD!CD673 ->  | Y45: =LD!CF673 -> 0 | Z45: =LD!CH673 -> 0 | AA45: =LD!AX673 ->  | AB45: =LD!AY673 ->  | AC45: =LD!AZ673 ->  | AD45: =LD!BA673 ->  | AE45: =LD!BF674 ->  | AF45: =LD!BG674 ->  | AG45: =LD!BH674 ->  | AH45: =LD!BI674 ->  | AI45: =LD!BJ674 ->  | AJ45: =LD!BL674 ->  | AK45: =LD!BN674 ->  | AL45: =LD!BP674 ->  | AM45: =LD!BR674 ->  | AN45: =LD!BT674 ->  | AO45: =LD!BV674 ->  | AP45: =LD!BX674 ->  | AQ45: =LD!BY674 ->  | AR45: =LD!BZ674 ->  | AS45: =LD!CA674 ->  | AT45: =LD!CB674 ->  | AU45: =LD!CD674 ->  | AV45: =LD!AX676 ->  | AW45: =LD!AY676 ->  | AX45: =LD!AZ676 ->  | AY45: =LD!BA676 ->  | AZ45: =LD!BF675 ->  | BA45: =LD!BG675 ->  | BB45: =LD!BH675 ->  | BC45: =LD!BI675 ->  | BD45: =LD!BJ675 ->  | BE45: =LD!BL675 ->  | BF45: =LD!BN675 ->  | BG45: =LD!BP675 ->  | BH45: =LD!BR675 ->  | BI45: =LD!BT675 ->  | BJ45: =LD!BV675 ->  | BK45: =LD!BX675 ->  | BL45: =LD!BY675 ->  | BM45: =LD!BZ675 ->  | BN45: =LD!CA675 ->  | BO45: =LD!CB675 ->  | BP45: =LD!CD675 ->  | BQ45: =LD!AX675 ->  | BR45: =LD!AY675 ->  | BS45: =LD!AZ675 ->  | BT45: =LD!BA675 -> 
B47: =LD!C622 -> Class HDR1_4K | C47: =LD!AX621 -> 0 | G47: =LD!C622 -> Class HDR1_4K | H47: =LD!BF622 ->  | I47: =LD!BG622 ->  | J47: =LD!BH622 ->  | K47: =LD!BI622 ->  | L47: =LD!BJ622 ->  | M47: =LD!BL622 ->  | N47: =LD!BN622 ->  | O47: =LD!BP622 ->  | P47: =LD!BR622 ->  | Q47: =LD!BT622 ->  | R47: =LD!BV622 ->  | S47: =LD!BX622 ->  | T47: =LD!BY622 ->  | U47: =LD!BZ622 ->  | V47: =LD!CA622 ->  | W47: =LD!CB622 ->  | Y47: =LD!CF622 -> 0 | Z47: =LD!CH622 -> 0 | AA47: =LD!AX622 ->  | AB47: =LD!AY622 ->  | AE47: =LD!BF623 ->  | AF47: =LD!BG623 ->  | AG47: =LD!BH623 ->  | AH47: =LD!BI623 ->  | AI47: =LD!BJ623 ->  | AJ47: =LD!BL623 ->  | AK47: =LD!BN623 ->  | AL47: =LD!BP623 ->  | AM47: =LD!BR623 ->  | AN47: =LD!BT623 ->  | AO47: =LD!BV623 ->  | AP47: =LD!BX623 ->  | AQ47: =LD!BY623 ->  | AR47: =LD!BZ623 ->  | AS47: =LD!CA623 ->  | AT47: =LD!CB623 ->  | AU47: =LD!CD623 ->  | AV47: =LD!AX624 ->  | AW47: =LD!AY624 ->  | AZ47: =LD!BF624 ->  | BA47: =LD!BG624 ->  | BB47: =LD!BH624 ->  | BC47: =LD!BI624 ->  | BD47: =LD!BJ624 ->  | BE47: =LD!BL624 ->  | BF47: =LD!BN624 ->  | BG47: =LD!BP624 ->  | BH47: =LD!BR624 ->  | BI47: =LD!BT624 ->  | BJ47: =LD!BV624 ->  | BK47: =LD!BX624 ->  | BL47: =LD!BY624 ->  | BM47: =LD!BZ624 ->  | BN47: =LD!CA624 ->  | BO47: =LD!CB624 ->  | BQ47: =LD!AX625 ->  | BR47: =LD!AY625 -> 
B48: =LD!C631 -> Class HDR2_2K | C48: =LD!AX630 -> 0 | G48: =LD!C631 -> Class HDR2_2K | H48: =LD!BF631 ->  | I48: =LD!BG631 ->  | J48: =LD!BH631 ->  | K48: =LD!BI631 ->  | L48: =LD!BJ631 ->  | M48: =LD!BL631 ->  | N48: =LD!BN631 ->  | O48: =LD!BP631 ->  | P48: =LD!BR631 ->  | Q48: =LD!BT631 ->  | R48: =LD!BV631 ->  | S48: =LD!BX631 ->  | T48: =LD!BY631 ->  | U48: =LD!BZ631 ->  | V48: =LD!CA631 ->  | W48: =LD!CB631 ->  | Y48: =LD!CF631 -> 0 | Z48: =LD!CH631 -> 0 | AA48: =LD!AX631 ->  | AB48: =LD!AY631 ->  | AE48: =LD!BF632 ->  | AF48: =LD!BG632 ->  | AG48: =LD!BH632 ->  | AH48: =LD!BI632 ->  | AI48: =LD!BJ632 ->  | AJ48: =LD!BL632 ->  | AK48: =LD!BN632 ->  | AL48: =LD!BP632 ->  | AM48: =LD!BR632 ->  | AN48: =LD!BT632 ->  | AO48: =LD!BV632 ->  | AP48: =LD!BX632 ->  | AQ48: =LD!BY632 ->  | AR48: =LD!BZ632 ->  | AS48: =LD!CA632 ->  | AT48: =LD!CB632 ->  | AU48: =LD!CD632 ->  | AV48: =LD!AX633 ->  | AW48: =LD!AY633 ->  | AZ48: =LD!BF633 ->  | BA48: =LD!BG633 ->  | BB48: =LD!BH633 ->  | BC48: =LD!BI633 ->  | BD48: =LD!BJ633 ->  | BE48: =LD!BL633 ->  | BF48: =LD!BN633 ->  | BG48: =LD!BP633 ->  | BH48: =LD!BR633 ->  | BI48: =LD!BT633 ->  | BJ48: =LD!BV633 ->  | BK48: =LD!BX633 ->  | BL48: =LD!BY633 ->  | BM48: =LD!BZ633 ->  | BN48: =LD!CA633 ->  | BO48: =LD!CB633 ->  | BQ48: =LD!AX634 ->  | BR48: =LD!AY634 -> 
B49: =LD!C684 -> Overall HDR | C49: =LD!AX683 -> 0 | G49: =LD!C684 -> Overall HDR | H49: =LD!BF684 ->  | I49: =LD!BG684 ->  | J49: =LD!BH684 ->  | K49: =LD!BI684 ->  | L49: =LD!BJ684 ->  | M49: =LD!BL684 ->  | N49: =LD!BN684 ->  | O49: =LD!BP684 ->  | P49: =LD!BR684 ->  | Q49: =LD!BT684 ->  | R49: =LD!BV684 ->  | S49: =LD!BX684 ->  | T49: =LD!BY684 ->  | U49: =LD!BZ684 ->  | V49: =LD!CA684 ->  | W49: =LD!CB684 ->  | Y49: =LD!CF684 -> 0 | Z49: =LD!CH684 -> 0 | AA49: =LD!AX684 ->  | AB49: =LD!AY684 ->  | AE49: =LD!BF685 ->  | AF49: =LD!BG685 ->  | AG49: =LD!BH685 ->  | AH49: =LD!BI685 ->  | AI49: =LD!BJ685 ->  | AJ49: =LD!BL685 ->  | AK49: =LD!BN685 ->  | AL49: =LD!BP685 ->  | AM49: =LD!BR685 ->  | AN49: =LD!BT685 ->  | AO49: =LD!BV685 ->  | AP49: =LD!BX685 ->  | AQ49: =LD!BY685 ->  | AR49: =LD!BZ685 ->  | AS49: =LD!CA685 ->  | AT49: =LD!CB685 ->  | AU49: =LD!CD685 ->  | AV49: =LD!AX686 ->  | AW49: =LD!AY686 ->  | AZ49: =LD!BF686 ->  | BA49: =LD!BG686 ->  | BB49: =LD!BH686 ->  | BC49: =LD!BI686 ->  | BD49: =LD!BJ686 ->  | BE49: =LD!BL686 ->  | BF49: =LD!BN686 ->  | BG49: =LD!BP686 ->  | BH49: =LD!BR686 ->  | BI49: =LD!BT686 ->  | BJ49: =LD!BV686 ->  | BK49: =LD!BX686 ->  | BL49: =LD!BY686 ->  | BM49: =LD!BZ686 ->  | BN49: =LD!CA686 ->  | BO49: =LD!CB686 ->  | BQ49: =LD!AX687 ->  | BR49: =LD!AY687 -> 
B50: =LD!C640 -> Class E | C50: =LD!AX639 -> 0 | G50: =LD!C640 -> Class E | H50: =LD!BF640 ->  | I50: =LD!BG640 ->  | J50: =LD!BH640 ->  | K50: =LD!BI640 ->  | L50: =LD!BJ640 ->  | M50: =LD!BL640 ->  | N50: =LD!BN640 ->  | O50: =LD!BP640 ->  | P50: =LD!BR640 ->  | Q50: =LD!BT640 ->  | R50: =LD!BV640 ->  | S50: =LD!BX640 ->  | T50: =LD!BY640 ->  | U50: =LD!BZ640 ->  | V50: =LD!CA640 ->  | W50: =LD!CB640 ->  | Y50: =LD!CF640 -> 0 | Z50: =LD!CH640 -> 0 | AA50: =LD!AX640 ->  | AB50: =LD!AY640 ->  | AE50: =LD!BF641 ->  | AF50: =LD!BG641 ->  | AG50: =LD!BH641 ->  | AH50: =LD!BI641 ->  | AI50: =LD!BJ641 ->  | AJ50: =LD!BL641 ->  | AK50: =LD!BN641 ->  | AL50: =LD!BP641 ->  | AM50: =LD!BR641 ->  | AN50: =LD!BT641 ->  | AO50: =LD!BV641 ->  | AP50: =LD!BX641 ->  | AQ50: =LD!BY641 ->  | AR50: =LD!BZ641 ->  | AS50: =LD!CA641 ->  | AT50: =LD!CB641 ->  | AU50: =LD!CD641 ->  | AV50: =LD!AX642 ->  | AW50: =LD!AY642 ->  | AZ50: =LD!BF642 ->  | BA50: =LD!BG642 ->  | BB50: =LD!BH642 ->  | BC50: =LD!BI642 ->  | BD50: =LD!BJ642 ->  | BE50: =LD!BL642 ->  | BF50: =LD!BN642 ->  | BG50: =LD!BP642 ->  | BH50: =LD!BR642 ->  | BI50: =LD!BT642 ->  | BJ50: =LD!BV642 ->  | BK50: =LD!BX642 ->  | BL50: =LD!BY642 ->  | BM50: =LD!BZ642 ->  | BN50: =LD!CA642 ->  | BO50: =LD!CB642 ->  | BQ50: =LD!AX643 ->  | BR50: =LD!AY643 -> 
E52: Overall (Still image) | G52: Averages | AE52: Minimum | AZ52: Maximum
H53: PSNR | M53: SSIM | N53: MS-SSIM | O53: VMAF | P53: nVMAF | Q53: PSNR HVS | R53: DE 2K | S53: APSNR | X53: CAMBI | Y53: Monotonicity | AA53: Run-time (%) | AC53: Perf Stats(%) | AE53: PSNR | AJ53: SSIM | AK53: MS-SSIM | AL53: VMAF | AM53: nVMAF | AN53: PSNR HVS | AO53: DE 2K | AP53: APSNR | AU53: CAMBI | AV53: Run-time (%) | AX53: Perf Stats(%) | AZ53: PSNR | BE53: SSIM | BF53: MS-SSIM | BG53: VMAF | BH53: nVMAF | BI53: PSNR HVS | BJ53: DE 2K | BK53: APSNR | BP53: CAMBI | BQ53: Run-time (%) | BS53: Perf Stats(%)
B54: Classes | C54: Success | G54: Summary | H54: Y | I54: U | J54: V | K54: YUV | L54: wAverage | M54: Y | N54: Y | O54: Y | P54: Y | Q54: Y | S54: Y | T54: U | U54: V | V54: YUV | W54: wAverage | X54: Y | Y54: VMAF | Z54: VMAF neg | AA54: Enc-time | AB54: Dec-time | AC54: Enc Instr | AD54: Dec Instr | AE54: Y | AF54: U | AG54: V | AH54: YUV | AI54: wAverage | AJ54: Y | AK54: Y | AL54: Y | AM54: Y | AN54: Y | AP54: Y | AQ54: U | AR54: V | AS54: YUV | AT54: wAverage | AU54: Y | AV54: Enc-time | AW54: Dec-time | AX54: Enc Instr | AY54: Dec Instr | AZ54: Y | BA54: U | BB54: V | BC54: YUV | BD54: wAverage | BE54: Y | BF54: Y | BG54: Y | BH54: Y | BI54: Y | BK54: Y | BL54: U | BM54: V | BN54: YUV | BO54: wAverage | BP54: Y | BQ54: Enc-time | BR54: Dec-time | BS54: Enc Instr | BT54: Dec Instr
B55: =Still!A4 -> F1 High Resolutions | C55: =Still!AX349 -> 1 | G55: =Still!A4 -> F1 High Resolutions | H55: =Still!BF350 -> 0.006647930134 | I55: =Still!BG350 -> 0.002880965924 | J55: =Still!BH350 -> 0.003065027403 | K55: =Still!BI350 -> 0.006348289331 | L55: =Still!BJ350 -> 0.006353935457 | M55: =Still!BL350 -> -0.002417222651 | N55: =Still!BN350 -> 0.006154832009 | O55: =Still!BP350 -> -0.01018000023 | P55: =Still!BR350 -> -0.006409297737 | Q55: =Still!BT350 -> 0.005392563353 | R55: =Still!BV350 -> 0.007806314964 | S55: =Still!BX350 -> 0.006647930134 | T55: =Still!BY350 -> 0.002880965924 | U55: =Still!BZ350 -> 0.003065027403 | V55: =Still!CA350 -> 0.006470525797 | W55: =Still!CB350 -> 0.006353935457 | X55: =Still!CD350 -> -0.01208522479 | Y55: =Still!CF350 -> 0 | Z55: =Still!CH350 -> 0 | AA55: =Still!AX350 -> 0.7771517312 | AB55: =Still!AY350 -> 0.9890214954 | AC55: =Still!AZ350 -> 0.8702596716 | AD55: =Still!BA350 -> 0.8547819988 | AE55: =Still!BF351 -> 0.002279052585 | AF55: =Still!BG351 -> -0.02081287677 | AG55: =Still!BH351 -> -0.01817996568 | AH55: =Still!BI351 -> 0.002305215248 | AI55: =Still!BJ351 -> 0.002319394009 | AJ55: =Still!BL351 -> -0.01087840319 | AK55: =Still!BN351 -> -0.001519884818 | AL55: =Still!BP351 -> -0.02399218781 | AM55: =Still!BR351 -> -0.0170128743 | AN55: =Still!BT351 -> 0.001243977461 | AO55: =Still!BV351 -> 0.003820393153 | AP55: =Still!BX351 -> 0.002279052585 | AQ55: =Still!BY351 -> -0.02081287677 | AR55: =Still!BZ351 -> -0.01817996568 | AS55: =Still!CA351 -> 0.002366409179 | AT55: =Still!CB351 -> 0.002319394009 | AU55: =Still!CD351 -> -0.2193480678 | AV55: =Still!AX353 -> 0.4587581094 | AW55: =Still!AY353 -> 0.5652173913 | AX55: =Still!AZ353 -> 0.5989495032 | AY55: =Still!BA353 -> 0.5705253002 | AZ55: =Still!BF352 -> 0.01324266055 | BA55: =Still!BG352 -> 0.03472575829 | BB55: =Still!BH352 -> 0.03295631495 | BC55: =Still!BI352 -> 0.01418319827 | BD55: =Still!BJ352 -> 0.01425116787 | BE55: =Still!BL352 -> 0.0123989707 | BF55: =Still!BN352 -> 0.01297279091 | BG55: =Still!BP352 -> 0.003875518309 | BH55: =Still!BR352 -> 0.004279422302 | BI55: =Still!BT352 -> 0.0105048396 | BJ55: =Still!BV352 -> 0.02019143377 | BK55: =Still!BX352 -> 0.01324266055 | BL55: =Still!BY352 -> 0.03472575829 | BM55: =Still!BZ352 -> 0.03295631495 | BN55: =Still!CA352 -> 0.0132447777 | BO55: =Still!CB352 -> 0.01425116787 | BP55: =Still!CD352 -> 0.02987252778 | BQ55: =Still!AX352 -> 1.055555556 | BR55: =Still!AY352 -> 1.8125 | BS55: =Still!AZ352 -> 1.012930982 | BT55: =Still!BA352 -> 0.975071554
B56: =Still!A172 -> F2 Medium Resolution | C56: =Still!AX358 -> 1 | G56: =Still!A172 -> F2 Medium Resolution | H56: =Still!BF359 -> 0.007091138206 | I56: =Still!BG359 -> 0.002741988599 | J56: =Still!BH359 -> -0.003086268817 | K56: =Still!BI359 -> 0.006971890102 | L56: =Still!BJ359 -> 0.006849616674 | M56: =Still!BL359 -> 0.00442904956 | N56: =Still!BN359 -> 0.00705679219 | O56: =Still!BP359 -> -0.007194481996 | P56: =Still!BR359 -> -0.004740054573 | Q56: =Still!BT359 -> 0.004990437045 | R56: =Still!BV359 -> 0.01000579649 | S56: =Still!BX359 -> 0.007091138206 | T56: =Still!BY359 -> 0.002741988599 | U56: =Still!BZ359 -> -0.003086268817 | V56: =Still!CA359 -> 0.007117999262 | W56: =Still!CB359 -> 0.006849616674 | X56: =Still!CD359 -> 0.01290176964 | Y56: =Still!CF359 -> 0 | Z56: =Still!CH359 -> 0 | AA56: =Still!AX359 -> 0.844169037 | AB56: =Still!AY359 ->  | AC56: =Still!AZ359 -> 0.8835391467 | AD56: =Still!BA359 -> 0.8978679199 | AE56: =Still!BF360 -> 0.002087885596 | AF56: =Still!BG360 -> -0.05036242356 | AG56: =Still!BH360 -> -0.04589518982 | AH56: =Still!BI360 -> 0.002215667899 | AI56: =Still!BJ360 -> 0.001826299581 | AJ56: =Still!BL360 -> -0.007824932727 | AK56: =Still!BN360 -> -0.001685811923 | AL56: =Still!BP360 -> -0.02781940831 | AM56: =Still!BR360 -> -0.02363557456 | AN56: =Still!BT360 -> -0.0009534851623 | AO56: =Still!BV360 -> 0.0009136467247 | AP56: =Still!BX360 -> 0.002087885596 | AQ56: =Still!BY360 -> -0.05036242356 | AR56: =Still!BZ360 -> -0.04589518982 | AS56: =Still!CA360 -> 0.002112986938 | AT56: =Still!CB360 -> 0.001826299581 | AU56: =Still!CD360 -> -0.2094472138 | AV56: =Still!AX362 -> 0.6083916084 | AW56: =Still!AY362 ->  | AX56: =Still!AZ362 -> 0.7323769608 | AY56: =Still!BA362 -> 0.6751023146 | AZ56: =Still!BF361 -> 0.01698517685 | BA56: =Still!BG361 -> 0.04673814752 | BB56: =Still!BH361 -> 0.01648712481 | BC56: =Still!BI361 -> 0.0165551691 | BD56: =Still!BJ361 -> 0.01661368539 | BE56: =Still!BL361 -> 0.01581460385 | BF56: =Still!BN361 -> 0.01983956245 | BG56: =Still!BP361 -> 0.007520765715 | BH56: =Still!BR361 -> 0.01002683064 | BI56: =Still!BT361 -> 0.01739656145 | BJ56: =Still!BV361 -> 0.03257798321 | BK56: =Still!BX361 -> 0.01698517685 | BL56: =Still!BY361 -> 0.04673814752 | BM56: =Still!BZ361 -> 0.01648712481 | BN56: =Still!CA361 -> 0.0164159067 | BO56: =Still!CB361 -> 0.01661368539 | BP56: =Still!CD361 -> 0.1666213008 | BQ56: =Still!AX361 -> 1.15942029 | BR56: =Still!AY361 ->  | BS56: =Still!AZ361 -> 1.040443358 | BT56: =Still!BA361 -> 1.209357702
E62: High | H62: Averages | S62: Minimum | AB62: Maximum
B63: YUV PSNR Weights | H63: PSNR | I63: SSIM | J63: MS-SSIM | K63: VMAF | L63: nVMAF | M63: PSNR HVS | N63: DE 2K | O63: APSNR | P63: CAMBI | Q63: VMAF | R63: nVMAF | S63: PSNR | T63: SSIM | U63: MS-SSIM | V63: VMAF | W63: nVMAF | X63: PSNR HVS | Y63: DE 2K | Z63: APSNR | AA63: CAMBI | AB63: PSNR | AC63: SSIM | AD63: MS-SSIM | AE63: VMAF | AF63: nVMAF | AG63: PSNR HVS | AH63: DE 2K | AI63: APSNR | AJ63: CAMBI
B64: Y | C64: 14 | G64: Summary | H64: Y | I64: Y | J64: Y | K64: Y | L64: Y | M64: Y | O64: Y | P64: Y | Q64: Monotonicity | S64: Y | T64: Y | U64: Y | V64: Y | W64: Y | X64: Y | Z64: Y | AA64: Y | AB64: Y | AC64: Y | AD64: Y | AE64: Y | AF64: Y | AG64: Y | AI64: Y | AJ64: Y
B65: U | C65: 1 | F65: Intra | G65: =Intra!C559 -> Class A1_4K | H65: =Intra!BE559 ->  | I65: =Intra!BK559 ->  | J65: =Intra!BM559 ->  | K65: =Intra!BO559 ->  | L65: =Intra!BQ559 ->  | M65: =Intra!BS559 ->  | N65: =Intra!BU559 ->  | O65: =Intra!BW559 ->  | P65: =Intra!CC559 ->  | Q65: =Intra!CE559 -> 0 | R65: =Intra!CG559 -> 0 | S65: =Intra!BE560 ->  | T65: =Intra!BK560 ->  | U65: =Intra!BM560 ->  | V65: =Intra!BO560 ->  | W65: =Intra!BQ560 ->  | X65: =Intra!BS560 ->  | Y65: =Intra!BU560 ->  | Z65: =Intra!BW560 ->  | AA65: =Intra!CC560 ->  | AB65: =Intra!BE561 ->  | AC65: =Intra!BK561 ->  | AD65: =Intra!BM561 ->  | AE65: =Intra!BO561 ->  | AF65: =Intra!BQ561 ->  | AG65: =Intra!BS561 ->  | AH65: =Intra!BU561 ->  | AI65: =Intra!BW561 ->  | AJ65: =Intra!CC561 -> 
B66: V | C66: 1 | G66: =Intra!C568 -> Class A2_2K | H66: =Intra!BE568 ->  | I66: =Intra!BK568 ->  | J66: =Intra!BM568 ->  | K66: =Intra!BO568 ->  | L66: =Intra!BQ568 ->  | M66: =Intra!BS568 ->  | N66: =Intra!BU568 ->  | O66: =Intra!BW568 ->  | P66: =Intra!CC568 ->  | Q66: =Intra!CE568 -> 0 | R66: =Intra!CG568 -> 0 | S66: =Intra!BE569 ->  | T66: =Intra!BK569 ->  | U66: =Intra!BM569 ->  | V66: =Intra!BO569 ->  | W66: =Intra!BQ569 ->  | X66: =Intra!BS569 ->  | Y66: =Intra!BU569 ->  | Z66: =Intra!BW569 ->  | AA66: =Intra!CC569 ->  | AB66: =Intra!BE570 ->  | AC66: =Intra!BK570 ->  | AD66: =Intra!BM570 ->  | AE66: =Intra!BO570 ->  | AF66: =Intra!BQ570 ->  | AG66: =Intra!BS570 ->  | AH66: =Intra!BU570 ->  | AI66: =Intra!BW570 ->  | AJ66: =Intra!CC570 -> 
B67: Sum | C67: =SUM(C64:C66) -> 16 | G67: =Intra!C577 -> Class A3_720p | H67: =Intra!BE577 ->  | I67: =Intra!BK577 ->  | J67: =Intra!BM577 ->  | K67: =Intra!BO577 ->  | L67: =Intra!BQ577 ->  | M67: =Intra!BS577 ->  | N67: =Intra!BU577 ->  | O67: =Intra!BW577 ->  | P67: =Intra!CC577 ->  | Q67: =Intra!CE577 -> 0 | R67: =Intra!CG577 -> 0 | S67: =Intra!BE578 ->  | T67: =Intra!BK578 ->  | U67: =Intra!BM578 ->  | V67: =Intra!BO578 ->  | W67: =Intra!BQ578 ->  | X67: =Intra!BS578 ->  | Y67: =Intra!BU578 ->  | Z67: =Intra!BW578 ->  | AA67: =Intra!CC578 ->  | AB67: =Intra!BE579 ->  | AC67: =Intra!BK579 ->  | AD67: =Intra!BM579 ->  | AE67: =Intra!BO579 ->  | AF67: =Intra!BQ579 ->  | AG67: =Intra!BS579 ->  | AH67: =Intra!BU579 ->  | AI67: =Intra!BW579 ->  | AJ67: =Intra!CC579 -> 
G68: =Intra!C586 -> Class A4_360p | H68: =Intra!BE586 ->  | I68: =Intra!BK586 ->  | J68: =Intra!BM586 ->  | K68: =Intra!BO586 ->  | L68: =Intra!BQ586 ->  | M68: =Intra!BS586 ->  | N68: =Intra!BU586 ->  | O68: =Intra!BW586 ->  | P68: =Intra!CC586 ->  | Q68: =Intra!CE586 -> 0 | R68: =Intra!CG586 -> 0 | S68: =Intra!BE587 ->  | T68: =Intra!BK587 ->  | U68: =Intra!BM587 ->  | V68: =Intra!BO587 ->  | W68: =Intra!BQ587 ->  | X68: =Intra!BS587 ->  | Y68: =Intra!BU587 ->  | Z68: =Intra!BW587 ->  | AA68: =Intra!CC587 ->  | AB68: =Intra!BE588 ->  | AC68: =Intra!BK588 ->  | AD68: =Intra!BM588 ->  | AE68: =Intra!BO588 ->  | AF68: =Intra!BQ588 ->  | AG68: =Intra!BS588 ->  | AH68: =Intra!BU588 ->  | AI68: =Intra!BW588 ->  | AJ68: =Intra!CC588 -> 
G69: =Intra!C595 -> Class A5_270p | H69: =Intra!BE595 ->  | I69: =Intra!BK595 ->  | J69: =Intra!BM595 ->  | K69: =Intra!BO595 ->  | L69: =Intra!BQ595 ->  | M69: =Intra!BS595 ->  | N69: =Intra!BU595 ->  | O69: =Intra!BW595 ->  | P69: =Intra!CC595 ->  | Q69: =Intra!CE595 -> 0 | R69: =Intra!CG595 -> 0 | S69: =Intra!BE596 ->  | T69: =Intra!BK596 ->  | U69: =Intra!BM596 ->  | V69: =Intra!BO596 ->  | W69: =Intra!BQ596 ->  | X69: =Intra!BS596 ->  | Y69: =Intra!BU596 ->  | Z69: =Intra!BW596 ->  | AA69: =Intra!CC596 ->  | AB69: =Intra!BE597 ->  | AC69: =Intra!BK597 ->  | AD69: =Intra!BM597 ->  | AE69: =Intra!BO597 ->  | AF69: =Intra!BQ597 ->  | AG69: =Intra!BS597 ->  | AH69: =Intra!BU597 ->  | AI69: =Intra!BW597 ->  | AJ69: =Intra!CC597 -> 
G70: =Intra!C604 -> Class B1_SYN | H70: =Intra!BE604 ->  | I70: =Intra!BK604 ->  | J70: =Intra!BM604 ->  | K70: =Intra!BO604 ->  | L70: =Intra!BQ604 ->  | M70: =Intra!BS604 ->  | N70: =Intra!BU604 ->  | O70: =Intra!BW604 ->  | P70: =Intra!CC604 ->  | Q70: =Intra!CE604 -> 0 | R70: =Intra!CG604 -> 0 | S70: =Intra!BE605 ->  | T70: =Intra!BK605 ->  | U70: =Intra!BM605 ->  | V70: =Intra!BO605 ->  | W70: =Intra!BQ605 ->  | X70: =Intra!BS605 ->  | Y70: =Intra!BU605 ->  | Z70: =Intra!BW605 ->  | AA70: =Intra!CC605 ->  | AB70: =Intra!BE606 ->  | AC70: =Intra!BK606 ->  | AD70: =Intra!BM606 ->  | AE70: =Intra!BO606 ->  | AF70: =Intra!BQ606 ->  | AG70: =Intra!BS606 ->  | AH70: =Intra!BU606 ->  | AI70: =Intra!BW606 ->  | AJ70: =Intra!CC606 -> 
G71: =Intra!BB662 -> Overall Mandatory w/o B2 | H71: =Intra!BE662 ->  | I71: =Intra!BK662 ->  | J71: =Intra!BM662 ->  | K71: =Intra!BO662 ->  | L71: =Intra!BQ662 ->  | M71: =Intra!BS662 ->  | N71: =Intra!BU662 ->  | O71: =Intra!BW662 ->  | P71: =Intra!CC662 ->  | Q71: =Intra!CE662 -> 0 | R71: =Intra!CG662 -> 0 | S71: =Intra!BE663 ->  | T71: =Intra!BK663 ->  | U71: =Intra!BM663 ->  | V71: =Intra!BO663 ->  | W71: =Intra!BQ663 ->  | X71: =Intra!BS663 ->  | Y71: =Intra!BU663 ->  | Z71: =Intra!BW663 ->  | AA71: =Intra!CC663 ->  | AB71: =Intra!BE664 ->  | AC71: =Intra!BK664 ->  | AD71: =Intra!BM664 ->  | AE71: =Intra!BO664 ->  | AF71: =Intra!BQ664 ->  | AG71: =Intra!BS664 ->  | AH71: =Intra!BU664 ->  | AI71: =Intra!BW664 ->  | AJ71: =Intra!CC664 -> 
G73: =Intra!C622 -> Class HDR1_4K | H73: =Intra!BE622 ->  | I73: =Intra!BK622 ->  | J73: =Intra!BM622 ->  | K73: =Intra!BO622 ->  | L73: =Intra!BQ622 ->  | M73: =Intra!BS622 ->  | N73: =Intra!BU622 ->  | O73: =Intra!BW622 ->  | P73: =Intra!CC622 ->  | Q73: =Intra!CE622 -> 0 | R73: =Intra!CG622 -> 0 | S73: =Intra!BE623 ->  | T73: =Intra!BK623 ->  | U73: =Intra!BM623 ->  | V73: =Intra!BO623 ->  | W73: =Intra!BQ623 ->  | X73: =Intra!BS623 ->  | Y73: =Intra!BU623 ->  | Z73: =Intra!BW623 ->  | AA73: =Intra!CC623 ->  | AB73: =Intra!BE624 ->  | AC73: =Intra!BK624 ->  | AD73: =Intra!BM624 ->  | AE73: =Intra!BO624 ->  | AF73: =Intra!BQ624 ->  | AG73: =Intra!BS624 ->  | AH73: =Intra!BU624 ->  | AI73: =Intra!BW624 ->  | AJ73: =Intra!CC624 -> 
G74: =Intra!C631 -> Class HDR2_2K | H74: =Intra!BE631 ->  | I74: =Intra!BK631 ->  | J74: =Intra!BM631 ->  | K74: =Intra!BO631 ->  | L74: =Intra!BQ631 ->  | M74: =Intra!BS631 ->  | N74: =Intra!BU631 ->  | O74: =Intra!BW631 ->  | P74: =Intra!CC631 ->  | Q74: =Intra!CE631 -> 0 | R74: =Intra!CG631 -> 0 | S74: =Intra!BE632 ->  | T74: =Intra!BK632 ->  | U74: =Intra!BM632 ->  | V74: =Intra!BO632 ->  | W74: =Intra!BQ632 ->  | X74: =Intra!BS632 ->  | Y74: =Intra!BU632 ->  | Z74: =Intra!BW632 ->  | AA74: =Intra!CC632 ->  | AB74: =Intra!BE633 ->  | AC74: =Intra!BK633 ->  | AD74: =Intra!BM633 ->  | AE74: =Intra!BO633 ->  | AF74: =Intra!BQ633 ->  | AG74: =Intra!BS633 ->  | AH74: =Intra!BU633 ->  | AI74: =Intra!BW633 ->  | AJ74: =Intra!CC633 -> 
G75: =Intra!BB684 -> Overall HDR | H75: =Intra!BE684 ->  | I75: =Intra!BK684 ->  | J75: =Intra!BM684 ->  | K75: =Intra!BO684 ->  | L75: =Intra!BQ684 ->  | M75: =Intra!BS684 ->  | N75: =Intra!BU684 ->  | O75: =Intra!BW684 ->  | P75: =Intra!CC684 ->  | Q75: =Intra!CE684 -> 0 | R75: =Intra!CG684 -> 0 | S75: =Intra!BE685 ->  | T75: =Intra!BK685 ->  | U75: =Intra!BM685 ->  | V75: =Intra!BO685 ->  | W75: =Intra!BQ685 ->  | X75: =Intra!BS685 ->  | Y75: =Intra!BU685 ->  | Z75: =Intra!BW685 ->  | AA75: =Intra!CC685 ->  | AB75: =Intra!BE686 ->  | AC75: =Intra!BK686 ->  | AD75: =Intra!BM686 ->  | AE75: =Intra!BO686 ->  | AF75: =Intra!BQ686 ->  | AG75: =Intra!BS686 ->  | AH75: =Intra!BU686 ->  | AI75: =Intra!BW686 ->  | AJ75: =Intra!CC686 -> 
G76: =Intra!BB640 -> Class E | H76: =Intra!BE640 ->  | I76: =Intra!BK640 ->  | J76: =Intra!BM640 ->  | K76: =Intra!BO640 ->  | L76: =Intra!BQ640 ->  | M76: =Intra!BS640 ->  | N76: =Intra!BU640 ->  | O76: =Intra!BW640 ->  | P76: =Intra!CC640 ->  | Q76: =Intra!CE640 -> 0 | R76: =Intra!CG640 -> 0 | S76: =Intra!BE641 ->  | T76: =Intra!BK641 ->  | U76: =Intra!BM641 ->  | V76: =Intra!BO641 ->  | W76: =Intra!BQ641 ->  | X76: =Intra!BS641 ->  | Y76: =Intra!BU641 ->  | Z76: =Intra!BW641 ->  | AA76: =Intra!CC641 ->  | AB76: =Intra!BE642 ->  | AC76: =Intra!BK642 ->  | AD76: =Intra!BM642 ->  | AE76: =Intra!BO642 ->  | AF76: =Intra!BQ642 ->  | AG76: =Intra!BS642 ->  | AH76: =Intra!BU642 ->  | AI76: =Intra!BW642 ->  | AJ76: =Intra!CC642 -> 
G77: =Intra!BB651 -> Overall | H77: =Intra!BE651 ->  | I77: =Intra!BK651 ->  | J77: =Intra!BM651 ->  | K77: =Intra!BO651 ->  | L77: =Intra!BQ651 ->  | M77: =Intra!BS651 ->  | N77: =Intra!BU651 ->  | O77: =Intra!BW651 ->  | P77: =Intra!CC651 ->  | Q77: =Intra!CE651 -> 0 | R77: =Intra!CG651 -> 0 | S77: =Intra!BE652 ->  | T77: =Intra!BK652 ->  | U77: =Intra!BM652 ->  | V77: =Intra!BO652 ->  | W77: =Intra!BQ652 ->  | X77: =Intra!BS652 ->  | Y77: =Intra!BU652 ->  | Z77: =Intra!BW652 ->  | AA77: =Intra!CC652 ->  | AB77: =Intra!BE653 ->  | AC77: =Intra!BK653 ->  | AD77: =Intra!BM653 ->  | AE77: =Intra!BO653 ->  | AF77: =Intra!BQ653 ->  | AG77: =Intra!BS653 ->  | AH77: =Intra!BU653 ->  | AI77: =Intra!BW653 ->  | AJ77: =Intra!CC653 -> 
F79: RA | G79: =RA!C559 -> Class A1_4K | H79: =RA!BE559 -> 0.02271777673 | I79: =RA!BK559 -> -0.006979155633 | J79: =RA!BM559 -> -0.0008807701631 | K79: =RA!BO559 -> 0.01373618159 | L79: =RA!BQ559 -> 0.01546548644 | M79: =RA!BS559 -> 0.01253706744 | N79: =RA!BU559 -> 0.03225965523 | O79: =RA!BW559 -> 0.01647974912 | P79: =RA!CC559 -> 0.00843660022 | Q79: =RA!CE559 -> 0 | R79: =RA!CG559 -> 0 | S79: =RA!BE560 -> -0.00758971467 | T79: =RA!BK560 -> -0.04290631059 | U79: =RA!BM560 -> -0.03102462246 | V79: =RA!BO560 -> -0.005350131481 | W79: =RA!BQ560 -> -0.01040445941 | X79: =RA!BS560 -> -0.01883864891 | Y79: =RA!BU560 -> -0.007903742191 | Z79: =RA!BW560 -> -0.00898092601 | AA79: =RA!CC560 -> -0.003196886319 | AB79: =RA!BE561 -> 0.07861165382 | AC79: =RA!BK561 -> 0.02415573975 | AD79: =RA!BM561 -> 0.02285421325 | AE79: =RA!BO561 -> 0.03140119366 | AF79: =RA!BQ561 -> 0.03236982778 | AG79: =RA!BS561 -> 0.05941762396 | AH79: =RA!BU561 -> 0.06748803829 | AI79: =RA!BW561 -> 0.05307173789 | AJ79: =RA!CC561 -> 0.05801119989
B80: YUV APSNR Weights | G80: =RA!C568 -> Class A2_2K | H80: =RA!BE568 -> 0.006496345637 | I80: =RA!BK568 -> -0.02027169867 | J80: =RA!BM568 -> -0.01553396244 | K80: =RA!BO568 -> -0.01276376911 | L80: =RA!BQ568 -> -0.0149054706 | M80: =RA!BS568 -> -0.004783353425 | N80: =RA!BU568 -> 0.004000852441 | O80: =RA!BW568 -> -0.008466309806 | P80: =RA!CC568 -> 0.01709265443 | Q80: =RA!CE568 -> 0 | R80: =RA!CG568 -> 0 | S80: =RA!BE569 -> -0.1223937523 | T80: =RA!BK569 -> -0.08813902515 | U80: =RA!BM569 -> -0.07993258622 | V80: =RA!BO569 -> -0.1570665793 | W80: =RA!BQ569 -> -0.1529577361 | X80: =RA!BS569 -> -0.06863783107 | Y80: =RA!BU569 -> -0.06713648459 | Z80: =RA!BW569 -> -0.1597385789 | AA80: =RA!CC569 -> -0.02371642873 | AB80: =RA!BE570 -> 0.0589480379 | AC80: =RA!BK570 -> 0.02129221572 | AD80: =RA!BM570 -> 0.02270793797 | AE80: =RA!BO570 -> 0.2331342783 | AF80: =RA!BQ570 -> 0.2313126262 | AG80: =RA!BS570 -> 0.03776077539 | AH80: =RA!BU570 -> 0.0613564127 | AI80: =RA!BW570 -> 0.02566997472 | AJ80: =RA!CC570 -> 0.2041766078
B81: Y | C81: 4 | G81: =RA!C577 -> Class A3_720p | H81: =RA!BE577 -> 0.004082447743 | I81: =RA!BK577 -> -0.01754412774 | J81: =RA!BM577 -> -0.01824408072 | K81: =RA!BO577 -> -0.02004065585 | L81: =RA!BQ577 -> -0.02080201423 | M81: =RA!BS577 -> -0.0151583045 | N81: =RA!BU577 -> 0.005214688478 | O81: =RA!BW577 -> 0.0002490689627 | P81: =RA!CC577 -> 0.07072730589 | Q81: =RA!CE577 -> 0 | R81: =RA!CG577 -> 0 | S81: =RA!BE578 -> -0.04128438543 | T81: =RA!BK578 -> -0.07461983664 | U81: =RA!BM578 -> -0.09091464224 | V81: =RA!BO578 -> -0.05386544173 | W81: =RA!BQ578 -> -0.04728583835 | X81: =RA!BS578 -> -0.0527811112 | Y81: =RA!BU578 -> -0.02281278221 | Z81: =RA!BW578 -> -0.04194544555 | AA81: =RA!CC578 -> -0.1068646081 | AB81: =RA!BE579 -> 0.0346587788 | AC81: =RA!BK579 -> 0.01098205986 | AD81: =RA!BM579 -> 0.004986791938 | AE81: =RA!BO579 -> 0.01279133144 | AF81: =RA!BQ579 -> 0.004596457124 | AG81: =RA!BS579 -> 0.0001254920634 | AH81: =RA!BU579 -> 0.04339128014 | AI81: =RA!BW579 -> 0.02448688672 | AJ81: =RA!CC579 -> 0.5985935242
B82: U | C82: 1 | G82: =RA!C586 -> Class A4_360p | H82: =RA!BE586 -> 0.021198149 | I82: =RA!BK586 -> 0.01342017912 | J82: =RA!BM586 -> -0.002161500458 | K82: =RA!BO586 -> 0.003410175915 | L82: =RA!BQ586 -> -0.0006625658292 | M82: =RA!BS586 -> -0.001160250906 | N82: =RA!BU586 -> 0.00810264218 | O82: =RA!BW586 -> 0.01113400693 | P82: =RA!CC586 -> -0.02835331404 | Q82: =RA!CE586 -> 0 | R82: =RA!CG586 -> 0 | S82: =RA!BE587 -> -0.0005849151871 | T82: =RA!BK587 -> -0.01889080143 | U82: =RA!BM587 -> -0.03720627341 | V82: =RA!BO587 -> -0.0286259054 | W82: =RA!BQ587 -> -0.01828709457 | X82: =RA!BS587 -> -0.01547946396 | Y82: =RA!BU587 -> -0.008453514972 | Z82: =RA!BW587 -> -0.003782472602 | AA82: =RA!CC587 -> -0.1382590998 | AB82: =RA!BE588 -> 0.09263625547 | AC82: =RA!BK588 -> 0.07091471121 | AD82: =RA!BM588 -> 0.05519966594 | AE82: =RA!BO588 -> 0.05523753627 | AF82: =RA!BQ588 -> 0.03170145541 | AG82: =RA!BS588 -> 0.02153909187 | AH82: =RA!BU588 -> 0.02171937818 | AI82: =RA!BW588 -> 0.03725802577 | AJ82: =RA!CC588 -> 0.007801650465
B83: V | C83: 1 | G83: =RA!C595 -> Class A5_270p | H83: =RA!BE595 -> -0.006085906371 | I83: =RA!BK595 -> -0.01704202976 | J83: =RA!BM595 -> -0.0270488786 | K83: =RA!BO595 -> -0.0509247883 | L83: =RA!BQ595 -> -0.04697082227 | M83: =RA!BS595 -> -0.0254100846 | N83: =RA!BU595 -> -0.01744744527 | O83: =RA!BW595 -> -0.01407829085 | P83: =RA!CC595 -> -0.04777876962 | Q83: =RA!CE595 -> 0 | R83: =RA!CG595 -> 0 | S83: =RA!BE596 -> -0.0262442125 | T83: =RA!BK596 -> -0.0610948455 | U83: =RA!BM596 -> -0.07200841911 | V83: =RA!BO596 -> -0.1151681146 | W83: =RA!BQ596 -> -0.1144409713 | X83: =RA!BS596 -> -0.03325997985 | Y83: =RA!BU596 -> -0.05083650789 | Z83: =RA!BW596 -> -0.02642720937 | AA83: =RA!CC596 -> -0.1225576276 | AB83: =RA!BE597 -> 0.005419250409 | AC83: =RA!BK597 -> 0.001698651089 | AD83: =RA!BM597 -> -0.00839125693 | AE83: =RA!BO597 -> -0.005031309619 | AF83: =RA!BQ597 -> -0.004976128591 | AG83: =RA!BS597 -> -0.01538326127 | AH83: =RA!BU597 -> 0.009113268995 | AI83: =RA!BW597 -> -0.004267966401 | AJ83: =RA!CC597 -> -0.001867079044
B84: Sum | C84: =SUM(C81:C83) -> 6 | G84: =RA!C604 -> Class B1_SYN | H84: =RA!BE604 -> 0.02074306802 | I84: =RA!BK604 -> -0.01026786419 | J84: =RA!BM604 -> -0.004126228124 | K84: =RA!BO604 -> -0.01801180186 | L84: =RA!BQ604 -> -0.01682809284 | M84: =RA!BS604 -> 0.003703497692 | N84: =RA!BU604 -> 0.009428168816 | O84: =RA!BW604 -> -0.002283586837 | P84: =RA!CC604 -> -0.01303238552 | Q84: =RA!CE604 -> 0 | R84: =RA!CG604 -> 0 | S84: =RA!BE605 -> -0.03707821399 | T84: =RA!BK605 -> -0.05285037154 | U84: =RA!BM605 -> -0.04900068123 | V84: =RA!BO605 -> -0.08255884377 | W84: =RA!BQ605 -> -0.07966414835 | X84: =RA!BS605 -> -0.03179164622 | Y84: =RA!BU605 -> -0.02690457144 | Z84: =RA!BW605 -> -0.03684324117 | AA84: =RA!CC605 -> -0.116676363 | AB84: =RA!BE606 -> 0.1174720599 | AC84: =RA!BK606 -> 0.1242849316 | AD84: =RA!BM606 -> 0.1072872811 | AE84: =RA!BO606 -> 0.1243926048 | AF84: =RA!BQ606 -> 0.1319128414 | AG84: =RA!BS606 -> 0.1318946003 | AH84: =RA!BU606 -> 0.1094064305 | AI84: =RA!BW606 -> 0.09431739194 | AJ84: =RA!CC606 -> 0.03855281289
G85: =RA!BB662 -> Overall Mandatory w/o B2 | H85: =RA!BE662 -> 0.01151029911 | I85: =RA!BK662 -> -0.01270089394 | J85: =RA!BM662 -> -0.01133056516 | K85: =RA!BO662 -> -0.01197577295 | L85: =RA!BQ662 -> -0.01259917565 | M85: =RA!BS662 -> -0.003409836875 | N85: =RA!BU662 -> 0.007946918336 | O85: =RA!BW662 -> -0.001116780367 | P85: =RA!CC662 -> 0.008927428075 | Q85: =RA!CE662 -> 0 | R85: =RA!CG662 -> 0 | S85: =RA!BE663 -> -0.1223937523 | T85: =RA!BK663 -> -0.08813902515 | U85: =RA!BM663 -> -0.09091464224 | V85: =RA!BO663 -> -0.1570665793 | W85: =RA!BQ663 -> -0.1529577361 | X85: =RA!BS663 -> -0.06863783107 | Y85: =RA!BU663 -> -0.06713648459 | Z85: =RA!BW663 -> -0.1597385789 | AA85: =RA!CC663 -> -0.1382590998 | AB85: =RA!BE664 -> 0.1174720599 | AC85: =RA!BK664 -> 0.1242849316 | AD85: =RA!BM664 -> 0.1072872811 | AE85: =RA!BO664 -> 0.2331342783 | AF85: =RA!BQ664 -> 0.2313126262 | AG85: =RA!BS664 -> 0.1318946003 | AH85: =RA!BU664 -> 0.1094064305 | AI85: =RA!BW664 -> 0.09431739194 | AJ85: =RA!CC664 -> 0.5985935242
G87: =RA!C622 -> Class HDR1_4K | H87: =RA!BE622 -> 0.05812824733 | I87: =RA!BK622 -> 0.01138290585 | J87: =RA!BM622 -> 0.01486614599 | K87: =RA!BO622 -> 0.01438833313 | L87: =RA!BQ622 -> 0.01756290231 | M87: =RA!BS622 -> 0.029171799 | N87: =RA!BU622 -> 0.02608235436 | O87: =RA!BW622 -> 0.03766638756 | P87: =RA!CC622 -> 6.44711975e-05 | Q87: =RA!CE622 -> 0 | R87: =RA!CG622 -> 0 | S87: =RA!BE623 -> 0.009754284411 | T87: =RA!BK623 -> -0.01677217275 | U87: =RA!BM623 -> -0.0217370689 | V87: =RA!BO623 -> -0.04386264279 | W87: =RA!BQ623 -> -0.0406098071 | X87: =RA!BS623 -> -0.005362403835 | Y87: =RA!BU623 -> -0.01140572194 | Z87: =RA!BW623 -> -0.02098219521 | AA87: =RA!CC623 -> -0.03276130717 | AB87: =RA!BE624 -> 0.09849630713 | AC87: =RA!BK624 -> 0.03040212253 | AD87: =RA!BM624 -> 0.03325436358 | AE87: =RA!BO624 -> 0.05126425235 | AF87: =RA!BQ624 -> 0.05364742818 | AG87: =RA!BS624 -> 0.04590529148 | AH87: =RA!BU624 -> 0.04696249313 | AI87: =RA!BW624 -> 0.0751793165 | AJ87: =RA!CC624 -> 0.02931751793
G88: =RA!C631 -> Class HDR2_2K | H88: =RA!BE631 -> 0.07940011315 | I88: =RA!BK631 -> 0.03534646042 | J88: =RA!BM631 -> 0.03924229112 | K88: =RA!BO631 -> 0.05800549181 | L88: =RA!BQ631 -> 0.05392126871 | M88: =RA!BS631 -> 0.05390090308 | N88: =RA!BU631 -> 0.03872532192 | O88: =RA!BW631 -> 0.07048813833 | P88: =RA!CC631 -> -0.02593505171 | Q88: =RA!CE631 -> 0 | R88: =RA!CG631 -> 0 | S88: =RA!BE632 -> 0.002121958642 | T88: =RA!BK632 -> -0.04256237801 | U88: =RA!BM632 -> -0.004587548076 | V88: =RA!BO632 -> -0.09366529456 | W88: =RA!BQ632 -> -0.0891792652 | X88: =RA!BS632 -> 0.002572110262 | Y88: =RA!BU632 -> -0.001638037414 | Z88: =RA!BW632 -> -0.05159403746 | AA88: =RA!CC632 -> -0.6339224503 | AB88: =RA!BE633 -> 0.1483926844 | AC88: =RA!BK633 -> 0.117902251 | AD88: =RA!BM633 -> 0.1031295468 | AE88: =RA!BO633 -> 0.1990280851 | AF88: =RA!BQ633 -> 0.1651093722 | AG88: =RA!BS633 -> 0.1047587308 | AH88: =RA!BU633 -> 0.08955827748 | AI88: =RA!BW633 -> 0.1483309069 | AJ88: =RA!CC633 -> 0.492469796
G89: =RA!BB684 -> Overall HDR | H89: =RA!BE684 -> 0.07166488922 | I89: =RA!BK684 -> 0.02663244058 | J89: =RA!BM684 -> 0.03037823835 | K89: =RA!BO684 -> 0.04214470684 | L89: =RA!BQ684 -> 0.04070004456 | M89: =RA!BS684 -> 0.0449085016 | N89: =RA!BU684 -> 0.03412787917 | O89: =RA!BW684 -> 0.05855295623 | P89: =RA!CC684 -> -0.01648067974 | Q89: =RA!CE684 -> 0 | R89: =RA!CG684 -> 0 | S89: =RA!BE685 -> 0.002121958642 | T89: =RA!BK685 -> -0.04256237801 | U89: =RA!BM685 -> -0.0217370689 | V89: =RA!BO685 -> -0.09366529456 | W89: =RA!BQ685 -> -0.0891792652 | X89: =RA!BS685 -> -0.005362403835 | Y89: =RA!BU685 -> -0.01140572194 | Z89: =RA!BW685 -> -0.05159403746 | AA89: =RA!CC685 -> -0.6339224503 | AB89: =RA!BE686 -> 0.1483926844 | AC89: =RA!BK686 -> 0.117902251 | AD89: =RA!BM686 -> 0.1031295468 | AE89: =RA!BO686 -> 0.1990280851 | AF89: =RA!BQ686 -> 0.1651093722 | AG89: =RA!BS686 -> 0.1047587308 | AH89: =RA!BU686 -> 0.08955827748 | AI89: =RA!BW686 -> 0.1483309069 | AJ89: =RA!CC686 -> 0.492469796
G90: =RA!BB640 -> Class E | H90: =RA!BE640 -> 0.005498275749 | I90: =RA!BK640 -> -0.007368498126 | J90: =RA!BM640 -> 0.001501024422 | K90: =RA!BO640 -> -0.01553371519 | L90: =RA!BQ640 -> -0.01263901514 | M90: =RA!BS640 -> 0.0006248535552 | N90: =RA!BU640 -> 0.003240647111 | O90: =RA!BW640 -> 0.003078163559 | P90: =RA!CC640 -> -0.02421161606 | Q90: =RA!CE640 -> 0 | R90: =RA!CG640 -> 0 | S90: =RA!BE641 -> -0.0006798920967 | T90: =RA!BK641 -> -0.04159795953 | U90: =RA!BM641 -> -0.014736616 | V90: =RA!BO641 -> -0.07086281618 | W90: =RA!BQ641 -> -0.06353049039 | X90: =RA!BS641 -> -0.02098311421 | Y90: =RA!BU641 -> -0.0009999328014 | Z90: =RA!BW641 -> -0.0006798920967 | AA90: =RA!CC641 -> -0.2255110813 | AB90: =RA!BE642 -> 0.03483300499 | AC90: =RA!BK642 -> 0.002628988921 | AD90: =RA!BM642 -> 0.00897527644 | AE90: =RA!BO642 -> 0.001384284588 | AF90: =RA!BQ642 -> 0.001833592019 | AG90: =RA!BS642 -> 0.006267087595 | AH90: =RA!BU642 -> 0.01683226646 | AI90: =RA!BW642 -> 0.00853352972 | AJ90: =RA!CC642 -> 0.01466583232
G91: =RA!BB651 -> Overall | H91: =RA!BE651 -> 0.01766463597 | I91: =RA!BK651 -> -0.004063094685 | J91: =RA!BM651 -> -0.001550751503 | K91: =RA!BO651 -> -0.002785766106 | L91: =RA!BQ651 -> -0.002924139116 | M91: =RA!BS651 -> 0.004809847063 | N91: =RA!BU651 -> 0.01064440686 | O91: =RA!BW651 -> 0.00843009358 | P91: =RA!CC651 -> 0.0006691868643 | Q91: =RA!CE651 -> 0 | R91: =RA!CG651 -> 0 | S91: =RA!BE652 -> -0.1223937523 | T91: =RA!BK652 -> -0.08813902515 | U91: =RA!BM652 -> -0.09091464224 | V91: =RA!BO652 -> -0.1570665793 | W91: =RA!BQ652 -> -0.1529577361 | X91: =RA!BS652 -> -0.06863783107 | Y91: =RA!BU652 -> -0.09512694508 | Z91: =RA!BW652 -> -0.1597385789 | AA91: =RA!CC652 -> -0.6339224503 | AB91: =RA!BE653 -> 0.2549975229 | AC91: =RA!BK653 -> 0.2005154851 | AD91: =RA!BM653 -> 0.2128971333 | AE91: =RA!BO653 -> 0.2331342783 | AF91: =RA!BQ653 -> 0.2313126262 | AG91: =RA!BS653 -> 0.2111049759 | AH91: =RA!BU653 -> 0.2484982039 | AI91: =RA!BW653 -> 0.2535816999 | AJ91: =RA!CC653 -> 0.5985935242
B93: weighted PSNR BD-rate Weights | F93: LD | G93: =LD!C559 -> Class A1_4K
G94: =LD!C568 -> Class A2_2K | H94: =LD!BE568 ->  | I94: =LD!BK568 ->  | J94: =LD!BM568 ->  | K94: =LD!BO568 ->  | L94: =LD!BQ568 ->  | M94: =LD!BS568 ->  | N94: =LD!BU568 ->  | O94: =LD!BW568 ->  | P94: =LD!CC568 ->  | Q94: =LD!CE568 -> 0 | R94: =LD!CG568 -> 0 | S94: =LD!BE569 ->  | T94: =LD!BK569 ->  | U94: =LD!BM569 ->  | V94: =LD!BO569 ->  | W94: =LD!BQ569 ->  | X94: =LD!BS569 ->  | Y94: =LD!BU569 ->  | Z94: =LD!BW569 ->  | AA94: =LD!CC569 ->  | AB94: =LD!BE570 ->  | AC94: =LD!BK570 ->  | AD94: =LD!BM570 ->  | AE94: =LD!BO570 ->  | AF94: =LD!BQ570 ->  | AG94: =LD!BS570 ->  | AH94: =LD!BU570 ->  | AI94: =LD!BW570 ->  | AJ94: =LD!CC570 -> 
B95: Y | C95: 23 | G95: =LD!C577 -> Class A3_720p | H95: =LD!BE577 ->  | I95: =LD!BK577 ->  | J95: =LD!BM577 ->  | K95: =LD!BO577 ->  | L95: =LD!BQ577 ->  | M95: =LD!BS577 ->  | N95: =LD!BU577 ->  | O95: =LD!BW577 ->  | P95: =LD!CC577 ->  | Q95: =LD!CE577 -> 0 | R95: =LD!CG577 -> 0 | S95: =LD!BE578 ->  | T95: =LD!BK578 ->  | U95: =LD!BM578 ->  | V95: =LD!BO578 ->  | W95: =LD!BQ578 ->  | X95: =LD!BS578 ->  | Y95: =LD!BU578 ->  | Z95: =LD!BW578 ->  | AA95: =LD!CC578 ->  | AB95: =LD!BE579 ->  | AC95: =LD!BK579 ->  | AD95: =LD!BM579 ->  | AE95: =LD!BO579 ->  | AF95: =LD!BQ579 ->  | AG95: =LD!BS579 ->  | AH95: =LD!BU579 ->  | AI95: =LD!BW579 ->  | AJ95: =LD!CC579 -> 
B96: U | C96: 1 | G96: =LD!C586 -> Class A4_360p | H96: =LD!BE586 ->  | I96: =LD!BK586 ->  | J96: =LD!BM586 ->  | K96: =LD!BO586 ->  | L96: =LD!BQ586 ->  | M96: =LD!BS586 ->  | N96: =LD!BU586 ->  | O96: =LD!BW586 ->  | P96: =LD!CC586 ->  | Q96: =LD!CE586 -> 0 | R96: =LD!CG586 -> 0 | S96: =LD!BE587 ->  | T96: =LD!BK587 ->  | U96: =LD!BM587 ->  | V96: =LD!BO587 ->  | W96: =LD!BQ587 ->  | X96: =LD!BS587 ->  | Y96: =LD!BU587 ->  | Z96: =LD!BW587 ->  | AA96: =LD!CC587 ->  | AB96: =LD!BE588 ->  | AC96: =LD!BK588 ->  | AD96: =LD!BM588 ->  | AE96: =LD!BO588 ->  | AF96: =LD!BQ588 ->  | AG96: =LD!BS588 ->  | AH96: =LD!BU588 ->  | AI96: =LD!BW588 ->  | AJ96: =LD!CC588 -> 
B97: V | C97: 1 | G97: =LD!C595 -> Class A5_270p | H97: =LD!BE595 ->  | I97: =LD!BK595 ->  | J97: =LD!BM595 ->  | K97: =LD!BO595 ->  | L97: =LD!BQ595 ->  | M97: =LD!BS595 ->  | N97: =LD!BU595 ->  | O97: =LD!BW595 ->  | P97: =LD!CC595 ->  | Q97: =LD!CE595 -> 0 | R97: =LD!CG595 -> 0 | S97: =LD!BE596 ->  | T97: =LD!BK596 ->  | U97: =LD!BM596 ->  | V97: =LD!BO596 ->  | W97: =LD!BQ596 ->  | X97: =LD!BS596 ->  | Y97: =LD!BU596 ->  | Z97: =LD!BW596 ->  | AA97: =LD!CC596 ->  | AB97: =LD!BE597 ->  | AC97: =LD!BK597 ->  | AD97: =LD!BM597 ->  | AE97: =LD!BO597 ->  | AF97: =LD!BQ597 ->  | AG97: =LD!BS597 ->  | AH97: =LD!BU597 ->  | AI97: =LD!BW597 ->  | AJ97: =LD!CC597 -> 
B98: Sum | C98: =SUM(C95:C97) -> 25 | G98: =LD!C604 -> Class B1_SYN | H98: =LD!BE604 ->  | I98: =LD!BK604 ->  | J98: =LD!BM604 ->  | K98: =LD!BO604 ->  | L98: =LD!BQ604 ->  | M98: =LD!BS604 ->  | N98: =LD!BU604 ->  | O98: =LD!BW604 ->  | P98: =LD!CC604 ->  | Q98: =LD!CE604 -> 0 | R98: =LD!CG604 -> 0 | S98: =LD!BE605 ->  | T98: =LD!BK605 ->  | U98: =LD!BM605 ->  | V98: =LD!BO605 ->  | W98: =LD!BQ605 ->  | X98: =LD!BS605 ->  | Y98: =LD!BU605 ->  | Z98: =LD!BW605 ->  | AA98: =LD!CC605 ->  | AB98: =LD!BE606 ->  | AC98: =LD!BK606 ->  | AD98: =LD!BM606 ->  | AE98: =LD!BO606 ->  | AF98: =LD!BQ606 ->  | AG98: =LD!BS606 ->  | AH98: =LD!BU606 ->  | AI98: =LD!BW606 ->  | AJ98: =LD!CC606 -> 
G99: =LD!BB662 -> Overall Mandatory w/o B2 | H99: =LD!BE662 ->  | I99: =LD!BK662 ->  | J99: =LD!BM662 ->  | K99: =LD!BO662 ->  | L99: =LD!BQ662 ->  | M99: =LD!BS662 ->  | N99: =LD!BU662 ->  | O99: =LD!BW662 ->  | P99: =LD!CC662 ->  | Q99: =LD!CE662 -> 0 | R99: =LD!CG662 -> 0 | S99: =LD!BE663 ->  | T99: =LD!BK663 ->  | U99: =LD!BM663 ->  | V99: =LD!BO663 ->  | W99: =LD!BQ663 ->  | X99: =LD!BS663 ->  | Y99: =LD!BU663 ->  | Z99: =LD!BW663 ->  | AA99: =LD!CC663 ->  | AB99: =LD!BE664 ->  | AC99: =LD!BK664 ->  | AD99: =LD!BM664 ->  | AE99: =LD!BO664 ->  | AF99: =LD!BQ664 ->  | AG99: =LD!BS664 ->  | AH99: =LD!BU664 ->  | AI99: =LD!BW664 ->  | AJ99: =LD!CC664 -> 
G101: =LD!C622 -> Class HDR1_4K
G102: =LD!C631 -> Class HDR2_2K
G103: =LD!BB684 -> Overall HDR
G104: =LD!BB640 -> Class E
B107: weighted APSNR BD-rate Weights | E107: Medium | H107: Averages | S107: Minimum | AB107: Maximum
H108: PSNR | I108: SSIM | J108: MS-SSIM | K108: VMAF | L108: nVMAF | M108: PSNR HVS | N108: DE 2K | O108: APSNR | P108: CAMBI | Q108: VMAF | R108: nVMAF | S108: PSNR | T108: SSIM | U108: MS-SSIM | V108: VMAF | W108: nVMAF | X108: PSNR HVS | Y108: DE 2K | Z108: APSNR | AA108: CAMBI | AB108: PSNR | AC108: SSIM | AD108: MS-SSIM | AE108: VMAF | AF108: nVMAF | AG108: PSNR HVS | AH108: DE 2K | AI108: APSNR | AJ108: CAMBI
B109: Y | C109: 23 | G109: Summary | H109: Y | I109: Y | J109: Y | K109: Y | L109: Y | M109: Y | O109: Y | P109: Y | Q109: Monotonicity | S109: Y | T109: Y | U109: Y | V109: Y | W109: Y | X109: Y | Z109: Y | AA109: Y | AB109: Y | AC109: Y | AD109: Y | AE109: Y | AF109: Y | AG109: Y | AI109: Y | AJ109: Y
B110: U | C110: 1 | F110: Intra | G110: =Intra!C559 -> Class A1_4K | H110: =Intra!BE562 ->  | I110: =Intra!BK562 ->  | J110: =Intra!BM562 ->  | K110: =Intra!BO562 ->  | L110: =Intra!BQ562 ->  | M110: =Intra!BS562 ->  | N110: =Intra!BU562 ->  | O110: =Intra!BW562 ->  | P110: =Intra!CC562 ->  | Q110: =Intra!CE562 -> 0 | R110: =Intra!CG562 -> 0 | S110: =Intra!BE563 ->  | T110: =Intra!BK563 ->  | U110: =Intra!BM563 ->  | V110: =Intra!BO563 ->  | W110: =Intra!BQ563 ->  | X110: =Intra!BS563 ->  | Y110: =Intra!BU563 ->  | Z110: =Intra!BW563 ->  | AA110: =Intra!CC563 ->  | AB110: =Intra!BE564 ->  | AC110: =Intra!BK564 ->  | AD110: =Intra!BM564 ->  | AE110: =Intra!BO564 ->  | AF110: =Intra!BQ564 ->  | AG110: =Intra!BS564 ->  | AH110: =Intra!BU564 ->  | AI110: =Intra!BW564 ->  | AJ110: =Intra!CC564 -> 
B111: V | C111: 1 | G111: =Intra!C568 -> Class A2_2K | H111: =Intra!BE571 ->  | I111: =Intra!BK571 ->  | J111: =Intra!BM571 ->  | K111: =Intra!BO571 ->  | L111: =Intra!BQ571 ->  | M111: =Intra!BS571 ->  | N111: =Intra!BU571 ->  | O111: =Intra!BW571 ->  | P111: =Intra!CC571 ->  | Q111: =Intra!CE571 -> 0 | R111: =Intra!CG571 -> 0 | S111: =Intra!BE572 ->  | T111: =Intra!BK572 ->  | U111: =Intra!BM572 ->  | V111: =Intra!BO572 ->  | W111: =Intra!BQ572 ->  | X111: =Intra!BS572 ->  | Y111: =Intra!BU572 ->  | Z111: =Intra!BW572 ->  | AA111: =Intra!CC572 ->  | AB111: =Intra!BE573 ->  | AC111: =Intra!BK573 ->  | AD111: =Intra!BM573 ->  | AE111: =Intra!BO573 ->  | AF111: =Intra!BQ573 ->  | AG111: =Intra!BS573 ->  | AH111: =Intra!BU573 ->  | AI111: =Intra!BW573 ->  | AJ111: =Intra!CC573 -> 
B112: Sum | C112: =SUM(C109:C111) -> 25 | G112: =Intra!C577 -> Class A3_720p | H112: =Intra!BE580 ->  | I112: =Intra!BK580 ->  | J112: =Intra!BM580 ->  | K112: =Intra!BO580 ->  | L112: =Intra!BQ580 ->  | M112: =Intra!BS580 ->  | N112: =Intra!BU580 ->  | O112: =Intra!BW580 ->  | P112: =Intra!CC580 ->  | Q112: =Intra!CE580 -> 0 | R112: =Intra!CG580 -> 0 | S112: =Intra!BE581 ->  | T112: =Intra!BK581 ->  | U112: =Intra!BM581 ->  | V112: =Intra!BO581 ->  | W112: =Intra!BQ581 ->  | X112: =Intra!BS581 ->  | Y112: =Intra!BU581 ->  | Z112: =Intra!BW581 ->  | AA112: =Intra!CC581 ->  | AB112: =Intra!BE582 ->  | AC112: =Intra!BK582 ->  | AD112: =Intra!BM582 ->  | AE112: =Intra!BO582 ->  | AF112: =Intra!BQ582 ->  | AG112: =Intra!BS582 ->  | AH112: =Intra!BU582 ->  | AI112: =Intra!BW582 ->  | AJ112: =Intra!CC582 -> 
G113: =Intra!C586 -> Class A4_360p | H113: =Intra!BE589 ->  | I113: =Intra!BK589 ->  | J113: =Intra!BM589 ->  | K113: =Intra!BO589 ->  | L113: =Intra!BQ589 ->  | M113: =Intra!BS589 ->  | N113: =Intra!BU589 ->  | O113: =Intra!BW589 ->  | P113: =Intra!CC589 ->  | Q113: =Intra!CE589 -> 0 | R113: =Intra!CG589 -> 0 | S113: =Intra!BE590 ->  | T113: =Intra!BK590 ->  | U113: =Intra!BM590 ->  | V113: =Intra!BO590 ->  | W113: =Intra!BQ590 ->  | X113: =Intra!BS590 ->  | Y113: =Intra!BU590 ->  | Z113: =Intra!BW590 ->  | AA113: =Intra!CC590 ->  | AB113: =Intra!BE591 ->  | AC113: =Intra!BK591 ->  | AD113: =Intra!BM591 ->  | AE113: =Intra!BO591 ->  | AF113: =Intra!BQ591 ->  | AG113: =Intra!BS591 ->  | AH113: =Intra!BU591 ->  | AI113: =Intra!BW591 ->  | AJ113: =Intra!CC591 -> 
G114: =Intra!C595 -> Class A5_270p | H114: =Intra!BE598 ->  | I114: =Intra!BK598 ->  | J114: =Intra!BM598 ->  | K114: =Intra!BO598 ->  | L114: =Intra!BQ598 ->  | M114: =Intra!BS598 ->  | N114: =Intra!BU598 ->  | O114: =Intra!BW598 ->  | P114: =Intra!CC598 ->  | Q114: =Intra!CE598 -> 0 | R114: =Intra!CG598 -> 0 | S114: =Intra!BE599 ->  | T114: =Intra!BK599 ->  | U114: =Intra!BM599 ->  | V114: =Intra!BO599 ->  | W114: =Intra!BQ599 ->  | X114: =Intra!BS599 ->  | Y114: =Intra!BU599 ->  | Z114: =Intra!BW599 ->  | AA114: =Intra!CC599 ->  | AB114: =Intra!BE600 ->  | AC114: =Intra!BK600 ->  | AD114: =Intra!BM600 ->  | AE114: =Intra!BO600 ->  | AF114: =Intra!BQ600 ->  | AG114: =Intra!BS600 ->  | AH114: =Intra!BU600 ->  | AI114: =Intra!BW600 ->  | AJ114: =Intra!CC600 -> 
G115: =Intra!C604 -> Class B1_SYN | H115: =Intra!BE607 ->  | I115: =Intra!BK607 ->  | J115: =Intra!BM607 ->  | K115: =Intra!BO607 ->  | L115: =Intra!BQ607 ->  | M115: =Intra!BS607 ->  | N115: =Intra!BU607 ->  | O115: =Intra!BW607 ->  | P115: =Intra!CC607 ->  | Q115: =Intra!CE607 -> 0 | R115: =Intra!CG607 -> 0 | S115: =Intra!BE608 ->  | T115: =Intra!BK608 ->  | U115: =Intra!BM608 ->  | V115: =Intra!BO608 ->  | W115: =Intra!BQ608 ->  | X115: =Intra!BS608 ->  | Y115: =Intra!BU608 ->  | Z115: =Intra!BW608 ->  | AA115: =Intra!CC608 ->  | AB115: =Intra!BE609 ->  | AC115: =Intra!BK609 ->  | AD115: =Intra!BM609 ->  | AE115: =Intra!BO609 ->  | AF115: =Intra!BQ609 ->  | AG115: =Intra!BS609 ->  | AH115: =Intra!BU609 ->  | AI115: =Intra!BW609 ->  | AJ115: =Intra!CC609 -> 
G116: =Intra!BB662 -> Overall Mandatory w/o B2 | H116: =Intra!BE665 ->  | I116: =Intra!BK665 ->  | J116: =Intra!BM665 ->  | K116: =Intra!BO665 ->  | L116: =Intra!BQ665 ->  | M116: =Intra!BS665 ->  | N116: =Intra!BU665 ->  | O116: =Intra!BW665 ->  | P116: =Intra!CC665 ->  | Q116: =Intra!CE665 -> 0 | R116: =Intra!CG665 -> 0 | S116: =Intra!BE657 ->  | T116: =Intra!BK657 ->  | U116: =Intra!BM657 ->  | V116: =Intra!BO657 ->  | W116: =Intra!BQ657 ->  | X116: =Intra!BS657 ->  | Y116: =Intra!BU657 ->  | Z116: =Intra!BW657 ->  | AA116: =Intra!CC657 ->  | AB116: =Intra!BE658 ->  | AC116: =Intra!BK658 ->  | AD116: =Intra!BM658 ->  | AE116: =Intra!BO658 ->  | AF116: =Intra!BQ658 ->  | AG116: =Intra!BS658 ->  | AH116: =Intra!BU658 ->  | AI116: =Intra!BW658 ->  | AJ116: =Intra!CC658 -> 
G118: =Intra!C622 -> Class HDR1_4K | H118: =Intra!BE625 ->  | I118: =Intra!BK625 ->  | J118: =Intra!BM625 ->  | K118: =Intra!BO625 ->  | L118: =Intra!BQ625 ->  | M118: =Intra!BS625 ->  | N118: =Intra!BU625 ->  | O118: =Intra!BW625 ->  | P118: =Intra!CC625 ->  | Q118: =Intra!CE625 -> 0 | R118: =Intra!CG625 -> 0 | S118: =Intra!BE626 ->  | T118: =Intra!BK626 ->  | U118: =Intra!BM626 ->  | V118: =Intra!BO626 ->  | W118: =Intra!BQ626 ->  | X118: =Intra!BS626 ->  | Y118: =Intra!BU626 ->  | Z118: =Intra!BW626 ->  | AA118: =Intra!CC626 ->  | AB118: =Intra!BE627 ->  | AC118: =Intra!BK627 ->  | AD118: =Intra!BM627 ->  | AE118: =Intra!BO627 ->  | AF118: =Intra!BQ627 ->  | AG118: =Intra!BS627 ->  | AH118: =Intra!BU627 ->  | AI118: =Intra!BW627 ->  | AJ118: =Intra!CC627 -> 
G119: =Intra!C631 -> Class HDR2_2K | H119: =Intra!BE634 ->  | I119: =Intra!BK634 ->  | J119: =Intra!BM634 ->  | K119: =Intra!BO634 ->  | L119: =Intra!BQ634 ->  | M119: =Intra!BS634 ->  | N119: =Intra!BU634 ->  | O119: =Intra!BW634 ->  | P119: =Intra!CC634 ->  | Q119: =Intra!CE634 -> 0 | R119: =Intra!CG634 -> 0 | S119: =Intra!BE635 ->  | T119: =Intra!BK635 ->  | U119: =Intra!BM635 ->  | V119: =Intra!BO635 ->  | W119: =Intra!BQ635 ->  | X119: =Intra!BS635 ->  | Y119: =Intra!BU635 ->  | Z119: =Intra!BW635 ->  | AA119: =Intra!CC635 ->  | AB119: =Intra!BE636 ->  | AC119: =Intra!BK636 ->  | AD119: =Intra!BM636 ->  | AE119: =Intra!BO636 ->  | AF119: =Intra!BQ636 ->  | AG119: =Intra!BS636 ->  | AH119: =Intra!BU636 ->  | AI119: =Intra!BW636 ->  | AJ119: =Intra!CC636 -> 
G120: =Intra!BB684 -> Overall HDR | H120: =Intra!BE687 ->  | I120: =Intra!BK687 ->  | J120: =Intra!BM687 ->  | K120: =Intra!BO687 ->  | L120: =Intra!BQ687 ->  | M120: =Intra!BS687 ->  | N120: =Intra!BU687 ->  | O120: =Intra!BW687 ->  | P120: =Intra!CC687 ->  | Q120: =Intra!CE687 -> 0 | R120: =Intra!CG687 -> 0 | S120: =Intra!BE688 ->  | T120: =Intra!BK688 ->  | U120: =Intra!BM688 ->  | V120: =Intra!BO688 ->  | W120: =Intra!BQ688 ->  | X120: =Intra!BS688 ->  | Y120: =Intra!BU688 ->  | Z120: =Intra!BW688 ->  | AA120: =Intra!CC688 ->  | AB120: =Intra!BE689 ->  | AC120: =Intra!BK689 ->  | AD120: =Intra!BM689 ->  | AE120: =Intra!BO689 ->  | AF120: =Intra!BQ689 ->  | AG120: =Intra!BS689 ->  | AH120: =Intra!BU689 ->  | AI120: =Intra!BW689 ->  | AJ120: =Intra!CC689 -> 
G121: =Intra!BB640 -> Class E | H121: =Intra!BE643 ->  | I121: =Intra!BK643 ->  | J121: =Intra!BM643 ->  | K121: =Intra!BO643 ->  | L121: =Intra!BQ643 ->  | M121: =Intra!BS643 ->  | N121: =Intra!BU643 ->  | O121: =Intra!BW643 ->  | P121: =Intra!CC643 ->  | Q121: =Intra!CE643 -> 0 | R121: =Intra!CG643 -> 0 | S121: =Intra!BE644 ->  | T121: =Intra!BK644 ->  | U121: =Intra!BM644 ->  | V121: =Intra!BO644 ->  | W121: =Intra!BQ644 ->  | X121: =Intra!BS644 ->  | Y121: =Intra!BU644 ->  | Z121: =Intra!BW644 ->  | AA121: =Intra!CC644 ->  | AB121: =Intra!BE645 ->  | AC121: =Intra!BK645 ->  | AD121: =Intra!BM645 ->  | AE121: =Intra!BO645 ->  | AF121: =Intra!BQ645 ->  | AG121: =Intra!BS645 ->  | AH121: =Intra!BU645 ->  | AI121: =Intra!BW645 ->  | AJ121: =Intra!CC645 -> 
G122: =Intra!BB651 -> Overall | H122: =Intra!BE654 ->  | I122: =Intra!BK654 ->  | J122: =Intra!BM654 ->  | K122: =Intra!BO654 ->  | L122: =Intra!BQ654 ->  | M122: =Intra!BS654 ->  | N122: =Intra!BU654 ->  | O122: =Intra!BW654 ->  | P122: =Intra!CC654 ->  | Q122: =Intra!CE654 -> 0 | R122: =Intra!CG654 -> 0 | S122: =Intra!BE655 ->  | T122: =Intra!BK655 ->  | U122: =Intra!BM655 ->  | V122: =Intra!BO655 ->  | W122: =Intra!BQ655 ->  | X122: =Intra!BS655 ->  | Y122: =Intra!BU655 ->  | Z122: =Intra!BW655 ->  | AA122: =Intra!CC655 ->  | AB122: =Intra!BE656 ->  | AC122: =Intra!BK656 ->  | AD122: =Intra!BM656 ->  | AE122: =Intra!BO656 ->  | AF122: =Intra!BQ656 ->  | AG122: =Intra!BS656 ->  | AH122: =Intra!BU656 ->  | AI122: =Intra!BW656 ->  | AJ122: =Intra!CC656 -> 
F124: RA | G124: =RA!C559 -> Class A1_4K | H124: =RA!BE562 -> 0.01775805107 | I124: =RA!BK562 -> -0.01081330869 | J124: =RA!BM562 -> -0.001482575362 | K124: =RA!BO562 -> 0.009857853163 | L124: =RA!BQ562 -> 0.0103523433 | M124: =RA!BS562 -> 0.009634586799 | N124: =RA!BU562 -> 0.009968399195 | O124: =RA!BW562 -> 0.01191712274 | P124: =RA!CC562 -> 0.004649896991 | Q124: =RA!CE562 -> 0 | R124: =RA!CG562 -> 0 | S124: =RA!BE563 -> -0.005685236937 | T124: =RA!BK563 -> -0.03469372795 | U124: =RA!BM563 -> -0.03900648491 | V124: =RA!BO563 -> -0.006522363975 | W124: =RA!BQ563 -> -0.01499270715 | X124: =RA!BS563 -> -0.01652529401 | Y124: =RA!BU563 -> -0.03317106719 | Z124: =RA!BW563 -> -0.0195963666 | AA124: =RA!CC563 -> -0.04546027726 | AB124: =RA!BE564 -> 0.06762184236 | AC124: =RA!BK564 -> 0.005754844183 | AD124: =RA!BM564 -> 0.01420730808 | AE124: =RA!BO564 -> 0.0250112668 | AF124: =RA!BQ564 -> 0.03043280914 | AG124: =RA!BS564 -> 0.05660058323 | AH124: =RA!BU564 -> 0.02668975247 | AI124: =RA!BW564 -> 0.04468392654 | AJ124: =RA!CC564 -> 0.1018091379
G125: =RA!C568 -> Class A2_2K | H125: =RA!BE571 -> 0.003961478939 | I125: =RA!BK571 -> -0.02387263886 | J125: =RA!BM571 -> -0.01933952565 | K125: =RA!BO571 -> -0.008300850399 | L125: =RA!BQ571 -> -0.007692279521 | M125: =RA!BS571 -> -0.007550654491 | N125: =RA!BU571 -> -0.002331540577 | O125: =RA!BW571 -> -0.008089326314 | P125: =RA!CC571 -> 0.01357466537 | Q125: =RA!CE571 -> 0 | R125: =RA!CG571 -> 0 | S125: =RA!BE572 -> -0.2429274147 | T125: =RA!BK572 -> -0.1984207778 | U125: =RA!BM572 -> -0.2135641266 | V125: =RA!BO572 -> -0.1508228873 | W125: =RA!BQ572 -> -0.1412653386 | X125: =RA!BS572 -> -0.1992002064 | Y125: =RA!BU572 -> -0.1382565117 | Z125: =RA!BW572 -> -0.2640195181 | AA125: =RA!CC572 -> -0.04768877741 | AB125: =RA!BE573 -> 0.05399845236 | AC125: =RA!BK573 -> 0.01095225848 | AD125: =RA!BM573 -> 0.01227343608 | AE125: =RA!BO573 -> 0.2146504998 | AF125: =RA!BQ573 -> 0.2175848157 | AG125: =RA!BS573 -> 0.03439338272 | AH125: =RA!BU573 -> 0.03993044302 | AI125: =RA!BW573 -> 0.03425646057 | AJ125: =RA!CC573 -> 0.2387864678
G126: =RA!C577 -> Class A3_720p | H126: =RA!BE580 -> 0.01693201672 | I126: =RA!BK580 -> -0.0006822250679 | J126: =RA!BM580 -> 0.003064918829 | K126: =RA!BO580 -> -0.01168157377 | L126: =RA!BQ580 -> -0.01194570902 | M126: =RA!BS580 -> 0.0004628767653 | N126: =RA!BU580 -> 0.01747262199 | O126: =RA!BW580 -> 0.01368915008 | P126: =RA!CC580 -> -0.08651685603 | Q126: =RA!CE580 -> 0 | R126: =RA!CG580 -> 0 | S126: =RA!BE581 -> -0.0120869384 | T126: =RA!BK581 -> -0.03333625789 | U126: =RA!BM581 -> -0.02236549447 | V126: =RA!BO581 -> -0.03713048253 | W126: =RA!BQ581 -> -0.03338999934 | X126: =RA!BS581 -> -0.01896694763 | Y126: =RA!BU581 -> -0.0135381743 | Z126: =RA!BW581 -> -0.01249948832 | AA126: =RA!CC581 -> -0.4196853875 | AB126: =RA!BE582 -> 0.04038652726 | AC126: =RA!BK582 -> 0.03927977279 | AD126: =RA!BM582 -> 0.03406445776 | AE126: =RA!BO582 -> 0.008972291313 | AF126: =RA!BQ582 -> 0.01220555374 | AG126: =RA!BS582 -> 0.01583092008 | AH126: =RA!BU582 -> 0.03710825347 | AI126: =RA!BW582 -> 0.03030568744 | AJ126: =RA!CC582 -> 0.01234316934
G127: =RA!C586 -> Class A4_360p | H127: =RA!BE589 -> 0.02829167254 | I127: =RA!BK589 -> 0.01701364687 | J127: =RA!BM589 -> -0.007417133326 | K127: =RA!BO589 -> -0.01127586931 | L127: =RA!BQ589 -> -0.009285912292 | M127: =RA!BS589 -> -0.006748779625 | N127: =RA!BU589 -> 0.007846327447 | O127: =RA!BW589 -> 0.0165329447 | P127: =RA!CC589 -> -0.04146711857 | Q127: =RA!CE589 -> 0 | R127: =RA!CG589 -> 0 | S127: =RA!BE590 -> -5.412924544e-05 | T127: =RA!BK590 -> -0.0186115924 | U127: =RA!BM590 -> -0.05534185076 | V127: =RA!BO590 -> -0.04048476941 | W127: =RA!BQ590 -> -0.03848047524 | X127: =RA!BS590 -> -0.03986620519 | Y127: =RA!BU590 -> -0.009322521428 | Z127: =RA!BW590 -> -0.0009450268533 | AA127: =RA!CC590 -> -0.2110801082 | AB127: =RA!BE591 -> 0.1062499488 | AC127: =RA!BK591 -> 0.05864111597 | AD127: =RA!BM591 -> 0.04083021862 | AE127: =RA!BO591 -> 0.02224059043 | AF127: =RA!BQ591 -> 0.01294704085 | AG127: =RA!BS591 -> 0.01466187452 | AH127: =RA!BU591 -> 0.03339452598 | AI127: =RA!BW591 -> 0.04326492529 | AJ127: =RA!CC591 -> -0.0007407228665
G128: =RA!C595 -> Class A5_270p | H128: =RA!BE598 -> -0.007752125635 | I128: =RA!BK598 -> -0.009674855312 | J128: =RA!BM598 -> -0.02670776944 | K128: =RA!BO598 -> -0.06210095231 | L128: =RA!BQ598 -> -0.05676159974 | M128: =RA!BS598 -> -0.02747228504 | N128: =RA!BU598 -> -0.02142429842 | O128: =RA!BW598 -> -0.0124396186 | P128: =RA!CC598 -> -0.08136942742 | Q128: =RA!CE598 -> 0 | R128: =RA!CG598 -> 0 | S128: =RA!BE599 -> -0.02350883215 | T128: =RA!BK599 -> -0.05569881413 | U128: =RA!BM599 -> -0.07479967953 | V128: =RA!BO599 -> -0.13162643 | W128: =RA!BQ599 -> -0.1309677752 | X128: =RA!BS599 -> -0.03917707101 | Y128: =RA!BU599 -> -0.06728323468 | Z128: =RA!BW599 -> -0.02378960987 | AA128: =RA!CC599 -> -0.1628770809 | AB128: =RA!BE600 -> 0.00489637266 | AC128: =RA!BK600 -> 0.01172183187 | AD128: =RA!BM600 -> -0.005710632552 | AE128: =RA!BO600 -> -0.01676712933 | AF128: =RA!BQ600 -> -0.01414795084 | AG128: =RA!BS600 -> -0.01209232572 | AH128: =RA!BU600 -> 0.008145128199 | AI128: =RA!BW600 -> 0.003123673414 | AJ128: =RA!CC600 -> -0.008559151551
G129: =RA!C604 -> Class B1_SYN | H129: =RA!BE607 -> 0.02476801591 | I129: =RA!BK607 -> -0.02289984528 | J129: =RA!BM607 -> -0.01472339261 | K129: =RA!BO607 -> -0.009110545538 | L129: =RA!BQ607 -> -0.009075914194 | M129: =RA!BS607 -> 0.001331831518 | N129: =RA!BU607 -> 0.004002545149 | O129: =RA!BW607 -> 0.007692395645 | P129: =RA!CC607 -> -0.0916909733 | Q129: =RA!CE607 -> 0 | R129: =RA!CG607 -> 0 | S129: =RA!BE608 -> -0.02975892585 | T129: =RA!BK608 -> -0.06558079838 | U129: =RA!BM608 -> -0.049416959 | V129: =RA!BO608 -> -0.05280549711 | W129: =RA!BQ608 -> -0.0563628254 | X129: =RA!BS608 -> -0.03159072566 | Y129: =RA!BU608 -> -0.04206271338 | Z129: =RA!BW608 -> -0.02899084377 | AA129: =RA!CC608 -> -0.3409063909 | AB129: =RA!BE609 -> 0.09876841058 | AC129: =RA!BK609 -> 0.09538458253 | AD129: =RA!BM609 -> 0.08634221755 | AE129: =RA!BO609 -> 0.1214253845 | AF129: =RA!BQ609 -> 0.1216176564 | AG129: =RA!BS609 -> 0.1032129548 | AH129: =RA!BU609 -> 0.08975389009 | AI129: =RA!BW609 -> 0.07681230141 | AJ129: =RA!CC609 -> 0.0004342868503
G130: =RA!BB662 -> Overall Mandatory w/o B2 | H130: =RA!BE665 -> 0.01220124919 | I130: =RA!BK665 -> -0.0133389754 | J130: =RA!BM665 -> -0.0114579737 | K130: =RA!BO665 -> -0.01119400071 | L130: =RA!BQ665 -> -0.01040914922 | M130: =RA!BS665 -> -0.004140933224 | N130: =RA!BU665 -> 0.003080857114 | O130: =RA!BW665 -> 0.001823431542 | P130: =RA!CC665 -> -0.03049180263 | Q130: =RA!CE665 -> 0 | R130: =RA!CG665 -> 0 | S130: =RA!BE657 ->  | T130: =RA!BK657 -> -0.003130806716 | U130: =RA!BM657 -> 0.002546840268 | V130: =RA!BO657 -> -0.002081404202 | W130: =RA!BQ657 -> -0.00191137081 | X130: =RA!BS657 -> 0.0100827492 | Y130: =RA!BU657 -> 0.006001119825 | Z130: =RA!BW657 -> 0.01658728552 | AA130: =RA!CC657 -> -0.0082022245 | AB130: =RA!BE658 ->  | AC130: =RA!BK658 -> -0.09304457376 | AD130: =RA!BM658 -> -0.1059340897 | AE130: =RA!BO658 -> -0.1159784735 | AF130: =RA!BQ658 -> -0.1188778191 | AG130: =RA!BS658 -> -0.08732238128 | AH130: =RA!BU658 -> -0.1510769829 | AI130: =RA!BW658 -> -0.1127285872 | AJ130: =RA!CC658 -> -1.0000528
G132: =RA!C622 -> Class HDR1_4K | H132: =RA!BE625 -> 0.0530023719 | I132: =RA!BK625 -> 0.006676573502 | J132: =RA!BM625 -> 0.009417716503 | K132: =RA!BO625 -> 0.01941822087 | L132: =RA!BQ625 -> 0.0208232499 | M132: =RA!BS625 -> 0.02900383993 | N132: =RA!BU625 -> 0.01873078242 | O132: =RA!BW625 -> 0.03563783358 | P132: =RA!CC625 -> -0.01485914262 | Q132: =RA!CE625 -> 0 | R132: =RA!CG625 -> 0 | S132: =RA!BE626 -> 0.008808121095 | T132: =RA!BK626 -> -0.01954395529 | U132: =RA!BM626 -> -0.02405123795 | V132: =RA!BO626 -> -0.03311646397 | W132: =RA!BQ626 -> -0.0283219292 | X132: =RA!BS626 -> -0.001752829604 | Y132: =RA!BU626 -> -0.01319290905 | Z132: =RA!BW626 -> -0.02535480614 | AA132: =RA!CC626 -> -0.1110221627 | AB132: =RA!BE627 -> 0.08668316256 | AC132: =RA!BK627 -> 0.02682368414 | AD132: =RA!BM627 -> 0.02962089512 | AE132: =RA!BO627 -> 0.0545849714 | AF132: =RA!BQ627 -> 0.05339307637 | AG132: =RA!BS627 -> 0.04642504573 | AH132: =RA!BU627 -> 0.03491169342 | AI132: =RA!BW627 -> 0.07316425894 | AJ132: =RA!CC627 -> 0.05270083473
G133: =RA!C631 -> Class HDR2_2K | H133: =RA!BE634 ->  | I133: =RA!BK634 -> 0.03563088441 | J133: =RA!BM634 -> 0.04718430457 | K133: =RA!BO634 -> 0.03068695508 | L133: =RA!BQ634 -> 0.02876352483 | M133: =RA!BS634 -> 0.05504168907 | N133: =RA!BU634 -> 0.03773996651 | O133: =RA!BW634 -> 0.07146266456 | P133: =RA!CC634 -> -0.02875126892 | Q133: =RA!CE634 -> 0 | R133: =RA!CG634 -> 0 | S133: =RA!BE635 ->  | T133: =RA!BK635 -> -0.03499625621 | U133: =RA!BM635 -> -0.01250571491 | V133: =RA!BO635 -> -0.09692948617 | W133: =RA!BQ635 -> -0.0854082344 | X133: =RA!BS635 -> -0.01202067988 | Y133: =RA!BU635 -> -0.008480389724 | Z133: =RA!BW635 -> -0.06863097567 | AA133: =RA!CC635 -> -0.1922595342 | AB133: =RA!BE636 ->  | AC133: =RA!BK636 -> 0.1398769837 | AD133: =RA!BM636 -> 0.1499939218 | AE133: =RA!BO636 -> 0.1281347677 | AF133: =RA!BQ636 -> 0.107099835 | AG133: =RA!BS636 -> 0.1485369376 | AH133: =RA!BU636 -> 0.1153155749 | AI133: =RA!BW636 -> 0.1827049523 | AJ133: =RA!CC636 -> 0.2689218623
G134: =RA!BB684 -> Overall HDR | H134: =RA!BE687 ->  | I134: =RA!BK687 -> 0.02510204408 | J134: =RA!BM687 -> 0.03345099982 | K134: =RA!BO687 -> 0.02658923355 | L134: =RA!BQ687 -> 0.02587615213 | M134: =RA!BS687 -> 0.04557338029 | N134: =RA!BU687 -> 0.03082753593 | O134: =RA!BW687 -> 0.05843545329 | P134: =RA!CC687 -> -0.02369958663 | Q134: =RA!CE687 -> 0 | R134: =RA!CG687 -> 0 | S134: =RA!BE688 ->  | T134: =RA!BK688 -> -0.03499625621 | U134: =RA!BM688 -> -0.02405123795 | V134: =RA!BO688 -> -0.09692948617 | W134: =RA!BQ688 -> -0.0854082344 | X134: =RA!BS688 -> -0.01202067988 | Y134: =RA!BU688 -> -0.01319290905 | Z134: =RA!BW688 -> -0.06863097567 | AA134: =RA!CC688 -> -0.1922595342 | AB134: =RA!BE689 ->  | AC134: =RA!BK689 -> 0.1398769837 | AD134: =RA!BM689 -> 0.1499939218 | AE134: =RA!BO689 -> 0.1281347677 | AF134: =RA!BQ689 -> 0.107099835 | AG134: =RA!BS689 -> 0.1485369376 | AH134: =RA!BU689 -> 0.1153155749 | AI134: =RA!BW689 -> 0.1827049523 | AJ134: =RA!CC689 -> 0.2689218623
G135: =RA!BB640 -> Class E | H135: =RA!BE643 -> 0.01224567527 | I135: =RA!BK643 -> -0.006061415289 | J135: =RA!BM643 -> 0.007877691008 | K135: =RA!BO643 -> -0.01871858975 | L135: =RA!BQ643 -> -0.0134417803 | M135: =RA!BS643 -> 0.005833023871 | N135: =RA!BU643 -> 0.01089984022 | O135: =RA!BW643 -> 0.00993026961 | P135: =RA!CC643 -> -0.01780554127 | Q135: =RA!CE643 -> 0 | R135: =RA!CG643 -> 0 | S135: =RA!BE644 -> 0.00359606381 | T135: =RA!BK644 -> -0.0332186076 | U135: =RA!BM644 -> -0.01712002958 | V135: =RA!BO644 -> -0.04464063453 | W135: =RA!BQ644 -> -0.0412093534 | X135: =RA!BS644 -> -0.01189653026 | Y135: =RA!BU644 -> 0.004293080663 | Z135: =RA!BW644 -> 0.00359606381 | AA135: =RA!CC644 -> -0.1620183852 | AB135: =RA!BE645 -> 0.03550351227 | AC135: =RA!BK645 -> 0.001842497478 | AD135: =RA!BM645 -> 0.01812306021 | AE135: =RA!BO645 -> 0.003521436714 | AF135: =RA!BQ645 -> 0.004563099719 | AG135: =RA!BS645 -> 0.01309234096 | AH135: =RA!BU645 -> 0.01785345796 | AI135: =RA!BW645 -> 0.0213678518 | AJ135: =RA!CC645 -> 0.01345355349
G136: =RA!BB651 -> Overall | H136: =RA!BE654 ->  | I136: =RA!BK654 -> -0.002191213761 | J136: =RA!BM654 -> 0.002949989816 | K136: =RA!BO654 -> -0.004826645685 | L136: =RA!BQ654 -> -0.003215432572 | M136: =RA!BS654 -> 0.006969424461 | N136: =RA!BU654 -> 0.009467738806 | O136: =RA!BW654 -> 0.01201079148 | P136: =RA!CC654 -> -0.02320462351 | Q136: =RA!CE654 -> 0 | R136: =RA!CG654 -> 0 | S136: =RA!BE655 ->  | T136: =RA!BK655 -> -0.1984207778 | U136: =RA!BM655 -> -0.2135641266 | V136: =RA!BO655 -> -0.1508228873 | W136: =RA!BQ655 -> -0.1412653386 | X136: =RA!BS655 -> -0.1992002064 | Y136: =RA!BU655 -> -0.1382565117 | Z136: =RA!BW655 -> -0.2640195181 | AA136: =RA!CC655 -> -0.4196853875 | AB136: =RA!BE656 ->  | AC136: =RA!BK656 -> 0.2160769698 | AD136: =RA!BM656 -> 0.2382607505 | AE136: =RA!BO656 -> 0.2319975813 | AF136: =RA!BQ656 -> 0.2397203202 | AG136: =RA!BS656 -> 0.2346955659 | AH136: =RA!BU656 -> 0.2727503808 | AI136: =RA!BW656 -> 0.2829771565 | AJ136: =RA!CC656 -> 0.2689218623
F138: LD | G138: =LD!C559 -> Class A1_4K
G139: =LD!C568 -> Class A2_2K | H139: =LD!BE571 ->  | I139: =LD!BK571 ->  | J139: =LD!BM571 ->  | K139: =LD!BO571 ->  | L139: =LD!BQ571 ->  | M139: =LD!BS571 ->  | N139: =LD!BU571 ->  | O139: =LD!BW571 ->  | P139: =LD!CC571 ->  | Q139: =LD!CE571 -> 0 | R139: =LD!CG571 -> 0 | S139: =LD!BE572 ->  | T139: =LD!BK572 ->  | U139: =LD!BM572 ->  | V139: =LD!BO572 ->  | W139: =LD!BQ572 ->  | X139: =LD!BS572 ->  | Y139: =LD!BU572 ->  | Z139: =LD!BW572 ->  | AA139: =LD!CC572 ->  | AB139: =LD!BE573 ->  | AC139: =LD!BK573 ->  | AD139: =LD!BM573 ->  | AE139: =LD!BO573 ->  | AF139: =LD!BQ573 ->  | AG139: =LD!BS573 ->  | AH139: =LD!BU573 ->  | AI139: =LD!BW573 ->  | AJ139: =LD!CC573 -> 
G140: =LD!C577 -> Class A3_720p | H140: =LD!BE580 ->  | I140: =LD!BK580 ->  | J140: =LD!BM580 ->  | K140: =LD!BO580 ->  | L140: =LD!BQ580 ->  | M140: =LD!BS580 ->  | N140: =LD!BU580 ->  | O140: =LD!BW580 ->  | P140: =LD!CC580 ->  | Q140: =LD!CE580 -> 0 | R140: =LD!CG580 -> 0 | S140: =LD!BE581 ->  | T140: =LD!BK581 ->  | U140: =LD!BM581 ->  | V140: =LD!BO581 ->  | W140: =LD!BQ581 ->  | X140: =LD!BS581 ->  | Y140: =LD!BU581 ->  | Z140: =LD!BW581 ->  | AA140: =LD!CC581 ->  | AB140: =LD!BE582 ->  | AC140: =LD!BK582 ->  | AD140: =LD!BM582 ->  | AE140: =LD!BO582 ->  | AF140: =LD!BQ582 ->  | AG140: =LD!BS582 ->  | AH140: =LD!BU582 ->  | AI140: =LD!BW582 ->  | AJ140: =LD!CC582 -> 
G141: =LD!C586 -> Class A4_360p | H141: =LD!BE589 ->  | I141: =LD!BK589 ->  | J141: =LD!BM589 ->  | K141: =LD!BO589 ->  | L141: =LD!BQ589 ->  | M141: =LD!BS589 ->  | N141: =LD!BU589 ->  | O141: =LD!BW589 ->  | P141: =LD!CC589 ->  | Q141: =LD!CE589 -> 0 | R141: =LD!CG589 -> 0 | S141: =LD!BE590 ->  | T141: =LD!BK590 ->  | U141: =LD!BM590 ->  | V141: =LD!BO590 ->  | W141: =LD!BQ590 ->  | X141: =LD!BS590 ->  | Y141: =LD!BU590 ->  | Z141: =LD!BW590 ->  | AA141: =LD!CC590 ->  | AB141: =LD!BE591 ->  | AC141: =LD!BK591 ->  | AD141: =LD!BM591 ->  | AE141: =LD!BO591 ->  | AF141: =LD!BQ591 ->  | AG141: =LD!BS591 ->  | AH141: =LD!BU591 ->  | AI141: =LD!BW591 ->  | AJ141: =LD!CC591 -> 
G142: =LD!C595 -> Class A5_270p | H142: =LD!BE598 ->  | I142: =LD!BK598 ->  | J142: =LD!BM598 ->  | K142: =LD!BO598 ->  | L142: =LD!BQ598 ->  | M142: =LD!BS598 ->  | N142: =LD!BU598 ->  | O142: =LD!BW598 ->  | P142: =LD!CC598 ->  | Q142: =LD!CE598 -> 0 | R142: =LD!CG598 -> 0 | S142: =LD!BE599 ->  | T142: =LD!BK599 ->  | U142: =LD!BM599 ->  | V142: =LD!BO599 ->  | W142: =LD!BQ599 ->  | X142: =LD!BS599 ->  | Y142: =LD!BU599 ->  | Z142: =LD!BW599 ->  | AA142: =LD!CC599 ->  | AB142: =LD!BE600 ->  | AC142: =LD!BK600 ->  | AD142: =LD!BM600 ->  | AE142: =LD!BO600 ->  | AF142: =LD!BQ600 ->  | AG142: =LD!BS600 ->  | AH142: =LD!BU600 ->  | AI142: =LD!BW600 ->  | AJ142: =LD!CC600 -> 
G143: =LD!C604 -> Class B1_SYN | H143: =LD!BE607 ->  | I143: =LD!BK607 ->  | J143: =LD!BM607 ->  | K143: =LD!BO607 ->  | L143: =LD!BQ607 ->  | M143: =LD!BS607 ->  | N143: =LD!BU607 ->  | O143: =LD!BW607 ->  | P143: =LD!CC607 ->  | Q143: =LD!CE607 -> 0 | R143: =LD!CG607 -> 0 | S143: =LD!BE608 ->  | T143: =LD!BK608 ->  | U143: =LD!BM608 ->  | V143: =LD!BO608 ->  | W143: =LD!BQ608 ->  | X143: =LD!BS608 ->  | Y143: =LD!BU608 ->  | Z143: =LD!BW608 ->  | AA143: =LD!CC608 ->  | AB143: =LD!BE609 ->  | AC143: =LD!BK609 ->  | AD143: =LD!BM609 ->  | AE143: =LD!BO609 ->  | AF143: =LD!BQ609 ->  | AG143: =LD!BS609 ->  | AH143: =LD!BU609 ->  | AI143: =LD!BW609 ->  | AJ143: =LD!CC609 -> 
G144: =LD!BB662 -> Overall Mandatory w/o B2 | H144: =LD!BE665 ->  | I144: =LD!BK665 ->  | J144: =LD!BM665 ->  | K144: =LD!BO665 ->  | L144: =LD!BQ665 ->  | M144: =LD!BS665 ->  | N144: =LD!BU665 ->  | O144: =LD!BW665 ->  | P144: =LD!CC665 ->  | Q144: =LD!CE665 -> 0 | R144: =LD!CG665 -> 0 | S144: =LD!BE657 ->  | T144: =LD!BK657 ->  | U144: =LD!BM657 ->  | V144: =LD!BO657 ->  | W144: =LD!BQ657 ->  | X144: =LD!BS657 ->  | Y144: =LD!BU657 ->  | Z144: =LD!BW657 ->  | AA144: =LD!CC657 ->  | AB144: =LD!BE658 ->  | AC144: =LD!BK658 ->  | AD144: =LD!BM658 ->  | AE144: =LD!BO658 ->  | AF144: =LD!BQ658 ->  | AG144: =LD!BS658 ->  | AH144: =LD!BU658 ->  | AI144: =LD!BW658 ->  | AJ144: =LD!CC658 -> 
G146: =LD!C622 -> Class HDR1_4K
G147: =LD!C631 -> Class HDR2_2K
G148: =LD!BB684 -> Overall HDR
G149: =LD!BB640 -> Class E
E152: Low | H152: Averages | S152: Minimum | AB152: Maximum
H153: PSNR | I153: SSIM | J153: MS-SSIM | K153: VMAF | L153: nVMAF | M153: PSNR HVS | N153: DE2K | O153: APSNR | P153: CAMBI | Q153: VMAF | R153: nVMAF | S153: PSNR | T153: SSIM | U153: MS-SSIM | V153: VMAF | W153: nVMAF | X153: PSNR HVS | Y153: DE2K | Z153: APSNR | AA153: CAMBI | AB153: PSNR | AC153: SSIM | AD153: MS-SSIM | AE153: VMAF | AF153: nVMAF | AG153: PSNR HVS | AH153: DE2K | AI153: APSNR | AJ153: CAMBI
G154: Summary | H154: Y | I154: Y | J154: Y | K154: Y | L154: Y | M154: Y | O154: Y | P154: Y | Q154: Monotonicity | S154: Y | T154: Y | U154: Y | V154: Y | W154: Y | X154: Y | Z154: Y | AA154: Y | AB154: Y | AC154: Y | AD154: Y | AE154: Y | AF154: Y | AG154: Y | AI154: Y | AJ154: Y
F155: Intra | G155: =Intra!C559 -> Class A1_4K | H155: =Intra!BE565 ->  | I155: =Intra!BK565 ->  | J155: =Intra!BM565 ->  | K155: =Intra!BO565 ->  | L155: =Intra!BQ565 ->  | M155: =Intra!BS565 ->  | N155: =Intra!BU565 ->  | O155: =Intra!BW565 ->  | P155: =Intra!CC565 ->  | Q155: =Intra!CE565 -> 0 | R155: =Intra!CG565 -> 0 | S155: =Intra!BE566 ->  | T155: =Intra!BK566 ->  | U155: =Intra!BM566 ->  | V155: =Intra!BO566 ->  | W155: =Intra!BQ566 ->  | X155: =Intra!BS566 ->  | Y155: =Intra!BU566 ->  | Z155: =Intra!BW566 ->  | AA155: =Intra!CC566 ->  | AB155: =Intra!BE567 ->  | AC155: =Intra!BK567 ->  | AD155: =Intra!BM567 ->  | AE155: =Intra!BO567 ->  | AF155: =Intra!BQ567 ->  | AG155: =Intra!BS567 ->  | AH155: =Intra!BU567 ->  | AI155: =Intra!BW567 ->  | AJ155: =Intra!CC567 -> 
G156: =Intra!C568 -> Class A2_2K | H156: =Intra!BE574 ->  | I156: =Intra!BK574 ->  | J156: =Intra!BM574 ->  | K156: =Intra!BO574 ->  | L156: =Intra!BQ574 ->  | M156: =Intra!BS574 ->  | N156: =Intra!BU574 ->  | O156: =Intra!BW574 ->  | P156: =Intra!CC574 ->  | Q156: =Intra!CE574 -> 0 | R156: =Intra!CG574 -> 0 | S156: =Intra!BE575 ->  | T156: =Intra!BK575 ->  | U156: =Intra!BM575 ->  | V156: =Intra!BO575 ->  | W156: =Intra!BQ575 ->  | X156: =Intra!BS575 ->  | Y156: =Intra!BU575 ->  | Z156: =Intra!BW575 ->  | AA156: =Intra!CC575 ->  | AB156: =Intra!BE576 ->  | AC156: =Intra!BK576 ->  | AD156: =Intra!BM576 ->  | AE156: =Intra!BO576 ->  | AF156: =Intra!BQ576 ->  | AG156: =Intra!BS576 ->  | AH156: =Intra!BU576 ->  | AI156: =Intra!BW576 ->  | AJ156: =Intra!CC576 -> 
G157: =Intra!C577 -> Class A3_720p | H157: =Intra!BE583 ->  | I157: =Intra!BK583 ->  | J157: =Intra!BM583 ->  | K157: =Intra!BO583 ->  | L157: =Intra!BQ583 ->  | M157: =Intra!BS583 ->  | N157: =Intra!BU583 ->  | O157: =Intra!BW583 ->  | P157: =Intra!CC583 ->  | Q157: =Intra!CE583 -> 0 | R157: =Intra!CG583 -> 0 | S157: =Intra!BE584 ->  | T157: =Intra!BK584 ->  | U157: =Intra!BM584 ->  | V157: =Intra!BO584 ->  | W157: =Intra!BQ584 ->  | X157: =Intra!BS584 ->  | Y157: =Intra!BU584 ->  | Z157: =Intra!BW584 ->  | AA157: =Intra!CC584 ->  | AB157: =Intra!BE585 ->  | AC157: =Intra!BK585 ->  | AD157: =Intra!BM585 ->  | AE157: =Intra!BO585 ->  | AF157: =Intra!BQ585 ->  | AG157: =Intra!BS585 ->  | AH157: =Intra!BU585 ->  | AI157: =Intra!BW585 ->  | AJ157: =Intra!CC585 -> 
G158: =Intra!C586 -> Class A4_360p | H158: =Intra!BE592 ->  | I158: =Intra!BK592 ->  | J158: =Intra!BM592 ->  | K158: =Intra!BO592 ->  | L158: =Intra!BQ592 ->  | M158: =Intra!BS592 ->  | N158: =Intra!BU592 ->  | O158: =Intra!BW592 ->  | P158: =Intra!CC592 ->  | Q158: =Intra!CE592 -> 0 | R158: =Intra!CG592 -> 0 | S158: =Intra!BE593 ->  | T158: =Intra!BK593 ->  | U158: =Intra!BM593 ->  | V158: =Intra!BO593 ->  | W158: =Intra!BQ593 ->  | X158: =Intra!BS593 ->  | Y158: =Intra!BU593 ->  | Z158: =Intra!BW593 ->  | AA158: =Intra!CC593 ->  | AB158: =Intra!BE594 ->  | AC158: =Intra!BK594 ->  | AD158: =Intra!BM594 ->  | AE158: =Intra!BO594 ->  | AF158: =Intra!BQ594 ->  | AG158: =Intra!BS594 ->  | AH158: =Intra!BU594 ->  | AI158: =Intra!BW594 ->  | AJ158: =Intra!CC594 -> 
G159: =Intra!C595 -> Class A5_270p | H159: =Intra!BE601 ->  | I159: =Intra!BK601 ->  | J159: =Intra!BM601 ->  | K159: =Intra!BO601 ->  | L159: =Intra!BQ601 ->  | M159: =Intra!BS601 ->  | N159: =Intra!BU601 ->  | O159: =Intra!BW601 ->  | P159: =Intra!CC601 ->  | Q159: =Intra!CE601 -> 0 | R159: =Intra!CG601 -> 0 | S159: =Intra!BE602 ->  | T159: =Intra!BK602 ->  | U159: =Intra!BM602 ->  | V159: =Intra!BO602 ->  | W159: =Intra!BQ602 ->  | X159: =Intra!BS602 ->  | Y159: =Intra!BU602 ->  | Z159: =Intra!BW602 ->  | AA159: =Intra!CC602 ->  | AB159: =Intra!BE603 ->  | AC159: =Intra!BK603 ->  | AD159: =Intra!BM603 ->  | AE159: =Intra!BO603 ->  | AF159: =Intra!BQ603 ->  | AG159: =Intra!BS603 ->  | AH159: =Intra!BU603 ->  | AI159: =Intra!BW603 ->  | AJ159: =Intra!CC603 -> 
G160: =Intra!C604 -> Class B1_SYN | H160: =Intra!BE610 ->  | I160: =Intra!BK610 ->  | J160: =Intra!BM610 ->  | K160: =Intra!BO610 ->  | L160: =Intra!BQ610 ->  | M160: =Intra!BS610 ->  | N160: =Intra!BU610 ->  | O160: =Intra!BW610 ->  | P160: =Intra!CC610 ->  | Q160: =Intra!CE610 -> 0 | R160: =Intra!CG610 -> 0 | S160: =Intra!BE611 ->  | T160: =Intra!BK611 ->  | U160: =Intra!BM611 ->  | V160: =Intra!BO611 ->  | W160: =Intra!BQ611 ->  | X160: =Intra!BS611 ->  | Y160: =Intra!BU611 ->  | Z160: =Intra!BW611 ->  | AA160: =Intra!CC611 ->  | AB160: =Intra!BE621 ->  | AC160: =Intra!BK621 ->  | AD160: =Intra!BM621 ->  | AE160: =Intra!BO621 ->  | AF160: =Intra!BQ621 ->  | AG160: =Intra!BS621 ->  | AH160: =Intra!BU621 ->  | AI160: =Intra!BW621 ->  | AJ160: =Intra!CC621 -> 
G161: =Intra!BB662 -> Overall Mandatory w/o B2 | H161: =Intra!BE668 ->  | I161: =Intra!BK668 ->  | J161: =Intra!BM668 ->  | K161: =Intra!BO668 ->  | L161: =Intra!BQ668 ->  | M161: =Intra!BS668 ->  | N161: =Intra!BU668 ->  | O161: =Intra!BW668 ->  | P161: =Intra!CC668 ->  | Q161: =Intra!CE668 -> 0 | R161: =Intra!CG668 -> 0 | S161: =Intra!BE669 ->  | T161: =Intra!BK669 ->  | U161: =Intra!BM669 ->  | V161: =Intra!BO669 ->  | W161: =Intra!BQ669 ->  | X161: =Intra!BS669 ->  | Y161: =Intra!BU669 ->  | Z161: =Intra!BW669 ->  | AA161: =Intra!CC669 ->  | AB161: =Intra!BE670 ->  | AC161: =Intra!BK670 ->  | AD161: =Intra!BM670 ->  | AE161: =Intra!BO670 ->  | AF161: =Intra!BQ670 ->  | AG161: =Intra!BS670 ->  | AH161: =Intra!BU670 ->  | AI161: =Intra!BW670 ->  | AJ161: =Intra!CC670 -> 
G163: =Intra!C622 -> Class HDR1_4K | H163: =Intra!BE628 ->  | I163: =Intra!BK628 ->  | J163: =Intra!BM628 ->  | K163: =Intra!BO628 ->  | L163: =Intra!BQ628 ->  | M163: =Intra!BS628 ->  | N163: =Intra!BU628 ->  | O163: =Intra!BW628 ->  | P163: =Intra!CC628 ->  | Q163: =Intra!CE628 -> 0 | R163: =Intra!CG628 -> 0 | S163: =Intra!BE629 ->  | T163: =Intra!BK629 ->  | U163: =Intra!BM629 ->  | V163: =Intra!BO629 ->  | W163: =Intra!BQ629 ->  | X163: =Intra!BS629 ->  | Y163: =Intra!BU629 ->  | Z163: =Intra!BW629 ->  | AA163: =Intra!CC629 ->  | AB163: =Intra!BE630 ->  | AC163: =Intra!BK630 ->  | AD163: =Intra!BM630 ->  | AE163: =Intra!BO630 ->  | AF163: =Intra!BQ630 ->  | AG163: =Intra!BS630 ->  | AH163: =Intra!BU630 ->  | AI163: =Intra!BW630 ->  | AJ163: =Intra!CC630 -> 
G164: =Intra!C631 -> Class HDR2_2K | H164: =Intra!BE637 ->  | I164: =Intra!BK637 ->  | J164: =Intra!BM637 ->  | K164: =Intra!BO637 ->  | L164: =Intra!BQ637 ->  | M164: =Intra!BS637 ->  | N164: =Intra!BU637 ->  | O164: =Intra!BW637 ->  | P164: =Intra!CC637 ->  | Q164: =Intra!CE637 -> 0 | R164: =Intra!CG637 -> 0 | S164: =Intra!BE638 ->  | T164: =Intra!BK638 ->  | U164: =Intra!BM638 ->  | V164: =Intra!BO638 ->  | W164: =Intra!BQ638 ->  | X164: =Intra!BS638 ->  | Y164: =Intra!BU638 ->  | Z164: =Intra!BW638 ->  | AA164: =Intra!CC638 ->  | AB164: =Intra!BE639 ->  | AC164: =Intra!BK639 ->  | AD164: =Intra!BM639 ->  | AE164: =Intra!BO639 ->  | AF164: =Intra!BQ639 ->  | AG164: =Intra!BS639 ->  | AH164: =Intra!BU639 ->  | AI164: =Intra!BW639 ->  | AJ164: =Intra!CC639 -> 
G165: =Intra!BB684 -> Overall HDR | H165: =Intra!BE690 ->  | I165: =Intra!BK690 ->  | J165: =Intra!BM690 ->  | K165: =Intra!BO690 ->  | L165: =Intra!BQ690 ->  | M165: =Intra!BS690 ->  | N165: =Intra!BU690 ->  | O165: =Intra!BW690 ->  | P165: =Intra!CC690 ->  | Q165: =Intra!CE690 -> 0 | R165: =Intra!CG690 -> 0 | S165: =Intra!BE691 ->  | T165: =Intra!BK691 ->  | U165: =Intra!BM691 ->  | V165: =Intra!BO691 ->  | W165: =Intra!BQ691 ->  | X165: =Intra!BS691 ->  | Y165: =Intra!BU691 ->  | Z165: =Intra!BW691 ->  | AA165: =Intra!CC691 ->  | AB165: =Intra!BE692 ->  | AC165: =Intra!BK692 ->  | AD165: =Intra!BM692 ->  | AE165: =Intra!BO692 ->  | AF165: =Intra!BQ692 ->  | AG165: =Intra!BS692 ->  | AH165: =Intra!BU692 ->  | AI165: =Intra!BW692 ->  | AJ165: =Intra!CC692 -> 
G166: =Intra!BB640 -> Class E | H166: =Intra!BE646 ->  | I166: =Intra!BK646 ->  | J166: =Intra!BM646 ->  | K166: =Intra!BO646 ->  | L166: =Intra!BQ646 ->  | M166: =Intra!BS646 ->  | N166: =Intra!BU646 ->  | O166: =Intra!BW646 ->  | P166: =Intra!CC646 ->  | Q166: =Intra!CE646 -> 0 | R166: =Intra!CG646 -> 0 | S166: =Intra!BE647 ->  | T166: =Intra!BK647 ->  | U166: =Intra!BM647 ->  | V166: =Intra!BO647 ->  | W166: =Intra!BQ647 ->  | X166: =Intra!BS647 ->  | Y166: =Intra!BU647 ->  | Z166: =Intra!BW647 ->  | AA166: =Intra!CC647 ->  | AB166: =Intra!BE648 ->  | AC166: =Intra!BK648 ->  | AD166: =Intra!BM648 ->  | AE166: =Intra!BO648 ->  | AF166: =Intra!BQ648 ->  | AG166: =Intra!BS648 ->  | AH166: =Intra!BU648 ->  | AI166: =Intra!BW648 ->  | AJ166: =Intra!CC648 -> 
G167: =Intra!BB651 -> Overall | H167: =Intra!BE657 ->  | I167: =Intra!BK657 ->  | J167: =Intra!BM657 ->  | K167: =Intra!BO657 ->  | L167: =Intra!BQ657 ->  | M167: =Intra!BS657 ->  | N167: =Intra!BU657 ->  | O167: =Intra!BW657 ->  | P167: =Intra!CC657 ->  | Q167: =Intra!CE657 -> 0 | R167: =Intra!CG657 -> 0 | S167: =Intra!BE658 ->  | T167: =Intra!BK658 ->  | U167: =Intra!BM658 ->  | V167: =Intra!BO658 ->  | W167: =Intra!BQ658 ->  | X167: =Intra!BS658 ->  | Y167: =Intra!BU658 ->  | Z167: =Intra!BW658 ->  | AA167: =Intra!CC658 ->  | AB167: =Intra!BE659 ->  | AC167: =Intra!BK659 ->  | AD167: =Intra!BM659 ->  | AE167: =Intra!BO659 ->  | AF167: =Intra!BQ659 ->  | AG167: =Intra!BS659 ->  | AH167: =Intra!BU659 ->  | AI167: =Intra!BW659 ->  | AJ167: =Intra!CC659 -> 
F169: RA | G169: =RA!C559 -> Class A1_4K | H169: =RA!BE565 -> 0.01587394971 | I169: =RA!BK565 -> -0.01255576997 | J169: =RA!BM565 -> -0.002179481042 | K169: =RA!BO565 -> 0.003458942941 | L169: =RA!BQ565 -> 0.004048211802 | M169: =RA!BS565 -> 0.009375108235 | N169: =RA!BU565 -> -0.002692719659 | O169: =RA!BW565 -> 0.009814099324 | P169: =RA!CC565 -> 0.01170089455 | Q169: =RA!CE565 -> 0 | R169: =RA!CG565 -> 0 | S169: =RA!BE566 -> -0.02748868748 | T169: =RA!BK566 -> -0.03505191232 | U169: =RA!BM566 -> -0.05148063207 | V169: =RA!BO566 -> -0.02771991505 | W169: =RA!BQ566 -> -0.03112000481 | X169: =RA!BS566 -> -0.02915219449 | Y169: =RA!BU566 -> -0.06497425977 | Z169: =RA!BW566 -> -0.03214265306 | AA169: =RA!CC566 -> -0.07935032418 | AB169: =RA!BE567 -> 0.06762184236 | AC169: =RA!BK567 -> 0.005754844183 | AD169: =RA!BM567 -> 0.01420730808 | AE169: =RA!BO567 -> 0.0250112668 | AF169: =RA!BQ567 -> 0.03043280914 | AG169: =RA!BS567 -> 0.05660058323 | AH169: =RA!BU567 -> 0.02668975247 | AI169: =RA!BW567 -> 0.04468392654 | AJ169: =RA!CC567 -> 0.1018091379
G170: =RA!C568 -> Class A2_2K | H170: =RA!BE574 -> 0.01570349021 | I170: =RA!BK574 -> -0.01465902331 | J170: =RA!BM574 -> -0.007085608879 | K170: =RA!BO574 -> -0.003247982903 | L170: =RA!BQ574 -> -0.004646932937 | M170: =RA!BS574 -> 0.004717550992 | N170: =RA!BU574 -> -0.0003752033755 | O170: =RA!BW574 -> 0.006661270243 | P170: =RA!CC574 -> 0.01173464241 | Q170: =RA!CE574 -> 0 | R170: =RA!CG574 -> 0 | S170: =RA!BE575 -> -0.07624853762 | T170: =RA!BK575 -> -0.09304457376 | U170: =RA!BM575 -> -0.1059340897 | V170: =RA!BO575 -> -0.07434034254 | W170: =RA!BQ575 -> -0.06461249917 | X170: =RA!BS575 -> -0.08732238128 | Y170: =RA!BU575 -> -0.1510769829 | Z170: =RA!BW575 -> -0.07698318683 | AA170: =RA!CC575 -> -0.05771225113 | AB170: =RA!BE576 -> 0.06049241754 | AC170: =RA!BK576 -> 0.02883569319 | AD170: =RA!BM576 -> 0.04086225943 | AE170: =RA!BO576 -> 0.05367588263 | AF170: =RA!BQ576 -> 0.03221624798 | AG170: =RA!BS576 -> 0.03446595985 | AH170: =RA!BU576 -> 0.04167538613 | AI170: =RA!BW576 -> 0.04575661712 | AJ170: =RA!CC576 -> 0.2200278092
G171: =RA!C577 -> Class A3_720p | H171: =RA!BE583 -> 0.02674446574 | I171: =RA!BK583 -> 0.007244262147 | J171: =RA!BM583 -> 0.01191323348 | K171: =RA!BO583 -> -0.002589990714 | L171: =RA!BQ583 -> -0.001425465131 | M171: =RA!BS583 -> 0.01209873899 | N171: =RA!BU583 -> 0.02212240445 | O171: =RA!BW583 -> 0.02458814806 | P171: =RA!CC583 -> -0.05790600335 | Q171: =RA!CE583 -> 0 | R171: =RA!CG583 -> 0 | S171: =RA!BE584 -> 0.002831029284 | T171: =RA!BK584 -> -0.02616809555 | U171: =RA!BM584 -> -0.01799852393 | V171: =RA!BO584 -> -0.02289758534 | W171: =RA!BQ584 -> -0.02197039797 | X171: =RA!BS584 -> -0.01082447751 | Y171: =RA!BU584 -> -0.009367758133 | Z171: =RA!BW584 -> 0.0006957401786 | AA171: =RA!CC584 -> -0.278090855 | AB171: =RA!BE585 -> 0.04496469048 | AC171: =RA!BK585 -> 0.04724110556 | AD171: =RA!BM585 -> 0.04444264622 | AE171: =RA!BO585 -> 0.03298990532 | AF171: =RA!BQ585 -> 0.03073594676 | AG171: =RA!BS585 -> 0.02849749673 | AH171: =RA!BU585 -> 0.05317535768 | AI171: =RA!BW585 -> 0.04259003539 | AJ171: =RA!CC585 -> 0.0262775949
G172: =RA!C586 -> Class A4_360p | H172: =RA!BE592 -> 0.02306300617 | I172: =RA!BK592 -> 0.01226670161 | J172: =RA!BM592 -> -0.02197631358 | K172: =RA!BO592 -> -0.01610097742 | L172: =RA!BQ592 -> -0.0130581836 | M172: =RA!BS592 -> -0.01315534672 | N172: =RA!BU592 -> 6.297075701e-05 | O172: =RA!BW592 -> 0.0112085183 | P172: =RA!CC592 -> 0.02148042745 | Q172: =RA!CE592 -> 0 | R172: =RA!CG592 -> 0 | S172: =RA!BE593 -> -0.005298776294 | T172: =RA!BK593 -> -0.04423197391 | U172: =RA!BM593 -> -0.0678847123 | V172: =RA!BO593 -> -0.03529209608 | W172: =RA!BQ593 -> -0.0346347292 | X172: =RA!BS593 -> -0.05783388565 | Y172: =RA!BU593 -> -0.01931922527 | Z172: =RA!BW593 -> -0.005795866271 | AA172: =RA!CC593 -> -0.01797029615 | AB172: =RA!BE594 -> 0.08724305171 | AC172: =RA!BK594 -> 0.05507623995 | AD172: =RA!BM594 -> 0.02503283047 | AE172: =RA!BO594 -> 0.007461566417 | AF172: =RA!BQ594 -> 0.00563946653 | AG172: =RA!BS594 -> 0.009883559932 | AH172: =RA!BU594 -> 0.0258565538 | AI172: =RA!BW594 -> 0.02591796451 | AJ172: =RA!CC594 -> 0.0867380913
G173: =RA!C595 -> Class A5_270p | H173: =RA!BE601 -> -0.01157335837 | I173: =RA!BK601 -> -0.01132186966 | J173: =RA!BM601 -> -0.02415845792 | K173: =RA!BO601 -> -0.06015820038 | L173: =RA!BQ601 -> -0.05651105547 | M173: =RA!BS601 -> -0.02319547586 | N173: =RA!BU601 -> -0.03099134549 | O173: =RA!BW601 -> -0.01479790108 | P173: =RA!CC601 -> -0.04704771698 | Q173: =RA!CE601 -> 0 | R173: =RA!CG601 -> 0 | S173: =RA!BE602 -> -0.02593438918 | T173: =RA!BK602 -> -0.05213072894 | U173: =RA!BM602 -> -0.0763932435 | V173: =RA!BO602 -> -0.1159784735 | W173: =RA!BQ602 -> -0.1188778191 | X173: =RA!BS602 -> -0.03365262993 | Y173: =RA!BU602 -> -0.07697199712 | Z173: =RA!BW602 -> -0.03146483438 | AA173: =RA!CC602 -> -0.1252518484 | AB173: =RA!BE603 -> 0.003604498668 | AC173: =RA!BK603 -> 0.02773705296 | AD173: =RA!BM603 -> 0.00522158527 | AE173: =RA!BO603 -> -0.03221776645 | AF173: =RA!BQ603 -> -0.02925556181 | AG173: =RA!BS603 -> -0.01040921715 | AH173: =RA!BU603 -> -0.01073992804 | AI173: =RA!BW603 -> 0.0006608352178 | AJ173: =RA!CC603 -> 0.004554290014
G174: =RA!C604 -> Class B1_SYN | H174: =RA!BE610 -> 0.02316384975 | I174: =RA!BK610 -> -0.03103788702 | J174: =RA!BM610 -> -0.02157286901 | K174: =RA!BO610 -> -0.009588535054 | L174: =RA!BQ610 -> -0.01068061341 | M174: =RA!BS610 -> -0.002743621487 | N174: =RA!BU610 -> -0.005356857204 | O174: =RA!BW610 -> 0.01017186892 | P174: =RA!CC610 -> -0.05132563082 | Q174: =RA!CE610 -> 0 | R174: =RA!CG610 -> 0 | S174: =RA!BE611 -> -0.01831623988 | T174: =RA!BK611 -> -0.07502122987 | U174: =RA!BM611 -> -0.05777625015 | V174: =RA!BO611 -> -0.0589361938 | W174: =RA!BQ611 -> -0.05964038745 | X174: =RA!BS611 -> -0.02940459288 | Y174: =RA!BU611 -> -0.05615150479 | Z174: =RA!BW611 -> -0.01831951498 | AA174: =RA!CC611 -> -0.2695554652 | AB174: =RA!BE621 -> 0.3164026195 | AC174: =RA!BK621 -> 0.2367489243 | AD174: =RA!BM621 -> 0.2616959524 | AE174: =RA!BO621 -> 0.2617985412 | AF174: =RA!BQ621 -> 0.2658172691 | AG174: =RA!BS621 -> 0.2648856794 | AH174: =RA!BU621 -> 0.2985983696 | AI174: =RA!BW621 -> 0.3151881899 | AJ174: =RA!CC621 -> 0.02024375308
G175: =RA!BB662 -> Overall Mandatory w/o B2 | H175: =RA!BE668 -> 0.01741633119 | I175: =RA!BK668 -> -0.01115615025 | J175: =RA!BM668 -> -0.009004030674 | K175: =RA!BO668 -> -0.008579793493 | L175: =RA!BQ668 -> -0.008490517394 | M175: =RA!BS668 -> 0.001317701741 | N175: =RA!BU668 -> -0.0005167780236 | O175: =RA!BW668 -> 0.009164553777 | P175: =RA!CC668 -> -0.01179385084 | Q175: =RA!CE668 -> 0 | R175: =RA!CG668 -> 0 | S175: =RA!BE669 -> -0.07624853762 | T175: =RA!BK669 -> -0.09304457376 | U175: =RA!BM669 -> -0.1059340897 | V175: =RA!BO669 -> -0.1159784735 | W175: =RA!BQ669 -> -0.1188778191 | X175: =RA!BS669 -> -0.08732238128 | Y175: =RA!BU669 -> -0.1510769829 | Z175: =RA!BW669 -> -0.07698318683 | AA175: =RA!CC669 -> -0.278090855 | AB175: =RA!BE670 -> 0.08724305171 | AC175: =RA!BK670 -> 0.07017258007 | AD175: =RA!BM670 -> 0.06796517573 | AE175: =RA!BO670 -> 0.1049244074 | AF175: =RA!BQ670 -> 0.1037848574 | AG175: =RA!BS670 -> 0.08168977129 | AH175: =RA!BU670 -> 0.06985924988 | AI175: =RA!BW670 -> 0.06273567416 | AJ175: =RA!CC670 -> 0.2200278092
G177: =RA!C622 -> Class HDR1_4K | H177: =RA!BE628 -> 0.04837857944 | I177: =RA!BK628 -> 0.002378996262 | J177: =RA!BM628 -> 0.004054802564 | K177: =RA!BO628 -> 0.02360874097 | L177: =RA!BQ628 -> 0.02273661321 | M177: =RA!BS628 -> 0.03049102986 | N177: =RA!BU628 -> 0.01291145035 | O177: =RA!BW628 -> 0.03380710463 | P177: =RA!CC628 -> 0.04005260526 | Q177: =RA!CE628 -> 0 | R177: =RA!CG628 -> 0 | S177: =RA!BE629 -> 0.01714057358 | T177: =RA!BK629 -> -0.01716132389 | U177: =RA!BM629 -> -0.02059751177 | V177: =RA!BO629 -> -0.007478792172 | W177: =RA!BQ629 -> -0.004205109846 | X177: =RA!BS629 -> 0.01024722718 | Y177: =RA!BU629 -> -0.009021680796 | Z177: =RA!BW629 -> -0.02015325072 | AA177: =RA!CC629 -> -0.01165607563 | AB177: =RA!BE630 -> 0.06992425862 | AC177: =RA!BK630 -> 0.01926569319 | AD177: =RA!BM630 -> 0.02167603124 | AE177: =RA!BO630 -> 0.05044783686 | AF177: =RA!BQ630 -> 0.04970095961 | AG177: =RA!BS630 -> 0.04381432765 | AH177: =RA!BU630 -> 0.02916366605 | AI177: =RA!BW630 -> 0.06539214782 | AJ177: =RA!CC630 -> 0.1214801653
G178: =RA!C631 -> Class HDR2_2K | H178: =RA!BE637 ->  | I178: =RA!BK637 -> 0.02013532943 | J178: =RA!BM637 -> 0.0368411939 | K178: =RA!BO637 -> 0.02052431473 | L178: =RA!BQ637 -> 0.01870048512 | M178: =RA!BS637 -> 0.0510649175 | N178: =RA!BU637 -> 0.03254740535 | O178: =RA!BW637 -> 0.07308552866 | P178: =RA!CC637 -> 0.1118393987 | Q178: =RA!CE637 -> 0 | R178: =RA!CG637 -> 0 | S178: =RA!BE638 ->  | T178: =RA!BK638 -> -0.0433746907 | U178: =RA!BM638 -> -0.02448541111 | V178: =RA!BO638 -> -0.04976848945 | W178: =RA!BQ638 -> -0.04413264841 | X178: =RA!BS638 -> -0.03013240135 | Y178: =RA!BU638 -> -0.01118486721 | Z178: =RA!BW638 -> -0.05685714554 | AA178: =RA!CC638 -> -0.1418734833 | AB178: =RA!BE639 ->  | AC178: =RA!BK639 -> 0.1075339547 | AD178: =RA!BM639 -> 0.1543691934 | AE178: =RA!BO639 -> 0.09661264211 | AF178: =RA!BQ639 -> 0.08087247233 | AG178: =RA!BS639 -> 0.2026164043 | AH178: =RA!BU639 -> 0.1338659756 | AI178: =RA!BW639 -> 0.2917006302 | AJ178: =RA!CC639 -> 0.871089958
G179: =RA!BB684 -> Overall HDR | H179: =RA!BE690 ->  | I179: =RA!BK690 -> 0.013678481 | J179: =RA!BM690 -> 0.02491886978 | K179: =RA!BO690 -> 0.02164592428 | L179: =RA!BQ690 -> 0.02016816806 | M179: =RA!BS690 -> 0.04358350381 | N179: =RA!BU690 -> 0.02540705808 | O179: =RA!BW690 -> 0.05880246538 | P179: =RA!CC690 -> 0.08573511017 | Q179: =RA!CE690 -> 0 | R179: =RA!CG690 -> 0 | S179: =RA!BE691 ->  | T179: =RA!BK691 -> -0.0433746907 | U179: =RA!BM691 -> -0.02448541111 | V179: =RA!BO691 -> -0.04976848945 | W179: =RA!BQ691 -> -0.04413264841 | X179: =RA!BS691 -> -0.03013240135 | Y179: =RA!BU691 -> -0.01118486721 | Z179: =RA!BW691 -> -0.05685714554 | AA179: =RA!CC691 -> -0.1418734833 | AB179: =RA!BE692 ->  | AC179: =RA!BK692 -> 0.1075339547 | AD179: =RA!BM692 -> 0.1543691934 | AE179: =RA!BO692 -> 0.09661264211 | AF179: =RA!BQ692 -> 0.08087247233 | AG179: =RA!BS692 -> 0.2026164043 | AH179: =RA!BU692 -> 0.1338659756 | AI179: =RA!BW692 -> 0.2917006302 | AJ179: =RA!CC692 -> 0.871089958
G180: =RA!BB640 -> Class E | H180: =RA!BE646 -> 0.01346018759 | I180: =RA!BK646 -> 3.540282241e-05 | J180: =RA!BM646 -> 0.01100960641 | K180: =RA!BO646 -> -0.008221290521 | L180: =RA!BQ646 -> -0.005249053256 | M180: =RA!BS646 -> 0.01046282954 | N180: =RA!BU646 -> 0.01260103228 | O180: =RA!BW646 -> 0.0116572123 | P180: =RA!CC646 -> 0.009721872399 | Q180: =RA!CE646 -> 0 | R180: =RA!CG646 -> 0 | S180: =RA!BE647 -> 0.004884239253 | T180: =RA!BK647 -> -0.004293369515 | U180: =RA!BM647 -> 0.005730567389 | V180: =RA!BO647 -> -0.02408031423 | W180: =RA!BQ647 -> -0.01900886285 | X180: =RA!BS647 -> 0.003249409373 | Y180: =RA!BU647 -> 0.006354664148 | Z180: =RA!BW647 -> 0.004884239253 | AA180: =RA!CC647 -> -0.0331000821 | AB180: =RA!BE648 -> 0.03625897787 | AC180: =RA!BK648 -> 0.01111472773 | AD180: =RA!BM648 -> 0.01626442541 | AE180: =RA!BO648 -> 0.004364437867 | AF180: =RA!BQ648 -> 0.005620837621 | AG180: =RA!BS648 -> 0.02912674811 | AH180: =RA!BU648 -> 0.01982370304 | AI180: =RA!BW648 -> 0.02267884735 | AJ180: =RA!CC648 -> 0.04824862356
G181: =RA!BB651 -> Overall | H181: =RA!BE657 ->  | I181: =RA!BK657 -> -0.003130806716 | J181: =RA!BM657 -> 0.002546840268 | K181: =RA!BO657 -> -0.002081404202 | L181: =RA!BQ657 -> -0.00191137081 | M181: =RA!BS657 -> 0.0100827492 | N181: =RA!BU657 -> 0.006001119825 | O181: =RA!BW657 -> 0.01658728552 | P181: =RA!CC657 -> -0.0082022245 | Q181: =RA!CE657 -> 0 | R181: =RA!CG657 -> 0 | S181: =RA!BE658 ->  | T181: =RA!BK658 -> -0.09304457376 | U181: =RA!BM658 -> -0.1059340897 | V181: =RA!BO658 -> -0.1159784735 | W181: =RA!BQ658 -> -0.1188778191 | X181: =RA!BS658 -> -0.08732238128 | Y181: =RA!BU658 -> -0.1510769829 | Z181: =RA!BW658 -> -0.1127285872 | AA181: =RA!CC658 -> -1.0000528 | AB181: =RA!BE659 ->  | AC181: =RA!BK659 -> 0.2367489243 | AD181: =RA!BM659 -> 0.2616959524 | AE181: =RA!BO659 -> 0.2617985412 | AF181: =RA!BQ659 -> 0.2658172691 | AG181: =RA!BS659 -> 0.2648856794 | AH181: =RA!BU659 -> 0.2985983696 | AI181: =RA!BW659 -> 0.3151881899 | AJ181: =RA!CC659 -> 0.871089958
F183: LD | G183: =LD!C559 -> Class A1_4K
G184: =LD!C568 -> Class A2_2K | H184: =LD!BE574 ->  | I184: =LD!BK574 ->  | J184: =LD!BM574 ->  | K184: =LD!BO574 ->  | L184: =LD!BQ574 ->  | M184: =LD!BS574 ->  | N184: =LD!BU574 ->  | O184: =LD!BW574 ->  | P184: =LD!CC574 ->  | Q184: =LD!CE574 -> 0 | R184: =LD!CG574 -> 0 | S184: =LD!BE575 ->  | T184: =LD!BK575 ->  | U184: =LD!BM575 ->  | V184: =LD!BO575 ->  | W184: =LD!BQ575 ->  | X184: =LD!BS575 ->  | Y184: =LD!BU575 ->  | Z184: =LD!BW575 ->  | AA184: =LD!CC575 ->  | AB184: =LD!BE576 ->  | AC184: =LD!BK576 ->  | AD184: =LD!BM576 ->  | AE184: =LD!BO576 ->  | AF184: =LD!BQ576 ->  | AG184: =LD!BS576 ->  | AH184: =LD!BU576 ->  | AI184: =LD!BW576 ->  | AJ184: =LD!CC576 -> 
G185: =LD!C577 -> Class A3_720p | H185: =LD!BE583 ->  | I185: =LD!BK583 ->  | J185: =LD!BM583 ->  | K185: =LD!BO583 ->  | L185: =LD!BQ583 ->  | M185: =LD!BS583 ->  | N185: =LD!BU583 ->  | O185: =LD!BW583 ->  | P185: =LD!CC583 ->  | Q185: =LD!CE583 -> 0 | R185: =LD!CG583 -> 0 | S185: =LD!BE584 ->  | T185: =LD!BK584 ->  | U185: =LD!BM584 ->  | V185: =LD!BO584 ->  | W185: =LD!BQ584 ->  | X185: =LD!BS584 ->  | Y185: =LD!BU584 ->  | Z185: =LD!BW584 ->  | AA185: =LD!CC584 ->  | AB185: =LD!BE585 ->  | AC185: =LD!BK585 ->  | AD185: =LD!BM585 ->  | AE185: =LD!BO585 ->  | AF185: =LD!BQ585 ->  | AG185: =LD!BS585 ->  | AH185: =LD!BU585 ->  | AI185: =LD!BW585 ->  | AJ185: =LD!CC585 -> 
G186: =LD!C586 -> Class A4_360p | H186: =LD!BE592 ->  | I186: =LD!BK592 ->  | J186: =LD!BM592 ->  | K186: =LD!BO592 ->  | L186: =LD!BQ592 ->  | M186: =LD!BS592 ->  | N186: =LD!BU592 ->  | O186: =LD!BW592 ->  | P186: =LD!CC592 ->  | Q186: =LD!CE592 -> 0 | R186: =LD!CG592 -> 0 | S186: =LD!BE593 ->  | T186: =LD!BK593 ->  | U186: =LD!BM593 ->  | V186: =LD!BO593 ->  | W186: =LD!BQ593 ->  | X186: =LD!BS593 ->  | Y186: =LD!BU593 ->  | Z186: =LD!BW593 ->  | AA186: =LD!CC593 ->  | AB186: =LD!BE594 ->  | AC186: =LD!BK594 ->  | AD186: =LD!BM594 ->  | AE186: =LD!BO594 ->  | AF186: =LD!BQ594 ->  | AG186: =LD!BS594 ->  | AH186: =LD!BU594 ->  | AI186: =LD!BW594 ->  | AJ186: =LD!CC594 -> 
G187: =LD!C595 -> Class A5_270p | H187: =LD!BE601 ->  | I187: =LD!BK601 ->  | J187: =LD!BM601 ->  | K187: =LD!BO601 ->  | L187: =LD!BQ601 ->  | M187: =LD!BS601 ->  | N187: =LD!BU601 ->  | O187: =LD!BW601 ->  | P187: =LD!CC601 ->  | Q187: =LD!CE601 -> 0 | R187: =LD!CG601 -> 0 | S187: =LD!BE602 ->  | T187: =LD!BK602 ->  | U187: =LD!BM602 ->  | V187: =LD!BO602 ->  | W187: =LD!BQ602 ->  | X187: =LD!BS602 ->  | Y187: =LD!BU602 ->  | Z187: =LD!BW602 ->  | AA187: =LD!CC602 ->  | AB187: =LD!BE603 ->  | AC187: =LD!BK603 ->  | AD187: =LD!BM603 ->  | AE187: =LD!BO603 ->  | AF187: =LD!BQ603 ->  | AG187: =LD!BS603 ->  | AH187: =LD!BU603 ->  | AI187: =LD!BW603 ->  | AJ187: =LD!CC603 -> 
G188: =LD!C604 -> Class B1_SYN | H188: =LD!BE610 ->  | I188: =LD!BK610 ->  | J188: =LD!BM610 ->  | K188: =LD!BO610 ->  | L188: =LD!BQ610 ->  | M188: =LD!BS610 ->  | N188: =LD!BU610 ->  | O188: =LD!BW610 ->  | P188: =LD!CC610 ->  | Q188: =LD!CE610 -> 0 | R188: =LD!CG610 -> 0 | S188: =LD!BE611 ->  | T188: =LD!BK611 ->  | U188: =LD!BM611 ->  | V188: =LD!BO611 ->  | W188: =LD!BQ611 ->  | X188: =LD!BS611 ->  | Y188: =LD!BU611 ->  | Z188: =LD!BW611 ->  | AA188: =LD!CC611 ->  | AB188: =LD!BE621 ->  | AC188: =LD!BK621 ->  | AD188: =LD!BM621 ->  | AE188: =LD!BO621 ->  | AF188: =LD!BQ621 ->  | AG188: =LD!BS621 ->  | AH188: =LD!BU621 ->  | AI188: =LD!BW621 ->  | AJ188: =LD!CC621 -> 
G189: =LD!BB662 -> Overall Mandatory w/o B2 | H189: =LD!BE668 ->  | I189: =LD!BK668 ->  | J189: =LD!BM668 ->  | K189: =LD!BO668 ->  | L189: =LD!BQ668 ->  | M189: =LD!BS668 ->  | N189: =LD!BU668 ->  | O189: =LD!BW668 ->  | P189: =LD!CC668 ->  | Q189: =LD!CE668 -> 0 | R189: =LD!CG668 -> 0 | S189: =LD!BE669 ->  | T189: =LD!BK669 ->  | U189: =LD!BM669 ->  | V189: =LD!BO669 ->  | W189: =LD!BQ669 ->  | X189: =LD!BS669 ->  | Y189: =LD!BU669 ->  | Z189: =LD!BW669 ->  | AA189: =LD!CC669 ->  | AB189: =LD!BE670 ->  | AC189: =LD!BK670 ->  | AD189: =LD!BM670 ->  | AE189: =LD!BO670 ->  | AF189: =LD!BQ670 ->  | AG189: =LD!BS670 ->  | AH189: =LD!BU670 ->  | AI189: =LD!BW670 ->  | AJ189: =LD!CC670 -> 
G191: =LD!C622 -> Class HDR1_4K
G192: =LD!C631 -> Class HDR2_2K
G193: =LD!BB684 -> Overall HDR
G194: =LD!BB640 -> Class E

Sheet Plots
A1: Select the coding condition and sequence from the dropbox below | AD1: 7 | AE1: =AD1+1 -> 8 | AF1: 9 | AG1: 10 | AH1: 11 | AI1: 12 | AJ1: 13 | AK1: 14 | AL1: 15 | AM1: 16 | AN1: 17 | AO1: 18 | AP1: 19 | AQ1: 20 | AR1: =AQ1+2 -> 22 | AU1: 29 | AV1: =AU1+1 -> 30 | AW1: 31 | AX1: 32 | AY1: 33 | AZ1: 34 | BA1: 35 | BB1: 36 | BC1: 37 | BD1: 38 | BE1: 39 | BF1: 40 | BG1: 41 | BH1: 42 | BI1: =BH1+2 -> 44
AD2: Line 1 - Reference | AU2: Line 2 - Test
A3: RA | B3: FoodMarket2_3840x2160_5994fps_10bit_420.y4m | AD3: =Intra!G2 -> Bitrate | AE3: =Intra!H2 -> PSNR | AI3: =Intra!L2 -> SSIM (dB) | AJ3: =Intra!M2 -> MS-SSIM (dB) | AK3: =Intra!N2 -> VMAF | AL3: =Intra!O2 -> nVMAF | AM3: =Intra!P2 -> PSNR-HVS | AN3: =Intra!Q2 -> DE2K | AO3: =Intra!R2 -> APSNR | AR3: =Intra!V2 -> CAMBI | AU3: =Intra!AC2 -> Bitrate | AV3: =Intra!AD2 -> PSNR | AZ3: =Intra!AH2 -> SSIM (dB) | BA3: =Intra!AI2 -> MS-SSIM (dB) | BB3: =Intra!AJ2 -> VMAF | BC3: =Intra!AK2 -> nVMAF | BD3: =Intra!AL2 -> PSNR-HVS | BE3: =Intra!AM2 -> DE2K | BF3: =Intra!AN2 -> APSNR | BI3: =Intra!AR2 -> CAMBI
Z4: Intra | AA4: BoxingPractice_3840x2160_5994fps_10bit_420.y4m | AB4: 4 | AD4: =Intra!G3 -> kbps | AE4: =Intra!H3 -> Y | AF4: =Intra!I3 -> U | AG4: =Intra!J3 -> V | AH4: =Intra!K3 -> YUV | AI4: =Intra!L3 -> Y | AJ4: =Intra!M3 -> Y | AK4: =Intra!N3 -> Y | AL4: =Intra!O3 -> Y | AM4: =Intra!P3 -> Y | AO4: =Intra!R3 -> Y | AP4: =Intra!S3 -> U | AQ4: =Intra!T3 -> V | AU4: =Intra!AC3 -> kbps | AV4: =Intra!AD3 -> Y | AW4: =Intra!AE3 -> U | AX4: =Intra!AF3 -> V | AY4: =Intra!AG3 -> YUV | AZ4: =Intra!AH3 -> Y | BA4: =Intra!AI3 -> Y | BB4: =Intra!AJ3 -> Y | BC4: =Intra!AK3 -> Y | BD4: =Intra!AL3 -> Y | BE4: =Intra!AM3 -> 0 | BF4: =Intra!AN3 -> Y | BG4: =Intra!AO3 -> U | BH4: =Intra!AP3 -> V
Z5: RA | AA5: Crosswalk_3840x2160_5994fps_10bit_420.y4m | AB5: =AB4+6 -> 10 | AC5: =VLOOKUP(B3,AA4:AB89,2,FALSE) -> 16 | AD5: =INDIRECT("'"&$A$3&"'!"&ADDRESS($AC5,AD$1)) -> 45091.00008 | AE5: 42.709325 | AF5: 47.561867 | AG5: 48.611726 | AH5: 43.38150894 | AI5: 32.398893 | AJ5: 22.57093 | AK5: 99.957584 | AL5: 99.950342 | AM5: 44.325037 | AN5: 43.443009 | AO5: 42.574741 | AP5: 47.45414 | AQ5: 48.467479 | AR5: 0.008346 | AU5: =INDIRECT("'"&$A$3&"'!"&ADDRESS($AC5,AU$1)) -> 25212.32737 | AV5: 41.906004 | AW5: 46.591915 | AX5: 47.782467 | AY5: 42.56615238 | AZ5: 30.646695 | BA5: 21.591987 | BB5: 99.945262 | BC5: 99.936188 | BD5: 42.536517 | BE5: 42.662549 | BF5: 41.78762 | BG5: 46.470284 | BH5: 47.630336 | BI5: 0.010876
Z6: LD | AA6: FoodMarket2_3840x2160_5994fps_10bit_420.y4m | AB6: 16 | AC6: =AC5+1 -> 17 | AD6: 27743.68647 | AE6: 42.080907 | AF6: 46.774601 | AG6: 47.903033 | AH6: 42.73814575 | AI6: 30.978189 | AJ6: 21.782244 | AK6: 99.951477 | AL6: 99.942954 | AM6: 42.873226 | AN6: 42.812368 | AO6: 41.967189 | AP6: 46.657732 | AQ6: 47.756907 | AR6: 0.009327 | AU6: 17191.66495 | AV6: 41.035186 | AW6: 45.8137 | AX6: 47.160866 | AY6: 41.71669813 | AZ6: 29.028661 | BA6: 20.596769 | BB6: 99.93153 | BC6: 99.856525 | BD6: 40.858065 | BE6: 41.9144 | BF6: 40.911086 | BG6: 45.671545 | BH6: 46.995175 | BI6: 0.012761
AA7: Neon1224_3840x2160_2997fps.y4m | AB7: 22 | AC7: =AC6+1 -> 18 | AD7: 16767.69876 | AE7: 40.993407 | AF7: 45.794071 | AG7: 47.070865 | AH7: 41.67328963 | AI7: 28.925651 | AJ7: 20.522147 | AK7: 99.93947 | AL7: 99.876887 | AM7: 40.757151 | AN7: 41.888443 | AO7: 40.874654 | AP7: 45.652475 | AQ7: 46.901126 | AR7: 0.011765 | AU7: 11341.70322 | AV7: 39.772028 | AW7: 44.790093 | AX7: 46.181551 | AY7: 40.48625225 | AZ7: 26.847856 | BA7: 19.155845 | BB7: 98.975089 | BC7: 97.767734 | BD7: 38.612592 | BE7: 40.854638 | BF7: 39.636741 | BG7: 44.645252 | BH7: 46.004601 | BI7: 0.011304
AA8: NocturneDance_3840x2160p_10bit_60fps.y4m | AB8: 28 | AC8: =AC7+1 -> 19 | AD8: 11045.66941 | AE8: 39.679167 | AF8: 44.706215 | AG8: 46.081866 | AH8: 40.39352619 | AI8: 26.648019 | AJ8: 19.031697 | AK8: 98.674938 | AL8: 97.386413 | AM8: 38.441057 | AN8: 40.759882 | AO8: 39.54884 | AP8: 44.557295 | AQ8: 45.900497 | AR8: 0.011223 | AU8: 7691.401522 | AV8: 38.301967 | AW8: 43.680134 | AX8: 45.127584 | AY8: 39.0647035 | AZ8: 24.424848 | BA8: 17.541943 | BB8: 93.361921 | BC8: 91.619898 | BD8: 36.249415 | BE8: 39.618098 | BF8: 38.154131 | BG8: 43.524437 | BH8: 44.94359 | BI8: 0.010715
AA9: PierSeaSide_3840x2160_2997fps_10bit_420_v2.y4m | AB9: 34 | AC9: =AC8+1 -> 20 | AD9: 7371.362176 | AE9: 38.165223 | AF9: 43.57815 | AG9: 45.037223 | AH9: 38.93303094 | AI9: 24.101542 | AJ9: 17.359049 | AK9: 92.351518 | AL9: 90.653496 | AM9: 36.01033 | AN9: 39.497292 | AO9: 38.01754 | AP9: 43.421555 | AQ9: 44.848282 | AR9: 0.010608 | AU9: 5171.772228 | AV9: 36.659452 | AW9: 42.629759 | AX9: 44.144477 | AY9: 37.50041025 | AZ9: 21.822966 | BA9: 15.799651 | BB9: 84.250947 | BC9: 82.513248 | BD9: 33.85799 | BE9: 38.287146 | BF9: 36.497111 | BG9: 42.477566 | BH9: 43.95968 | BI9: 0.009056
AA10: Tango_3840x2160_5994fps_10bit_420.y4m | AB10: 40 | AC10: =AC9+1 -> 21 | AD10: 4019.831246 | AE10: 35.586625 | AF10: 41.923306 | AG10: 43.375395 | AH10: 36.46946569 | AI10: 20.075608 | AJ10: 14.641069 | AK10: 76.658891 | AL10: 75.049762 | AM10: 32.390458 | AN10: 37.387172 | AO10: 35.420823 | AP10: 41.767151 | AQ10: 43.185886 | AR10: 0.009488 | AU10: 2791.738723 | AV10: 34.043013 | AW10: 41.004267 | AX10: 42.459602 | AY10: 35.00412819 | AZ10: 17.889465 | BA10: 13.131334 | BB10: 65.782536 | BC10: 64.217711 | BD10: 30.439665 | BE10: 36.116233 | BF10: 33.867641 | BG10: 40.856676 | BH10: 42.275421 | BI10: 0.011562
AA11: TimeLapse_3840x2160_5994fps_10bit_420.y4m | AB11: 46
AA12: Aerial3200_1920x1080_5994_10bit_420.y4m | AB12: 52
AA13: Boat_1920x1080_5994_10bit_420.y4m | AB13: 58
AA14: CrowdRun_1920x1080p50.y4m | AB14: 64 | AD14: ="Sequence: "&B3 & " Coding Conditions: " & A3 -> Sequence: FoodMarket2_3840x2160_5994fps_10bit_420.y4m Coding Conditions: RA
AA15: DinnerSceneCropped_1920x1080_2997fps_10bit_420.y4m | AB15: 70
AA16: FoodMarket_1920x1080_5994_10bit_420.y4m | AB16: 76
AA17: MeridianTalk_sdr_1920x1080p_5994_10bit.y4m | AB17: 82 | AD17: rate | AE17: psnr-y | AF17: psnr-u | AG17: psnr-v | AH17: psnr-yuv | AI17: ssim | AJ17: ms_ssim | AK17: vmaf | AL17: nvmaf | AM17: psnr-hvs | AN17: de2k | AO17: apsnr-y | AP17: apsnr-u | AQ17: apsnr-v | AR17: cambi
AA18: Motorcycle_1920x1080_30fps_8bit.y4m | AB18: 88 | AD18: =MAX(AD5:AD10,AU5:AU10) -> 45091.00008 | AE18: 42.709325 | AF18: 47.561867 | AG18: 48.611726 | AH18: 43.38150894 | AI18: 32.398893 | AJ18: =MAX(AJ5:AJ10,BA5:BA10, BJ5:BJ10) -> 22.57093 | AK18: 99.957584 | AL18: 99.950342 | AM18: 44.325037 | AN18: 43.443009 | AO18: 42.574741 | AP18: 47.45414 | AQ18: 48.467479 | AR18: 0.012761
AA19: MountainBike_1920x1080_30fps_8bit.y4m | AB19: 94 | AD19: =MIN(AD5:AD10,AU5:AU10) -> 2791.738723 | AE19: 34.043013 | AF19: 41.004267 | AG19: 42.459602 | AH19: 35.00412819 | AI19: 17.889465 | AJ19: =MIN(AJ5:AJ10,BA5:BA10,BJ5:BJ10) -> 13.131334 | AK19: 65.782536 | AL19: 64.217711 | AM19: 30.439665 | AN19: 36.116233 | AO19: 33.867641 | AP19: 40.856676 | AQ19: 42.275421 | AR19: 0.008346
AA20: OldTownCross_1920x1080p50.y4m | AB20: 100
AA21: PedestrianArea_1920x1080p25.y4m | AB21: 106 | AD21: =POWER(10,CEILING(LOG(AD18+1),1)) -> 100000 | AE21: =CEILING(AE18+0.25,0.5) -> 43 | AF21: 48 | AG21: 49 | AH21: 44 | AI21: 33 | AJ21: 23 | AK21: 100.5 | AL21: 100.5 | AM21: 45 | AN21: 44 | AO21: 43 | AP21: 48 | AQ21: 49 | AR21: 0.5
AA22: RitualDance_1920x1080_5994_10bit_420.y4m | AB22: 112 | AD22: =POWER(10,FLOOR(LOG(AD19+10),1)) -> 1000 | AE22: =FLOOR(AE19-0.25,0.5) -> 33.5 | AF22: 40.5 | AG22: 42 | AH22: 34.5 | AI22: 17.5 | AJ22: 12.5 | AK22: 65.5 | AL22: 63.5 | AM22: 30 | AN22: 35.5 | AO22: 33.5 | AP22: 40.5 | AQ22: 42 | AR22: =CEILING(AR19+0.25,0.5) -> 0.5
AA23: Riverbed_1920x1080p25.y4m | AB23: 118
AA24: RushFieldCuts_1920x1080_2997.y4m | AB24: 124 | AD24: =CEILING(AD18*110%/100,1)*100 -> 49700
AA25: Skater227_1920x1080_30fps.y4m | AB25: 130 | AD25: 0
AA26: ToddlerFountain_1920x1080_2997fps_10bit_420.y4m | AB26: 136
AA27: TreesAndGrass_1920_1080_30fps_8bit.y4m | AB27: 142
AA28: TunnelFlag_1920x1080_5994_10bit_420.y4m | AB28: 148
AA29: Vertical_bees_1080x1920_2997.y4m | AB29: 154
AA30: Vertical_Carnaby_1080x1920_5994.y4m | AB30: 160
AA31: WalkingInStreet_1920x1080_30fps.y4m | AB31: 166
AA32: WorldCup_1920x1080_30p.y4m | AB32: 172
AA33: WorldCup_far_1920x1080_30p.y4m | AB33: 178
AA34: ControlledBurn_1280x720p30_420.y4m | AB34: 184
AA35: DrivingPOV_1280x720p_5994_10bit_420.y4m | AB35: 190
AA36: Johnny_1280x720_60.y4m | AB36: 196
AA37: KristenAndSara_1280x720_60.y4m | AB37: =AB36+6 -> 202
AA38: RollerCoaster_1280x720p_5994_10bit_420.y4m | AB38: 208
AA39: Vidyo3_1280x720p_60fps.y4m | AB39: 214
AA40: Vidyo4_1280x720p_60fps.y4m | AB40: 220
AA41: WestWindEasy_1280x720p30_420.y4m | AB41: 226
AA42: BlueSky_360p25_v2.y4m | AB42: 232
AA43: RedKayak_360_2997.y4m | AB43: 238
AA44: SnowMountain_640x360_2997.y4m | AB44: 244
AA45: SpeedBag_640x360_2997.y4m | AB45: 250
AA46: Stockholm_640x360_5994.y4m | AB46: 256
AA47: TouchdownPass_640x360_2997.y4m | AB47: 262
AA48: FourPeople_480x270_60.y4m | AB48: 268
AA49: ParkJoy_480x270_50.y4m | AB49: 274
AA50: SparksElevator_480x270p_5994_10bit.y4m | AB50: 280
AA51: Vertical_Bayshore_270x480_2997.y4m | AB51: 286
AA52: CosmosTreeTrunk_sdr_2048x858_25_8bit.y4m | AB52: 292
AA53: EuroTruckSimulator2_1920x1080p60_v2.y4m | AB53: 298
AA54: GlassHalf_1920x1080p_24p_8bit_420.y4m | AB54: 304
AA55: Life_1080p30_v2.y4m | AB55: 310
AA56: MINECRAFT_1080p_60_8bit.y4m | AB56: 316
AA57: Sniper_1920x1080P_30fps_8bit.y4m | AB57: 322
AA58: SolLevanteDragons_sdr_1920x1080_24_10bit.y4m | AB58: 328
AA59: SolLevanteFace_sdr_1920x1080_24_10bit.y4m | AB59: 334
AA60: STARCRAFT_1080p60.y4m | AB60: 340
AA61: WITCHER3_1920x1080_60_8bit_420.y4m | AB61: 346
AA62: BigBuckBunnyStudio1_1920x1080_60fps_10bit_420_020_0149.y4m | AB62: 352
AA63: Debugging_1920x1080_30fps_8bit_420.y4m | AB63: 358
AA64: MissionControlClip1_1920x1080_60fps_10bit_420_0450_0579.y4m | AB64: 364
AA65: MissionControlClip3_1920x1080_60_420.y4m | AB65: 370
AA66: MobileDeviceScreenSharing.y4m | AB66: 376
AA67: SceneComposition_1.y4m | AB67: 382
AA68: SceneComposition_2.y4m | AB68: 388
AA69: Slides1_1920x1080_30fps_8bit_420.y4m | AB69: =AB68+6 -> 394
AA70: Slides2r_1920x1080_30fps_8bit_420.y4m | AB70: 400
AA71: Spreadsheet_1920x1080_30fps_8bit_420_130f.y4m | AB71: 406
AA72: Wikipedia_1920x1080p30.y4m | AB72: 412
AA73: MeridianRoad_3840x2160_5994_hdr10.y4m | AB73: 418
AA74: NocturneDance_3840x2160_60fps_hdr10.y4m | AB74: 424
AA75: NocturneRoom_3840x2160_60fps_hdr10.y4m | AB75: 430
AA76: SparksWelding_4096x2160_5994_hdr10.y4m | AB76: 436
AA77: CosmosCaterpillar_2048x858p24_hdr10.y4m | AB77: 442
AA78: CosmosTreeTrunk_2048x858p24_hdr10.y4m | AB78: 448
AA79: MeridianShore_1920x1080_5994_hdr10.y4m | AB79: 454
AA80: MeridianTalk_1920x1080_5994_hdr10.y4m | AB80: 460
AA81: SolLevanteDragons_1920x1080p24_hdr10.y4m | AB81: 466
AA82: SolLevanteFace_1920x1080p24_hdr10.y4m | AB82: 472
AA83: SparksTruck_2048x1080_5994_hdr10.y4m | AB83: 478
AA84: Artistic_Concert_1920x1080_25fps.y4m | AB84: 484
AA85: Artistic_Intro_1920x1080_2997fps.y4m | AB85: 490
AA86: MixedCoding_NewsIntroAnchor_1280x720_2997fps.y4m | AB86: 496
AA87: MixedCoding_NewsIntroOnly_1280x720_2997fps.y4m | AB87: 502
AA88: Noise_AnimationCrayon_1920x1080_2398fps.y4m | AB88: 508
AA89: Noise_Animation_1280x720_2398fps.y4m | AB89: 514
AA90: Noise_Ocean_1920x1080_60fps.y4m | AB90: 520
AA91: Noise_Soccer_1920x1080_50fps.y4m | AB91: 526
AA92: Shaky_Baseball_3840x2160_5994fps.y4m | AB92: 532
AA93: Shaky_Fireworks_3840x2160_2997fps.y4m | AB93: 538
AA94: Shaky_Quad_1920x1080_30fps.y4m | AB94: 544
AA95: Shaky_Walk_1920x1080_25fps.y4m | AB95: 550

Sheet Plot-Stills
A1: Select the coding condition and sequence from the dropbox below | AD1: 7 | AE1: =AD1+1 -> 8 | AF1: 9 | AG1: 10 | AH1: 11 | AI1: 12 | AJ1: 13 | AK1: 14 | AL1: 15 | AM1: 16 | AN1: 17 | AO1: 18 | AP1: 19 | AQ1: 20 | AR1: =AQ1+2 -> 22 | AU1: 29 | AV1: =AU1+1 -> 30 | AW1: 31 | AX1: 32 | AY1: 33 | AZ1: 34 | BA1: 35 | BB1: 36 | BC1: 37 | BD1: 38 | BE1: 39 | BF1: 40 | BG1: 41 | BH1: 42 | BI1: =BH1+2 -> 44
AD2: Line 1 - Reference | AU2: Line 2 - Test
A3: Still | B3: Animals_00.y4m | AD3: File Size | AE3: =Intra!H2 -> PSNR | AI3: =Intra!L2 -> SSIM (dB) | AJ3: =Intra!M2 -> MS-SSIM (dB) | AK3: =Intra!N2 -> VMAF | AL3: =Intra!O2 -> nVMAF | AM3: =Intra!P2 -> PSNR-HVS | AN3: =Intra!Q2 -> DE2K | AO3: =Intra!R2 -> APSNR | AR3: =Intra!V2 -> CAMBI | AU3: File Size | AV3: =Intra!AD2 -> PSNR | AZ3: =Intra!AH2 -> SSIM (dB) | BA3: =Intra!AI2 -> MS-SSIM (dB) | BB3: =Intra!AJ2 -> VMAF | BC3: =Intra!AK2 -> nVMAF | BD3: =Intra!AL2 -> PSNR-HVS | BE3: =Intra!AM2 -> DE2K | BF3: =Intra!AN2 -> APSNR | BI3: =Intra!AR2 -> CAMBI
Z4: Still | AA4: Animals_00.y4m | AB4: 4 | AD4: Bytes | AE4: =Intra!H3 -> Y | AF4: =Intra!I3 -> U | AG4: =Intra!J3 -> V | AH4: =Intra!K3 -> YUV | AI4: =Intra!L3 -> Y | AJ4: =Intra!M3 -> Y | AK4: =Intra!N3 -> Y | AL4: =Intra!O3 -> Y | AM4: =Intra!P3 -> Y | AO4: =Intra!R3 -> Y | AP4: =Intra!S3 -> U | AQ4: =Intra!T3 -> V | AU4: Bytes | AV4: =Intra!AD3 -> Y | AW4: =Intra!AE3 -> U | AX4: =Intra!AF3 -> V | AY4: =Intra!AG3 -> YUV | AZ4: =Intra!AH3 -> Y | BA4: =Intra!AI3 -> Y | BB4: =Intra!AJ3 -> Y | BC4: =Intra!AK3 -> Y | BD4: =Intra!AL3 -> Y | BF4: =Intra!AN3 -> Y | BG4: =Intra!AO3 -> U | BH4: =Intra!AP3 -> V
AA5: Animals_03.y4m | AB5: =AB4+6 -> 10 | AC5: =VLOOKUP(B3,AA4:AB89,2,FALSE) -> 4 | AD5: =INDIRECT("'"&$A$3&"'!"&ADDRESS($AC5,AD$1)) -> 27028464 | AE5: 39.628777 | AF5: 44.015711 | AG5: 47.987171 | AH5: 40.42536 | AI5: 41.868951 | AJ5: 26.356578 | AK5: 94.816286 | AL5: 93.839652 | AM5: 47.428821 | AN5: 41.057816 | AO5: 39.628777 | AP5: 44.015711 | AQ5: 47.987171 | AR5: 0 | AU5: =INDIRECT("'"&$A$3&"'!"&ADDRESS($AC5,AU$1)) -> 21679840 | AV5: 37.327343 | AW5: 43.159954 | AX5: 47.353731 | AY5: 38.31853044 | AZ5: 39.510243 | BA5: 23.999322 | BB5: 93.66013 | BC5: 92.574716 | BD5: 44.91737 | BE5: 39.339588 | BF5: 37.327343 | BG5: 43.159954 | BH5: 47.353731 | BI5: 5e-06
AA6: Animals_09.y4m | AB6: 16 | AC6: =AC5+1 -> 5 | AD6: 22318912 | AE6: 37.614734 | AF6: 43.209428 | AG6: 47.388702 | AH6: 38.57527537 | AI6: 39.721096 | AJ6: 24.278065 | AK6: 93.882138 | AL6: 92.785195 | AM6: 45.215545 | AN6: 39.544546 | AO6: 37.614734 | AP6: 43.209428 | AQ6: 47.388702 | AR6: 3e-06 | AU6: 16943304 | AV6: 35.22393 | AW6: 42.35441 | AX6: 46.842998 | AY6: 36.39577675 | AZ6: 37.290368 | BA6: 21.879511 | BB6: 92.177933 | BC6: 90.994482 | BD6: 42.364557 | BE6: 37.722582 | BF6: 35.22393 | BG6: 42.35441 | BH6: 46.842998 | BI6: 8e-06
AA7: Buildings_02.y4m | AB7: 22 | AC7: =AC6+1 -> 6 | AD7: 16282144 | AE7: 34.949642 | AF7: 42.193382 | AG7: 46.706331 | AH7: 36.13716881 | AI7: 36.9709 | AJ7: 21.544731 | AK7: 91.933772 | AL7: 90.743886 | AM7: 41.95898 | AN7: 37.492575 | AO7: 34.949642 | AP7: 42.193382 | AQ7: 46.706331 | AR7: 7e-06 | AU7: 11843352 | AV7: 32.858384 | AW7: 41.537481 | AX7: 46.084112 | AY7: 34.22743556 | AZ7: 34.617414 | BA7: 19.415398 | BB7: 89.390338 | BC7: 88.116567 | BD7: 39.011386 | BE7: 35.867019 | BF7: 32.858384 | BG7: 41.537481 | BH7: 46.084112 | BI7: 8e-06
AA8: Buildings_03.y4m | AB8: 28 | AC8: =AC7+1 -> 7 | AD8: 11147376 | AE8: 32.570785 | AF8: 41.362606 | AG8: 45.86135 | AH8: 33.95093413 | AI8: 34.139499 | AJ8: 19.131889 | AK8: 88.747707 | AL8: 87.481824 | AM8: 38.524181 | AN8: 35.635492 | AO8: 32.570785 | AP8: 41.362606 | AQ8: 45.86135 | AR8: 2.4e-05 | AU8: 8332576 | AV8: 30.962251 | AW8: 40.572973 | AX8: 45.1869 | AY8: 32.45196169 | AZ8: 31.881708 | BA8: 17.591169 | BB8: 84.824964 | BC8: 83.509268 | BD8: 35.747806 | BE8: 34.306855 | BF8: 30.962251 | BG8: 40.572973 | BH8: 45.1869 | BI8: 0.000121
AA9: Church.y4m | AB9: 34 | AC9: =AC8+1 -> 8 | AD9: 7647648 | AE9: 30.603423 | AF9: 40.38383 | AG9: 45.020765 | AH9: 32.11578231 | AI9: 31.172047 | AJ9: 17.236455 | AK9: 83.327269 | AL9: 82.037185 | AM9: 35.045805 | AN9: 34.019755 | AO9: 30.603423 | AP9: 40.38383 | AQ9: 45.020765 | AR9: 0.0002 | AU9: 5699040 | AV9: 29.167236 | AW9: 39.625364 | AX9: 44.295348 | AY9: 30.766376 | AZ9: 28.904874 | BA9: 15.845411 | BB9: 77.477604 | BC9: 76.119024 | BD9: 32.436723 | BE9: 32.830957 | BF9: 29.167236 | BG9: 39.625364 | BH9: 44.295348 | BI9: 0.000882
AA10: Fireworks_01.y4m | AB10: 40 | AC10: =AC9+1 -> 9 | AD10: 4171256 | AE10: 27.789942 | AF10: 38.917217 | AG10: 43.650277 | AH10: 29.47666763 | AI10: 26.476189 | AJ10: 14.438112 | AK10: 69.252603 | AL10: 67.877463 | AM10: 29.801922 | AN10: 31.678445 | AO10: 27.789942 | AP10: 38.917217 | AQ10: 43.650277 | AR10: 0.001502 | AU10: 3135448 | AV10: 26.492612 | AW10: 38.260779 | AX10: 43.019868 | AY10: 28.26107594 | AZ10: 24.192394 | BA10: 13.055488 | BB10: 60.137073 | BC10: 58.730677 | BD10: 27.390601 | BE10: 30.530228 | BF10: 26.492612 | BG10: 38.260779 | BH10: 43.019868 | BI10: 0.002276
AA11: Flowerfield.y4m | AB11: 46
AA12: Flowers_08.y4m | AB12: 52
AA13: Flowers_12.y4m | AB13: 58
AA14: Food_02.y4m | AB14: 64 | AD14: ="Sequence: "&B3 & " Coding Conditions: " & A3 -> Sequence: Animals_00.y4m Coding Conditions: Still
AA15: Fountain.y4m | AB15: 70
AA16: Lady.y4m | AB16: 76
AA17: Landscape_5.y4m | AB17: 82 | AD17: bytes | AE17: psnr-y | AF17: psnr-u | AG17: psnr-v | AH17: psnr-yuv | AI17: ssim | AJ17: ms_ssim | AK17: vmaf | AL17: nvmaf | AM17: psnr-hvs | AN17: de2k | AO17: apsnr-y | AP17: apsnr-u | AQ17: apsnr-v | AR17: cambi
AA18: Landscape_15.y4m | AB18: 88 | AD18: =MAX(AD5:AD10,AU5:AU10) -> 27028464 | AE18: 39.628777 | AF18: 44.015711 | AG18: 47.987171 | AH18: 40.42536 | AI18: 41.868951 | AJ18: =MAX(AJ5:AJ10,BA5:BA10, BJ5:BJ10) -> 26.356578 | AK18: 94.816286 | AL18: 93.839652 | AM18: 47.428821 | AN18: 41.057816 | AO18: 39.628777 | AP18: 44.015711 | AQ18: 47.987171 | AR18: 0.002276
AA19: Landscape_16.y4m | AB19: 94 | AD19: =MIN(AD5:AD10,AU5:AU10) -> 3135448 | AE19: 26.492612 | AF19: 38.260779 | AG19: 43.019868 | AH19: 28.26107594 | AI19: 24.192394 | AJ19: =MIN(AJ5:AJ10,BA5:BA10,BJ5:BJ10) -> 13.055488 | AK19: 60.137073 | AL19: 58.730677 | AM19: 27.390601 | AN19: 30.530228 | AO19: 26.492612 | AP19: 38.260779 | AQ19: 43.019868 | AR19: 0
AA20: Landscape_18.y4m | AB20: 100
AA21: Landscape_25.y4m | AB21: 106 | AD21: =POWER(10,CEILING(LOG(AD18+1),1)) -> 100000000 | AE21: =CEILING(AE18+0.25,0.5) -> 40 | AF21: 44.5 | AG21: 48.5 | AH21: 41 | AI21: 42.5 | AJ21: 27 | AK21: 95.5 | AL21: 94.5 | AM21: 48 | AN21: 41.5 | AO21: 40 | AP21: 44.5 | AQ21: 48.5 | AR21: 0.5
AA22: Landscape_26.y4m | AB22: 112 | AD22: =POWER(10,FLOOR(LOG(AD19+10),1)) -> 1000000 | AE22: =FLOOR(AE19-0.25,0.5) -> 26 | AF22: 38 | AG22: 42.5 | AH22: 28 | AI22: 23.5 | AJ22: 12.5 | AK22: 59.5 | AL22: 58 | AM22: 27 | AN22: 30 | AO22: 26 | AP22: 38 | AQ22: 42.5 | AR22: =CEILING(AR19+0.25,0.5) -> 0.5
AA23: Landscape_28.y4m | AB23: 118
AA24: Lodge.y4m | AB24: 124 | AD24: =CEILING(AD18*110%/1000,1)*1000 -> 29732000
AA25: Party.y4m | AB25: 130 | AD25: 0
AA26: River.y4m | AB26: 136
AA27: Santa.y4m | AB27: 142
AA28: Seafood.y4m | AB28: 148
AA29: Snow_00.y4m | AB29: 154
AA30: Trees.y4m | AB30: 160
AA31: Underwater_01.y4m | AB31: 166
AA32: Adventure_with_the_Windmills.y4m | AB32: 172
AA33: Agapanthus_Postbloom2.y4m | AB33: 178
AA34: Baruch.y4m | AB34: 184
AA35: Berlin-Fernsehturm.y4m | AB35: 190
AA36: Big_Easy_chair.y4m | AB36: 196
AA37: Butterfly.y4m | AB37: =AB36+6 -> 202
AA38: Cecret_Lake_Panorama.y4m | AB38: 208
AA39: Claudette.y4m | AB39: 214
AA40: Collage_Oppeln.y4m | AB40: 220
AA41: Corona_Arch.y4m | AB41: 226
AA42: Correfocs_Festa_Major_del_Clot.y4m | AB42: 232
AA43: Crepuscular_rays_at_Sunset_near_Waterberg_Plateau.y4m | AB43: 238
AA44: Esquibien_Jean_Perrot.y4m | AB44: 244
AA45: Florac-Le_Vibron-Source_du_Pecher.y4m | AB45: 250
AA46: Fontaine_Place_Stanislas.y4m | AB46: 256
AA47: Genmaicha_Tea.y4m | AB47: 262
AA48: Homestead_in_Montana.y4m | AB48: 268
AA49: Madeira_151_Funchal_Mercado_dos_Lavradores.y4m | AB49: 274
AA50: Madeira_159_Funchal_Mercado_dos_Lavradores.y4m | AB50: 280
AA51: MagicKindom.y4m | AB51: 286
AA52: Michigan_Stadium.y4m | AB52: 292
AA53: OperaLamps.y4m | AB53: 298
AA54: Orion_Nebula.y4m | AB54: 304
AA55: Saint_Catherine-Caravaggio.y4m | AB55: 310
AA56: Streptopelia_orientalis.y4m | AB56: 316
AA57: Swallowtail.y4m | AB57: 322
AA58: Washington_Monument.y4m | AB58: 328
AA59: Wasserfassstelle_von_1898_im_Schanerloch.y4m | AB59: 334
AA60: Zoo_de_la_Barben.y4m | AB60: 340
AB61: 346
AB62: 352
AB63: 358
AB64: 364
AB65: 370
AB66: 376
AB67: 382
AB68: 388
AB69: =AB68+6 -> 394
AB70: 400
AB71: 406
AB72: 412
AB73: 418
AB74: 424

Sheet Intra
G1: Reference | AC1: Tested | BD1: BD-rate
G2: Bitrate | H2: PSNR | L2: SSIM (dB) | M2: MS-SSIM (dB) | N2: VMAF | O2: nVMAF | P2: PSNR-HVS | Q2: DE2K | R2: APSNR | V2: CAMBI | W2: Enc T [s] | X2: Dec T [s] | Y2: Enc Instr | Z2: Dec Instr | AA2: Enc T [h] | AC2: Bitrate | AD2: PSNR | AH2: SSIM (dB) | AI2: MS-SSIM (dB) | AJ2: VMAF | AK2: nVMAF | AL2: PSNR-HVS | AM2: DE2K | AN2: APSNR | AR2: CAMBI | AS2: Enc T [s] | AT2: Dec T [s] | AU2: Enc Instr | AV2: Dec Instr | AW2: Enc T [h] | BD2: PSNR | BK2: SSIM | BM2: MS-SSIM | BO2: VMAF | BQ2: nVMAF | BS2: PSNR-HVS | BU2: DE-2K | BW2: APSNR | CC2: CAMBI | CE2: VMAF | CG2: nVMAF
B3: Res | C3: Name | D3: fps | E3: Bit depth | F3: QPISlice | G3: kbps | H3: Y | I3: U | J3: V | K3: YUV | L3: Y | M3: Y | N3: Y | O3: Y | P3: Y | R3: Y | S3: U | T3: V | U3: YUV | V3: Y | AC3: kbps | AD3: Y | AE3: U | AF3: V | AG3: YUV | AH3: Y | AI3: Y | AJ3: Y | AK3: Y | AL3: Y | AN3: Y | AO3: U | AP3: V | AQ3: YUV | AR3: Y | AX3: EncR | AY3: DecR | AZ3: EncInstrR | BA3: DecInstrR | BD3: Range | BF3: Y | BG3: U | BH3: V | BI3: YUV | BJ3: wAverage | BK3: Range | BL3: Y | BM3: Range | BN3: Y | BO3: Range | BP3: Y | BQ3: Range | BR3: Y | BS3: Range | BT3: Y | BU3: Range | BV3: Y | BW3: Range | BX3: Y | BY3: U | BZ3: V | CA3: YUV | CB3: wAverage | CC3: Range | CD3: Y | CE3: Range | CF3: Y | CG3: Range | CH3: Y
A4: A1_4K | B4: 3840x2160 | C4: BoxingPractice_3840x2160_5994fps_10bit_420.y4m | D4: 59.94 | E4: 10 | F4: 85 | G4: ='Anchor-AI'!L2 -> 0 | H4: ='Anchor-AI'!M2 -> 0 | I4: ='Anchor-AI'!N2 -> 0 | J4: ='Anchor-AI'!O2 -> 0 | K4: =(Summary!$C$64*H4+Summary!$C$65*I4+Summary!$C$66*J4)/Summary!$C$67 -> 0 | L4: ='Anchor-AI'!P2 -> 0 | M4: ='Anchor-AI'!Q2 -> 0 | N4: ='Anchor-AI'!R2 -> 0 | O4: ='Anchor-AI'!S2 -> 0 | P4: ='Anchor-AI'!T2 -> 0 | Q4: ='Anchor-AI'!U2 -> 0 | R4: ='Anchor-AI'!V2 -> 0 | S4: ='Anchor-AI'!W2 -> 0 | T4: ='Anchor-AI'!X2 -> 0 | U4: =10*LOG10(1/((Summary!$C$81/10^(R4/10)+Summary!$C$82/10^(S4/10)+Summary!$C$83/10^(T4/10))/Summary!$C$84)) -> 0 | V4: ='Anchor-AI'!Y2 -> 0 | W4: ='Anchor-AI'!Z2 -> 0 | X4: ='Anchor-AI'!AA2 -> 0 | Y4: ='Anchor-AI'!AB2 -> 0 | Z4: ='Anchor-AI'!AC2 -> 0 | AA4: =W4/3600 -> 0 | AC4: ='Test-AI'!L2 -> 0 | AD4: ='Test-AI'!M2 -> 0 | AE4: ='Test-AI'!N2 -> 0 | AF4: ='Test-AI'!O2 -> 0 | AG4: =(Summary!$C$64*AD4+Summary!$C$65*AE4+Summary!$C$66*AF4)/Summary!$C$67 -> 0 | AH4: ='Test-AI'!P2 -> 0 | AI4: ='Test-AI'!Q2 -> 0 | AJ4: ='Test-AI'!R2 -> 0 | AK4: ='Test-AI'!S2 -> 0 | AL4: ='Test-AI'!T2 -> 0 | AM4: ='Test-AI'!U2 -> 0 | AN4: ='Test-AI'!V2 -> 0 | AO4: ='Test-AI'!W2 -> 0 | AP4: ='Test-AI'!X2 -> 0 | AQ4: =10*LOG10(1/((Summary!$C$81/10^(AN4/10)+Summary!$C$82/10^(AO4/10)+Summary!$C$83/10^(AP4/10))/Summary!$C$84)) -> 0 | AR4: ='Test-AI'!Y2 -> 0 | AS4: ='Test-AI'!Z2 -> 0 | AT4: ='Test-AI'!AA2 -> 0 | AU4: ='Test-AI'!AB2 -> 0 | AV4: ='Test-AI'!AC2 -> 0 | AW4: =AS4/3600 -> 0 | AX4: =AS4/W4 ->  | AY4: =AT4/X4 ->  | AZ4: =AU4/Y4 ->  | BA4: =AV4/Z4 ->  | BD4: High | BE4: =bdRateExtend($G4:$G7,H4:H7,$AC4:$AC7,AD4:AD7) ->  | BF4: =bdRateExtend($G4:$G9,H4:H9,$AC4:$AC9,AD4:AD9) ->  | BG4: =bdRateExtend($G4:$G9,I4:I9,$AC4:$AC9,AE4:AE9) ->  | BH4: =bdRateExtend($G4:$G9,J4:J9,$AC4:$AC9,AF4:AF9) ->  | BI4: =bdRateExtend($G4:$G9,K4:K9,$AC4:$AC9,AG4:AG9) ->  | BJ4: =(Summary!$C$95*BF4+Summary!$C$96*BG4+Summary!$C$97*BH4)/Summary!$C$98 ->  | BK4: =bdRateExtend($G4:$G7,L4:L7,$AC4:$AC7,AH4:AH7) ->  | BL4: =bdRateExtend($G4:$G9,L4:L9,$AC4:$AC9,AH4:AH9) ->  | BM4: =bdRateExtend($G4:$G7,M4:M7,$AC4:$AC7,AI4:AI7) ->  | BN4: =bdRateExtend($G4:$G9,M4:M9,$AC4:$AC9,AI4:AI9) ->  | BO4: =bdRateExtend($G4:$G7,N4:N7,$AC4:$AC7,AJ4:AJ7,"None", FALSE,1) ->  | BP4: =bdRateExtend($G4:$G9,N4:N9,$AC4:$AC9,AJ4:AJ9,"None", FALSE,1) ->  | BQ4: =bdRateExtend($G4:$G7,O4:O7,$AC4:$AC7,AK4:AK7,"None", FALSE,1) ->  | BR4: =bdRateExtend($G4:$G9,O4:O9,$AC4:$AC9,AK4:AK9,"None", FALSE,1) ->  | BS4: =bdRateExtend($G4:$G7,P4:P7,$AC4:$AC7,AL4:AL7) ->  | BT4: =bdRateExtend($G4:$G9,P4:P9,$AC4:$AC9,AL4:AL9) ->  | BU4: =bdRateExtend($G4:$G7,Q4:Q7,$AC4:$AC7,AM4:AM7) ->  | BV4: =bdRateExtend($G4:$G9,Q4:Q9,$AC4:$AC9,AM4:AM9) ->  | BW4: =bdRateExtend($G4:$G7,R4:R7,$AC4:$AC7,AN4:AN7) ->  | BX4: =bdRateExtend($G4:$G9,R4:R9,$AC4:$AC9,AN4:AN9) ->  | BY4: =bdRateExtend($G4:$G9,S4:S9,$AC4:$AC9,AO4:AO9) ->  | BZ4: =bdRateExtend($G4:$G9,T4:T9,$AC4:$AC9,AP4:AP9) ->  | CA4: =bdRateExtend($G4:$G9,U4:U9,$AC4:$AC9,AQ4:AQ9) ->  | CB4: =(Summary!$C$109*BX4+Summary!$C$110*BY4+Summary!$C$111*BZ4)/Summary!$C$112 ->  | CC4: =bdCAMBIExtend($G4:$G7,V4:V7,$AC4:$AC7,AR4:AR7) ->  | CD4: =bdCAMBIExtend($G4:$G9,V4:V9,$AC4:$AC9,AR4:AR9) ->  | CE4: =testVMAFRange($G4:$G7,N4:N7,$AC4:$AC7,AJ4:AJ7) -> 0 | CF4: =testVMAFRange($G4:$G9,N4:N9,$AC4:$AC9,AJ4:AJ9) -> 0 | CG4: =testVMAFRange($G4:$G7,O4:O7,$AC4:$AC7,AK4:AK7) -> 0 | CH4: =testVMAFRange($G4:$G9,O4:O9,$AC4:$AC9,AK4:AK9) -> 0
F5: 110 | G5: ='Anchor-AI'!L3 -> 0 | H5: ='Anchor-AI'!M3 -> 0 | I5: ='Anchor-AI'!N3 -> 0 | J5: ='Anchor-AI'!O3 -> 0 | K5: =(Summary!$C$64*H5+Summary!$C$65*I5+Summary!$C$66*J5)/Summary!$C$67 -> 0 | L5: ='Anchor-AI'!P3 -> 0 | M5: ='Anchor-AI'!Q3 -> 0 | N5: ='Anchor-AI'!R3 -> 0 | O5: ='Anchor-AI'!S3 -> 0 | P5: ='Anchor-AI'!T3 -> 0 | Q5: ='Anchor-AI'!U3 -> 0 | R5: ='Anchor-AI'!V3 -> 0 | S5: ='Anchor-AI'!W3 -> 0 | T5: ='Anchor-AI'!X3 -> 0 | U5: =10*LOG10(1/((Summary!$C$81/10^(R5/10)+Summary!$C$82/10^(S5/10)+Summary!$C$83/10^(T5/10))/Summary!$C$84)) -> 0 | V5: ='Anchor-AI'!Y3 -> 0 | W5: ='Anchor-AI'!Z3 -> 0 | X5: ='Anchor-AI'!AA3 -> 0 | Y5: ='Anchor-AI'!AB3 -> 0 | Z5: ='Anchor-AI'!AC3 -> 0 | AA5: 0 | AC5: ='Test-AI'!L3 -> 0 | AD5: ='Test-AI'!M3 -> 0 | AE5: ='Test-AI'!N3 -> 0 | AF5: ='Test-AI'!O3 -> 0 | AG5: =(Summary!$C$64*AD5+Summary!$C$65*AE5+Summary!$C$66*AF5)/Summary!$C$67 -> 0 | AH5: ='Test-AI'!P3 -> 0 | AI5: ='Test-AI'!Q3 -> 0 | AJ5: ='Test-AI'!R3 -> 0 | AK5: ='Test-AI'!S3 -> 0 | AL5: ='Test-AI'!T3 -> 0 | AM5: ='Test-AI'!U3 -> 0 | AN5: ='Test-AI'!V3 -> 0 | AO5: ='Test-AI'!W3 -> 0 | AP5: ='Test-AI'!X3 -> 0 | AQ5: =10*LOG10(1/((Summary!$C$81/10^(AN5/10)+Summary!$C$82/10^(AO5/10)+Summary!$C$83/10^(AP5/10))/Summary!$C$84)) -> 0 | AR5: ='Test-AI'!Y3 -> 0 | AS5: ='Test-AI'!Z3 -> 0 | AT5: ='Test-AI'!AA3 -> 0 | AU5: ='Test-AI'!AB3 -> 0 | AV5: ='Test-AI'!AC3 -> 0 | AW5: 0
F6: 135 | G6: ='Anchor-AI'!L4 -> 0 | H6: ='Anchor-AI'!M4 -> 0 | I6: ='Anchor-AI'!N4 -> 0 | J6: ='Anchor-AI'!O4 -> 0 | K6: =(Summary!$C$64*H6+Summary!$C$65*I6+Summary!$C$66*J6)/Summary!$C$67 -> 0 | L6: ='Anchor-AI'!P4 -> 0 | M6: ='Anchor-AI'!Q4 -> 0 | N6: ='Anchor-AI'!R4 -> 0 | O6: ='Anchor-AI'!S4 -> 0 | P6: ='Anchor-AI'!T4 -> 0 | Q6: ='Anchor-AI'!U4 -> 0 | R6: ='Anchor-AI'!V4 -> 0 | S6: ='Anchor-AI'!W4 -> 0 | T6: ='Anchor-AI'!X4 -> 0 | U6: =10*LOG10(1/((Summary!$C$81/10^(R6/10)+Summary!$C$82/10^(S6/10)+Summary!$C$83/10^(T6/10))/Summary!$C$84)) -> 0 | V6: ='Anchor-AI'!Y4 -> 0 | W6: ='Anchor-AI'!Z4 -> 0 | X6: ='Anchor-AI'!AA4 -> 0 | Y6: ='Anchor-AI'!AB4 -> 0 | Z6: ='Anchor-AI'!AC4 -> 0 | AA6: 0 | AC6: ='Test-AI'!L4 -> 0 | AD6: ='Test-AI'!M4 -> 0 | AE6: ='Test-AI'!N4 -> 0 | AF6: ='Test-AI'!O4 -> 0 | AG6: =(Summary!$C$64*AD6+Summary!$C$65*AE6+Summary!$C$66*AF6)/Summary!$C$67 -> 0 | AH6: ='Test-AI'!P4 -> 0 | AI6: ='Test-AI'!Q4 -> 0 | AJ6: ='Test-AI'!R4 -> 0 | AK6: ='Test-AI'!S4 -> 0 | AL6: ='Test-AI'!T4 -> 0 | AM6: ='Test-AI'!U4 -> 0 | AN6: ='Test-AI'!V4 -> 0 | AO6: ='Test-AI'!W4 -> 0 | AP6: ='Test-AI'!X4 -> 0 | AQ6: =10*LOG10(1/((Summary!$C$81/10^(AN6/10)+Summary!$C$82/10^(AO6/10)+Summary!$C$83/10^(AP6/10))/Summary!$C$84)) -> 0 | AR6: ='Test-AI'!Y4 -> 0 | AS6: ='Test-AI'!Z4 -> 0 | AT6: ='Test-AI'!AA4 -> 0 | AU6: ='Test-AI'!AB4 -> 0 | AV6: ='Test-AI'!AC4 -> 0 | AW6: 0 | BD6: Med | BE6: =bdRateExtend($G5:$G8,H5:H8,$AC5:$AC8,AD5:AD8) ->  | BK6: =bdRateExtend($G5:$G8,L5:L8,$AC5:$AC8,AH5:AH8) ->  | BM6: =bdRateExtend($G5:$G8,M5:M8,$AC5:$AC8,AI5:AI8) ->  | BO6: =bdRateExtend($G5:$G8,N5:N8,$AC5:$AC8,AJ5:AJ8,"None", FALSE,1) ->  | BQ6: =bdRateExtend($G5:$G8,O5:O8,$AC5:$AC8,AK5:AK8,"None", FALSE,1) ->  | BS6: =bdRateExtend($G5:$G8,P5:P8,$AC5:$AC8,AL5:AL8) ->  | BU6: =bdRateExtend($G5:$G8,Q5:Q8,$AC5:$AC8,AM5:AM8) ->  | BW6: =bdRateExtend($G5:$G8,R5:R8,$AC5:$AC8,AN5:AN8) ->  | CC6: =bdCAMBIExtend($G5:$G8,V5:V8,$AC5:$AC8,AR5:AR8) ->  | CE6: =testVMAFRange($G5:$G8,N5:N8,$AC5:$AC8,AJ5:AJ8) -> 0 | CG6: =testVMAFRange($G5:$G8,O5:O8,$AC5:$AC8,AK5:AK8) -> 0
F7: 160 | G7: ='Anchor-AI'!L5 -> 0 | H7: ='Anchor-AI'!M5 -> 0 | I7: ='Anchor-AI'!N5 -> 0 | J7: ='Anchor-AI'!O5 -> 0 | K7: =(Summary!$C$64*H7+Summary!$C$65*I7+Summary!$C$66*J7)/Summary!$C$67 -> 0 | L7: ='Anchor-AI'!P5 -> 0 | M7: ='Anchor-AI'!Q5 -> 0 | N7: ='Anchor-AI'!R5 -> 0 | O7: ='Anchor-AI'!S5 -> 0 | P7: ='Anchor-AI'!T5 -> 0 | Q7: ='Anchor-AI'!U5 -> 0 | R7: ='Anchor-AI'!V5 -> 0 | S7: ='Anchor-AI'!W5 -> 0 | T7: ='Anchor-AI'!X5 -> 0 | U7: =10*LOG10(1/((Summary!$C$81/10^(R7/10)+Summary!$C$82/10^(S7/10)+Summary!$C$83/10^(T7/10))/Summary!$C$84)) -> 0 | V7: ='Anchor-AI'!Y5 -> 0 | W7: ='Anchor-AI'!Z5 -> 0 | X7: ='Anchor-AI'!AA5 -> 0 | Y7: ='Anchor-AI'!AB5 -> 0 | Z7: ='Anchor-AI'!AC5 -> 0 | AA7: 0 | AC7: ='Test-AI'!L5 -> 0 | AD7: ='Test-AI'!M5 -> 0 | AE7: ='Test-AI'!N5 -> 0 | AF7: ='Test-AI'!O5 -> 0 | AG7: =(Summary!$C$64*AD7+Summary!$C$65*AE7+Summary!$C$66*AF7)/Summary!$C$67 -> 0 | AH7: ='Test-AI'!P5 -> 0 | AI7: ='Test-AI'!Q5 -> 0 | AJ7: ='Test-AI'!R5 -> 0 | AK7: ='Test-AI'!S5 -> 0 | AL7: ='Test-AI'!T5 -> 0 | AM7: ='Test-AI'!U5 -> 0 | AN7: ='Test-AI'!V5 -> 0 | AO7: ='Test-AI'!W5 -> 0 | AP7: ='Test-AI'!X5 -> 0 | AQ7: =10*LOG10(1/((Summary!$C$81/10^(AN7/10)+Summary!$C$82/10^(AO7/10)+Summary!$C$83/10^(AP7/10))/Summary!$C$84)) -> 0 | AR7: ='Test-AI'!Y5 -> 0 | AS7: ='Test-AI'!Z5 -> 0 | AT7: ='Test-AI'!AA5 -> 0 | AU7: ='Test-AI'!AB5 -> 0 | AV7: ='Test-AI'!AC5 -> 0 | AW7: 0
F8: 185 | G8: ='Anchor-AI'!L6 -> 0 | H8: ='Anchor-AI'!M6 -> 0 | I8: ='Anchor-AI'!N6 -> 0 | J8: ='Anchor-AI'!O6 -> 0 | K8: =(Summary!$C$64*H8+Summary!$C$65*I8+Summary!$C$66*J8)/Summary!$C$67 -> 0 | L8: ='Anchor-AI'!P6 -> 0 | M8: ='Anchor-AI'!Q6 -> 0 | N8: ='Anchor-AI'!R6 -> 0 | O8: ='Anchor-AI'!S6 -> 0 | P8: ='Anchor-AI'!T6 -> 0 | Q8: ='Anchor-AI'!U6 -> 0 | R8: ='Anchor-AI'!V6 -> 0 | S8: ='Anchor-AI'!W6 -> 0 | T8: ='Anchor-AI'!X6 -> 0 | U8: =10*LOG10(1/((Summary!$C$81/10^(R8/10)+Summary!$C$82/10^(S8/10)+Summary!$C$83/10^(T8/10))/Summary!$C$84)) -> 0 | V8: ='Anchor-AI'!Y6 -> 0 | W8: ='Anchor-AI'!Z6 -> 0 | X8: ='Anchor-AI'!AA6 -> 0 | Y8: ='Anchor-AI'!AB6 -> 0 | Z8: ='Anchor-AI'!AC6 -> 0 | AA8: 0 | AC8: ='Test-AI'!L6 -> 0 | AD8: ='Test-AI'!M6 -> 0 | AE8: ='Test-AI'!N6 -> 0 | AF8: ='Test-AI'!O6 -> 0 | AG8: =(Summary!$C$64*AD8+Summary!$C$65*AE8+Summary!$C$66*AF8)/Summary!$C$67 -> 0 | AH8: ='Test-AI'!P6 -> 0 | AI8: ='Test-AI'!Q6 -> 0 | AJ8: ='Test-AI'!R6 -> 0 | AK8: ='Test-AI'!S6 -> 0 | AL8: ='Test-AI'!T6 -> 0 | AM8: ='Test-AI'!U6 -> 0 | AN8: ='Test-AI'!V6 -> 0 | AO8: ='Test-AI'!W6 -> 0 | AP8: ='Test-AI'!X6 -> 0 | AQ8: =10*LOG10(1/((Summary!$C$81/10^(AN8/10)+Summary!$C$82/10^(AO8/10)+Summary!$C$83/10^(AP8/10))/Summary!$C$84)) -> 0 | AR8: ='Test-AI'!Y6 -> 0 | AS8: ='Test-AI'!Z6 -> 0 | AT8: ='Test-AI'!AA6 -> 0 | AU8: ='Test-AI'!AB6 -> 0 | AV8: ='Test-AI'!AC6 -> 0 | AW8: 0 | BD8: Low | BE8: =bdRateExtend($G6:$G9,H6:H9,$AC6:$AC9,AD6:AD9) ->  | BK8: =bdRateExtend($G6:$G9,L6:L9,$AC6:$AC9,AH6:AH9) ->  | BM8: =bdRateExtend($G6:$G9,M6:M9,$AC6:$AC9,AI6:AI9) ->  | BO8: =bdRateExtend($G6:$G9,N6:N9,$AC6:$AC9,AJ6:AJ9,"None", FALSE,1) ->  | BQ8: =bdRateExtend($G6:$G9,O6:O9,$AC6:$AC9,AK6:AK9,"None", FALSE,1) ->  | BS8: =bdRateExtend($G6:$G9,P6:P9,$AC6:$AC9,AL6:AL9) ->  | BU8: =bdRateExtend($G6:$G9,Q6:Q9,$AC6:$AC9,AM6:AM9) ->  | BW8: =bdRateExtend($G6:$G9,R6:R9,$AC6:$AC9,AN6:AN9) ->  | CC8: =bdCAMBIExtend($G6:$G9,V6:V9,$AC6:$AC9,AR6:AR9) ->  | CE8: =testVMAFRange($G6:$G9,N6:N9,$AC6:$AC9,AJ6:AJ9) -> 0 | CG8: =testVMAFRange($G6:$G9,O6:O9,$AC6:$AC9,AK6:AK9) -> 0
F9: 210 | G9: ='Anchor-AI'!L7 -> 0 | H9: ='Anchor-AI'!M7 -> 0 | I9: ='Anchor-AI'!N7 -> 0 | J9: ='Anchor-AI'!O7 -> 0 | K9: =(Summary!$C$64*H9+Summary!$C$65*I9+Summary!$C$66*J9)/Summary!$C$67 -> 0 | L9: ='Anchor-AI'!P7 -> 0 | M9: ='Anchor-AI'!Q7 -> 0 | N9: ='Anchor-AI'!R7 -> 0 | O9: ='Anchor-AI'!S7 -> 0 | P9: ='Anchor-AI'!T7 -> 0 | Q9: ='Anchor-AI'!U7 -> 0 | R9: ='Anchor-AI'!V7 -> 0 | S9: ='Anchor-AI'!W7 -> 0 | T9: ='Anchor-AI'!X7 -> 0 | U9: =10*LOG10(1/((Summary!$C$81/10^(R9/10)+Summary!$C$82/10^(S9/10)+Summary!$C$83/10^(T9/10))/Summary!$C$84)) -> 0 | V9: ='Anchor-AI'!Y7 -> 0 | W9: ='Anchor-AI'!Z7 -> 0 | X9: ='Anchor-AI'!AA7 -> 0 | Y9: ='Anchor-AI'!AB7 -> 0 | Z9: ='Anchor-AI'!AC7 -> 0 | AA9: 0 | AC9: ='Test-AI'!L7 -> 0 | AD9: ='Test-AI'!M7 -> 0 | AE9: ='Test-AI'!N7 -> 0 | AF9: ='Test-AI'!O7 -> 0 | AG9: =(Summary!$C$64*AD9+Summary!$C$65*AE9+Summary!$C$66*AF9)/Summary!$C$67 -> 0 | AH9: ='Test-AI'!P7 -> 0 | AI9: ='Test-AI'!Q7 -> 0 | AJ9: ='Test-AI'!R7 -> 0 | AK9: ='Test-AI'!S7 -> 0 | AL9: ='Test-AI'!T7 -> 0 | AM9: ='Test-AI'!U7 -> 0 | AN9: ='Test-AI'!V7 -> 0 | AO9: ='Test-AI'!W7 -> 0 | AP9: ='Test-AI'!X7 -> 0 | AQ9: =10*LOG10(1/((Summary!$C$81/10^(AN9/10)+Summary!$C$82/10^(AO9/10)+Summary!$C$83/10^(AP9/10))/Summary!$C$84)) -> 0 | AR9: ='Test-AI'!Y7 -> 0 | AS9: ='Test-AI'!Z7 -> 0 | AT9: ='Test-AI'!AA7 -> 0 | AU9: ='Test-AI'!AB7 -> 0 | AV9: ='Test-AI'!AC7 -> 0 | AW9: 0
B10: 3840x2160 | C10: Crosswalk_3840x2160_5994fps_10bit_420.y4m | D10: 59.94 | E10: 10 | F10: 85 | G10: ='Anchor-AI'!L8 -> 0 | H10: ='Anchor-AI'!M8 -> 0 | I10: ='Anchor-AI'!N8 -> 0 | J10: ='Anchor-AI'!O8 -> 0 | K10: =(Summary!$C$64*H10+Summary!$C$65*I10+Summary!$C$66*J10)/Summary!$C$67 -> 0 | L10: ='Anchor-AI'!P8 -> 0 | M10: ='Anchor-AI'!Q8 -> 0 | N10: ='Anchor-AI'!R8 -> 0 | O10: ='Anchor-AI'!S8 -> 0 | P10: ='Anchor-AI'!T8 -> 0 | Q10: ='Anchor-AI'!U8 -> 0 | R10: ='Anchor-AI'!V8 -> 0 | S10: ='Anchor-AI'!W8 -> 0 | T10: ='Anchor-AI'!X8 -> 0 | U10: =10*LOG10(1/((Summary!$C$81/10^(R10/10)+Summary!$C$82/10^(S10/10)+Summary!$C$83/10^(T10/10))/Summary!$C$84)) -> 0 | V10: ='Anchor-AI'!Y8 -> 0 | W10: ='Anchor-AI'!Z8 -> 0 | X10: ='Anchor-AI'!AA8 -> 0 | Y10: ='Anchor-AI'!AB8 -> 0 | Z10: ='Anchor-AI'!AC8 -> 0 | AA10: 0 | AC10: ='Test-AI'!L8 -> 0 | AD10: ='Test-AI'!M8 -> 0 | AE10: ='Test-AI'!N8 -> 0 | AF10: ='Test-AI'!O8 -> 0 | AG10: =(Summary!$C$64*AD10+Summary!$C$65*AE10+Summary!$C$66*AF10)/Summary!$C$67 -> 0 | AH10: ='Test-AI'!P8 -> 0 | AI10: ='Test-AI'!Q8 -> 0 | AJ10: ='Test-AI'!R8 -> 0 | AK10: ='Test-AI'!S8 -> 0 | AL10: ='Test-AI'!T8 -> 0 | AM10: ='Test-AI'!U8 -> 0 | AN10: ='Test-AI'!V8 -> 0 | AO10: ='Test-AI'!W8 -> 0 | AP10: ='Test-AI'!X8 -> 0 | AQ10: =10*LOG10(1/((Summary!$C$81/10^(AN10/10)+Summary!$C$82/10^(AO10/10)+Summary!$C$83/10^(AP10/10))/Summary!$C$84)) -> 0 | AR10: ='Test-AI'!Y8 -> 0 | AS10: ='Test-AI'!Z8 -> 0 | AT10: ='Test-AI'!AA8 -> 0 | AU10: ='Test-AI'!AB8 -> 0 | AV10: ='Test-AI'!AC8 -> 0 | AW10: 0 | BD10: High | BE10: =bdRateExtend($G10:$G13,H10:H13,$AC10:$AC13,AD10:AD13) ->  | BF10: =bdRateExtend($G10:$G15,H10:H15,$AC10:$AC15,AD10:AD15) ->  | BG10: =bdRateExtend($G10:$G15,I10:I15,$AC10:$AC15,AE10:AE15) ->  | BH10: =bdRateExtend($G10:$G15,J10:J15,$AC10:$AC15,AF10:AF15) ->  | BI10: =bdRateExtend($G10:$G15,K10:K15,$AC10:$AC15,AG10:AG15) ->  | BJ10: =(Summary!$C$95*BF10+Summary!$C$96*BG10+Summary!$C$97*BH10)/Summary!$C$98 ->  | BK10: =bdRateExtend($G10:$G13,L10:L13,$AC10:$AC13,AH10:AH13) ->  | BL10: =bdRateExtend($G10:$G15,L10:L15,$AC10:$AC15,AH10:AH15) ->  | BM10: =bdRateExtend($G10:$G13,M10:M13,$AC10:$AC13,AI10:AI13) ->  | BN10: =bdRateExtend($G10:$G15,M10:M15,$AC10:$AC15,AI10:AI15) ->  | BO10: =bdRateExtend($G10:$G13,N10:N13,$AC10:$AC13,AJ10:AJ13,"None", FALSE,1) ->  | BP10: =bdRateExtend($G10:$G15,N10:N15,$AC10:$AC15,AJ10:AJ15,"None", FALSE,1) ->  | BQ10: =bdRateExtend($G10:$G13,O10:O13,$AC10:$AC13,AK10:AK13,"None", FALSE,1) ->  | BR10: =bdRateExtend($G10:$G15,O10:O15,$AC10:$AC15,AK10:AK15,"None", FALSE,1) ->  | BS10: =bdRateExtend($G10:$G13,P10:P13,$AC10:$AC13,AL10:AL13) ->  | BT10: =bdRateExtend($G10:$G15,P10:P15,$AC10:$AC15,AL10:AL15) ->  | BU10: =bdRateExtend($G10:$G13,Q10:Q13,$AC10:$AC13,AM10:AM13) ->  | BV10: =bdRateExtend($G10:$G15,Q10:Q15,$AC10:$AC15,AM10:AM15) ->  | BW10: =bdRateExtend($G10:$G13,R10:R13,$AC10:$AC13,AN10:AN13) ->  | BX10: =bdRateExtend($G10:$G15,R10:R15,$AC10:$AC15,AN10:AN15) ->  | BY10: =bdRateExtend($G10:$G15,S10:S15,$AC10:$AC15,AO10:AO15) ->  | BZ10: =bdRateExtend($G10:$G15,T10:T15,$AC10:$AC15,AP10:AP15) ->  | CA10: =bdRateExtend($G10:$G15,U10:U15,$AC10:$AC15,AQ10:AQ15) ->  | CB10: =(Summary!$C$109*BX10+Summary!$C$110*BY10+Summary!$C$111*BZ10)/Summary!$C$112 ->  | CC10: =bdCAMBIExtend($G10:$G13,V10:V13,$AC10:$AC13,AR10:AR13) ->  | CD10: =bdCAMBIExtend($G10:$G15,V10:V15,$AC10:$AC15,AR10:AR15) ->  | CE10: =testVMAFRange($G10:$G13,N10:N13,$AC10:$AC13,AJ10:AJ13) -> 0 | CF10: =testVMAFRange($G10:$G15,N10:N15,$AC10:$AC15,AJ10:AJ15) -> 0 | CG10: =testVMAFRange($G10:$G13,O10:O13,$AC10:$AC13,AK10:AK13) -> 0 | CH10: =testVMAFRange($G10:$G15,O10:O15,$AC10:$AC15,AK10:AK15) -> 0
F11: 110 | G11: ='Anchor-AI'!L9 -> 0 | H11: ='Anchor-AI'!M9 -> 0 | I11: ='Anchor-AI'!N9 -> 0 | J11: ='Anchor-AI'!O9 -> 0 | K11: =(Summary!$C$64*H11+Summary!$C$65*I11+Summary!$C$66*J11)/Summary!$C$67 -> 0 | L11: ='Anchor-AI'!P9 -> 0 | M11: ='Anchor-AI'!Q9 -> 0 | N11: ='Anchor-AI'!R9 -> 0 | O11: ='Anchor-AI'!S9 -> 0 | P11: ='Anchor-AI'!T9 -> 0 | Q11: ='Anchor-AI'!U9 -> 0 | R11: ='Anchor-AI'!V9 -> 0 | S11: ='Anchor-AI'!W9 -> 0 | T11: ='Anchor-AI'!X9 -> 0 | U11: =10*LOG10(1/((Summary!$C$81/10^(R11/10)+Summary!$C$82/10^(S11/10)+Summary!$C$83/10^(T11/10))/Summary!$C$84)) -> 0 | V11: ='Anchor-AI'!Y9 -> 0 | W11: ='Anchor-AI'!Z9 -> 0 | X11: ='Anchor-AI'!AA9 -> 0 | Y11: ='Anchor-AI'!AB9 -> 0 | Z11: ='Anchor-AI'!AC9 -> 0 | AA11: 0 | AC11: ='Test-AI'!L9 -> 0 | AD11: ='Test-AI'!M9 -> 0 | AE11: ='Test-AI'!N9 -> 0 | AF11: ='Test-AI'!O9 -> 0 | AG11: =(Summary!$C$64*AD11+Summary!$C$65*AE11+Summary!$C$66*AF11)/Summary!$C$67 -> 0 | AH11: ='Test-AI'!P9 -> 0 | AI11: ='Test-AI'!Q9 -> 0 | AJ11: ='Test-AI'!R9 -> 0 | AK11: ='Test-AI'!S9 -> 0 | AL11: ='Test-AI'!T9 -> 0 | AM11: ='Test-AI'!U9 -> 0 | AN11: ='Test-AI'!V9 -> 0 | AO11: ='Test-AI'!W9 -> 0 | AP11: ='Test-AI'!X9 -> 0 | AQ11: =10*LOG10(1/((Summary!$C$81/10^(AN11/10)+Summary!$C$82/10^(AO11/10)+Summary!$C$83/10^(AP11/10))/Summary!$C$84)) -> 0 | AR11: ='Test-AI'!Y9 -> 0 | AS11: ='Test-AI'!Z9 -> 0 | AT11: ='Test-AI'!AA9 -> 0 | AU11: ='Test-AI'!AB9 -> 0 | AV11: ='Test-AI'!AC9 -> 0 | AW11: 0
F12: 135 | G12: ='Anchor-AI'!L10 -> 0 | H12: ='Anchor-AI'!M10 -> 0 | I12: ='Anchor-AI'!N10 -> 0 | J12: ='Anchor-AI'!O10 -> 0 | K12: =(Summary!$C$64*H12+Summary!$C$65*I12+Summary!$C$66*J12)/Summary!$C$67 -> 0 | L12: ='Anchor-AI'!P10 -> 0 | M12: ='Anchor-AI'!Q10 -> 0 | N12: ='Anchor-AI'!R10 -> 0 | O12: ='Anchor-AI'!S10 -> 0 | P12: ='Anchor-AI'!T10 -> 0 | Q12: ='Anchor-AI'!U10 -> 0 | R12: ='Anchor-AI'!V10 -> 0 | S12: ='Anchor-AI'!W10 -> 0 | T12: ='Anchor-AI'!X10 -> 0 | U12: =10*LOG10(1/((Summary!$C$81/10^(R12/10)+Summary!$C$82/10^(S12/10)+Summary!$C$83/10^(T12/10))/Summary!$C$84)) -> 0 | V12: ='Anchor-AI'!Y10 -> 0 | W12: ='Anchor-AI'!Z10 -> 0 | X12: ='Anchor-AI'!AA10 -> 0 | Y12: ='Anchor-AI'!AB10 -> 0 | Z12: ='Anchor-AI'!AC10 -> 0 | AA12: 0 | AC12: ='Test-AI'!L10 -> 0 | AD12: ='Test-AI'!M10 -> 0 | AE12: ='Test-AI'!N10 -> 0 | AF12: ='Test-AI'!O10 -> 0 | AG12: =(Summary!$C$64*AD12+Summary!$C$65*AE12+Summary!$C$66*AF12)/Summary!$C$67 -> 0 | AH12: ='Test-AI'!P10 -> 0 | AI12: ='Test-AI'!Q10 -> 0 | AJ12: ='Test-AI'!R10 -> 0 | AK12: ='Test-AI'!S10 -> 0 | AL12: ='Test-AI'!T10 -> 0 | AM12: ='Test-AI'!U10 -> 0 | AN12: ='Test-AI'!V10 -> 0 | AO12: ='Test-AI'!W10 -> 0 | AP12: ='Test-AI'!X10 -> 0 | AQ12: =10*LOG10(1/((Summary!$C$81/10^(AN12/10)+Summary!$C$82/10^(AO12/10)+Summary!$C$83/10^(AP12/10))/Summary!$C$84)) -> 0 | AR12: ='Test-AI'!Y10 -> 0 | AS12: ='Test-AI'!Z10 -> 0 | AT12: ='Test-AI'!AA10 -> 0 | AU12: ='Test-AI'!AB10 -> 0 | AV12: ='Test-AI'!AC10 -> 0 | AW12: 0 | BD12: Med | BE12: =bdRateExtend($G11:$G14,H11:H14,$AC11:$AC14,AD11:AD14) ->  | BK12: =bdRateExtend($G11:$G14,L11:L14,$AC11:$AC14,AH11:AH14) ->  | BM12: =bdRateExtend($G11:$G14,M11:M14,$AC11:$AC14,AI11:AI14) ->  | BO12: =bdRateExtend($G11:$G14,N11:N14,$AC11:$AC14,AJ11:AJ14,"None", FALSE,1) ->  | BQ12: =bdRateExtend($G11:$G14,O11:O14,$AC11:$AC14,AK11:AK14,"None", FALSE,1) ->  | BS12: =bdRateExtend($G11:$G14,P11:P14,$AC11:$AC14,AL11:AL14) ->  | BU12: =bdRateExtend($G11:$G14,Q11:Q14,$AC11:$AC14,AM11:AM14) ->  | BW12: =bdRateExtend($G11:$G14,R11:R14,$AC11:$AC14,AN11:AN14) ->  | CC12: =bdCAMBIExtend($G11:$G14,V11:V14,$AC11:$AC14,AR11:AR14) ->  | CE12: =testVMAFRange($G11:$G14,N11:N14,$AC11:$AC14,AJ11:AJ14) -> 0 | CG12: =testVMAFRange($G11:$G14,O11:O14,$AC11:$AC14,AK11:AK14) -> 0
F13: 160 | G13: ='Anchor-AI'!L11 -> 0 | H13: ='Anchor-AI'!M11 -> 0 | I13: ='Anchor-AI'!N11 -> 0 | J13: ='Anchor-AI'!O11 -> 0 | K13: =(Summary!$C$64*H13+Summary!$C$65*I13+Summary!$C$66*J13)/Summary!$C$67 -> 0 | L13: ='Anchor-AI'!P11 -> 0 | M13: ='Anchor-AI'!Q11 -> 0 | N13: ='Anchor-AI'!R11 -> 0 | O13: ='Anchor-AI'!S11 -> 0 | P13: ='Anchor-AI'!T11 -> 0 | Q13: ='Anchor-AI'!U11 -> 0 | R13: ='Anchor-AI'!V11 -> 0 | S13: ='Anchor-AI'!W11 -> 0 | T13: ='Anchor-AI'!X11 -> 0 | U13: =10*LOG10(1/((Summary!$C$81/10^(R13/10)+Summary!$C$82/10^(S13/10)+Summary!$C$83/10^(T13/10))/Summary!$C$84)) -> 0 | V13: ='Anchor-AI'!Y11 -> 0 | W13: ='Anchor-AI'!Z11 -> 0 | X13: ='Anchor-AI'!AA11 -> 0 | Y13: ='Anchor-AI'!AB11 -> 0 | Z13: ='Anchor-AI'!AC11 -> 0 | AA13: 0 | AC13: ='Test-AI'!L11 -> 0 | AD13: ='Test-AI'!M11 -> 0 | AE13: ='Test-AI'!N11 -> 0 | AF13: ='Test-AI'!O11 -> 0 | AG13: =(Summary!$C$64*AD13+Summary!$C$65*AE13+Summary!$C$66*AF13)/Summary!$C$67 -> 0 | AH13: ='Test-AI'!P11 -> 0 | AI13: ='Test-AI'!Q11 -> 0 | AJ13: ='Test-AI'!R11 -> 0 | AK13: ='Test-AI'!S11 -> 0 | AL13: ='Test-AI'!T11 -> 0 | AM13: ='Test-AI'!U11 -> 0 | AN13: ='Test-AI'!V11 -> 0 | AO13: ='Test-AI'!W11 -> 0 | AP13: ='Test-AI'!X11 -> 0 | AQ13: =10*LOG10(1/((Summary!$C$81/10^(AN13/10)+Summary!$C$82/10^(AO13/10)+Summary!$C$83/10^(AP13/10))/Summary!$C$84)) -> 0 | AR13: ='Test-AI'!Y11 -> 0 | AS13: ='Test-AI'!Z11 -> 0 | AT13: ='Test-AI'!AA11 -> 0 | AU13: ='Test-AI'!AB11 -> 0 | AV13: ='Test-AI'!AC11 -> 0 | AW13: 0
F14: 185 | G14: ='Anchor-AI'!L12 -> 0 | H14: ='Anchor-AI'!M12 -> 0 | I14: ='Anchor-AI'!N12 -> 0 | J14: ='Anchor-AI'!O12 -> 0 | K14: =(Summary!$C$64*H14+Summary!$C$65*I14+Summary!$C$66*J14)/Summary!$C$67 -> 0 | L14: ='Anchor-AI'!P12 -> 0 | M14: ='Anchor-AI'!Q12 -> 0 | N14: ='Anchor-AI'!R12 -> 0 | O14: ='Anchor-AI'!S12 -> 0 | P14: ='Anchor-AI'!T12 -> 0 | Q14: ='Anchor-AI'!U12 -> 0 | R14: ='Anchor-AI'!V12 -> 0 | S14: ='Anchor-AI'!W12 -> 0 | T14: ='Anchor-AI'!X12 -> 0 | U14: =10*LOG10(1/((Summary!$C$81/10^(R14/10)+Summary!$C$82/10^(S14/10)+Summary!$C$83/10^(T14/10))/Summary!$C$84)) -> 0 | V14: ='Anchor-AI'!Y12 -> 0 | W14: ='Anchor-AI'!Z12 -> 0 | X14: ='Anchor-AI'!AA12 -> 0 | Y14: ='Anchor-AI'!AB12 -> 0 | Z14: ='Anchor-AI'!AC12 -> 0 | AA14: 0 | AC14: ='Test-AI'!L12 -> 0 | AD14: ='Test-AI'!M12 -> 0 | AE14: ='Test-AI'!N12 -> 0 | AF14: ='Test-AI'!O12 -> 0 | AG14: =(Summary!$C$64*AD14+Summary!$C$65*AE14+Summary!$C$66*AF14)/Summary!$C$67 -> 0 | AH14: ='Test-AI'!P12 -> 0 | AI14: ='Test-AI'!Q12 -> 0 | AJ14: ='Test-AI'!R12 -> 0 | AK14: ='Test-AI'!S12 -> 0 | AL14: ='Test-AI'!T12 -> 0 | AM14: ='Test-AI'!U12 -> 0 | AN14: ='Test-AI'!V12 -> 0 | AO14: ='Test-AI'!W12 -> 0 | AP14: ='Test-AI'!X12 -> 0 | AQ14: =10*LOG10(1/((Summary!$C$81/10^(AN14/10)+Summary!$C$82/10^(AO14/10)+Summary!$C$83/10^(AP14/10))/Summary!$C$84)) -> 0 | AR14: ='Test-AI'!Y12 -> 0 | AS14: ='Test-AI'!Z12 -> 0 | AT14: ='Test-AI'!AA12 -> 0 | AU14: ='Test-AI'!AB12 -> 0 | AV14: ='Test-AI'!AC12 -> 0 | AW14: 0 | BD14: Low | BE14: =bdRateExtend($G12:$G15,H12:H15,$AC12:$AC15,AD12:AD15) ->  | BK14: =bdRateExtend($G12:$G15,L12:L15,$AC12:$AC15,AH12:AH15) ->  | BM14: =bdRateExtend($G12:$G15,M12:M15,$AC12:$AC15,AI12:AI15) ->  | BO14: =bdRateExtend($G12:$G15,N12:N15,$AC12:$AC15,AJ12:AJ15,"None", FALSE,1) ->  | BQ14: =bdRateExtend($G12:$G15,O12:O15,$AC12:$AC15,AK12:AK15,"None", FALSE,1) ->  | BS14: =bdRateExtend($G12:$G15,P12:P15,$AC12:$AC15,AL12:AL15) ->  | BU14: =bdRateExtend($G12:$G15,Q12:Q15,$AC12:$AC15,AM12:AM15) ->  | BW14: =bdRateExtend($G12:$G15,R12:R15,$AC12:$AC15,AN12:AN15) ->  | CC14: =bdCAMBIExtend($G12:$G15,V12:V15,$AC12:$AC15,AR12:AR15) ->  | CE14: =testVMAFRange($G12:$G15,N12:N15,$AC12:$AC15,AJ12:AJ15) -> 0 | CG14: =testVMAFRange($G12:$G15,O12:O15,$AC12:$AC15,AK12:AK15) -> 0
F15: 210 | G15: ='Anchor-AI'!L13 -> 0 | H15: ='Anchor-AI'!M13 -> 0 | I15: ='Anchor-AI'!N13 -> 0 | J15: ='Anchor-AI'!O13 -> 0 | K15: =(Summary!$C$64*H15+Summary!$C$65*I15+Summary!$C$66*J15)/Summary!$C$67 -> 0 | L15: ='Anchor-AI'!P13 -> 0 | M15: ='Anchor-AI'!Q13 -> 0 | N15: ='Anchor-AI'!R13 -> 0 | O15: ='Anchor-AI'!S13 -> 0 | P15: ='Anchor-AI'!T13 -> 0 | Q15: ='Anchor-AI'!U13 -> 0 | R15: ='Anchor-AI'!V13 -> 0 | S15: ='Anchor-AI'!W13 -> 0 | T15: ='Anchor-AI'!X13 -> 0 | U15: =10*LOG10(1/((Summary!$C$81/10^(R15/10)+Summary!$C$82/10^(S15/10)+Summary!$C$83/10^(T15/10))/Summary!$C$84)) -> 0 | V15: ='Anchor-AI'!Y13 -> 0 | W15: ='Anchor-AI'!Z13 -> 0 | X15: ='Anchor-AI'!AA13 -> 0 | Y15: ='Anchor-AI'!AB13 -> 0 | Z15: ='Anchor-AI'!AC13 -> 0 | AA15: 0 | AC15: ='Test-AI'!L13 -> 0 | AD15: ='Test-AI'!M13 -> 0 | AE15: ='Test-AI'!N13 -> 0 | AF15: ='Test-AI'!O13 -> 0 | AG15: =(Summary!$C$64*AD15+Summary!$C$65*AE15+Summary!$C$66*AF15)/Summary!$C$67 -> 0 | AH15: ='Test-AI'!P13 -> 0 | AI15: ='Test-AI'!Q13 -> 0 | AJ15: ='Test-AI'!R13 -> 0 | AK15: ='Test-AI'!S13 -> 0 | AL15: ='Test-AI'!T13 -> 0 | AM15: ='Test-AI'!U13 -> 0 | AN15: ='Test-AI'!V13 -> 0 | AO15: ='Test-AI'!W13 -> 0 | AP15: ='Test-AI'!X13 -> 0 | AQ15: =10*LOG10(1/((Summary!$C$81/10^(AN15/10)+Summary!$C$82/10^(AO15/10)+Summary!$C$83/10^(AP15/10))/Summary!$C$84)) -> 0 | AR15: ='Test-AI'!Y13 -> 0 | AS15: ='Test-AI'!Z13 -> 0 | AT15: ='Test-AI'!AA13 -> 0 | AU15: ='Test-AI'!AB13 -> 0 | AV15: ='Test-AI'!AC13 -> 0 | AW15: 0
B16: 3840x2160 | C16: FoodMarket2_3840x2160_5994fps_10bit_420.y4m | D16: 59.94 | E16: 10 | F16: 85 | G16: ='Anchor-AI'!L14 -> 0 | H16: ='Anchor-AI'!M14 -> 0 | I16: ='Anchor-AI'!N14 -> 0 | J16: ='Anchor-AI'!O14 -> 0 | K16: =(Summary!$C$64*H16+Summary!$C$65*I16+Summary!$C$66*J16)/Summary!$C$67 -> 0 | L16: ='Anchor-AI'!P14 -> 0 | M16: ='Anchor-AI'!Q14 -> 0 | N16: ='Anchor-AI'!R14 -> 0 | O16: ='Anchor-AI'!S14 -> 0 | P16: ='Anchor-AI'!T14 -> 0 | Q16: ='Anchor-AI'!U14 -> 0 | R16: ='Anchor-AI'!V14 -> 0 | S16: ='Anchor-AI'!W14 -> 0 | T16: ='Anchor-AI'!X14 -> 0 | U16: =10*LOG10(1/((Summary!$C$81/10^(R16/10)+Summary!$C$82/10^(S16/10)+Summary!$C$83/10^(T16/10))/Summary!$C$84)) -> 0 | V16: ='Anchor-AI'!Y14 -> 0 | W16: ='Anchor-AI'!Z14 -> 0 | X16: ='Anchor-AI'!AA14 -> 0 | Y16: ='Anchor-AI'!AB14 -> 0 | Z16: ='Anchor-AI'!AC14 -> 0 | AA16: 0 | AC16: ='Test-AI'!L14 -> 0 | AD16: ='Test-AI'!M14 -> 0 | AE16: ='Test-AI'!N14 -> 0 | AF16: ='Test-AI'!O14 -> 0 | AG16: =(Summary!$C$64*AD16+Summary!$C$65*AE16+Summary!$C$66*AF16)/Summary!$C$67 -> 0 | AH16: ='Test-AI'!P14 -> 0 | AI16: ='Test-AI'!Q14 -> 0 | AJ16: ='Test-AI'!R14 -> 0 | AK16: ='Test-AI'!S14 -> 0 | AL16: ='Test-AI'!T14 -> 0 | AM16: ='Test-AI'!U14 -> 0 | AN16: ='Test-AI'!V14 -> 0 | AO16: ='Test-AI'!W14 -> 0 | AP16: ='Test-AI'!X14 -> 0 | AQ16: =10*LOG10(1/((Summary!$C$81/10^(AN16/10)+Summary!$C$82/10^(AO16/10)+Summary!$C$83/10^(AP16/10))/Summary!$C$84)) -> 0 | AR16: ='Test-AI'!Y14 -> 0 | AS16: ='Test-AI'!Z14 -> 0 | AT16: ='Test-AI'!AA14 -> 0 | AU16: ='Test-AI'!AB14 -> 0 | AV16: ='Test-AI'!AC14 -> 0 | AW16: 0 | BD16: High | BE16: =bdRateExtend($G16:$G19,H16:H19,$AC16:$AC19,AD16:AD19) ->  | BF16: =bdRateExtend($G16:$G21,H16:H21,$AC16:$AC21,AD16:AD21) ->  | BG16: =bdRateExtend($G16:$G21,I16:I21,$AC16:$AC21,AE16:AE21) ->  | BH16: =bdRateExtend($G16:$G21,J16:J21,$AC16:$AC21,AF16:AF21) ->  | BI16: =bdRateExtend($G16:$G21,K16:K21,$AC16:$AC21,AG16:AG21) ->  | BJ16: =(Summary!$C$95*BF16+Summary!$C$96*BG16+Summary!$C$97*BH16)/Summary!$C$98 ->  | BK16: =bdRateExtend($G16:$G19,L16:L19,$AC16:$AC19,AH16:AH19) ->  | BL16: =bdRateExtend($G16:$G21,L16:L21,$AC16:$AC21,AH16:AH21) ->  | BM16: =bdRateExtend($G16:$G19,M16:M19,$AC16:$AC19,AI16:AI19) ->  | BN16: =bdRateExtend($G16:$G21,M16:M21,$AC16:$AC21,AI16:AI21) ->  | BO16: =bdRateExtend($G16:$G19,N16:N19,$AC16:$AC19,AJ16:AJ19,"None", FALSE,1) ->  | BP16: =bdRateExtend($G16:$G21,N16:N21,$AC16:$AC21,AJ16:AJ21,"None", FALSE,1) ->  | BQ16: =bdRateExtend($G16:$G19,O16:O19,$AC16:$AC19,AK16:AK19,"None", FALSE,1) ->  | BR16: =bdRateExtend($G16:$G21,O16:O21,$AC16:$AC21,AK16:AK21,"None", FALSE,1) ->  | BS16: =bdRateExtend($G16:$G19,P16:P19,$AC16:$AC19,AL16:AL19) ->  | BT16: =bdRateExtend($G16:$G21,P16:P21,$AC16:$AC21,AL16:AL21) ->  | BU16: =bdRateExtend($G16:$G19,Q16:Q19,$AC16:$AC19,AM16:AM19) ->  | BV16: =bdRateExtend($G16:$G21,Q16:Q21,$AC16:$AC21,AM16:AM21) ->  | BW16: =bdRateExtend($G16:$G19,R16:R19,$AC16:$AC19,AN16:AN19) ->  | BX16: =bdRateExtend($G16:$G21,R16:R21,$AC16:$AC21,AN16:AN21) ->  | BY16: =bdRateExtend($G16:$G21,S16:S21,$AC16:$AC21,AO16:AO21) ->  | BZ16: =bdRateExtend($G16:$G21,T16:T21,$AC16:$AC21,AP16:AP21) ->  | CA16: =bdRateExtend($G16:$G21,U16:U21,$AC16:$AC21,AQ16:AQ21) ->  | CB16: =(Summary!$C$109*BX16+Summary!$C$110*BY16+Summary!$C$111*BZ16)/Summary!$C$112 ->  | CC16: =bdCAMBIExtend($G16:$G19,V16:V19,$AC16:$AC19,AR16:AR19) ->  | CD16: =bdCAMBIExtend($G16:$G21,V16:V21,$AC16:$AC21,AR16:AR21) ->  | CE16: =testVMAFRange($G16:$G19,N16:N19,$AC16:$AC19,AJ16:AJ19) -> 0 | CF16: =testVMAFRange($G16:$G21,N16:N21,$AC16:$AC21,AJ16:AJ21) -> 0 | CG16: =testVMAFRange($G16:$G19,O16:O19,$AC16:$AC19,AK16:AK19) -> 0 | CH16: =testVMAFRange($G16:$G21,O16:O21,$AC16:$AC21,AK16:AK21) -> 0
F17: 110 | G17: ='Anchor-AI'!L15 -> 0 | H17: ='Anchor-AI'!M15 -> 0 | I17: ='Anchor-AI'!N15 -> 0 | J17: ='Anchor-AI'!O15 -> 0 | K17: =(Summary!$C$64*H17+Summary!$C$65*I17+Summary!$C$66*J17)/Summary!$C$67 -> 0 | L17: ='Anchor-AI'!P15 -> 0 | M17: ='Anchor-AI'!Q15 -> 0 | N17: ='Anchor-AI'!R15 -> 0 | O17: ='Anchor-AI'!S15 -> 0 | P17: ='Anchor-AI'!T15 -> 0 | Q17: ='Anchor-AI'!U15 -> 0 | R17: ='Anchor-AI'!V15 -> 0 | S17: ='Anchor-AI'!W15 -> 0 | T17: ='Anchor-AI'!X15 -> 0 | U17: =10*LOG10(1/((Summary!$C$81/10^(R17/10)+Summary!$C$82/10^(S17/10)+Summary!$C$83/10^(T17/10))/Summary!$C$84)) -> 0 | V17: ='Anchor-AI'!Y15 -> 0 | W17: ='Anchor-AI'!Z15 -> 0 | X17: ='Anchor-AI'!AA15 -> 0 | Y17: ='Anchor-AI'!AB15 -> 0 | Z17: ='Anchor-AI'!AC15 -> 0 | AA17: 0 | AC17: ='Test-AI'!L15 -> 0 | AD17: ='Test-AI'!M15 -> 0 | AE17: ='Test-AI'!N15 -> 0 | AF17: ='Test-AI'!O15 -> 0 | AG17: =(Summary!$C$64*AD17+Summary!$C$65*AE17+Summary!$C$66*AF17)/Summary!$C$67 -> 0 | AH17: ='Test-AI'!P15 -> 0 | AI17: ='Test-AI'!Q15 -> 0 | AJ17: ='Test-AI'!R15 -> 0 | AK17: ='Test-AI'!S15 -> 0 | AL17: ='Test-AI'!T15 -> 0 | AM17: ='Test-AI'!U15 -> 0 | AN17: ='Test-AI'!V15 -> 0 | AO17: ='Test-AI'!W15 -> 0 | AP17: ='Test-AI'!X15 -> 0 | AQ17: =10*LOG10(1/((Summary!$C$81/10^(AN17/10)+Summary!$C$82/10^(AO17/10)+Summary!$C$83/10^(AP17/10))/Summary!$C$84)) -> 0 | AR17: ='Test-AI'!Y15 -> 0 | AS17: ='Test-AI'!Z15 -> 0 | AT17: ='Test-AI'!AA15 -> 0 | AU17: ='Test-AI'!AB15 -> 0 | AV17: ='Test-AI'!AC15 -> 0 | AW17: 0
F18: 135 | G18: ='Anchor-AI'!L16 -> 0 | H18: ='Anchor-AI'!M16 -> 0 | I18: ='Anchor-AI'!N16 -> 0 | J18: ='Anchor-AI'!O16 -> 0 | K18: =(Summary!$C$64*H18+Summary!$C$65*I18+Summary!$C$66*J18)/Summary!$C$67 -> 0 | L18: ='Anchor-AI'!P16 -> 0 | M18: ='Anchor-AI'!Q16 -> 0 | N18: ='Anchor-AI'!R16 -> 0 | O18: ='Anchor-AI'!S16 -> 0 | P18: ='Anchor-AI'!T16 -> 0 | Q18: ='Anchor-AI'!U16 -> 0 | R18: ='Anchor-AI'!V16 -> 0 | S18: ='Anchor-AI'!W16 -> 0 | T18: ='Anchor-AI'!X16 -> 0 | U18: =10*LOG10(1/((Summary!$C$81/10^(R18/10)+Summary!$C$82/10^(S18/10)+Summary!$C$83/10^(T18/10))/Summary!$C$84)) -> 0 | V18: ='Anchor-AI'!Y16 -> 0 | W18: ='Anchor-AI'!Z16 -> 0 | X18: ='Anchor-AI'!AA16 -> 0 | Y18: ='Anchor-AI'!AB16 -> 0 | Z18: ='Anchor-AI'!AC16 -> 0 | AA18: 0 | AC18: ='Test-AI'!L16 -> 0 | AD18: ='Test-AI'!M16 -> 0 | AE18: ='Test-AI'!N16 -> 0 | AF18: ='Test-AI'!O16 -> 0 | AG18: =(Summary!$C$64*AD18+Summary!$C$65*AE18+Summary!$C$66*AF18)/Summary!$C$67 -> 0 | AH18: ='Test-AI'!P16 -> 0 | AI18: ='Test-AI'!Q16 -> 0 | AJ18: ='Test-AI'!R16 -> 0 | AK18: ='Test-AI'!S16 -> 0 | AL18: ='Test-AI'!T16 -> 0 | AM18: ='Test-AI'!U16 -> 0 | AN18: ='Test-AI'!V16 -> 0 | AO18: ='Test-AI'!W16 -> 0 | AP18: ='Test-AI'!X16 -> 0 | AQ18: =10*LOG10(1/((Summary!$C$81/10^(AN18/10)+Summary!$C$82/10^(AO18/10)+Summary!$C$83/10^(AP18/10))/Summary!$C$84)) -> 0 | AR18: ='Test-AI'!Y16 -> 0 | AS18: ='Test-AI'!Z16 -> 0 | AT18: ='Test-AI'!AA16 -> 0 | AU18: ='Test-AI'!AB16 -> 0 | AV18: ='Test-AI'!AC16 -> 0 | AW18: 0 | BD18: Med | BE18: =bdRateExtend($G17:$G20,H17:H20,$AC17:$AC20,AD17:AD20) ->  | BK18: =bdRateExtend($G17:$G20,L17:L20,$AC17:$AC20,AH17:AH20) ->  | BM18: =bdRateExtend($G17:$G20,M17:M20,$AC17:$AC20,AI17:AI20) ->  | BO18: =bdRateExtend($G17:$G20,N17:N20,$AC17:$AC20,AJ17:AJ20,"None", FALSE,1) ->  | BQ18: =bdRateExtend($G17:$G20,O17:O20,$AC17:$AC20,AK17:AK20,"None", FALSE,1) ->  | BS18: =bdRateExtend($G17:$G20,P17:P20,$AC17:$AC20,AL17:AL20) ->  | BU18: =bdRateExtend($G17:$G20,Q17:Q20,$AC17:$AC20,AM17:AM20) ->  | BW18: =bdRateExtend($G17:$G20,R17:R20,$AC17:$AC20,AN17:AN20) ->  | CC18: =bdCAMBIExtend($G17:$G20,V17:V20,$AC17:$AC20,AR17:AR20) ->  | CE18: =testVMAFRange($G17:$G20,N17:N20,$AC17:$AC20,AJ17:AJ20) -> 0 | CG18: =testVMAFRange($G17:$G20,O17:O20,$AC17:$AC20,AK17:AK20) -> 0
F19: 160 | G19: ='Anchor-AI'!L17 -> 0 | H19: ='Anchor-AI'!M17 -> 0 | I19: ='Anchor-AI'!N17 -> 0 | J19: ='Anchor-AI'!O17 -> 0 | K19: =(Summary!$C$64*H19+Summary!$C$65*I19+Summary!$C$66*J19)/Summary!$C$67 -> 0 | L19: ='Anchor-AI'!P17 -> 0 | M19: ='Anchor-AI'!Q17 -> 0 | N19: ='Anchor-AI'!R17 -> 0 | O19: ='Anchor-AI'!S17 -> 0 | P19: ='Anchor-AI'!T17 -> 0 | Q19: ='Anchor-AI'!U17 -> 0 | R19: ='Anchor-AI'!V17 -> 0 | S19: ='Anchor-AI'!W17 -> 0 | T19: ='Anchor-AI'!X17 -> 0 | U19: =10*LOG10(1/((Summary!$C$81/10^(R19/10)+Summary!$C$82/10^(S19/10)+Summary!$C$83/10^(T19/10))/Summary!$C$84)) -> 0 | V19: ='Anchor-AI'!Y17 -> 0 | W19: ='Anchor-AI'!Z17 -> 0 | X19: ='Anchor-AI'!AA17 -> 0 | Y19: ='Anchor-AI'!AB17 -> 0 | Z19: ='Anchor-AI'!AC17 -> 0 | AA19: 0 | AC19: ='Test-AI'!L17 -> 0 | AD19: ='Test-AI'!M17 -> 0 | AE19: ='Test-AI'!N17 -> 0 | AF19: ='Test-AI'!O17 -> 0 | AG19: =(Summary!$C$64*AD19+Summary!$C$65*AE19+Summary!$C$66*AF19)/Summary!$C$67 -> 0 | AH19: ='Test-AI'!P17 -> 0 | AI19: ='Test-AI'!Q17 -> 0 | AJ19: ='Test-AI'!R17 -> 0 | AK19: ='Test-AI'!S17 -> 0 | AL19: ='Test-AI'!T17 -> 0 | AM19: ='Test-AI'!U17 -> 0 | AN19: ='Test-AI'!V17 -> 0 | AO19: ='Test-AI'!W17 -> 0 | AP19: ='Test-AI'!X17 -> 0 | AQ19: =10*LOG10(1/((Summary!$C$81/10^(AN19/10)+Summary!$C$82/10^(AO19/10)+Summary!$C$83/10^(AP19/10))/Summary!$C$84)) -> 0 | AR19: ='Test-AI'!Y17 -> 0 | AS19: ='Test-AI'!Z17 -> 0 | AT19: ='Test-AI'!AA17 -> 0 | AU19: ='Test-AI'!AB17 -> 0 | AV19: ='Test-AI'!AC17 -> 0 | AW19: 0
F20: 185 | G20: ='Anchor-AI'!L18 -> 0 | H20: ='Anchor-AI'!M18 -> 0 | I20: ='Anchor-AI'!N18 -> 0 | J20: ='Anchor-AI'!O18 -> 0 | K20: =(Summary!$C$64*H20+Summary!$C$65*I20+Summary!$C$66*J20)/Summary!$C$67 -> 0 | L20: ='Anchor-AI'!P18 -> 0 | M20: ='Anchor-AI'!Q18 -> 0 | N20: ='Anchor-AI'!R18 -> 0 | O20: ='Anchor-AI'!S18 -> 0 | P20: ='Anchor-AI'!T18 -> 0 | Q20: ='Anchor-AI'!U18 -> 0 | R20: ='Anchor-AI'!V18 -> 0 | S20: ='Anchor-AI'!W18 -> 0 | T20: ='Anchor-AI'!X18 -> 0 | U20: =10*LOG10(1/((Summary!$C$81/10^(R20/10)+Summary!$C$82/10^(S20/10)+Summary!$C$83/10^(T20/10))/Summary!$C$84)) -> 0 | V20: ='Anchor-AI'!Y18 -> 0 | W20: ='Anchor-AI'!Z18 -> 0 | X20: ='Anchor-AI'!AA18 -> 0 | Y20: ='Anchor-AI'!AB18 -> 0 | Z20: ='Anchor-AI'!AC18 -> 0 | AA20: 0 | AC20: ='Test-AI'!L18 -> 0 | AD20: ='Test-AI'!M18 -> 0 | AE20: ='Test-AI'!N18 -> 0 | AF20: ='Test-AI'!O18 -> 0 | AG20: =(Summary!$C$64*AD20+Summary!$C$65*AE20+Summary!$C$66*AF20)/Summary!$C$67 -> 0 | AH20: ='Test-AI'!P18 -> 0 | AI20: ='Test-AI'!Q18 -> 0 | AJ20: ='Test-AI'!R18 -> 0 | AK20: ='Test-AI'!S18 -> 0 | AL20: ='Test-AI'!T18 -> 0 | AM20: ='Test-AI'!U18 -> 0 | AN20: ='Test-AI'!V18 -> 0 | AO20: ='Test-AI'!W18 -> 0 | AP20: ='Test-AI'!X18 -> 0 | AQ20: =10*LOG10(1/((Summary!$C$81/10^(AN20/10)+Summary!$C$82/10^(AO20/10)+Summary!$C$83/10^(AP20/10))/Summary!$C$84)) -> 0 | AR20: ='Test-AI'!Y18 -> 0 | AS20: ='Test-AI'!Z18 -> 0 | AT20: ='Test-AI'!AA18 -> 0 | AU20: ='Test-AI'!AB18 -> 0 | AV20: ='Test-AI'!AC18 -> 0 | AW20: 0 | BD20: Low | BE20: =bdRateExtend($G18:$G21,H18:H21,$AC18:$AC21,AD18:AD21) ->  | BK20: =bdRateExtend($G18:$G21,L18:L21,$AC18:$AC21,AH18:AH21) ->  | BM20: =bdRateExtend($G18:$G21,M18:M21,$AC18:$AC21,AI18:AI21) ->  | BO20: =bdRateExtend($G18:$G21,N18:N21,$AC18:$AC21,AJ18:AJ21,"None", FALSE,1) ->  | BQ20: =bdRateExtend($G18:$G21,O18:O21,$AC18:$AC21,AK18:AK21,"None", FALSE,1) ->  | BS20: =bdRateExtend($G18:$G21,P18:P21,$AC18:$AC21,AL18:AL21) ->  | BU20: =bdRateExtend($G18:$G21,Q18:Q21,$AC18:$AC21,AM18:AM21) ->  | BW20: =bdRateExtend($G18:$G21,R18:R21,$AC18:$AC21,AN18:AN21) ->  | CC20: =bdCAMBIExtend($G18:$G21,V18:V21,$AC18:$AC21,AR18:AR21) ->  | CE20: =testVMAFRange($G18:$G21,N18:N21,$AC18:$AC21,AJ18:AJ21) -> 0 | CG20: =testVMAFRange($G18:$G21,O18:O21,$AC18:$AC21,AK18:AK21) -> 0
F21: 210 | G21: ='Anchor-AI'!L19 -> 0 | H21: ='Anchor-AI'!M19 -> 0 | I21: ='Anchor-AI'!N19 -> 0 | J21: ='Anchor-AI'!O19 -> 0 | K21: =(Summary!$C$64*H21+Summary!$C$65*I21+Summary!$C$66*J21)/Summary!$C$67 -> 0 | L21: ='Anchor-AI'!P19 -> 0 | M21: ='Anchor-AI'!Q19 -> 0 | N21: ='Anchor-AI'!R19 -> 0 | O21: ='Anchor-AI'!S19 -> 0 | P21: ='Anchor-AI'!T19 -> 0 | Q21: ='Anchor-AI'!U19 -> 0 | R21: ='Anchor-AI'!V19 -> 0 | S21: ='Anchor-AI'!W19 -> 0 | T21: ='Anchor-AI'!X19 -> 0 | U21: =10*LOG10(1/((Summary!$C$81/10^(R21/10)+Summary!$C$82/10^(S21/10)+Summary!$C$83/10^(T21/10))/Summary!$C$84)) -> 0 | V21: ='Anchor-AI'!Y19 -> 0 | W21: ='Anchor-AI'!Z19 -> 0 | X21: ='Anchor-AI'!AA19 -> 0 | Y21: ='Anchor-AI'!AB19 -> 0 | Z21: ='Anchor-AI'!AC19 -> 0 | AA21: 0 | AC21: ='Test-AI'!L19 -> 0 | AD21: ='Test-AI'!M19 -> 0 | AE21: ='Test-AI'!N19 -> 0 | AF21: ='Test-AI'!O19 -> 0 | AG21: =(Summary!$C$64*AD21+Summary!$C$65*AE21+Summary!$C$66*AF21)/Summary!$C$67 -> 0 | AH21: ='Test-AI'!P19 -> 0 | AI21: ='Test-AI'!Q19 -> 0 | AJ21: ='Test-AI'!R19 -> 0 | AK21: ='Test-AI'!S19 -> 0 | AL21: ='Test-AI'!T19 -> 0 | AM21: ='Test-AI'!U19 -> 0 | AN21: ='Test-AI'!V19 -> 0 | AO21: ='Test-AI'!W19 -> 0 | AP21: ='Test-AI'!X19 -> 0 | AQ21: =10*LOG10(1/((Summary!$C$81/10^(AN21/10)+Summary!$C$82/10^(AO21/10)+Summary!$C$83/10^(AP21/10))/Summary!$C$84)) -> 0 | AR21: ='Test-AI'!Y19 -> 0 | AS21: ='Test-AI'!Z19 -> 0 | AT21: ='Test-AI'!AA19 -> 0 | AU21: ='Test-AI'!AB19 -> 0 | AV21: ='Test-AI'!AC19 -> 0 | AW21: 0
B22: 3840x2160 | C22: Neon1224_3840x2160_2997fps.y4m | D22: 29.97 | E22: 10 | F22: 85 | G22: ='Anchor-AI'!L20 -> 0 | H22: ='Anchor-AI'!M20 -> 0 | I22: ='Anchor-AI'!N20 -> 0 | J22: ='Anchor-AI'!O20 -> 0 | K22: =(Summary!$C$64*H22+Summary!$C$65*I22+Summary!$C$66*J22)/Summary!$C$67 -> 0 | L22: ='Anchor-AI'!P20 -> 0 | M22: ='Anchor-AI'!Q20 -> 0 | N22: ='Anchor-AI'!R20 -> 0 | O22: ='Anchor-AI'!S20 -> 0 | P22: ='Anchor-AI'!T20 -> 0 | Q22: ='Anchor-AI'!U20 -> 0 | R22: ='Anchor-AI'!V20 -> 0 | S22: ='Anchor-AI'!W20 -> 0 | T22: ='Anchor-AI'!X20 -> 0 | U22: =10*LOG10(1/((Summary!$C$81/10^(R22/10)+Summary!$C$82/10^(S22/10)+Summary!$C$83/10^(T22/10))/Summary!$C$84)) -> 0 | V22: ='Anchor-AI'!Y20 -> 0 | W22: ='Anchor-AI'!Z20 -> 0 | X22: ='Anchor-AI'!AA20 -> 0 | Y22: ='Anchor-AI'!AB20 -> 0 | Z22: ='Anchor-AI'!AC20 -> 0 | AA22: 0 | AC22: ='Test-AI'!L20 -> 0 | AD22: ='Test-AI'!M20 -> 0 | AE22: ='Test-AI'!N20 -> 0 | AF22: ='Test-AI'!O20 -> 0 | AG22: =(Summary!$C$64*AD22+Summary!$C$65*AE22+Summary!$C$66*AF22)/Summary!$C$67 -> 0 | AH22: ='Test-AI'!P20 -> 0 | AI22: ='Test-AI'!Q20 -> 0 | AJ22: ='Test-AI'!R20 -> 0 | AK22: ='Test-AI'!S20 -> 0 | AL22: ='Test-AI'!T20 -> 0 | AM22: ='Test-AI'!U20 -> 0 | AN22: ='Test-AI'!V20 -> 0 | AO22: ='Test-AI'!W20 -> 0 | AP22: ='Test-AI'!X20 -> 0 | AQ22: =10*LOG10(1/((Summary!$C$81/10^(AN22/10)+Summary!$C$82/10^(AO22/10)+Summary!$C$83/10^(AP22/10))/Summary!$C$84)) -> 0 | AR22: ='Test-AI'!Y20 -> 0 | AS22: ='Test-AI'!Z20 -> 0 | AT22: ='Test-AI'!AA20 -> 0 | AU22: ='Test-AI'!AB20 -> 0 | AV22: ='Test-AI'!AC20 -> 0 | AW22: 0 | BD22: High | BE22: =bdRateExtend($G22:$G25,H22:H25,$AC22:$AC25,AD22:AD25) ->  | BF22: =bdRateExtend($G22:$G27,H22:H27,$AC22:$AC27,AD22:AD27) ->  | BG22: =bdRateExtend($G22:$G27,I22:I27,$AC22:$AC27,AE22:AE27) ->  | BH22: =bdRateExtend($G22:$G27,J22:J27,$AC22:$AC27,AF22:AF27) ->  | BI22: =bdRateExtend($G22:$G27,K22:K27,$AC22:$AC27,AG22:AG27) ->  | BJ22: =(Summary!$C$95*BF22+Summary!$C$96*BG22+Summary!$C$97*BH22)/Summary!$C$98 ->  | BK22: =bdRateExtend($G22:$G25,L22:L25,$AC22:$AC25,AH22:AH25) ->  | BL22: =bdRateExtend($G22:$G27,L22:L27,$AC22:$AC27,AH22:AH27) ->  | BM22: =bdRateExtend($G22:$G25,M22:M25,$AC22:$AC25,AI22:AI25) ->  | BN22: =bdRateExtend($G22:$G27,M22:M27,$AC22:$AC27,AI22:AI27) ->  | BO22: =bdRateExtend($G22:$G25,N22:N25,$AC22:$AC25,AJ22:AJ25,"None", FALSE,1) ->  | BP22: =bdRateExtend($G22:$G27,N22:N27,$AC22:$AC27,AJ22:AJ27,"None", FALSE,1) ->  | BQ22: =bdRateExtend($G22:$G25,O22:O25,$AC22:$AC25,AK22:AK25,"None", FALSE,1) ->  | BR22: =bdRateExtend($G22:$G27,O22:O27,$AC22:$AC27,AK22:AK27,"None", FALSE,1) ->  | BS22: =bdRateExtend($G22:$G25,P22:P25,$AC22:$AC25,AL22:AL25) ->  | BT22: =bdRateExtend($G22:$G27,P22:P27,$AC22:$AC27,AL22:AL27) ->  | BU22: =bdRateExtend($G22:$G25,Q22:Q25,$AC22:$AC25,AM22:AM25) ->  | BV22: =bdRateExtend($G22:$G27,Q22:Q27,$AC22:$AC27,AM22:AM27) ->  | BW22: =bdRateExtend($G22:$G25,R22:R25,$AC22:$AC25,AN22:AN25) ->  | BX22: =bdRateExtend($G22:$G27,R22:R27,$AC22:$AC27,AN22:AN27) ->  | BY22: =bdRateExtend($G22:$G27,S22:S27,$AC22:$AC27,AO22:AO27) ->  | BZ22: =bdRateExtend($G22:$G27,T22:T27,$AC22:$AC27,AP22:AP27) ->  | CA22: =bdRateExtend($G22:$G27,U22:U27,$AC22:$AC27,AQ22:AQ27) ->  | CB22: =(Summary!$C$109*BX22+Summary!$C$110*BY22+Summary!$C$111*BZ22)/Summary!$C$112 ->  | CC22: =bdCAMBIExtend($G22:$G25,V22:V25,$AC22:$AC25,AR22:AR25) ->  | CD22: =bdCAMBIExtend($G22:$G27,V22:V27,$AC22:$AC27,AR22:AR27) ->  | CE22: =testVMAFRange($G22:$G25,N22:N25,$AC22:$AC25,AJ22:AJ25) -> 0 | CF22: =testVMAFRange($G22:$G27,N22:N27,$AC22:$AC27,AJ22:AJ27) -> 0 | CG22: =testVMAFRange($G22:$G25,O22:O25,$AC22:$AC25,AK22:AK25) -> 0 | CH22: =testVMAFRange($G22:$G27,O22:O27,$AC22:$AC27,AK22:AK27) -> 0
F23: 110 | G23: ='Anchor-AI'!L21 -> 0 | H23: ='Anchor-AI'!M21 -> 0 | I23: ='Anchor-AI'!N21 -> 0 | J23: ='Anchor-AI'!O21 -> 0 | K23: =(Summary!$C$64*H23+Summary!$C$65*I23+Summary!$C$66*J23)/Summary!$C$67 -> 0 | L23: ='Anchor-AI'!P21 -> 0 | M23: ='Anchor-AI'!Q21 -> 0 | N23: ='Anchor-AI'!R21 -> 0 | O23: ='Anchor-AI'!S21 -> 0 | P23: ='Anchor-AI'!T21 -> 0 | Q23: ='Anchor-AI'!U21 -> 0 | R23: ='Anchor-AI'!V21 -> 0 | S23: ='Anchor-AI'!W21 -> 0 | T23: ='Anchor-AI'!X21 -> 0 | U23: =10*LOG10(1/((Summary!$C$81/10^(R23/10)+Summary!$C$82/10^(S23/10)+Summary!$C$83/10^(T23/10))/Summary!$C$84)) -> 0 | V23: ='Anchor-AI'!Y21 -> 0 | W23: ='Anchor-AI'!Z21 -> 0 | X23: ='Anchor-AI'!AA21 -> 0 | Y23: ='Anchor-AI'!AB21 -> 0 | Z23: ='Anchor-AI'!AC21 -> 0 | AA23: 0 | AC23: ='Test-AI'!L21 -> 0 | AD23: ='Test-AI'!M21 -> 0 | AE23: ='Test-AI'!N21 -> 0 | AF23: ='Test-AI'!O21 -> 0 | AG23: =(Summary!$C$64*AD23+Summary!$C$65*AE23+Summary!$C$66*AF23)/Summary!$C$67 -> 0 | AH23: ='Test-AI'!P21 -> 0 | AI23: ='Test-AI'!Q21 -> 0 | AJ23: ='Test-AI'!R21 -> 0 | AK23: ='Test-AI'!S21 -> 0 | AL23: ='Test-AI'!T21 -> 0 | AM23: ='Test-AI'!U21 -> 0 | AN23: ='Test-AI'!V21 -> 0 | AO23: ='Test-AI'!W21 -> 0 | AP23: ='Test-AI'!X21 -> 0 | AQ23: =10*LOG10(1/((Summary!$C$81/10^(AN23/10)+Summary!$C$82/10^(AO23/10)+Summary!$C$83/10^(AP23/10))/Summary!$C$84)) -> 0 | AR23: ='Test-AI'!Y21 -> 0 | AS23: ='Test-AI'!Z21 -> 0 | AT23: ='Test-AI'!AA21 -> 0 | AU23: ='Test-AI'!AB21 -> 0 | AV23: ='Test-AI'!AC21 -> 0 | AW23: 0
F24: 135 | G24: ='Anchor-AI'!L22 -> 0 | H24: ='Anchor-AI'!M22 -> 0 | I24: ='Anchor-AI'!N22 -> 0 | J24: ='Anchor-AI'!O22 -> 0 | K24: =(Summary!$C$64*H24+Summary!$C$65*I24+Summary!$C$66*J24)/Summary!$C$67 -> 0 | L24: ='Anchor-AI'!P22 -> 0 | M24: ='Anchor-AI'!Q22 -> 0 | N24: ='Anchor-AI'!R22 -> 0 | O24: ='Anchor-AI'!S22 -> 0 | P24: ='Anchor-AI'!T22 -> 0 | Q24: ='Anchor-AI'!U22 -> 0 | R24: ='Anchor-AI'!V22 -> 0 | S24: ='Anchor-AI'!W22 -> 0 | T24: ='Anchor-AI'!X22 -> 0 | U24: =10*LOG10(1/((Summary!$C$81/10^(R24/10)+Summary!$C$82/10^(S24/10)+Summary!$C$83/10^(T24/10))/Summary!$C$84)) -> 0 | V24: ='Anchor-AI'!Y22 -> 0 | W24: ='Anchor-AI'!Z22 -> 0 | X24: ='Anchor-AI'!AA22 -> 0 | Y24: ='Anchor-AI'!AB22 -> 0 | Z24: ='Anchor-AI'!AC22 -> 0 | AA24: 0 | AC24: ='Test-AI'!L22 -> 0 | AD24: ='Test-AI'!M22 -> 0 | AE24: ='Test-AI'!N22 -> 0 | AF24: ='Test-AI'!O22 -> 0 | AG24: =(Summary!$C$64*AD24+Summary!$C$65*AE24+Summary!$C$66*AF24)/Summary!$C$67 -> 0 | AH24: ='Test-AI'!P22 -> 0 | AI24: ='Test-AI'!Q22 -> 0 | AJ24: ='Test-AI'!R22 -> 0 | AK24: ='Test-AI'!S22 -> 0 | AL24: ='Test-AI'!T22 -> 0 | AM24: ='Test-AI'!U22 -> 0 | AN24: ='Test-AI'!V22 -> 0 | AO24: ='Test-AI'!W22 -> 0 | AP24: ='Test-AI'!X22 -> 0 | AQ24: =10*LOG10(1/((Summary!$C$81/10^(AN24/10)+Summary!$C$82/10^(AO24/10)+Summary!$C$83/10^(AP24/10))/Summary!$C$84)) -> 0 | AR24: ='Test-AI'!Y22 -> 0 | AS24: ='Test-AI'!Z22 -> 0 | AT24: ='Test-AI'!AA22 -> 0 | AU24: ='Test-AI'!AB22 -> 0 | AV24: ='Test-AI'!AC22 -> 0 | AW24: 0 | BD24: Med | BE24: =bdRateExtend($G23:$G26,H23:H26,$AC23:$AC26,AD23:AD26) ->  | BK24: =bdRateExtend($G23:$G26,L23:L26,$AC23:$AC26,AH23:AH26) ->  | BM24: =bdRateExtend($G23:$G26,M23:M26,$AC23:$AC26,AI23:AI26) ->  | BO24: =bdRateExtend($G23:$G26,N23:N26,$AC23:$AC26,AJ23:AJ26,"None", FALSE,1) ->  | BQ24: =bdRateExtend($G23:$G26,O23:O26,$AC23:$AC26,AK23:AK26,"None", FALSE,1) ->  | BS24: =bdRateExtend($G23:$G26,P23:P26,$AC23:$AC26,AL23:AL26) ->  | BU24: =bdRateExtend($G23:$G26,Q23:Q26,$AC23:$AC26,AM23:AM26) ->  | BW24: =bdRateExtend($G23:$G26,R23:R26,$AC23:$AC26,AN23:AN26) ->  | CC24: =bdCAMBIExtend($G23:$G26,V23:V26,$AC23:$AC26,AR23:AR26) ->  | CE24: =testVMAFRange($G23:$G26,N23:N26,$AC23:$AC26,AJ23:AJ26) -> 0 | CG24: =testVMAFRange($G23:$G26,O23:O26,$AC23:$AC26,AK23:AK26) -> 0
F25: 160 | G25: ='Anchor-AI'!L23 -> 0 | H25: ='Anchor-AI'!M23 -> 0 | I25: ='Anchor-AI'!N23 -> 0 | J25: ='Anchor-AI'!O23 -> 0 | K25: =(Summary!$C$64*H25+Summary!$C$65*I25+Summary!$C$66*J25)/Summary!$C$67 -> 0 | L25: ='Anchor-AI'!P23 -> 0 | M25: ='Anchor-AI'!Q23 -> 0 | N25: ='Anchor-AI'!R23 -> 0 | O25: ='Anchor-AI'!S23 -> 0 | P25: ='Anchor-AI'!T23 -> 0 | Q25: ='Anchor-AI'!U23 -> 0 | R25: ='Anchor-AI'!V23 -> 0 | S25: ='Anchor-AI'!W23 -> 0 | T25: ='Anchor-AI'!X23 -> 0 | U25: =10*LOG10(1/((Summary!$C$81/10^(R25/10)+Summary!$C$82/10^(S25/10)+Summary!$C$83/10^(T25/10))/Summary!$C$84)) -> 0 | V25: ='Anchor-AI'!Y23 -> 0 | W25: ='Anchor-AI'!Z23 -> 0 | X25: ='Anchor-AI'!AA23 -> 0 | Y25: ='Anchor-AI'!AB23 -> 0 | Z25: ='Anchor-AI'!AC23 -> 0 | AA25: 0 | AC25: ='Test-AI'!L23 -> 0 | AD25: ='Test-AI'!M23 -> 0 | AE25: ='Test-AI'!N23 -> 0 | AF25: ='Test-AI'!O23 -> 0 | AG25: =(Summary!$C$64*AD25+Summary!$C$65*AE25+Summary!$C$66*AF25)/Summary!$C$67 -> 0 | AH25: ='Test-AI'!P23 -> 0 | AI25: ='Test-AI'!Q23 -> 0 | AJ25: ='Test-AI'!R23 -> 0 | AK25: ='Test-AI'!S23 -> 0 | AL25: ='Test-AI'!T23 -> 0 | AM25: ='Test-AI'!U23 -> 0 | AN25: ='Test-AI'!V23 -> 0 | AO25: ='Test-AI'!W23 -> 0 | AP25: ='Test-AI'!X23 -> 0 | AQ25: =10*LOG10(1/((Summary!$C$81/10^(AN25/10)+Summary!$C$82/10^(AO25/10)+Summary!$C$83/10^(AP25/10))/Summary!$C$84)) -> 0 | AR25: ='Test-AI'!Y23 -> 0 | AS25: ='Test-AI'!Z23 -> 0 | AT25: ='Test-AI'!AA23 -> 0 | AU25: ='Test-AI'!AB23 -> 0 | AV25: ='Test-AI'!AC23 -> 0 | AW25: 0
F26: 185 | G26: ='Anchor-AI'!L24 -> 0 | H26: ='Anchor-AI'!M24 -> 0 | I26: ='Anchor-AI'!N24 -> 0 | J26: ='Anchor-AI'!O24 -> 0 | K26: =(Summary!$C$64*H26+Summary!$C$65*I26+Summary!$C$66*J26)/Summary!$C$67 -> 0 | L26: ='Anchor-AI'!P24 -> 0 | M26: ='Anchor-AI'!Q24 -> 0 | N26: ='Anchor-AI'!R24 -> 0 | O26: ='Anchor-AI'!S24 -> 0 | P26: ='Anchor-AI'!T24 -> 0 | Q26: ='Anchor-AI'!U24 -> 0 | R26: ='Anchor-AI'!V24 -> 0 | S26: ='Anchor-AI'!W24 -> 0 | T26: ='Anchor-AI'!X24 -> 0 | U26: =10*LOG10(1/((Summary!$C$81/10^(R26/10)+Summary!$C$82/10^(S26/10)+Summary!$C$83/10^(T26/10))/Summary!$C$84)) -> 0 | V26: ='Anchor-AI'!Y24 -> 0 | W26: ='Anchor-AI'!Z24 -> 0 | X26: ='Anchor-AI'!AA24 -> 0 | Y26: ='Anchor-AI'!AB24 -> 0 | Z26: ='Anchor-AI'!AC24 -> 0 | AA26: 0 | AC26: ='Test-AI'!L24 -> 0 | AD26: ='Test-AI'!M24 -> 0 | AE26: ='Test-AI'!N24 -> 0 | AF26: ='Test-AI'!O24 -> 0 | AG26: =(Summary!$C$64*AD26+Summary!$C$65*AE26+Summary!$C$66*AF26)/Summary!$C$67 -> 0 | AH26: ='Test-AI'!P24 -> 0 | AI26: ='Test-AI'!Q24 -> 0 | AJ26: ='Test-AI'!R24 -> 0 | AK26: ='Test-AI'!S24 -> 0 | AL26: ='Test-AI'!T24 -> 0 | AM26: ='Test-AI'!U24 -> 0 | AN26: ='Test-AI'!V24 -> 0 | AO26: ='Test-AI'!W24 -> 0 | AP26: ='Test-AI'!X24 -> 0 | AQ26: =10*LOG10(1/((Summary!$C$81/10^(AN26/10)+Summary!$C$82/10^(AO26/10)+Summary!$C$83/10^(AP26/10))/Summary!$C$84)) -> 0 | AR26: ='Test-AI'!Y24 -> 0 | AS26: ='Test-AI'!Z24 -> 0 | AT26: ='Test-AI'!AA24 -> 0 | AU26: ='Test-AI'!AB24 -> 0 | AV26: ='Test-AI'!AC24 -> 0 | AW26: 0 | BD26: Low | BE26: =bdRateExtend($G24:$G27,H24:H27,$AC24:$AC27,AD24:AD27) ->  | BK26: =bdRateExtend($G24:$G27,L24:L27,$AC24:$AC27,AH24:AH27) ->  | BM26: =bdRateExtend($G24:$G27,M24:M27,$AC24:$AC27,AI24:AI27) ->  | BO26: =bdRateExtend($G24:$G27,N24:N27,$AC24:$AC27,AJ24:AJ27,"None", FALSE,1) ->  | BQ26: =bdRateExtend($G24:$G27,O24:O27,$AC24:$AC27,AK24:AK27,"None", FALSE,1) ->  | BS26: =bdRateExtend($G24:$G27,P24:P27,$AC24:$AC27,AL24:AL27) ->  | BU26: =bdRateExtend($G24:$G27,Q24:Q27,$AC24:$AC27,AM24:AM27) ->  | BW26: =bdRateExtend($G24:$G27,R24:R27,$AC24:$AC27,AN24:AN27) ->  | CC26: =bdCAMBIExtend($G24:$G27,V24:V27,$AC24:$AC27,AR24:AR27) ->  | CE26: =testVMAFRange($G24:$G27,N24:N27,$AC24:$AC27,AJ24:AJ27) -> 0 | CG26: =testVMAFRange($G24:$G27,O24:O27,$AC24:$AC27,AK24:AK27) -> 0
F27: 210 | G27: ='Anchor-AI'!L25 -> 0 | H27: ='Anchor-AI'!M25 -> 0 | I27: ='Anchor-AI'!N25 -> 0 | J27: ='Anchor-AI'!O25 -> 0 | K27: =(Summary!$C$64*H27+Summary!$C$65*I27+Summary!$C$66*J27)/Summary!$C$67 -> 0 | L27: ='Anchor-AI'!P25 -> 0 | M27: ='Anchor-AI'!Q25 -> 0 | N27: ='Anchor-AI'!R25 -> 0 | O27: ='Anchor-AI'!S25 -> 0 | P27: ='Anchor-AI'!T25 -> 0 | Q27: ='Anchor-AI'!U25 -> 0 | R27: ='Anchor-AI'!V25 -> 0 | S27: ='Anchor-AI'!W25 -> 0 | T27: ='Anchor-AI'!X25 -> 0 | U27: =10*LOG10(1/((Summary!$C$81/10^(R27/10)+Summary!$C$82/10^(S27/10)+Summary!$C$83/10^(T27/10))/Summary!$C$84)) -> 0 | V27: ='Anchor-AI'!Y25 -> 0 | W27: ='Anchor-AI'!Z25 -> 0 | X27: ='Anchor-AI'!AA25 -> 0 | Y27: ='Anchor-AI'!AB25 -> 0 | Z27: ='Anchor-AI'!AC25 -> 0 | AA27: 0 | AC27: ='Test-AI'!L25 -> 0 | AD27: ='Test-AI'!M25 -> 0 | AE27: ='Test-AI'!N25 -> 0 | AF27: ='Test-AI'!O25 -> 0 | AG27: =(Summary!$C$64*AD27+Summary!$C$65*AE27+Summary!$C$66*AF27)/Summary!$C$67 -> 0 | AH27: ='Test-AI'!P25 -> 0 | AI27: ='Test-AI'!Q25 -> 0 | AJ27: ='Test-AI'!R25 -> 0 | AK27: ='Test-AI'!S25 -> 0 | AL27: ='Test-AI'!T25 -> 0 | AM27: ='Test-AI'!U25 -> 0 | AN27: ='Test-AI'!V25 -> 0 | AO27: ='Test-AI'!W25 -> 0 | AP27: ='Test-AI'!X25 -> 0 | AQ27: =10*LOG10(1/((Summary!$C$81/10^(AN27/10)+Summary!$C$82/10^(AO27/10)+Summary!$C$83/10^(AP27/10))/Summary!$C$84)) -> 0 | AR27: ='Test-AI'!Y25 -> 0 | AS27: ='Test-AI'!Z25 -> 0 | AT27: ='Test-AI'!AA25 -> 0 | AU27: ='Test-AI'!AB25 -> 0 | AV27: ='Test-AI'!AC25 -> 0 | AW27: 0
B28: 3840x2160 | C28: NocturneDance_3840x2160p_10bit_60fps.y4m | D28: 60 | E28: 10 | F28: 85 | G28: ='Anchor-AI'!L26 -> 0 | H28: ='Anchor-AI'!M26 -> 0 | I28: ='Anchor-AI'!N26 -> 0 | J28: ='Anchor-AI'!O26 -> 0 | K28: =(Summary!$C$64*H28+Summary!$C$65*I28+Summary!$C$66*J28)/Summary!$C$67 -> 0 | L28: ='Anchor-AI'!P26 -> 0 | M28: ='Anchor-AI'!Q26 -> 0 | N28: ='Anchor-AI'!R26 -> 0 | O28: ='Anchor-AI'!S26 -> 0 | P28: ='Anchor-AI'!T26 -> 0 | Q28: ='Anchor-AI'!U26 -> 0 | R28: ='Anchor-AI'!V26 -> 0 | S28: ='Anchor-AI'!W26 -> 0 | T28: ='Anchor-AI'!X26 -> 0 | U28: =10*LOG10(1/((Summary!$C$81/10^(R28/10)+Summary!$C$82/10^(S28/10)+Summary!$C$83/10^(T28/10))/Summary!$C$84)) -> 0 | V28: ='Anchor-AI'!Y26 -> 0 | W28: ='Anchor-AI'!Z26 -> 0 | X28: ='Anchor-AI'!AA26 -> 0 | Y28: ='Anchor-AI'!AB26 -> 0 | Z28: ='Anchor-AI'!AC26 -> 0 | AA28: 0 | AC28: ='Test-AI'!L26 -> 0 | AD28: ='Test-AI'!M26 -> 0 | AE28: ='Test-AI'!N26 -> 0 | AF28: ='Test-AI'!O26 -> 0 | AG28: =(Summary!$C$64*AD28+Summary!$C$65*AE28+Summary!$C$66*AF28)/Summary!$C$67 -> 0 | AH28: ='Test-AI'!P26 -> 0 | AI28: ='Test-AI'!Q26 -> 0 | AJ28: ='Test-AI'!R26 -> 0 | AK28: ='Test-AI'!S26 -> 0 | AL28: ='Test-AI'!T26 -> 0 | AM28: ='Test-AI'!U26 -> 0 | AN28: ='Test-AI'!V26 -> 0 | AO28: ='Test-AI'!W26 -> 0 | AP28: ='Test-AI'!X26 -> 0 | AQ28: =10*LOG10(1/((Summary!$C$81/10^(AN28/10)+Summary!$C$82/10^(AO28/10)+Summary!$C$83/10^(AP28/10))/Summary!$C$84)) -> 0 | AR28: ='Test-AI'!Y26 -> 0 | AS28: ='Test-AI'!Z26 -> 0 | AT28: ='Test-AI'!AA26 -> 0 | AU28: ='Test-AI'!AB26 -> 0 | AV28: ='Test-AI'!AC26 -> 0 | AW28: 0 | BD28: High | BE28: =bdRateExtend($G28:$G31,H28:H31,$AC28:$AC31,AD28:AD31) ->  | BF28: =bdRateExtend($G28:$G33,H28:H33,$AC28:$AC33,AD28:AD33) ->  | BG28: =bdRateExtend($G28:$G33,I28:I33,$AC28:$AC33,AE28:AE33) ->  | BH28: =bdRateExtend($G28:$G33,J28:J33,$AC28:$AC33,AF28:AF33) ->  | BI28: =bdRateExtend($G28:$G33,K28:K33,$AC28:$AC33,AG28:AG33) ->  | BJ28: =(Summary!$C$95*BF28+Summary!$C$96*BG28+Summary!$C$97*BH28)/Summary!$C$98 ->  | BK28: =bdRateExtend($G28:$G31,L28:L31,$AC28:$AC31,AH28:AH31) ->  | BL28: =bdRateExtend($G28:$G33,L28:L33,$AC28:$AC33,AH28:AH33) ->  | BM28: =bdRateExtend($G28:$G31,M28:M31,$AC28:$AC31,AI28:AI31) ->  | BN28: =bdRateExtend($G28:$G33,M28:M33,$AC28:$AC33,AI28:AI33) ->  | BO28: =bdRateExtend($G28:$G31,N28:N31,$AC28:$AC31,AJ28:AJ31,"None", FALSE,1) ->  | BP28: =bdRateExtend($G28:$G33,N28:N33,$AC28:$AC33,AJ28:AJ33,"None", FALSE,1) ->  | BQ28: =bdRateExtend($G28:$G31,O28:O31,$AC28:$AC31,AK28:AK31,"None", FALSE,1) ->  | BR28: =bdRateExtend($G28:$G33,O28:O33,$AC28:$AC33,AK28:AK33,"None", FALSE,1) ->  | BS28: =bdRateExtend($G28:$G31,P28:P31,$AC28:$AC31,AL28:AL31) ->  | BT28: =bdRateExtend($G28:$G33,P28:P33,$AC28:$AC33,AL28:AL33) ->  | BU28: =bdRateExtend($G28:$G31,Q28:Q31,$AC28:$AC31,AM28:AM31) ->  | BV28: =bdRateExtend($G28:$G33,Q28:Q33,$AC28:$AC33,AM28:AM33) ->  | BW28: =bdRateExtend($G28:$G31,R28:R31,$AC28:$AC31,AN28:AN31) ->  | BX28: =bdRateExtend($G28:$G33,R28:R33,$AC28:$AC33,AN28:AN33) ->  | BY28: =bdRateExtend($G28:$G33,S28:S33,$AC28:$AC33,AO28:AO33) ->  | BZ28: =bdRateExtend($G28:$G33,T28:T33,$AC28:$AC33,AP28:AP33) ->  | CA28: =bdRateExtend($G28:$G33,U28:U33,$AC28:$AC33,AQ28:AQ33) ->  | CB28: =(Summary!$C$109*BX28+Summary!$C$110*BY28+Summary!$C$111*BZ28)/Summary!$C$112 ->  | CC28: =bdCAMBIExtend($G28:$G31,V28:V31,$AC28:$AC31,AR28:AR31) ->  | CD28: =bdCAMBIExtend($G28:$G33,V28:V33,$AC28:$AC33,AR28:AR33) ->  | CE28: =testVMAFRange($G28:$G31,N28:N31,$AC28:$AC31,AJ28:AJ31) -> 0 | CF28: =testVMAFRange($G28:$G33,N28:N33,$AC28:$AC33,AJ28:AJ33) -> 0 | CG28: =testVMAFRange($G28:$G31,O28:O31,$AC28:$AC31,AK28:AK31) -> 0 | CH28: =testVMAFRange($G28:$G33,O28:O33,$AC28:$AC33,AK28:AK33) -> 0
F29: 110 | G29: ='Anchor-AI'!L27 -> 0 | H29: ='Anchor-AI'!M27 -> 0 | I29: ='Anchor-AI'!N27 -> 0 | J29: ='Anchor-AI'!O27 -> 0 | K29: =(Summary!$C$64*H29+Summary!$C$65*I29+Summary!$C$66*J29)/Summary!$C$67 -> 0 | L29: ='Anchor-AI'!P27 -> 0 | M29: ='Anchor-AI'!Q27 -> 0 | N29: ='Anchor-AI'!R27 -> 0 | O29: ='Anchor-AI'!S27 -> 0 | P29: ='Anchor-AI'!T27 -> 0 | Q29: ='Anchor-AI'!U27 -> 0 | R29: ='Anchor-AI'!V27 -> 0 | S29: ='Anchor-AI'!W27 -> 0 | T29: ='Anchor-AI'!X27 -> 0 | U29: =10*LOG10(1/((Summary!$C$81/10^(R29/10)+Summary!$C$82/10^(S29/10)+Summary!$C$83/10^(T29/10))/Summary!$C$84)) -> 0 | V29: ='Anchor-AI'!Y27 -> 0 | W29: ='Anchor-AI'!Z27 -> 0 | X29: ='Anchor-AI'!AA27 -> 0 | Y29: ='Anchor-AI'!AB27 -> 0 | Z29: ='Anchor-AI'!AC27 -> 0 | AA29: 0 | AC29: ='Test-AI'!L27 -> 0 | AD29: ='Test-AI'!M27 -> 0 | AE29: ='Test-AI'!N27 -> 0 | AF29: ='Test-AI'!O27 -> 0 | AG29: =(Summary!$C$64*AD29+Summary!$C$65*AE29+Summary!$C$66*AF29)/Summary!$C$67 -> 0 | AH29: ='Test-AI'!P27 -> 0 | AI29: ='Test-AI'!Q27 -> 0 | AJ29: ='Test-AI'!R27 -> 0 | AK29: ='Test-AI'!S27 -> 0 | AL29: ='Test-AI'!T27 -> 0 | AM29: ='Test-AI'!U27 -> 0 | AN29: ='Test-AI'!V27 -> 0 | AO29: ='Test-AI'!W27 -> 0 | AP29: ='Test-AI'!X27 -> 0 | AQ29: =10*LOG10(1/((Summary!$C$81/10^(AN29/10)+Summary!$C$82/10^(AO29/10)+Summary!$C$83/10^(AP29/10))/Summary!$C$84)) -> 0 | AR29: ='Test-AI'!Y27 -> 0 | AS29: ='Test-AI'!Z27 -> 0 | AT29: ='Test-AI'!AA27 -> 0 | AU29: ='Test-AI'!AB27 -> 0 | AV29: ='Test-AI'!AC27 -> 0 | AW29: 0
F30: 135 | G30: ='Anchor-AI'!L28 -> 0 | H30: ='Anchor-AI'!M28 -> 0 | I30: ='Anchor-AI'!N28 -> 0 | J30: ='Anchor-AI'!O28 -> 0 | K30: =(Summary!$C$64*H30+Summary!$C$65*I30+Summary!$C$66*J30)/Summary!$C$67 -> 0 | L30: ='Anchor-AI'!P28 -> 0 | M30: ='Anchor-AI'!Q28 -> 0 | N30: ='Anchor-AI'!R28 -> 0 | O30: ='Anchor-AI'!S28 -> 0 | P30: ='Anchor-AI'!T28 -> 0 | Q30: ='Anchor-AI'!U28 -> 0 | R30: ='Anchor-AI'!V28 -> 0 | S30: ='Anchor-AI'!W28 -> 0 | T30: ='Anchor-AI'!X28 -> 0 | U30: =10*LOG10(1/((Summary!$C$81/10^(R30/10)+Summary!$C$82/10^(S30/10)+Summary!$C$83/10^(T30/10))/Summary!$C$84)) -> 0 | V30: ='Anchor-AI'!Y28 -> 0 | W30: ='Anchor-AI'!Z28 -> 0 | X30: ='Anchor-AI'!AA28 -> 0 | Y30: ='Anchor-AI'!AB28 -> 0 | Z30: ='Anchor-AI'!AC28 -> 0 | AA30: 0 | AC30: ='Test-AI'!L28 -> 0 | AD30: ='Test-AI'!M28 -> 0 | AE30: ='Test-AI'!N28 -> 0 | AF30: ='Test-AI'!O28 -> 0 | AG30: =(Summary!$C$64*AD30+Summary!$C$65*AE30+Summary!$C$66*AF30)/Summary!$C$67 -> 0 | AH30: ='Test-AI'!P28 -> 0 | AI30: ='Test-AI'!Q28 -> 0 | AJ30: ='Test-AI'!R28 -> 0 | AK30: ='Test-AI'!S28 -> 0 | AL30: ='Test-AI'!T28 -> 0 | AM30: ='Test-AI'!U28 -> 0 | AN30: ='Test-AI'!V28 -> 0 | AO30: ='Test-AI'!W28 -> 0 | AP30: ='Test-AI'!X28 -> 0 | AQ30: =10*LOG10(1/((Summary!$C$81/10^(AN30/10)+Summary!$C$82/10^(AO30/10)+Summary!$C$83/10^(AP30/10))/Summary!$C$84)) -> 0 | AR30: ='Test-AI'!Y28 -> 0 | AS30: ='Test-AI'!Z28 -> 0 | AT30: ='Test-AI'!AA28 -> 0 | AU30: ='Test-AI'!AB28 -> 0 | AV30: ='Test-AI'!AC28 -> 0 | AW30: 0 | BD30: Med | BE30: =bdRateExtend($G29:$G32,H29:H32,$AC29:$AC32,AD29:AD32) ->  | BK30: =bdRateExtend($G29:$G32,L29:L32,$AC29:$AC32,AH29:AH32) ->  | BM30: =bdRateExtend($G29:$G32,M29:M32,$AC29:$AC32,AI29:AI32) ->  | BO30: =bdRateExtend($G29:$G32,N29:N32,$AC29:$AC32,AJ29:AJ32,"None", FALSE,1) ->  | BQ30: =bdRateExtend($G29:$G32,O29:O32,$AC29:$AC32,AK29:AK32,"None", FALSE,1) ->  | BS30: =bdRateExtend($G29:$G32,P29:P32,$AC29:$AC32,AL29:AL32) ->  | BU30: =bdRateExtend($G29:$G32,Q29:Q32,$AC29:$AC32,AM29:AM32) ->  | BW30: =bdRateExtend($G29:$G32,R29:R32,$AC29:$AC32,AN29:AN32) ->  | CC30: =bdCAMBIExtend($G29:$G32,V29:V32,$AC29:$AC32,AR29:AR32) ->  | CE30: =testVMAFRange($G29:$G32,N29:N32,$AC29:$AC32,AJ29:AJ32) -> 0 | CG30: =testVMAFRange($G29:$G32,O29:O32,$AC29:$AC32,AK29:AK32) -> 0
F31: 160 | G31: ='Anchor-AI'!L29 -> 0 | H31: ='Anchor-AI'!M29 -> 0 | I31: ='Anchor-AI'!N29 -> 0 | J31: ='Anchor-AI'!O29 -> 0 | K31: =(Summary!$C$64*H31+Summary!$C$65*I31+Summary!$C$66*J31)/Summary!$C$67 -> 0 | L31: ='Anchor-AI'!P29 -> 0 | M31: ='Anchor-AI'!Q29 -> 0 | N31: ='Anchor-AI'!R29 -> 0 | O31: ='Anchor-AI'!S29 -> 0 | P31: ='Anchor-AI'!T29 -> 0 | Q31: ='Anchor-AI'!U29 -> 0 | R31: ='Anchor-AI'!V29 -> 0 | S31: ='Anchor-AI'!W29 -> 0 | T31: ='Anchor-AI'!X29 -> 0 | U31: =10*LOG10(1/((Summary!$C$81/10^(R31/10)+Summary!$C$82/10^(S31/10)+Summary!$C$83/10^(T31/10))/Summary!$C$84)) -> 0 | V31: ='Anchor-AI'!Y29 -> 0 | W31: ='Anchor-AI'!Z29 -> 0 | X31: ='Anchor-AI'!AA29 -> 0 | Y31: ='Anchor-AI'!AB29 -> 0 | Z31: ='Anchor-AI'!AC29 -> 0 | AA31: 0 | AC31: ='Test-AI'!L29 -> 0 | AD31: ='Test-AI'!M29 -> 0 | AE31: ='Test-AI'!N29 -> 0 | AF31: ='Test-AI'!O29 -> 0 | AG31: =(Summary!$C$64*AD31+Summary!$C$65*AE31+Summary!$C$66*AF31)/Summary!$C$67 -> 0 | AH31: ='Test-AI'!P29 -> 0 | AI31: ='Test-AI'!Q29 -> 0 | AJ31: ='Test-AI'!R29 -> 0 | AK31: ='Test-AI'!S29 -> 0 | AL31: ='Test-AI'!T29 -> 0 | AM31: ='Test-AI'!U29 -> 0 | AN31: ='Test-AI'!V29 -> 0 | AO31: ='Test-AI'!W29 -> 0 | AP31: ='Test-AI'!X29 -> 0 | AQ31: =10*LOG10(1/((Summary!$C$81/10^(AN31/10)+Summary!$C$82/10^(AO31/10)+Summary!$C$83/10^(AP31/10))/Summary!$C$84)) -> 0 | AR31: ='Test-AI'!Y29 -> 0 | AS31: ='Test-AI'!Z29 -> 0 | AT31: ='Test-AI'!AA29 -> 0 | AU31: ='Test-AI'!AB29 -> 0 | AV31: ='Test-AI'!AC29 -> 0 | AW31: 0
F32: 185 | G32: ='Anchor-AI'!L30 -> 0 | H32: ='Anchor-AI'!M30 -> 0 | I32: ='Anchor-AI'!N30 -> 0 | J32: ='Anchor-AI'!O30 -> 0 | K32: =(Summary!$C$64*H32+Summary!$C$65*I32+Summary!$C$66*J32)/Summary!$C$67 -> 0 | L32: ='Anchor-AI'!P30 -> 0 | M32: ='Anchor-AI'!Q30 -> 0 | N32: ='Anchor-AI'!R30 -> 0 | O32: ='Anchor-AI'!S30 -> 0 | P32: ='Anchor-AI'!T30 -> 0 | Q32: ='Anchor-AI'!U30 -> 0 | R32: ='Anchor-AI'!V30 -> 0 | S32: ='Anchor-AI'!W30 -> 0 | T32: ='Anchor-AI'!X30 -> 0 | U32: =10*LOG10(1/((Summary!$C$81/10^(R32/10)+Summary!$C$82/10^(S32/10)+Summary!$C$83/10^(T32/10))/Summary!$C$84)) -> 0 | V32: ='Anchor-AI'!Y30 -> 0 | W32: ='Anchor-AI'!Z30 -> 0 | X32: ='Anchor-AI'!AA30 -> 0 | Y32: ='Anchor-AI'!AB30 -> 0 | Z32: ='Anchor-AI'!AC30 -> 0 | AA32: 0 | AC32: ='Test-AI'!L30 -> 0 | AD32: ='Test-AI'!M30 -> 0 | AE32: ='Test-AI'!N30 -> 0 | AF32: ='Test-AI'!O30 -> 0 | AG32: =(Summary!$C$64*AD32+Summary!$C$65*AE32+Summary!$C$66*AF32)/Summary!$C$67 -> 0 | AH32: ='Test-AI'!P30 -> 0 | AI32: ='Test-AI'!Q30 -> 0 | AJ32: ='Test-AI'!R30 -> 0 | AK32: ='Test-AI'!S30 -> 0 | AL32: ='Test-AI'!T30 -> 0 | AM32: ='Test-AI'!U30 -> 0 | AN32: ='Test-AI'!V30 -> 0 | AO32: ='Test-AI'!W30 -> 0 | AP32: ='Test-AI'!X30 -> 0 | AQ32: =10*LOG10(1/((Summary!$C$81/10^(AN32/10)+Summary!$C$82/10^(AO32/10)+Summary!$C$83/10^(AP32/10))/Summary!$C$84)) -> 0 | AR32: ='Test-AI'!Y30 -> 0 | AS32: ='Test-AI'!Z30 -> 0 | AT32: ='Test-AI'!AA30 -> 0 | AU32: ='Test-AI'!AB30 -> 0 | AV32: ='Test-AI'!AC30 -> 0 | AW32: 0 | BD32: Low | BE32: =bdRateExtend($G30:$G33,H30:H33,$AC30:$AC33,AD30:AD33) ->  | BK32: =bdRateExtend($G30:$G33,L30:L33,$AC30:$AC33,AH30:AH33) ->  | BM32: =bdRateExtend($G30:$G33,M30:M33,$AC30:$AC33,AI30:AI33) ->  | BO32: =bdRateExtend($G30:$G33,N30:N33,$AC30:$AC33,AJ30:AJ33,"None", FALSE,1) ->  | BQ32: =bdRateExtend($G30:$G33,O30:O33,$AC30:$AC33,AK30:AK33,"None", FALSE,1) ->  | BS32: =bdRateExtend($G30:$G33,P30:P33,$AC30:$AC33,AL30:AL33) ->  | BU32: =bdRateExtend($G30:$G33,Q30:Q33,$AC30:$AC33,AM30:AM33) ->  | BW32: =bdRateExtend($G30:$G33,R30:R33,$AC30:$AC33,AN30:AN33) ->  | CC32: =bdCAMBIExtend($G30:$G33,V30:V33,$AC30:$AC33,AR30:AR33) ->  | CE32: =testVMAFRange($G30:$G33,N30:N33,$AC30:$AC33,AJ30:AJ33) -> 0 | CG32: =testVMAFRange($G30:$G33,O30:O33,$AC30:$AC33,AK30:AK33) -> 0
F33: 210 | G33: ='Anchor-AI'!L31 -> 0 | H33: ='Anchor-AI'!M31 -> 0 | I33: ='Anchor-AI'!N31 -> 0 | J33: ='Anchor-AI'!O31 -> 0 | K33: =(Summary!$C$64*H33+Summary!$C$65*I33+Summary!$C$66*J33)/Summary!$C$67 -> 0 | L33: ='Anchor-AI'!P31 -> 0 | M33: ='Anchor-AI'!Q31 -> 0 | N33: ='Anchor-AI'!R31 -> 0 | O33: ='Anchor-AI'!S31 -> 0 | P33: ='Anchor-AI'!T31 -> 0 | Q33: ='Anchor-AI'!U31 -> 0 | R33: ='Anchor-AI'!V31 -> 0 | S33: ='Anchor-AI'!W31 -> 0 | T33: ='Anchor-AI'!X31 -> 0 | U33: =10*LOG10(1/((Summary!$C$81/10^(R33/10)+Summary!$C$82/10^(S33/10)+Summary!$C$83/10^(T33/10))/Summary!$C$84)) -> 0 | V33: ='Anchor-AI'!Y31 -> 0 | W33: ='Anchor-AI'!Z31 -> 0 | X33: ='Anchor-AI'!AA31 -> 0 | Y33: ='Anchor-AI'!AB31 -> 0 | Z33: ='Anchor-AI'!AC31 -> 0 | AA33: 0 | AC33: ='Test-AI'!L31 -> 0 | AD33: ='Test-AI'!M31 -> 0 | AE33: ='Test-AI'!N31 -> 0 | AF33: ='Test-AI'!O31 -> 0 | AG33: =(Summary!$C$64*AD33+Summary!$C$65*AE33+Summary!$C$66*AF33)/Summary!$C$67 -> 0 | AH33: ='Test-AI'!P31 -> 0 | AI33: ='Test-AI'!Q31 -> 0 | AJ33: ='Test-AI'!R31 -> 0 | AK33: ='Test-AI'!S31 -> 0 | AL33: ='Test-AI'!T31 -> 0 | AM33: ='Test-AI'!U31 -> 0 | AN33: ='Test-AI'!V31 -> 0 | AO33: ='Test-AI'!W31 -> 0 | AP33: ='Test-AI'!X31 -> 0 | AQ33: =10*LOG10(1/((Summary!$C$81/10^(AN33/10)+Summary!$C$82/10^(AO33/10)+Summary!$C$83/10^(AP33/10))/Summary!$C$84)) -> 0 | AR33: ='Test-AI'!Y31 -> 0 | AS33: ='Test-AI'!Z31 -> 0 | AT33: ='Test-AI'!AA31 -> 0 | AU33: ='Test-AI'!AB31 -> 0 | AV33: ='Test-AI'!AC31 -> 0 | AW33: 0
B34: 3840x2160 | C34: PierSeaSide_3840x2160_2997fps_10bit_420_v2.y4m | D34: 29.97 | E34: 10 | F34: 85 | G34: ='Anchor-AI'!L32 -> 0 | H34: ='Anchor-AI'!M32 -> 0 | I34: ='Anchor-AI'!N32 -> 0 | J34: ='Anchor-AI'!O32 -> 0 | K34: =(Summary!$C$64*H34+Summary!$C$65*I34+Summary!$C$66*J34)/Summary!$C$67 -> 0 | L34: ='Anchor-AI'!P32 -> 0 | M34: ='Anchor-AI'!Q32 -> 0 | N34: ='Anchor-AI'!R32 -> 0 | O34: ='Anchor-AI'!S32 -> 0 | P34: ='Anchor-AI'!T32 -> 0 | Q34: ='Anchor-AI'!U32 -> 0 | R34: ='Anchor-AI'!V32 -> 0 | S34: ='Anchor-AI'!W32 -> 0 | T34: ='Anchor-AI'!X32 -> 0 | U34: =10*LOG10(1/((Summary!$C$81/10^(R34/10)+Summary!$C$82/10^(S34/10)+Summary!$C$83/10^(T34/10))/Summary!$C$84)) -> 0 | V34: ='Anchor-AI'!Y32 -> 0 | W34: ='Anchor-AI'!Z32 -> 0 | X34: ='Anchor-AI'!AA32 -> 0 | Y34: ='Anchor-AI'!AB32 -> 0 | Z34: ='Anchor-AI'!AC32 -> 0 | AA34: 0 | AC34: ='Test-AI'!L32 -> 0 | AD34: ='Test-AI'!M32 -> 0 | AE34: ='Test-AI'!N32 -> 0 | AF34: ='Test-AI'!O32 -> 0 | AG34: =(Summary!$C$64*AD34+Summary!$C$65*AE34+Summary!$C$66*AF34)/Summary!$C$67 -> 0 | AH34: ='Test-AI'!P32 -> 0 | AI34: ='Test-AI'!Q32 -> 0 | AJ34: ='Test-AI'!R32 -> 0 | AK34: ='Test-AI'!S32 -> 0 | AL34: ='Test-AI'!T32 -> 0 | AM34: ='Test-AI'!U32 -> 0 | AN34: ='Test-AI'!V32 -> 0 | AO34: ='Test-AI'!W32 -> 0 | AP34: ='Test-AI'!X32 -> 0 | AQ34: =10*LOG10(1/((Summary!$C$81/10^(AN34/10)+Summary!$C$82/10^(AO34/10)+Summary!$C$83/10^(AP34/10))/Summary!$C$84)) -> 0 | AR34: ='Test-AI'!Y32 -> 0 | AS34: ='Test-AI'!Z32 -> 0 | AT34: ='Test-AI'!AA32 -> 0 | AU34: ='Test-AI'!AB32 -> 0 | AV34: ='Test-AI'!AC32 -> 0 | AW34: 0 | BD34: High | BE34: =bdRateExtend($G34:$G37,H34:H37,$AC34:$AC37,AD34:AD37) ->  | BF34: =bdRateExtend($G34:$G39,H34:H39,$AC34:$AC39,AD34:AD39) ->  | BG34: =bdRateExtend($G34:$G39,I34:I39,$AC34:$AC39,AE34:AE39) ->  | BH34: =bdRateExtend($G34:$G39,J34:J39,$AC34:$AC39,AF34:AF39) ->  | BI34: =bdRateExtend($G34:$G39,K34:K39,$AC34:$AC39,AG34:AG39) ->  | BJ34: =(Summary!$C$95*BF34+Summary!$C$96*BG34+Summary!$C$97*BH34)/Summary!$C$98 ->  | BK34: =bdRateExtend($G34:$G37,L34:L37,$AC34:$AC37,AH34:AH37) ->  | BL34: =bdRateExtend($G34:$G39,L34:L39,$AC34:$AC39,AH34:AH39) ->  | BM34: =bdRateExtend($G34:$G37,M34:M37,$AC34:$AC37,AI34:AI37) ->  | BN34: =bdRateExtend($G34:$G39,M34:M39,$AC34:$AC39,AI34:AI39) ->  | BO34: =bdRateExtend($G34:$G37,N34:N37,$AC34:$AC37,AJ34:AJ37,"None", FALSE,1) ->  | BP34: =bdRateExtend($G34:$G39,N34:N39,$AC34:$AC39,AJ34:AJ39,"None", FALSE,1) ->  | BQ34: =bdRateExtend($G34:$G37,O34:O37,$AC34:$AC37,AK34:AK37,"None", FALSE,1) ->  | BR34: =bdRateExtend($G34:$G39,O34:O39,$AC34:$AC39,AK34:AK39,"None", FALSE,1) ->  | BS34: =bdRateExtend($G34:$G37,P34:P37,$AC34:$AC37,AL34:AL37) ->  | BT34: =bdRateExtend($G34:$G39,P34:P39,$AC34:$AC39,AL34:AL39) ->  | BU34: =bdRateExtend($G34:$G37,Q34:Q37,$AC34:$AC37,AM34:AM37) ->  | BV34: =bdRateExtend($G34:$G39,Q34:Q39,$AC34:$AC39,AM34:AM39) ->  | BW34: =bdRateExtend($G34:$G37,R34:R37,$AC34:$AC37,AN34:AN37) ->  | BX34: =bdRateExtend($G34:$G39,R34:R39,$AC34:$AC39,AN34:AN39) ->  | BY34: =bdRateExtend($G34:$G39,S34:S39,$AC34:$AC39,AO34:AO39) ->  | BZ34: =bdRateExtend($G34:$G39,T34:T39,$AC34:$AC39,AP34:AP39) ->  | CA34: =bdRateExtend($G34:$G39,U34:U39,$AC34:$AC39,AQ34:AQ39) ->  | CB34: =(Summary!$C$109*BX34+Summary!$C$110*BY34+Summary!$C$111*BZ34)/Summary!$C$112 ->  | CC34: =bdCAMBIExtend($G34:$G37,V34:V37,$AC34:$AC37,AR34:AR37) ->  | CD34: =bdCAMBIExtend($G34:$G39,V34:V39,$AC34:$AC39,AR34:AR39) ->  | CE34: =testVMAFRange($G34:$G37,N34:N37,$AC34:$AC37,AJ34:AJ37) -> 0 | CF34: =testVMAFRange($G34:$G39,N34:N39,$AC34:$AC39,AJ34:AJ39) -> 0 | CG34: =testVMAFRange($G34:$G37,O34:O37,$AC34:$AC37,AK34:AK37) -> 0 | CH34: =testVMAFRange($G34:$G39,O34:O39,$AC34:$AC39,AK34:AK39) -> 0
F35: 110 | G35: ='Anchor-AI'!L33 -> 0 | H35: ='Anchor-AI'!M33 -> 0 | I35: ='Anchor-AI'!N33 -> 0 | J35: ='Anchor-AI'!O33 -> 0 | K35: =(Summary!$C$64*H35+Summary!$C$65*I35+Summary!$C$66*J35)/Summary!$C$67 -> 0 | L35: ='Anchor-AI'!P33 -> 0 | M35: ='Anchor-AI'!Q33 -> 0 | N35: ='Anchor-AI'!R33 -> 0 | O35: ='Anchor-AI'!S33 -> 0 | P35: ='Anchor-AI'!T33 -> 0 | Q35: ='Anchor-AI'!U33 -> 0 | R35: ='Anchor-AI'!V33 -> 0 | S35: ='Anchor-AI'!W33 -> 0 | T35: ='Anchor-AI'!X33 -> 0 | U35: =10*LOG10(1/((Summary!$C$81/10^(R35/10)+Summary!$C$82/10^(S35/10)+Summary!$C$83/10^(T35/10))/Summary!$C$84)) -> 0 | V35: ='Anchor-AI'!Y33 -> 0 | W35: ='Anchor-AI'!Z33 -> 0 | X35: ='Anchor-AI'!AA33 -> 0 | Y35: ='Anchor-AI'!AB33 -> 0 | Z35: ='Anchor-AI'!AC33 -> 0 | AA35: 0 | AC35: ='Test-AI'!L33 -> 0 | AD35: ='Test-AI'!M33 -> 0 | AE35: ='Test-AI'!N33 -> 0 | AF35: ='Test-AI'!O33 -> 0 | AG35: =(Summary!$C$64*AD35+Summary!$C$65*AE35+Summary!$C$66*AF35)/Summary!$C$67 -> 0 | AH35: ='Test-AI'!P33 -> 0 | AI35: ='Test-AI'!Q33 -> 0 | AJ35: ='Test-AI'!R33 -> 0 | AK35: ='Test-AI'!S33 -> 0 | AL35: ='Test-AI'!T33 -> 0 | AM35: ='Test-AI'!U33 -> 0 | AN35: ='Test-AI'!V33 -> 0 | AO35: ='Test-AI'!W33 -> 0 | AP35: ='Test-AI'!X33 -> 0 | AQ35: =10*LOG10(1/((Summary!$C$81/10^(AN35/10)+Summary!$C$82/10^(AO35/10)+Summary!$C$83/10^(AP35/10))/Summary!$C$84)) -> 0 | AR35: ='Test-AI'!Y33 -> 0 | AS35: ='Test-AI'!Z33 -> 0 | AT35: ='Test-AI'!AA33 -> 0 | AU35: ='Test-AI'!AB33 -> 0 | AV35: ='Test-AI'!AC33 -> 0 | AW35: 0
F36: 135 | G36: ='Anchor-AI'!L34 -> 0 | H36: ='Anchor-AI'!M34 -> 0 | I36: ='Anchor-AI'!N34 -> 0 | J36: ='Anchor-AI'!O34 -> 0 | K36: =(Summary!$C$64*H36+Summary!$C$65*I36+Summary!$C$66*J36)/Summary!$C$67 -> 0 | L36: ='Anchor-AI'!P34 -> 0 | M36: ='Anchor-AI'!Q34 -> 0 | N36: ='Anchor-AI'!R34 -> 0 | O36: ='Anchor-AI'!S34 -> 0 | P36: ='Anchor-AI'!T34 -> 0 | Q36: ='Anchor-AI'!U34 -> 0 | R36: ='Anchor-AI'!V34 -> 0 | S36: ='Anchor-AI'!W34 -> 0 | T36: ='Anchor-AI'!X34 -> 0 | U36: =10*LOG10(1/((Summary!$C$81/10^(R36/10)+Summary!$C$82/10^(S36/10)+Summary!$C$83/10^(T36/10))/Summary!$C$84)) -> 0 | V36: ='Anchor-AI'!Y34 -> 0 | W36: ='Anchor-AI'!Z34 -> 0 | X36: ='Anchor-AI'!AA34 -> 0 | Y36: ='Anchor-AI'!AB34 -> 0 | Z36: ='Anchor-AI'!AC34 -> 0 | AA36: 0 | AC36: ='Test-AI'!L34 -> 0 | AD36: ='Test-AI'!M34 -> 0 | AE36: ='Test-AI'!N34 -> 0 | AF36: ='Test-AI'!O34 -> 0 | AG36: =(Summary!$C$64*AD36+Summary!$C$65*AE36+Summary!$C$66*AF36)/Summary!$C$67 -> 0 | AH36: ='Test-AI'!P34 -> 0 | AI36: ='Test-AI'!Q34 -> 0 | AJ36: ='Test-AI'!R34 -> 0 | AK36: ='Test-AI'!S34 -> 0 | AL36: ='Test-AI'!T34 -> 0 | AM36: ='Test-AI'!U34 -> 0 | AN36: ='Test-AI'!V34 -> 0 | AO36: ='Test-AI'!W34 -> 0 | AP36: ='Test-AI'!X34 -> 0 | AQ36: =10*LOG10(1/((Summary!$C$81/10^(AN36/10)+Summary!$C$82/10^(AO36/10)+Summary!$C$83/10^(AP36/10))/Summary!$C$84)) -> 0 | AR36: ='Test-AI'!Y34 -> 0 | AS36: ='Test-AI'!Z34 -> 0 | AT36: ='Test-AI'!AA34 -> 0 | AU36: ='Test-AI'!AB34 -> 0 | AV36: ='Test-AI'!AC34 -> 0 | AW36: 0 | BD36: Med | BE36: =bdRateExtend($G35:$G38,H35:H38,$AC35:$AC38,AD35:AD38) ->  | BK36: =bdRateExtend($G35:$G38,L35:L38,$AC35:$AC38,AH35:AH38) ->  | BM36: =bdRateExtend($G35:$G38,M35:M38,$AC35:$AC38,AI35:AI38) ->  | BO36: =bdRateExtend($G35:$G38,N35:N38,$AC35:$AC38,AJ35:AJ38,"None", FALSE,1) ->  | BQ36: =bdRateExtend($G35:$G38,O35:O38,$AC35:$AC38,AK35:AK38,"None", FALSE,1) ->  | BS36: =bdRateExtend($G35:$G38,P35:P38,$AC35:$AC38,AL35:AL38) ->  | BU36: =bdRateExtend($G35:$G38,Q35:Q38,$AC35:$AC38,AM35:AM38) ->  | BW36: =bdRateExtend($G35:$G38,R35:R38,$AC35:$AC38,AN35:AN38) ->  | CC36: =bdCAMBIExtend($G35:$G38,V35:V38,$AC35:$AC38,AR35:AR38) ->  | CE36: =testVMAFRange($G35:$G38,N35:N38,$AC35:$AC38,AJ35:AJ38) -> 0 | CG36: =testVMAFRange($G35:$G38,O35:O38,$AC35:$AC38,AK35:AK38) -> 0
F37: 160 | G37: ='Anchor-AI'!L35 -> 0 | H37: ='Anchor-AI'!M35 -> 0 | I37: ='Anchor-AI'!N35 -> 0 | J37: ='Anchor-AI'!O35 -> 0 | K37: =(Summary!$C$64*H37+Summary!$C$65*I37+Summary!$C$66*J37)/Summary!$C$67 -> 0 | L37: ='Anchor-AI'!P35 -> 0 | M37: ='Anchor-AI'!Q35 -> 0 | N37: ='Anchor-AI'!R35 -> 0 | O37: ='Anchor-AI'!S35 -> 0 | P37: ='Anchor-AI'!T35 -> 0 | Q37: ='Anchor-AI'!U35 -> 0 | R37: ='Anchor-AI'!V35 -> 0 | S37: ='Anchor-AI'!W35 -> 0 | T37: ='Anchor-AI'!X35 -> 0 | U37: =10*LOG10(1/((Summary!$C$81/10^(R37/10)+Summary!$C$82/10^(S37/10)+Summary!$C$83/10^(T37/10))/Summary!$C$84)) -> 0 | V37: ='Anchor-AI'!Y35 -> 0 | W37: ='Anchor-AI'!Z35 -> 0 | X37: ='Anchor-AI'!AA35 -> 0 | Y37: ='Anchor-AI'!AB35 -> 0 | Z37: ='Anchor-AI'!AC35 -> 0 | AA37: 0 | AC37: ='Test-AI'!L35 -> 0 | AD37: ='Test-AI'!M35 -> 0 | AE37: ='Test-AI'!N35 -> 0 | AF37: ='Test-AI'!O35 -> 0 | AG37: =(Summary!$C$64*AD37+Summary!$C$65*AE37+Summary!$C$66*AF37)/Summary!$C$67 -> 0 | AH37: ='Test-AI'!P35 -> 0 | AI37: ='Test-AI'!Q35 -> 0 | AJ37: ='Test-AI'!R35 -> 0 | AK37: ='Test-AI'!S35 -> 0 | AL37: ='Test-AI'!T35 -> 0 | AM37: ='Test-AI'!U35 -> 0 | AN37: ='Test-AI'!V35 -> 0 | AO37: ='Test-AI'!W35 -> 0 | AP37: ='Test-AI'!X35 -> 0 | AQ37: =10*LOG10(1/((Summary!$C$81/10^(AN37/10)+Summary!$C$82/10^(AO37/10)+Summary!$C$83/10^(AP37/10))/Summary!$C$84)) -> 0 | AR37: ='Test-AI'!Y35 -> 0 | AS37: ='Test-AI'!Z35 -> 0 | AT37: ='Test-AI'!AA35 -> 0 | AU37: ='Test-AI'!AB35 -> 0 | AV37: ='Test-AI'!AC35 -> 0 | AW37: 0
F38: 185 | G38: ='Anchor-AI'!L36 -> 0 | H38: ='Anchor-AI'!M36 -> 0 | I38: ='Anchor-AI'!N36 -> 0 | J38: ='Anchor-AI'!O36 -> 0 | K38: =(Summary!$C$64*H38+Summary!$C$65*I38+Summary!$C$66*J38)/Summary!$C$67 -> 0 | L38: ='Anchor-AI'!P36 -> 0 | M38: ='Anchor-AI'!Q36 -> 0 | N38: ='Anchor-AI'!R36 -> 0 | O38: ='Anchor-AI'!S36 -> 0 | P38: ='Anchor-AI'!T36 -> 0 | Q38: ='Anchor-AI'!U36 -> 0 | R38: ='Anchor-AI'!V36 -> 0 | S38: ='Anchor-AI'!W36 -> 0 | T38: ='Anchor-AI'!X36 -> 0 | U38: =10*LOG10(1/((Summary!$C$81/10^(R38/10)+Summary!$C$82/10^(S38/10)+Summary!$C$83/10^(T38/10))/Summary!$C$84)) -> 0 | V38: ='Anchor-AI'!Y36 -> 0 | W38: ='Anchor-AI'!Z36 -> 0 | X38: ='Anchor-AI'!AA36 -> 0 | Y38: ='Anchor-AI'!AB36 -> 0 | Z38: ='Anchor-AI'!AC36 -> 0 | AA38: 0 | AC38: ='Test-AI'!L36 -> 0 | AD38: ='Test-AI'!M36 -> 0 | AE38: ='Test-AI'!N36 -> 0 | AF38: ='Test-AI'!O36 -> 0 | AG38: =(Summary!$C$64*AD38+Summary!$C$65*AE38+Summary!$C$66*AF38)/Summary!$C$67 -> 0 | AH38: ='Test-AI'!P36 -> 0 | AI38: ='Test-AI'!Q36 -> 0 | AJ38: ='Test-AI'!R36 -> 0 | AK38: ='Test-AI'!S36 -> 0 | AL38: ='Test-AI'!T36 -> 0 | AM38: ='Test-AI'!U36 -> 0 | AN38: ='Test-AI'!V36 -> 0 | AO38: ='Test-AI'!W36 -> 0 | AP38: ='Test-AI'!X36 -> 0 | AQ38: =10*LOG10(1/((Summary!$C$81/10^(AN38/10)+Summary!$C$82/10^(AO38/10)+Summary!$C$83/10^(AP38/10))/Summary!$C$84)) -> 0 | AR38: ='Test-AI'!Y36 -> 0 | AS38: ='Test-AI'!Z36 -> 0 | AT38: ='Test-AI'!AA36 -> 0 | AU38: ='Test-AI'!AB36 -> 0 | AV38: ='Test-AI'!AC36 -> 0 | AW38: 0 | BD38: Low | BE38: =bdRateExtend($G36:$G39,H36:H39,$AC36:$AC39,AD36:AD39) ->  | BK38: =bdRateExtend($G36:$G39,L36:L39,$AC36:$AC39,AH36:AH39) ->  | BM38: =bdRateExtend($G36:$G39,M36:M39,$AC36:$AC39,AI36:AI39) ->  | BO38: =bdRateExtend($G36:$G39,N36:N39,$AC36:$AC39,AJ36:AJ39,"None", FALSE,1) ->  | BQ38: =bdRateExtend($G36:$G39,O36:O39,$AC36:$AC39,AK36:AK39,"None", FALSE,1) ->  | BS38: =bdRateExtend($G36:$G39,P36:P39,$AC36:$AC39,AL36:AL39) ->  | BU38: =bdRateExtend($G36:$G39,Q36:Q39,$AC36:$AC39,AM36:AM39) ->  | BW38: =bdRateExtend($G36:$G39,R36:R39,$AC36:$AC39,AN36:AN39) ->  | CC38: =bdCAMBIExtend($G36:$G39,V36:V39,$AC36:$AC39,AR36:AR39) ->  | CE38: =testVMAFRange($G36:$G39,N36:N39,$AC36:$AC39,AJ36:AJ39) -> 0 | CG38: =testVMAFRange($G36:$G39,O36:O39,$AC36:$AC39,AK36:AK39) -> 0
F39: 210 | G39: ='Anchor-AI'!L37 -> 0 | H39: ='Anchor-AI'!M37 -> 0 | I39: ='Anchor-AI'!N37 -> 0 | J39: ='Anchor-AI'!O37 -> 0 | K39: =(Summary!$C$64*H39+Summary!$C$65*I39+Summary!$C$66*J39)/Summary!$C$67 -> 0 | L39: ='Anchor-AI'!P37 -> 0 | M39: ='Anchor-AI'!Q37 -> 0 | N39: ='Anchor-AI'!R37 -> 0 | O39: ='Anchor-AI'!S37 -> 0 | P39: ='Anchor-AI'!T37 -> 0 | Q39: ='Anchor-AI'!U37 -> 0 | R39: ='Anchor-AI'!V37 -> 0 | S39: ='Anchor-AI'!W37 -> 0 | T39: ='Anchor-AI'!X37 -> 0 | U39: =10*LOG10(1/((Summary!$C$81/10^(R39/10)+Summary!$C$82/10^(S39/10)+Summary!$C$83/10^(T39/10))/Summary!$C$84)) -> 0 | V39: ='Anchor-AI'!Y37 -> 0 | W39: ='Anchor-AI'!Z37 -> 0 | X39: ='Anchor-AI'!AA37 -> 0 | Y39: ='Anchor-AI'!AB37 -> 0 | Z39: ='Anchor-AI'!AC37 -> 0 | AA39: 0 | AC39: ='Test-AI'!L37 -> 0 | AD39: ='Test-AI'!M37 -> 0 | AE39: ='Test-AI'!N37 -> 0 | AF39: ='Test-AI'!O37 -> 0 | AG39: =(Summary!$C$64*AD39+Summary!$C$65*AE39+Summary!$C$66*AF39)/Summary!$C$67 -> 0 | AH39: ='Test-AI'!P37 -> 0 | AI39: ='Test-AI'!Q37 -> 0 | AJ39: ='Test-AI'!R37 -> 0 | AK39: ='Test-AI'!S37 -> 0 | AL39: ='Test-AI'!T37 -> 0 | AM39: ='Test-AI'!U37 -> 0 | AN39: ='Test-AI'!V37 -> 0 | AO39: ='Test-AI'!W37 -> 0 | AP39: ='Test-AI'!X37 -> 0 | AQ39: =10*LOG10(1/((Summary!$C$81/10^(AN39/10)+Summary!$C$82/10^(AO39/10)+Summary!$C$83/10^(AP39/10))/Summary!$C$84)) -> 0 | AR39: ='Test-AI'!Y37 -> 0 | AS39: ='Test-AI'!Z37 -> 0 | AT39: ='Test-AI'!AA37 -> 0 | AU39: ='Test-AI'!AB37 -> 0 | AV39: ='Test-AI'!AC37 -> 0 | AW39: 0
B40: 3840x2160 | C40: Tango_3840x2160_5994fps_10bit_420.y4m | D40: 59.94 | E40: 10 | F40: 85 | G40: ='Anchor-AI'!L38 -> 0 | H40: ='Anchor-AI'!M38 -> 0 | I40: ='Anchor-AI'!N38 -> 0 | J40: ='Anchor-AI'!O38 -> 0 | K40: =(Summary!$C$64*H40+Summary!$C$65*I40+Summary!$C$66*J40)/Summary!$C$67 -> 0 | L40: ='Anchor-AI'!P38 -> 0 | M40: ='Anchor-AI'!Q38 -> 0 | N40: ='Anchor-AI'!R38 -> 0 | O40: ='Anchor-AI'!S38 -> 0 | P40: ='Anchor-AI'!T38 -> 0 | Q40: ='Anchor-AI'!U38 -> 0 | R40: ='Anchor-AI'!V38 -> 0 | S40: ='Anchor-AI'!W38 -> 0 | T40: ='Anchor-AI'!X38 -> 0 | U40: =10*LOG10(1/((Summary!$C$81/10^(R40/10)+Summary!$C$82/10^(S40/10)+Summary!$C$83/10^(T40/10))/Summary!$C$84)) -> 0 | V40: ='Anchor-AI'!Y38 -> 0 | W40: ='Anchor-AI'!Z38 -> 0 | X40: ='Anchor-AI'!AA38 -> 0 | Y40: ='Anchor-AI'!AB38 -> 0 | Z40: ='Anchor-AI'!AC38 -> 0 | AA40: 0 | AC40: ='Test-AI'!L38 -> 0 | AD40: ='Test-AI'!M38 -> 0 | AE40: ='Test-AI'!N38 -> 0 | AF40: ='Test-AI'!O38 -> 0 | AG40: =(Summary!$C$64*AD40+Summary!$C$65*AE40+Summary!$C$66*AF40)/Summary!$C$67 -> 0 | AH40: ='Test-AI'!P38 -> 0 | AI40: ='Test-AI'!Q38 -> 0 | AJ40: ='Test-AI'!R38 -> 0 | AK40: ='Test-AI'!S38 -> 0 | AL40: ='Test-AI'!T38 -> 0 | AM40: ='Test-AI'!U38 -> 0 | AN40: ='Test-AI'!V38 -> 0 | AO40: ='Test-AI'!W38 -> 0 | AP40: ='Test-AI'!X38 -> 0 | AQ40: =10*LOG10(1/((Summary!$C$81/10^(AN40/10)+Summary!$C$82/10^(AO40/10)+Summary!$C$83/10^(AP40/10))/Summary!$C$84)) -> 0 | AR40: ='Test-AI'!Y38 -> 0 | AS40: ='Test-AI'!Z38 -> 0 | AT40: ='Test-AI'!AA38 -> 0 | AU40: ='Test-AI'!AB38 -> 0 | AV40: ='Test-AI'!AC38 -> 0 | AW40: 0 | BD40: High | BE40: =bdRateExtend($G40:$G43,H40:H43,$AC40:$AC43,AD40:AD43) ->  | BF40: =bdRateExtend($G40:$G45,H40:H45,$AC40:$AC45,AD40:AD45) ->  | BG40: =bdRateExtend($G40:$G45,I40:I45,$AC40:$AC45,AE40:AE45) ->  | BH40: =bdRateExtend($G40:$G45,J40:J45,$AC40:$AC45,AF40:AF45) ->  | BI40: =bdRateExtend($G40:$G45,K40:K45,$AC40:$AC45,AG40:AG45) ->  | BJ40: =(Summary!$C$95*BF40+Summary!$C$96*BG40+Summary!$C$97*BH40)/Summary!$C$98 ->  | BK40: =bdRateExtend($G40:$G43,L40:L43,$AC40:$AC43,AH40:AH43) ->  | BL40: =bdRateExtend($G40:$G45,L40:L45,$AC40:$AC45,AH40:AH45) ->  | BM40: =bdRateExtend($G40:$G43,M40:M43,$AC40:$AC43,AI40:AI43) ->  | BN40: =bdRateExtend($G40:$G45,M40:M45,$AC40:$AC45,AI40:AI45) ->  | BO40: =bdRateExtend($G40:$G43,N40:N43,$AC40:$AC43,AJ40:AJ43,"None", FALSE,1) ->  | BP40: =bdRateExtend($G40:$G45,N40:N45,$AC40:$AC45,AJ40:AJ45,"None", FALSE,1) ->  | BQ40: =bdRateExtend($G40:$G43,O40:O43,$AC40:$AC43,AK40:AK43,"None", FALSE,1) ->  | BR40: =bdRateExtend($G40:$G45,O40:O45,$AC40:$AC45,AK40:AK45,"None", FALSE,1) ->  | BS40: =bdRateExtend($G40:$G43,P40:P43,$AC40:$AC43,AL40:AL43) ->  | BT40: =bdRateExtend($G40:$G45,P40:P45,$AC40:$AC45,AL40:AL45) ->  | BU40: =bdRateExtend($G40:$G43,Q40:Q43,$AC40:$AC43,AM40:AM43) ->  | BV40: =bdRateExtend($G40:$G45,Q40:Q45,$AC40:$AC45,AM40:AM45) ->  | BW40: =bdRateExtend($G40:$G43,R40:R43,$AC40:$AC43,AN40:AN43) ->  | BX40: =bdRateExtend($G40:$G45,R40:R45,$AC40:$AC45,AN40:AN45) ->  | BY40: =bdRateExtend($G40:$G45,S40:S45,$AC40:$AC45,AO40:AO45) ->  | BZ40: =bdRateExtend($G40:$G45,T40:T45,$AC40:$AC45,AP40:AP45) ->  | CA40: =bdRateExtend($G40:$G45,U40:U45,$AC40:$AC45,AQ40:AQ45) ->  | CB40: =(Summary!$C$109*BX40+Summary!$C$110*BY40+Summary!$C$111*BZ40)/Summary!$C$112 ->  | CC40: =bdCAMBIExtend($G40:$G43,V40:V43,$AC40:$AC43,AR40:AR43) ->  | CD40: =bdCAMBIExtend($G40:$G45,V40:V45,$AC40:$AC45,AR40:AR45) ->  | CE40: =testVMAFRange($G40:$G43,N40:N43,$AC40:$AC43,AJ40:AJ43) -> 0 | CF40: =testVMAFRange($G40:$G45,N40:N45,$AC40:$AC45,AJ40:AJ45) -> 0 | CG40: =testVMAFRange($G40:$G43,O40:O43,$AC40:$AC43,AK40:AK43) -> 0 | CH40: =testVMAFRange($G40:$G45,O40:O45,$AC40:$AC45,AK40:AK45) -> 0
F41: 110 | G41: ='Anchor-AI'!L39 -> 0 | H41: ='Anchor-AI'!M39 -> 0 | I41: ='Anchor-AI'!N39 -> 0 | J41: ='Anchor-AI'!O39 -> 0 | K41: =(Summary!$C$64*H41+Summary!$C$65*I41+Summary!$C$66*J41)/Summary!$C$67 -> 0 | L41: ='Anchor-AI'!P39 -> 0 | M41: ='Anchor-AI'!Q39 -> 0 | N41: ='Anchor-AI'!R39 -> 0 | O41: ='Anchor-AI'!S39 -> 0 | P41: ='Anchor-AI'!T39 -> 0 | Q41: ='Anchor-AI'!U39 -> 0 | R41: ='Anchor-AI'!V39 -> 0 | S41: ='Anchor-AI'!W39 -> 0 | T41: ='Anchor-AI'!X39 -> 0 | U41: =10*LOG10(1/((Summary!$C$81/10^(R41/10)+Summary!$C$82/10^(S41/10)+Summary!$C$83/10^(T41/10))/Summary!$C$84)) -> 0 | V41: ='Anchor-AI'!Y39 -> 0 | W41: ='Anchor-AI'!Z39 -> 0 | X41: ='Anchor-AI'!AA39 -> 0 | Y41: ='Anchor-AI'!AB39 -> 0 | Z41: ='Anchor-AI'!AC39 -> 0 | AA41: 0 | AC41: ='Test-AI'!L39 -> 0 | AD41: ='Test-AI'!M39 -> 0 | AE41: ='Test-AI'!N39 -> 0 | AF41: ='Test-AI'!O39 -> 0 | AG41: =(Summary!$C$64*AD41+Summary!$C$65*AE41+Summary!$C$66*AF41)/Summary!$C$67 -> 0 | AH41: ='Test-AI'!P39 -> 0 | AI41: ='Test-AI'!Q39 -> 0 | AJ41: ='Test-AI'!R39 -> 0 | AK41: ='Test-AI'!S39 -> 0 | AL41: ='Test-AI'!T39 -> 0 | AM41: ='Test-AI'!U39 -> 0 | AN41: ='Test-AI'!V39 -> 0 | AO41: ='Test-AI'!W39 -> 0 | AP41: ='Test-AI'!X39 -> 0 | AQ41: =10*LOG10(1/((Summary!$C$81/10^(AN41/10)+Summary!$C$82/10^(AO41/10)+Summary!$C$83/10^(AP41/10))/Summary!$C$84)) -> 0 | AR41: ='Test-AI'!Y39 -> 0 | AS41: ='Test-AI'!Z39 -> 0 | AT41: ='Test-AI'!AA39 -> 0 | AU41: ='Test-AI'!AB39 -> 0 | AV41: ='Test-AI'!AC39 -> 0 | AW41: 0
F42: 135 | G42: ='Anchor-AI'!L40 -> 0 | H42: ='Anchor-AI'!M40 -> 0 | I42: ='Anchor-AI'!N40 -> 0 | J42: ='Anchor-AI'!O40 -> 0 | K42: =(Summary!$C$64*H42+Summary!$C$65*I42+Summary!$C$66*J42)/Summary!$C$67 -> 0 | L42: ='Anchor-AI'!P40 -> 0 | M42: ='Anchor-AI'!Q40 -> 0 | N42: ='Anchor-AI'!R40 -> 0 | O42: ='Anchor-AI'!S40 -> 0 | P42: ='Anchor-AI'!T40 -> 0 | Q42: ='Anchor-AI'!U40 -> 0 | R42: ='Anchor-AI'!V40 -> 0 | S42: ='Anchor-AI'!W40 -> 0 | T42: ='Anchor-AI'!X40 -> 0 | U42: =10*LOG10(1/((Summary!$C$81/10^(R42/10)+Summary!$C$82/10^(S42/10)+Summary!$C$83/10^(T42/10))/Summary!$C$84)) -> 0 | V42: ='Anchor-AI'!Y40 -> 0 | W42: ='Anchor-AI'!Z40 -> 0 | X42: ='Anchor-AI'!AA40 -> 0 | Y42: ='Anchor-AI'!AB40 -> 0 | Z42: ='Anchor-AI'!AC40 -> 0 | AA42: 0 | AC42: ='Test-AI'!L40 -> 0 | AD42: ='Test-AI'!M40 -> 0 | AE42: ='Test-AI'!N40 -> 0 | AF42: ='Test-AI'!O40 -> 0 | AG42: =(Summary!$C$64*AD42+Summary!$C$65*AE42+Summary!$C$66*AF42)/Summary!$C$67 -> 0 | AH42: ='Test-AI'!P40 -> 0 | AI42: ='Test-AI'!Q40 -> 0 | AJ42: ='Test-AI'!R40 -> 0 | AK42: ='Test-AI'!S40 -> 0 | AL42: ='Test-AI'!T40 -> 0 | AM42: ='Test-AI'!U40 -> 0 | AN42: ='Test-AI'!V40 -> 0 | AO42: ='Test-AI'!W40 -> 0 | AP42: ='Test-AI'!X40 -> 0 | AQ42: =10*LOG10(1/((Summary!$C$81/10^(AN42/10)+Summary!$C$82/10^(AO42/10)+Summary!$C$83/10^(AP42/10))/Summary!$C$84)) -> 0 | AR42: ='Test-AI'!Y40 -> 0 | AS42: ='Test-AI'!Z40 -> 0 | AT42: ='Test-AI'!AA40 -> 0 | AU42: ='Test-AI'!AB40 -> 0 | AV42: ='Test-AI'!AC40 -> 0 | AW42: 0 | BD42: Med | BE42: =bdRateExtend($G41:$G44,H41:H44,$AC41:$AC44,AD41:AD44) ->  | BK42: =bdRateExtend($G41:$G44,L41:L44,$AC41:$AC44,AH41:AH44) ->  | BM42: =bdRateExtend($G41:$G44,M41:M44,$AC41:$AC44,AI41:AI44) ->  | BO42: =bdRateExtend($G41:$G44,N41:N44,$AC41:$AC44,AJ41:AJ44,"None", FALSE,1) ->  | BQ42: =bdRateExtend($G41:$G44,O41:O44,$AC41:$AC44,AK41:AK44,"None", FALSE,1) ->  | BS42: =bdRateExtend($G41:$G44,P41:P44,$AC41:$AC44,AL41:AL44) ->  | BU42: =bdRateExtend($G41:$G44,Q41:Q44,$AC41:$AC44,AM41:AM44) ->  | BW42: =bdRateExtend($G41:$G44,R41:R44,$AC41:$AC44,AN41:AN44) ->  | CC42: =bdCAMBIExtend($G41:$G44,V41:V44,$AC41:$AC44,AR41:AR44) ->  | CE42: =testVMAFRange($G41:$G44,N41:N44,$AC41:$AC44,AJ41:AJ44) -> 0 | CG42: =testVMAFRange($G41:$G44,O41:O44,$AC41:$AC44,AK41:AK44) -> 0
F43: 160 | G43: ='Anchor-AI'!L41 -> 0 | H43: ='Anchor-AI'!M41 -> 0 | I43: ='Anchor-AI'!N41 -> 0 | J43: ='Anchor-AI'!O41 -> 0 | K43: =(Summary!$C$64*H43+Summary!$C$65*I43+Summary!$C$66*J43)/Summary!$C$67 -> 0 | L43: ='Anchor-AI'!P41 -> 0 | M43: ='Anchor-AI'!Q41 -> 0 | N43: ='Anchor-AI'!R41 -> 0 | O43: ='Anchor-AI'!S41 -> 0 | P43: ='Anchor-AI'!T41 -> 0 | Q43: ='Anchor-AI'!U41 -> 0 | R43: ='Anchor-AI'!V41 -> 0 | S43: ='Anchor-AI'!W41 -> 0 | T43: ='Anchor-AI'!X41 -> 0 | U43: =10*LOG10(1/((Summary!$C$81/10^(R43/10)+Summary!$C$82/10^(S43/10)+Summary!$C$83/10^(T43/10))/Summary!$C$84)) -> 0 | V43: ='Anchor-AI'!Y41 -> 0 | W43: ='Anchor-AI'!Z41 -> 0 | X43: ='Anchor-AI'!AA41 -> 0 | Y43: ='Anchor-AI'!AB41 -> 0 | Z43: ='Anchor-AI'!AC41 -> 0 | AA43: 0 | AC43: ='Test-AI'!L41 -> 0 | AD43: ='Test-AI'!M41 -> 0 | AE43: ='Test-AI'!N41 -> 0 | AF43: ='Test-AI'!O41 -> 0 | AG43: =(Summary!$C$64*AD43+Summary!$C$65*AE43+Summary!$C$66*AF43)/Summary!$C$67 -> 0 | AH43: ='Test-AI'!P41 -> 0 | AI43: ='Test-AI'!Q41 -> 0 | AJ43: ='Test-AI'!R41 -> 0 | AK43: ='Test-AI'!S41 -> 0 | AL43: ='Test-AI'!T41 -> 0 | AM43: ='Test-AI'!U41 -> 0 | AN43: ='Test-AI'!V41 -> 0 | AO43: ='Test-AI'!W41 -> 0 | AP43: ='Test-AI'!X41 -> 0 | AQ43: =10*LOG10(1/((Summary!$C$81/10^(AN43/10)+Summary!$C$82/10^(AO43/10)+Summary!$C$83/10^(AP43/10))/Summary!$C$84)) -> 0 | AR43: ='Test-AI'!Y41 -> 0 | AS43: ='Test-AI'!Z41 -> 0 | AT43: ='Test-AI'!AA41 -> 0 | AU43: ='Test-AI'!AB41 -> 0 | AV43: ='Test-AI'!AC41 -> 0 | AW43: 0
F44: 185 | G44: ='Anchor-AI'!L42 -> 0 | H44: ='Anchor-AI'!M42 -> 0 | I44: ='Anchor-AI'!N42 -> 0 | J44: ='Anchor-AI'!O42 -> 0 | K44: =(Summary!$C$64*H44+Summary!$C$65*I44+Summary!$C$66*J44)/Summary!$C$67 -> 0 | L44: ='Anchor-AI'!P42 -> 0 | M44: ='Anchor-AI'!Q42 -> 0 | N44: ='Anchor-AI'!R42 -> 0 | O44: ='Anchor-AI'!S42 -> 0 | P44: ='Anchor-AI'!T42 -> 0 | Q44: ='Anchor-AI'!U42 -> 0 | R44: ='Anchor-AI'!V42 -> 0 | S44: ='Anchor-AI'!W42 -> 0 | T44: ='Anchor-AI'!X42 -> 0 | U44: =10*LOG10(1/((Summary!$C$81/10^(R44/10)+Summary!$C$82/10^(S44/10)+Summary!$C$83/10^(T44/10))/Summary!$C$84)) -> 0 | V44: ='Anchor-AI'!Y42 -> 0 | W44: ='Anchor-AI'!Z42 -> 0 | X44: ='Anchor-AI'!AA42 -> 0 | Y44: ='Anchor-AI'!AB42 -> 0 | Z44: ='Anchor-AI'!AC42 -> 0 | AA44: 0 | AC44: ='Test-AI'!L42 -> 0 | AD44: ='Test-AI'!M42 -> 0 | AE44: ='Test-AI'!N42 -> 0 | AF44: ='Test-AI'!O42 -> 0 | AG44: =(Summary!$C$64*AD44+Summary!$C$65*AE44+Summary!$C$66*AF44)/Summary!$C$67 -> 0 | AH44: ='Test-AI'!P42 -> 0 | AI44: ='Test-AI'!Q42 -> 0 | AJ44: ='Test-AI'!R42 -> 0 | AK44: ='Test-AI'!S42 -> 0 | AL44: ='Test-AI'!T42 -> 0 | AM44: ='Test-AI'!U42 -> 0 | AN44: ='Test-AI'!V42 -> 0 | AO44: ='Test-AI'!W42 -> 0 | AP44: ='Test-AI'!X42 -> 0 | AQ44: =10*LOG10(1/((Summary!$C$81/10^(AN44/10)+Summary!$C$82/10^(AO44/10)+Summary!$C$83/10^(AP44/10))/Summary!$C$84)) -> 0 | AR44: ='Test-AI'!Y42 -> 0 | AS44: ='Test-AI'!Z42 -> 0 | AT44: ='Test-AI'!AA42 -> 0 | AU44: ='Test-AI'!AB42 -> 0 | AV44: ='Test-AI'!AC42 -> 0 | AW44: 0 | BD44: Low | BE44: =bdRateExtend($G42:$G45,H42:H45,$AC42:$AC45,AD42:AD45) ->  | BK44: =bdRateExtend($G42:$G45,L42:L45,$AC42:$AC45,AH42:AH45) ->  | BM44: =bdRateExtend($G42:$G45,M42:M45,$AC42:$AC45,AI42:AI45) ->  | BO44: =bdRateExtend($G42:$G45,N42:N45,$AC42:$AC45,AJ42:AJ45,"None", FALSE,1) ->  | BQ44: =bdRateExtend($G42:$G45,O42:O45,$AC42:$AC45,AK42:AK45,"None", FALSE,1) ->  | BS44: =bdRateExtend($G42:$G45,P42:P45,$AC42:$AC45,AL42:AL45) ->  | BU44: =bdRateExtend($G42:$G45,Q42:Q45,$AC42:$AC45,AM42:AM45) ->  | BW44: =bdRateExtend($G42:$G45,R42:R45,$AC42:$AC45,AN42:AN45) ->  | CC44: =bdCAMBIExtend($G42:$G45,V42:V45,$AC42:$AC45,AR42:AR45) ->  | CE44: =testVMAFRange($G42:$G45,N42:N45,$AC42:$AC45,AJ42:AJ45) -> 0 | CG44: =testVMAFRange($G42:$G45,O42:O45,$AC42:$AC45,AK42:AK45) -> 0
F45: 210 | G45: ='Anchor-AI'!L43 -> 0 | H45: ='Anchor-AI'!M43 -> 0 | I45: ='Anchor-AI'!N43 -> 0 | J45: ='Anchor-AI'!O43 -> 0 | K45: =(Summary!$C$64*H45+Summary!$C$65*I45+Summary!$C$66*J45)/Summary!$C$67 -> 0 | L45: ='Anchor-AI'!P43 -> 0 | M45: ='Anchor-AI'!Q43 -> 0 | N45: ='Anchor-AI'!R43 -> 0 | O45: ='Anchor-AI'!S43 -> 0 | P45: ='Anchor-AI'!T43 -> 0 | Q45: ='Anchor-AI'!U43 -> 0 | R45: ='Anchor-AI'!V43 -> 0 | S45: ='Anchor-AI'!W43 -> 0 | T45: ='Anchor-AI'!X43 -> 0 | U45: =10*LOG10(1/((Summary!$C$81/10^(R45/10)+Summary!$C$82/10^(S45/10)+Summary!$C$83/10^(T45/10))/Summary!$C$84)) -> 0 | V45: ='Anchor-AI'!Y43 -> 0 | W45: ='Anchor-AI'!Z43 -> 0 | X45: ='Anchor-AI'!AA43 -> 0 | Y45: ='Anchor-AI'!AB43 -> 0 | Z45: ='Anchor-AI'!AC43 -> 0 | AA45: 0 | AC45: ='Test-AI'!L43 -> 0 | AD45: ='Test-AI'!M43 -> 0 | AE45: ='Test-AI'!N43 -> 0 | AF45: ='Test-AI'!O43 -> 0 | AG45: =(Summary!$C$64*AD45+Summary!$C$65*AE45+Summary!$C$66*AF45)/Summary!$C$67 -> 0 | AH45: ='Test-AI'!P43 -> 0 | AI45: ='Test-AI'!Q43 -> 0 | AJ45: ='Test-AI'!R43 -> 0 | AK45: ='Test-AI'!S43 -> 0 | AL45: ='Test-AI'!T43 -> 0 | AM45: ='Test-AI'!U43 -> 0 | AN45: ='Test-AI'!V43 -> 0 | AO45: ='Test-AI'!W43 -> 0 | AP45: ='Test-AI'!X43 -> 0 | AQ45: =10*LOG10(1/((Summary!$C$81/10^(AN45/10)+Summary!$C$82/10^(AO45/10)+Summary!$C$83/10^(AP45/10))/Summary!$C$84)) -> 0 | AR45: ='Test-AI'!Y43 -> 0 | AS45: ='Test-AI'!Z43 -> 0 | AT45: ='Test-AI'!AA43 -> 0 | AU45: ='Test-AI'!AB43 -> 0 | AV45: ='Test-AI'!AC43 -> 0 | AW45: 0
B46: 3840x2160 | C46: TimeLapse_3840x2160_5994fps_10bit_420.y4m | D46: 59.94 | E46: 10 | F46: 85 | G46: ='Anchor-AI'!L44 -> 0 | H46: ='Anchor-AI'!M44 -> 0 | I46: ='Anchor-AI'!N44 -> 0 | J46: ='Anchor-AI'!O44 -> 0 | K46: =(Summary!$C$64*H46+Summary!$C$65*I46+Summary!$C$66*J46)/Summary!$C$67 -> 0 | L46: ='Anchor-AI'!P44 -> 0 | M46: ='Anchor-AI'!Q44 -> 0 | N46: ='Anchor-AI'!R44 -> 0 | O46: ='Anchor-AI'!S44 -> 0 | P46: ='Anchor-AI'!T44 -> 0 | Q46: ='Anchor-AI'!U44 -> 0 | R46: ='Anchor-AI'!V44 -> 0 | S46: ='Anchor-AI'!W44 -> 0 | T46: ='Anchor-AI'!X44 -> 0 | U46: =10*LOG10(1/((Summary!$C$81/10^(R46/10)+Summary!$C$82/10^(S46/10)+Summary!$C$83/10^(T46/10))/Summary!$C$84)) -> 0 | V46: ='Anchor-AI'!Y44 -> 0 | W46: ='Anchor-AI'!Z44 -> 0 | X46: ='Anchor-AI'!AA44 -> 0 | Y46: ='Anchor-AI'!AB44 -> 0 | Z46: ='Anchor-AI'!AC44 -> 0 | AA46: 0 | AC46: ='Test-AI'!L44 -> 0 | AD46: ='Test-AI'!M44 -> 0 | AE46: ='Test-AI'!N44 -> 0 | AF46: ='Test-AI'!O44 -> 0 | AG46: =(Summary!$C$64*AD46+Summary!$C$65*AE46+Summary!$C$66*AF46)/Summary!$C$67 -> 0 | AH46: ='Test-AI'!P44 -> 0 | AI46: ='Test-AI'!Q44 -> 0 | AJ46: ='Test-AI'!R44 -> 0 | AK46: ='Test-AI'!S44 -> 0 | AL46: ='Test-AI'!T44 -> 0 | AM46: ='Test-AI'!U44 -> 0 | AN46: ='Test-AI'!V44 -> 0 | AO46: ='Test-AI'!W44 -> 0 | AP46: ='Test-AI'!X44 -> 0 | AQ46: =10*LOG10(1/((Summary!$C$81/10^(AN46/10)+Summary!$C$82/10^(AO46/10)+Summary!$C$83/10^(AP46/10))/Summary!$C$84)) -> 0 | AR46: ='Test-AI'!Y44 -> 0 | AS46: ='Test-AI'!Z44 -> 0 | AT46: ='Test-AI'!AA44 -> 0 | AU46: ='Test-AI'!AB44 -> 0 | AV46: ='Test-AI'!AC44 -> 0 | AW46: 0 | BD46: High | BE46: =bdRateExtend($G46:$G49,H46:H49,$AC46:$AC49,AD46:AD49) ->  | BF46: =bdRateExtend($G46:$G51,H46:H51,$AC46:$AC51,AD46:AD51) ->  | BG46: =bdRateExtend($G46:$G51,I46:I51,$AC46:$AC51,AE46:AE51) ->  | BH46: =bdRateExtend($G46:$G51,J46:J51,$AC46:$AC51,AF46:AF51) ->  | BI46: =bdRateExtend($G46:$G51,K46:K51,$AC46:$AC51,AG46:AG51) ->  | BJ46: =(Summary!$C$95*BF46+Summary!$C$96*BG46+Summary!$C$97*BH46)/Summary!$C$98 ->  | BK46: =bdRateExtend($G46:$G49,L46:L49,$AC46:$AC49,AH46:AH49) ->  | BL46: =bdRateExtend($G46:$G51,L46:L51,$AC46:$AC51,AH46:AH51) ->  | BM46: =bdRateExtend($G46:$G49,M46:M49,$AC46:$AC49,AI46:AI49) ->  | BN46: =bdRateExtend($G46:$G51,M46:M51,$AC46:$AC51,AI46:AI51) ->  | BO46: =bdRateExtend($G46:$G49,N46:N49,$AC46:$AC49,AJ46:AJ49,"None", FALSE,1) ->  | BP46: =bdRateExtend($G46:$G51,N46:N51,$AC46:$AC51,AJ46:AJ51,"None", FALSE,1) ->  | BQ46: =bdRateExtend($G46:$G49,O46:O49,$AC46:$AC49,AK46:AK49,"None", FALSE,1) ->  | BR46: =bdRateExtend($G46:$G51,O46:O51,$AC46:$AC51,AK46:AK51,"None", FALSE,1) ->  | BS46: =bdRateExtend($G46:$G49,P46:P49,$AC46:$AC49,AL46:AL49) ->  | BT46: =bdRateExtend($G46:$G51,P46:P51,$AC46:$AC51,AL46:AL51) ->  | BU46: =bdRateExtend($G46:$G49,Q46:Q49,$AC46:$AC49,AM46:AM49) ->  | BV46: =bdRateExtend($G46:$G51,Q46:Q51,$AC46:$AC51,AM46:AM51) ->  | BW46: =bdRateExtend($G46:$G49,R46:R49,$AC46:$AC49,AN46:AN49) ->  | BX46: =bdRateExtend($G46:$G51,R46:R51,$AC46:$AC51,AN46:AN51) ->  | BY46: =bdRateExtend($G46:$G51,S46:S51,$AC46:$AC51,AO46:AO51) ->  | BZ46: =bdRateExtend($G46:$G51,T46:T51,$AC46:$AC51,AP46:AP51) ->  | CA46: =bdRateExtend($G46:$G51,U46:U51,$AC46:$AC51,AQ46:AQ51) ->  | CB46: =(Summary!$C$109*BX46+Summary!$C$110*BY46+Summary!$C$111*BZ46)/Summary!$C$112 ->  | CC46: =bdCAMBIExtend($G46:$G49,V46:V49,$AC46:$AC49,AR46:AR49) ->  | CD46: =bdCAMBIExtend($G46:$G51,V46:V51,$AC46:$AC51,AR46:AR51) ->  | CE46: =testVMAFRange($G46:$G49,N46:N49,$AC46:$AC49,AJ46:AJ49) -> 0 | CF46: =testVMAFRange($G46:$G51,N46:N51,$AC46:$AC51,AJ46:AJ51) -> 0 | CG46: =testVMAFRange($G46:$G49,O46:O49,$AC46:$AC49,AK46:AK49) -> 0 | CH46: =testVMAFRange($G46:$G51,O46:O51,$AC46:$AC51,AK46:AK51) -> 0
F47: 110 | G47: ='Anchor-AI'!L45 -> 0 | H47: ='Anchor-AI'!M45 -> 0 | I47: ='Anchor-AI'!N45 -> 0 | J47: ='Anchor-AI'!O45 -> 0 | K47: =(Summary!$C$64*H47+Summary!$C$65*I47+Summary!$C$66*J47)/Summary!$C$67 -> 0 | L47: ='Anchor-AI'!P45 -> 0 | M47: ='Anchor-AI'!Q45 -> 0 | N47: ='Anchor-AI'!R45 -> 0 | O47: ='Anchor-AI'!S45 -> 0 | P47: ='Anchor-AI'!T45 -> 0 | Q47: ='Anchor-AI'!U45 -> 0 | R47: ='Anchor-AI'!V45 -> 0 | S47: ='Anchor-AI'!W45 -> 0 | T47: ='Anchor-AI'!X45 -> 0 | U47: =10*LOG10(1/((Summary!$C$81/10^(R47/10)+Summary!$C$82/10^(S47/10)+Summary!$C$83/10^(T47/10))/Summary!$C$84)) -> 0 | V47: ='Anchor-AI'!Y45 -> 0 | W47: ='Anchor-AI'!Z45 -> 0 | X47: ='Anchor-AI'!AA45 -> 0 | Y47: ='Anchor-AI'!AB45 -> 0 | Z47: ='Anchor-AI'!AC45 -> 0 | AA47: 0 | AC47: ='Test-AI'!L45 -> 0 | AD47: ='Test-AI'!M45 -> 0 | AE47: ='Test-AI'!N45 -> 0 | AF47: ='Test-AI'!O45 -> 0 | AG47: =(Summary!$C$64*AD47+Summary!$C$65*AE47+Summary!$C$66*AF47)/Summary!$C$67 -> 0 | AH47: ='Test-AI'!P45 -> 0 | AI47: ='Test-AI'!Q45 -> 0 | AJ47: ='Test-AI'!R45 -> 0 | AK47: ='Test-AI'!S45 -> 0 | AL47: ='Test-AI'!T45 -> 0 | AM47: ='Test-AI'!U45 -> 0 | AN47: ='Test-AI'!V45 -> 0 | AO47: ='Test-AI'!W45 -> 0 | AP47: ='Test-AI'!X45 -> 0 | AQ47: =10*LOG10(1/((Summary!$C$81/10^(AN47/10)+Summary!$C$82/10^(AO47/10)+Summary!$C$83/10^(AP47/10))/Summary!$C$84)) -> 0 | AR47: ='Test-AI'!Y45 -> 0 | AS47: ='Test-AI'!Z45 -> 0 | AT47: ='Test-AI'!AA45 -> 0 | AU47: ='Test-AI'!AB45 -> 0 | AV47: ='Test-AI'!AC45 -> 0 | AW47: 0
F48: 135 | G48: ='Anchor-AI'!L46 -> 0 | H48: ='Anchor-AI'!M46 -> 0 | I48: ='Anchor-AI'!N46 -> 0 | J48: ='Anchor-AI'!O46 -> 0 | K48: =(Summary!$C$64*H48+Summary!$C$65*I48+Summary!$C$66*J48)/Summary!$C$67 -> 0 | L48: ='Anchor-AI'!P46 -> 0 | M48: ='Anchor-AI'!Q46 -> 0 | N48: ='Anchor-AI'!R46 -> 0 | O48: ='Anchor-AI'!S46 -> 0 | P48: ='Anchor-AI'!T46 -> 0 | Q48: ='Anchor-AI'!U46 -> 0 | R48: ='Anchor-AI'!V46 -> 0 | S48: ='Anchor-AI'!W46 -> 0 | T48: ='Anchor-AI'!X46 -> 0 | U48: =10*LOG10(1/((Summary!$C$81/10^(R48/10)+Summary!$C$82/10^(S48/10)+Summary!$C$83/10^(T48/10))/Summary!$C$84)) -> 0 | V48: ='Anchor-AI'!Y46 -> 0 | W48: ='Anchor-AI'!Z46 -> 0 | X48: ='Anchor-AI'!AA46 -> 0 | Y48: ='Anchor-AI'!AB46 -> 0 | Z48: ='Anchor-AI'!AC46 -> 0 | AA48: 0 | AC48: ='Test-AI'!L46 -> 0 | AD48: ='Test-AI'!M46 -> 0 | AE48: ='Test-AI'!N46 -> 0 | AF48: ='Test-AI'!O46 -> 0 | AG48: =(Summary!$C$64*AD48+Summary!$C$65*AE48+Summary!$C$66*AF48)/Summary!$C$67 -> 0 | AH48: ='Test-AI'!P46 -> 0 | AI48: ='Test-AI'!Q46 -> 0 | AJ48: ='Test-AI'!R46 -> 0 | AK48: ='Test-AI'!S46 -> 0 | AL48: ='Test-AI'!T46 -> 0 | AM48: ='Test-AI'!U46 -> 0 | AN48: ='Test-AI'!V46 -> 0 | AO48: ='Test-AI'!W46 -> 0 | AP48: ='Test-AI'!X46 -> 0 | AQ48: =10*LOG10(1/((Summary!$C$81/10^(AN48/10)+Summary!$C$82/10^(AO48/10)+Summary!$C$83/10^(AP48/10))/Summary!$C$84)) -> 0 | AR48: ='Test-AI'!Y46 -> 0 | AS48: ='Test-AI'!Z46 -> 0 | AT48: ='Test-AI'!AA46 -> 0 | AU48: ='Test-AI'!AB46 -> 0 | AV48: ='Test-AI'!AC46 -> 0 | AW48: 0 | BD48: Med | BE48: =bdRateExtend($G47:$G50,H47:H50,$AC47:$AC50,AD47:AD50) ->  | BK48: =bdRateExtend($G47:$G50,L47:L50,$AC47:$AC50,AH47:AH50) ->  | BM48: =bdRateExtend($G47:$G50,M47:M50,$AC47:$AC50,AI47:AI50) ->  | BO48: =bdRateExtend($G47:$G50,N47:N50,$AC47:$AC50,AJ47:AJ50,"None", FALSE,1) ->  | BQ48: =bdRateExtend($G47:$G50,O47:O50,$AC47:$AC50,AK47:AK50,"None", FALSE,1) ->  | BS48: =bdRateExtend($G47:$G50,P47:P50,$AC47:$AC50,AL47:AL50) ->  | BU48: =bdRateExtend($G47:$G50,Q47:Q50,$AC47:$AC50,AM47:AM50) ->  | BW48: =bdRateExtend($G47:$G50,R47:R50,$AC47:$AC50,AN47:AN50) ->  | CC48: =bdCAMBIExtend($G47:$G50,V47:V50,$AC47:$AC50,AR47:AR50) ->  | CE48: =testVMAFRange($G47:$G50,N47:N50,$AC47:$AC50,AJ47:AJ50) -> 0 | CG48: =testVMAFRange($G47:$G50,O47:O50,$AC47:$AC50,AK47:AK50) -> 0
F49: 160 | G49: ='Anchor-AI'!L47 -> 0 | H49: ='Anchor-AI'!M47 -> 0 | I49: ='Anchor-AI'!N47 -> 0 | J49: ='Anchor-AI'!O47 -> 0 | K49: =(Summary!$C$64*H49+Summary!$C$65*I49+Summary!$C$66*J49)/Summary!$C$67 -> 0 | L49: ='Anchor-AI'!P47 -> 0 | M49: ='Anchor-AI'!Q47 -> 0 | N49: ='Anchor-AI'!R47 -> 0 | O49: ='Anchor-AI'!S47 -> 0 | P49: ='Anchor-AI'!T47 -> 0 | Q49: ='Anchor-AI'!U47 -> 0 | R49: ='Anchor-AI'!V47 -> 0 | S49: ='Anchor-AI'!W47 -> 0 | T49: ='Anchor-AI'!X47 -> 0 | U49: =10*LOG10(1/((Summary!$C$81/10^(R49/10)+Summary!$C$82/10^(S49/10)+Summary!$C$83/10^(T49/10))/Summary!$C$84)) -> 0 | V49: ='Anchor-AI'!Y47 -> 0 | W49: ='Anchor-AI'!Z47 -> 0 | X49: ='Anchor-AI'!AA47 -> 0 | Y49: ='Anchor-AI'!AB47 -> 0 | Z49: ='Anchor-AI'!AC47 -> 0 | AA49: 0 | AC49: ='Test-AI'!L47 -> 0 | AD49: ='Test-AI'!M47 -> 0 | AE49: ='Test-AI'!N47 -> 0 | AF49: ='Test-AI'!O47 -> 0 | AG49: =(Summary!$C$64*AD49+Summary!$C$65*AE49+Summary!$C$66*AF49)/Summary!$C$67 -> 0 | AH49: ='Test-AI'!P47 -> 0 | AI49: ='Test-AI'!Q47 -> 0 | AJ49: ='Test-AI'!R47 -> 0 | AK49: ='Test-AI'!S47 -> 0 | AL49: ='Test-AI'!T47 -> 0 | AM49: ='Test-AI'!U47 -> 0 | AN49: ='Test-AI'!V47 -> 0 | AO49: ='Test-AI'!W47 -> 0 | AP49: ='Test-AI'!X47 -> 0 | AQ49: =10*LOG10(1/((Summary!$C$81/10^(AN49/10)+Summary!$C$82/10^(AO49/10)+Summary!$C$83/10^(AP49/10))/Summary!$C$84)) -> 0 | AR49: ='Test-AI'!Y47 -> 0 | AS49: ='Test-AI'!Z47 -> 0 | AT49: ='Test-AI'!AA47 -> 0 | AU49: ='Test-AI'!AB47 -> 0 | AV49: ='Test-AI'!AC47 -> 0 | AW49: 0
F50: 185 | G50: ='Anchor-AI'!L48 -> 0 | H50: ='Anchor-AI'!M48 -> 0 | I50: ='Anchor-AI'!N48 -> 0 | J50: ='Anchor-AI'!O48 -> 0 | K50: =(Summary!$C$64*H50+Summary!$C$65*I50+Summary!$C$66*J50)/Summary!$C$67 -> 0 | L50: ='Anchor-AI'!P48 -> 0 | M50: ='Anchor-AI'!Q48 -> 0 | N50: ='Anchor-AI'!R48 -> 0 | O50: ='Anchor-AI'!S48 -> 0 | P50: ='Anchor-AI'!T48 -> 0 | Q50: ='Anchor-AI'!U48 -> 0 | R50: ='Anchor-AI'!V48 -> 0 | S50: ='Anchor-AI'!W48 -> 0 | T50: ='Anchor-AI'!X48 -> 0 | U50: =10*LOG10(1/((Summary!$C$81/10^(R50/10)+Summary!$C$82/10^(S50/10)+Summary!$C$83/10^(T50/10))/Summary!$C$84)) -> 0 | V50: ='Anchor-AI'!Y48 -> 0 | W50: ='Anchor-AI'!Z48 -> 0 | X50: ='Anchor-AI'!AA48 -> 0 | Y50: ='Anchor-AI'!AB48 -> 0 | Z50: ='Anchor-AI'!AC48 -> 0 | AA50: 0 | AC50: ='Test-AI'!L48 -> 0 | AD50: ='Test-AI'!M48 -> 0 | AE50: ='Test-AI'!N48 -> 0 | AF50: ='Test-AI'!O48 -> 0 | AG50: =(Summary!$C$64*AD50+Summary!$C$65*AE50+Summary!$C$66*AF50)/Summary!$C$67 -> 0 | AH50: ='Test-AI'!P48 -> 0 | AI50: ='Test-AI'!Q48 -> 0 | AJ50: ='Test-AI'!R48 -> 0 | AK50: ='Test-AI'!S48 -> 0 | AL50: ='Test-AI'!T48 -> 0 | AM50: ='Test-AI'!U48 -> 0 | AN50: ='Test-AI'!V48 -> 0 | AO50: ='Test-AI'!W48 -> 0 | AP50: ='Test-AI'!X48 -> 0 | AQ50: =10*LOG10(1/((Summary!$C$81/10^(AN50/10)+Summary!$C$82/10^(AO50/10)+Summary!$C$83/10^(AP50/10))/Summary!$C$84)) -> 0 | AR50: ='Test-AI'!Y48 -> 0 | AS50: ='Test-AI'!Z48 -> 0 | AT50: ='Test-AI'!AA48 -> 0 | AU50: ='Test-AI'!AB48 -> 0 | AV50: ='Test-AI'!AC48 -> 0 | AW50: 0 | BD50: Low | BE50: =bdRateExtend($G48:$G51,H48:H51,$AC48:$AC51,AD48:AD51) ->  | BK50: =bdRateExtend($G48:$G51,L48:L51,$AC48:$AC51,AH48:AH51) ->  | BM50: =bdRateExtend($G48:$G51,M48:M51,$AC48:$AC51,AI48:AI51) ->  | BO50: =bdRateExtend($G48:$G51,N48:N51,$AC48:$AC51,AJ48:AJ51,"None", FALSE,1) ->  | BQ50: =bdRateExtend($G48:$G51,O48:O51,$AC48:$AC51,AK48:AK51,"None", FALSE,1) ->  | BS50: =bdRateExtend($G48:$G51,P48:P51,$AC48:$AC51,AL48:AL51) ->  | BU50: =bdRateExtend($G48:$G51,Q48:Q51,$AC48:$AC51,AM48:AM51) ->  | BW50: =bdRateExtend($G48:$G51,R48:R51,$AC48:$AC51,AN48:AN51) ->  | CC50: =bdCAMBIExtend($G48:$G51,V48:V51,$AC48:$AC51,AR48:AR51) ->  | CE50: =testVMAFRange($G48:$G51,N48:N51,$AC48:$AC51,AJ48:AJ51) -> 0 | CG50: =testVMAFRange($G48:$G51,O48:O51,$AC48:$AC51,AK48:AK51) -> 0
F51: 210 | G51: ='Anchor-AI'!L49 -> 0 | H51: ='Anchor-AI'!M49 -> 0 | I51: ='Anchor-AI'!N49 -> 0 | J51: ='Anchor-AI'!O49 -> 0 | K51: =(Summary!$C$64*H51+Summary!$C$65*I51+Summary!$C$66*J51)/Summary!$C$67 -> 0 | L51: ='Anchor-AI'!P49 -> 0 | M51: ='Anchor-AI'!Q49 -> 0 | N51: ='Anchor-AI'!R49 -> 0 | O51: ='Anchor-AI'!S49 -> 0 | P51: ='Anchor-AI'!T49 -> 0 | Q51: ='Anchor-AI'!U49 -> 0 | R51: ='Anchor-AI'!V49 -> 0 | S51: ='Anchor-AI'!W49 -> 0 | T51: ='Anchor-AI'!X49 -> 0 | U51: =10*LOG10(1/((Summary!$C$81/10^(R51/10)+Summary!$C$82/10^(S51/10)+Summary!$C$83/10^(T51/10))/Summary!$C$84)) -> 0 | V51: ='Anchor-AI'!Y49 -> 0 | W51: ='Anchor-AI'!Z49 -> 0 | X51: ='Anchor-AI'!AA49 -> 0 | Y51: ='Anchor-AI'!AB49 -> 0 | Z51: ='Anchor-AI'!AC49 -> 0 | AA51: 0 | AC51: ='Test-AI'!L49 -> 0 | AD51: ='Test-AI'!M49 -> 0 | AE51: ='Test-AI'!N49 -> 0 | AF51: ='Test-AI'!O49 -> 0 | AG51: =(Summary!$C$64*AD51+Summary!$C$65*AE51+Summary!$C$66*AF51)/Summary!$C$67 -> 0 | AH51: ='Test-AI'!P49 -> 0 | AI51: ='Test-AI'!Q49 -> 0 | AJ51: ='Test-AI'!R49 -> 0 | AK51: ='Test-AI'!S49 -> 0 | AL51: ='Test-AI'!T49 -> 0 | AM51: ='Test-AI'!U49 -> 0 | AN51: ='Test-AI'!V49 -> 0 | AO51: ='Test-AI'!W49 -> 0 | AP51: ='Test-AI'!X49 -> 0 | AQ51: =10*LOG10(1/((Summary!$C$81/10^(AN51/10)+Summary!$C$82/10^(AO51/10)+Summary!$C$83/10^(AP51/10))/Summary!$C$84)) -> 0 | AR51: ='Test-AI'!Y49 -> 0 | AS51: ='Test-AI'!Z49 -> 0 | AT51: ='Test-AI'!AA49 -> 0 | AU51: ='Test-AI'!AB49 -> 0 | AV51: ='Test-AI'!AC49 -> 0 | AW51: 0
A52: A2_2K | B52: 1920x1080 | C52: Aerial3200_1920x1080_5994_10bit_420.y4m | D52: 59.94 | E52: 10 | F52: 85 | G52: ='Anchor-AI'!L50 -> 0 | H52: ='Anchor-AI'!M50 -> 0 | I52: ='Anchor-AI'!N50 -> 0 | J52: ='Anchor-AI'!O50 -> 0 | K52: =(Summary!$C$64*H52+Summary!$C$65*I52+Summary!$C$66*J52)/Summary!$C$67 -> 0 | L52: ='Anchor-AI'!P50 -> 0 | M52: ='Anchor-AI'!Q50 -> 0 | N52: ='Anchor-AI'!R50 -> 0 | O52: ='Anchor-AI'!S50 -> 0 | P52: ='Anchor-AI'!T50 -> 0 | Q52: ='Anchor-AI'!U50 -> 0 | R52: ='Anchor-AI'!V50 -> 0 | S52: ='Anchor-AI'!W50 -> 0 | T52: ='Anchor-AI'!X50 -> 0 | U52: =10*LOG10(1/((Summary!$C$81/10^(R52/10)+Summary!$C$82/10^(S52/10)+Summary!$C$83/10^(T52/10))/Summary!$C$84)) -> 0 | V52: ='Anchor-AI'!Y50 -> 0 | W52: ='Anchor-AI'!Z50 -> 0 | X52: ='Anchor-AI'!AA50 -> 0 | Y52: ='Anchor-AI'!AB50 -> 0 | Z52: ='Anchor-AI'!AC50 -> 0 | AA52: 0 | AC52: ='Test-AI'!L50 -> 0 | AD52: ='Test-AI'!M50 -> 0 | AE52: ='Test-AI'!N50 -> 0 | AF52: ='Test-AI'!O50 -> 0 | AG52: =(Summary!$C$64*AD52+Summary!$C$65*AE52+Summary!$C$66*AF52)/Summary!$C$67 -> 0 | AH52: ='Test-AI'!P50 -> 0 | AI52: ='Test-AI'!Q50 -> 0 | AJ52: ='Test-AI'!R50 -> 0 | AK52: ='Test-AI'!S50 -> 0 | AL52: ='Test-AI'!T50 -> 0 | AM52: ='Test-AI'!U50 -> 0 | AN52: ='Test-AI'!V50 -> 0 | AO52: ='Test-AI'!W50 -> 0 | AP52: ='Test-AI'!X50 -> 0 | AQ52: =10*LOG10(1/((Summary!$C$81/10^(AN52/10)+Summary!$C$82/10^(AO52/10)+Summary!$C$83/10^(AP52/10))/Summary!$C$84)) -> 0 | AR52: ='Test-AI'!Y50 -> 0 | AS52: ='Test-AI'!Z50 -> 0 | AT52: ='Test-AI'!AA50 -> 0 | AU52: ='Test-AI'!AB50 -> 0 | AV52: ='Test-AI'!AC50 -> 0 | AW52: 0 | BD52: High | BE52: =bdRateExtend($G52:$G55,H52:H55,$AC52:$AC55,AD52:AD55) ->  | BF52: =bdRateExtend($G52:$G57,H52:H57,$AC52:$AC57,AD52:AD57) ->  | BG52: =bdRateExtend($G52:$G57,I52:I57,$AC52:$AC57,AE52:AE57) ->  | BH52: =bdRateExtend($G52:$G57,J52:J57,$AC52:$AC57,AF52:AF57) ->  | BI52: =bdRateExtend($G52:$G57,K52:K57,$AC52:$AC57,AG52:AG57) ->  | BJ52: =(Summary!$C$95*BF52+Summary!$C$96*BG52+Summary!$C$97*BH52)/Summary!$C$98 ->  | BK52: =bdRateExtend($G52:$G55,L52:L55,$AC52:$AC55,AH52:AH55) ->  | BL52: =bdRateExtend($G52:$G57,L52:L57,$AC52:$AC57,AH52:AH57) ->  | BM52: =bdRateExtend($G52:$G55,M52:M55,$AC52:$AC55,AI52:AI55) ->  | BN52: =bdRateExtend($G52:$G57,M52:M57,$AC52:$AC57,AI52:AI57) ->  | BO52: =bdRateExtend($G52:$G55,N52:N55,$AC52:$AC55,AJ52:AJ55,"None", FALSE,1) ->  | BP52: =bdRateExtend($G52:$G57,N52:N57,$AC52:$AC57,AJ52:AJ57,"None", FALSE,1) ->  | BQ52: =bdRateExtend($G52:$G55,O52:O55,$AC52:$AC55,AK52:AK55,"None", FALSE,1) ->  | BR52: =bdRateExtend($G52:$G57,O52:O57,$AC52:$AC57,AK52:AK57,"None", FALSE,1) ->  | BS52: =bdRateExtend($G52:$G55,P52:P55,$AC52:$AC55,AL52:AL55) ->  | BT52: =bdRateExtend($G52:$G57,P52:P57,$AC52:$AC57,AL52:AL57) ->  | BU52: =bdRateExtend($G52:$G55,Q52:Q55,$AC52:$AC55,AM52:AM55) ->  | BV52: =bdRateExtend($G52:$G57,Q52:Q57,$AC52:$AC57,AM52:AM57) ->  | BW52: =bdRateExtend($G52:$G55,R52:R55,$AC52:$AC55,AN52:AN55) ->  | BX52: =bdRateExtend($G52:$G57,R52:R57,$AC52:$AC57,AN52:AN57) ->  | BY52: =bdRateExtend($G52:$G57,S52:S57,$AC52:$AC57,AO52:AO57) ->  | BZ52: =bdRateExtend($G52:$G57,T52:T57,$AC52:$AC57,AP52:AP57) ->  | CA52: =bdRateExtend($G52:$G57,U52:U57,$AC52:$AC57,AQ52:AQ57) ->  | CB52: =(Summary!$C$109*BX52+Summary!$C$110*BY52+Summary!$C$111*BZ52)/Summary!$C$112 ->  | CC52: =bdCAMBIExtend($G52:$G55,V52:V55,$AC52:$AC55,AR52:AR55) ->  | CD52: =bdCAMBIExtend($G52:$G57,V52:V57,$AC52:$AC57,AR52:AR57) ->  | CE52: =testVMAFRange($G52:$G55,N52:N55,$AC52:$AC55,AJ52:AJ55) -> 0 | CF52: =testVMAFRange($G52:$G57,N52:N57,$AC52:$AC57,AJ52:AJ57) -> 0 | CG52: =testVMAFRange($G52:$G55,O52:O55,$AC52:$AC55,AK52:AK55) -> 0 | CH52: =testVMAFRange($G52:$G57,O52:O57,$AC52:$AC57,AK52:AK57) -> 0
F53: 110 | G53: ='Anchor-AI'!L51 -> 0 | H53: ='Anchor-AI'!M51 -> 0 | I53: ='Anchor-AI'!N51 -> 0 | J53: ='Anchor-AI'!O51 -> 0 | K53: =(Summary!$C$64*H53+Summary!$C$65*I53+Summary!$C$66*J53)/Summary!$C$67 -> 0 | L53: ='Anchor-AI'!P51 -> 0 | M53: ='Anchor-AI'!Q51 -> 0 | N53: ='Anchor-AI'!R51 -> 0 | O53: ='Anchor-AI'!S51 -> 0 | P53: ='Anchor-AI'!T51 -> 0 | Q53: ='Anchor-AI'!U51 -> 0 | R53: ='Anchor-AI'!V51 -> 0 | S53: ='Anchor-AI'!W51 -> 0 | T53: ='Anchor-AI'!X51 -> 0 | U53: =10*LOG10(1/((Summary!$C$81/10^(R53/10)+Summary!$C$82/10^(S53/10)+Summary!$C$83/10^(T53/10))/Summary!$C$84)) -> 0 | V53: ='Anchor-AI'!Y51 -> 0 | W53: ='Anchor-AI'!Z51 -> 0 | X53: ='Anchor-AI'!AA51 -> 0 | Y53: ='Anchor-AI'!AB51 -> 0 | Z53: ='Anchor-AI'!AC51 -> 0 | AA53: 0 | AC53: ='Test-AI'!L51 -> 0 | AD53: ='Test-AI'!M51 -> 0 | AE53: ='Test-AI'!N51 -> 0 | AF53: ='Test-AI'!O51 -> 0 | AG53: =(Summary!$C$64*AD53+Summary!$C$65*AE53+Summary!$C$66*AF53)/Summary!$C$67 -> 0 | AH53: ='Test-AI'!P51 -> 0 | AI53: ='Test-AI'!Q51 -> 0 | AJ53: ='Test-AI'!R51 -> 0 | AK53: ='Test-AI'!S51 -> 0 | AL53: ='Test-AI'!T51 -> 0 | AM53: ='Test-AI'!U51 -> 0 | AN53: ='Test-AI'!V51 -> 0 | AO53: ='Test-AI'!W51 -> 0 | AP53: ='Test-AI'!X51 -> 0 | AQ53: =10*LOG10(1/((Summary!$C$81/10^(AN53/10)+Summary!$C$82/10^(AO53/10)+Summary!$C$83/10^(AP53/10))/Summary!$C$84)) -> 0 | AR53: ='Test-AI'!Y51 -> 0 | AS53: ='Test-AI'!Z51 -> 0 | AT53: ='Test-AI'!AA51 -> 0 | AU53: ='Test-AI'!AB51 -> 0 | AV53: ='Test-AI'!AC51 -> 0 | AW53: 0
F54: 135 | G54: ='Anchor-AI'!L52 -> 0 | H54: ='Anchor-AI'!M52 -> 0 | I54: ='Anchor-AI'!N52 -> 0 | J54: ='Anchor-AI'!O52 -> 0 | K54: =(Summary!$C$64*H54+Summary!$C$65*I54+Summary!$C$66*J54)/Summary!$C$67 -> 0 | L54: ='Anchor-AI'!P52 -> 0 | M54: ='Anchor-AI'!Q52 -> 0 | N54: ='Anchor-AI'!R52 -> 0 | O54: ='Anchor-AI'!S52 -> 0 | P54: ='Anchor-AI'!T52 -> 0 | Q54: ='Anchor-AI'!U52 -> 0 | R54: ='Anchor-AI'!V52 -> 0 | S54: ='Anchor-AI'!W52 -> 0 | T54: ='Anchor-AI'!X52 -> 0 | U54: =10*LOG10(1/((Summary!$C$81/10^(R54/10)+Summary!$C$82/10^(S54/10)+Summary!$C$83/10^(T54/10))/Summary!$C$84)) -> 0 | V54: ='Anchor-AI'!Y52 -> 0 | W54: ='Anchor-AI'!Z52 -> 0 | X54: ='Anchor-AI'!AA52 -> 0 | Y54: ='Anchor-AI'!AB52 -> 0 | Z54: ='Anchor-AI'!AC52 -> 0 | AA54: 0 | AC54: ='Test-AI'!L52 -> 0 | AD54: ='Test-AI'!M52 -> 0 | AE54: ='Test-AI'!N52 -> 0 | AF54: ='Test-AI'!O52 -> 0 | AG54: =(Summary!$C$64*AD54+Summary!$C$65*AE54+Summary!$C$66*AF54)/Summary!$C$67 -> 0 | AH54: ='Test-AI'!P52 -> 0 | AI54: ='Test-AI'!Q52 -> 0 | AJ54: ='Test-AI'!R52 -> 0 | AK54: ='Test-AI'!S52 -> 0 | AL54: ='Test-AI'!T52 -> 0 | AM54: ='Test-AI'!U52 -> 0 | AN54: ='Test-AI'!V52 -> 0 | AO54: ='Test-AI'!W52 -> 0 | AP54: ='Test-AI'!X52 -> 0 | AQ54: =10*LOG10(1/((Summary!$C$81/10^(AN54/10)+Summary!$C$82/10^(AO54/10)+Summary!$C$83/10^(AP54/10))/Summary!$C$84)) -> 0 | AR54: ='Test-AI'!Y52 -> 0 | AS54: ='Test-AI'!Z52 -> 0 | AT54: ='Test-AI'!AA52 -> 0 | AU54: ='Test-AI'!AB52 -> 0 | AV54: ='Test-AI'!AC52 -> 0 | AW54: 0 | BD54: Med | BE54: =bdRateExtend($G53:$G56,H53:H56,$AC53:$AC56,AD53:AD56) ->  | BK54: =bdRateExtend($G53:$G56,L53:L56,$AC53:$AC56,AH53:AH56) ->  | BM54: =bdRateExtend($G53:$G56,M53:M56,$AC53:$AC56,AI53:AI56) ->  | BO54: =bdRateExtend($G53:$G56,N53:N56,$AC53:$AC56,AJ53:AJ56,"None", FALSE,1) ->  | BQ54: =bdRateExtend($G53:$G56,O53:O56,$AC53:$AC56,AK53:AK56,"None", FALSE,1) ->  | BS54: =bdRateExtend($G53:$G56,P53:P56,$AC53:$AC56,AL53:AL56) ->  | BU54: =bdRateExtend($G53:$G56,Q53:Q56,$AC53:$AC56,AM53:AM56) ->  | BW54: =bdRateExtend($G53:$G56,R53:R56,$AC53:$AC56,AN53:AN56) ->  | CC54: =bdCAMBIExtend($G53:$G56,V53:V56,$AC53:$AC56,AR53:AR56) ->  | CE54: =testVMAFRange($G53:$G56,N53:N56,$AC53:$AC56,AJ53:AJ56) -> 0 | CG54: =testVMAFRange($G53:$G56,O53:O56,$AC53:$AC56,AK53:AK56) -> 0
F55: 160 | G55: ='Anchor-AI'!L53 -> 0 | H55: ='Anchor-AI'!M53 -> 0 | I55: ='Anchor-AI'!N53 -> 0 | J55: ='Anchor-AI'!O53 -> 0 | K55: =(Summary!$C$64*H55+Summary!$C$65*I55+Summary!$C$66*J55)/Summary!$C$67 -> 0 | L55: ='Anchor-AI'!P53 -> 0 | M55: ='Anchor-AI'!Q53 -> 0 | N55: ='Anchor-AI'!R53 -> 0 | O55: ='Anchor-AI'!S53 -> 0 | P55: ='Anchor-AI'!T53 -> 0 | Q55: ='Anchor-AI'!U53 -> 0 | R55: ='Anchor-AI'!V53 -> 0 | S55: ='Anchor-AI'!W53 -> 0 | T55: ='Anchor-AI'!X53 -> 0 | U55: =10*LOG10(1/((Summary!$C$81/10^(R55/10)+Summary!$C$82/10^(S55/10)+Summary!$C$83/10^(T55/10))/Summary!$C$84)) -> 0 | V55: ='Anchor-AI'!Y53 -> 0 | W55: ='Anchor-AI'!Z53 -> 0 | X55: ='Anchor-AI'!AA53 -> 0 | Y55: ='Anchor-AI'!AB53 -> 0 | Z55: ='Anchor-AI'!AC53 -> 0 | AA55: 0 | AC55: ='Test-AI'!L53 -> 0 | AD55: ='Test-AI'!M53 -> 0 | AE55: ='Test-AI'!N53 -> 0 | AF55: ='Test-AI'!O53 -> 0 | AG55: =(Summary!$C$64*AD55+Summary!$C$65*AE55+Summary!$C$66*AF55)/Summary!$C$67 -> 0 | AH55: ='Test-AI'!P53 -> 0 | AI55: ='Test-AI'!Q53 -> 0 | AJ55: ='Test-AI'!R53 -> 0 | AK55: ='Test-AI'!S53 -> 0 | AL55: ='Test-AI'!T53 -> 0 | AM55: ='Test-AI'!U53 -> 0 | AN55: ='Test-AI'!V53 -> 0 | AO55: ='Test-AI'!W53 -> 0 | AP55: ='Test-AI'!X53 -> 0 | AQ55: =10*LOG10(1/((Summary!$C$81/10^(AN55/10)+Summary!$C$82/10^(AO55/10)+Summary!$C$83/10^(AP55/10))/Summary!$C$84)) -> 0 | AR55: ='Test-AI'!Y53 -> 0 | AS55: ='Test-AI'!Z53 -> 0 | AT55: ='Test-AI'!AA53 -> 0 | AU55: ='Test-AI'!AB53 -> 0 | AV55: ='Test-AI'!AC53 -> 0 | AW55: 0
F56: 185 | G56: ='Anchor-AI'!L54 -> 0 | H56: ='Anchor-AI'!M54 -> 0 | I56: ='Anchor-AI'!N54 -> 0 | J56: ='Anchor-AI'!O54 -> 0 | K56: =(Summary!$C$64*H56+Summary!$C$65*I56+Summary!$C$66*J56)/Summary!$C$67 -> 0 | L56: ='Anchor-AI'!P54 -> 0 | M56: ='Anchor-AI'!Q54 -> 0 | N56: ='Anchor-AI'!R54 -> 0 | O56: ='Anchor-AI'!S54 -> 0 | P56: ='Anchor-AI'!T54 -> 0 | Q56: ='Anchor-AI'!U54 -> 0 | R56: ='Anchor-AI'!V54 -> 0 | S56: ='Anchor-AI'!W54 -> 0 | T56: ='Anchor-AI'!X54 -> 0 | U56: =10*LOG10(1/((Summary!$C$81/10^(R56/10)+Summary!$C$82/10^(S56/10)+Summary!$C$83/10^(T56/10))/Summary!$C$84)) -> 0 | V56: ='Anchor-AI'!Y54 -> 0 | W56: ='Anchor-AI'!Z54 -> 0 | X56: ='Anchor-AI'!AA54 -> 0 | Y56: ='Anchor-AI'!AB54 -> 0 | Z56: ='Anchor-AI'!AC54 -> 0 | AA56: 0 | AC56: ='Test-AI'!L54 -> 0 | AD56: ='Test-AI'!M54 -> 0 | AE56: ='Test-AI'!N54 -> 0 | AF56: ='Test-AI'!O54 -> 0 | AG56: =(Summary!$C$64*AD56+Summary!$C$65*AE56+Summary!$C$66*AF56)/Summary!$C$67 -> 0 | AH56: ='Test-AI'!P54 -> 0 | AI56: ='Test-AI'!Q54 -> 0 | AJ56: ='Test-AI'!R54 -> 0 | AK56: ='Test-AI'!S54 -> 0 | AL56: ='Test-AI'!T54 -> 0 | AM56: ='Test-AI'!U54 -> 0 | AN56: ='Test-AI'!V54 -> 0 | AO56: ='Test-AI'!W54 -> 0 | AP56: ='Test-AI'!X54 -> 0 | AQ56: =10*LOG10(1/((Summary!$C$81/10^(AN56/10)+Summary!$C$82/10^(AO56/10)+Summary!$C$83/10^(AP56/10))/Summary!$C$84)) -> 0 | AR56: ='Test-AI'!Y54 -> 0 | AS56: ='Test-AI'!Z54 -> 0 | AT56: ='Test-AI'!AA54 -> 0 | AU56: ='Test-AI'!AB54 -> 0 | AV56: ='Test-AI'!AC54 -> 0 | AW56: 0 | BD56: Low | BE56: =bdRateExtend($G54:$G57,H54:H57,$AC54:$AC57,AD54:AD57) ->  | BK56: =bdRateExtend($G54:$G57,L54:L57,$AC54:$AC57,AH54:AH57) ->  | BM56: =bdRateExtend($G54:$G57,M54:M57,$AC54:$AC57,AI54:AI57) ->  | BO56: =bdRateExtend($G54:$G57,N54:N57,$AC54:$AC57,AJ54:AJ57,"None", FALSE,1) ->  | BQ56: =bdRateExtend($G54:$G57,O54:O57,$AC54:$AC57,AK54:AK57,"None", FALSE,1) ->  | BS56: =bdRateExtend($G54:$G57,P54:P57,$AC54:$AC57,AL54:AL57) ->  | BU56: =bdRateExtend($G54:$G57,Q54:Q57,$AC54:$AC57,AM54:AM57) ->  | BW56: =bdRateExtend($G54:$G57,R54:R57,$AC54:$AC57,AN54:AN57) ->  | CC56: =bdCAMBIExtend($G54:$G57,V54:V57,$AC54:$AC57,AR54:AR57) ->  | CE56: =testVMAFRange($G54:$G57,N54:N57,$AC54:$AC57,AJ54:AJ57) -> 0 | CG56: =testVMAFRange($G54:$G57,O54:O57,$AC54:$AC57,AK54:AK57) -> 0
F57: 210 | G57: ='Anchor-AI'!L55 -> 0 | H57: ='Anchor-AI'!M55 -> 0 | I57: ='Anchor-AI'!N55 -> 0 | J57: ='Anchor-AI'!O55 -> 0 | K57: =(Summary!$C$64*H57+Summary!$C$65*I57+Summary!$C$66*J57)/Summary!$C$67 -> 0 | L57: ='Anchor-AI'!P55 -> 0 | M57: ='Anchor-AI'!Q55 -> 0 | N57: ='Anchor-AI'!R55 -> 0 | O57: ='Anchor-AI'!S55 -> 0 | P57: ='Anchor-AI'!T55 -> 0 | Q57: ='Anchor-AI'!U55 -> 0 | R57: ='Anchor-AI'!V55 -> 0 | S57: ='Anchor-AI'!W55 -> 0 | T57: ='Anchor-AI'!X55 -> 0 | U57: =10*LOG10(1/((Summary!$C$81/10^(R57/10)+Summary!$C$82/10^(S57/10)+Summary!$C$83/10^(T57/10))/Summary!$C$84)) -> 0 | V57: ='Anchor-AI'!Y55 -> 0 | W57: ='Anchor-AI'!Z55 -> 0 | X57: ='Anchor-AI'!AA55 -> 0 | Y57: ='Anchor-AI'!AB55 -> 0 | Z57: ='Anchor-AI'!AC55 -> 0 | AA57: 0 | AC57: ='Test-AI'!L55 -> 0 | AD57: ='Test-AI'!M55 -> 0 | AE57: ='Test-AI'!N55 -> 0 | AF57: ='Test-AI'!O55 -> 0 | AG57: =(Summary!$C$64*AD57+Summary!$C$65*AE57+Summary!$C$66*AF57)/Summary!$C$67 -> 0 | AH57: ='Test-AI'!P55 -> 0 | AI57: ='Test-AI'!Q55 -> 0 | AJ57: ='Test-AI'!R55 -> 0 | AK57: ='Test-AI'!S55 -> 0 | AL57: ='Test-AI'!T55 -> 0 | AM57: ='Test-AI'!U55 -> 0 | AN57: ='Test-AI'!V55 -> 0 | AO57: ='Test-AI'!W55 -> 0 | AP57: ='Test-AI'!X55 -> 0 | AQ57: =10*LOG10(1/((Summary!$C$81/10^(AN57/10)+Summary!$C$82/10^(AO57/10)+Summary!$C$83/10^(AP57/10))/Summary!$C$84)) -> 0 | AR57: ='Test-AI'!Y55 -> 0 | AS57: ='Test-AI'!Z55 -> 0 | AT57: ='Test-AI'!AA55 -> 0 | AU57: ='Test-AI'!AB55 -> 0 | AV57: ='Test-AI'!AC55 -> 0 | AW57: 0
B58: 1920x1080 | C58: Boat_1920x1080_5994_10bit_420.y4m | D58: 59.94 | E58: 10 | F58: 85 | G58: ='Anchor-AI'!L56 -> 0 | H58: ='Anchor-AI'!M56 -> 0 | I58: ='Anchor-AI'!N56 -> 0 | J58: ='Anchor-AI'!O56 -> 0 | K58: =(Summary!$C$64*H58+Summary!$C$65*I58+Summary!$C$66*J58)/Summary!$C$67 -> 0 | L58: ='Anchor-AI'!P56 -> 0 | M58: ='Anchor-AI'!Q56 -> 0 | N58: ='Anchor-AI'!R56 -> 0 | O58: ='Anchor-AI'!S56 -> 0 | P58: ='Anchor-AI'!T56 -> 0 | Q58: ='Anchor-AI'!U56 -> 0 | R58: ='Anchor-AI'!V56 -> 0 | S58: ='Anchor-AI'!W56 -> 0 | T58: ='Anchor-AI'!X56 -> 0 | U58: =10*LOG10(1/((Summary!$C$81/10^(R58/10)+Summary!$C$82/10^(S58/10)+Summary!$C$83/10^(T58/10))/Summary!$C$84)) -> 0 | V58: ='Anchor-AI'!Y56 -> 0 | W58: ='Anchor-AI'!Z56 -> 0 | X58: ='Anchor-AI'!AA56 -> 0 | Y58: ='Anchor-AI'!AB56 -> 0 | Z58: ='Anchor-AI'!AC56 -> 0 | AA58: 0 | AC58: ='Test-AI'!L56 -> 0 | AD58: ='Test-AI'!M56 -> 0 | AE58: ='Test-AI'!N56 -> 0 | AF58: ='Test-AI'!O56 -> 0 | AG58: =(Summary!$C$64*AD58+Summary!$C$65*AE58+Summary!$C$66*AF58)/Summary!$C$67 -> 0 | AH58: ='Test-AI'!P56 -> 0 | AI58: ='Test-AI'!Q56 -> 0 | AJ58: ='Test-AI'!R56 -> 0 | AK58: ='Test-AI'!S56 -> 0 | AL58: ='Test-AI'!T56 -> 0 | AM58: ='Test-AI'!U56 -> 0 | AN58: ='Test-AI'!V56 -> 0 | AO58: ='Test-AI'!W56 -> 0 | AP58: ='Test-AI'!X56 -> 0 | AQ58: =10*LOG10(1/((Summary!$C$81/10^(AN58/10)+Summary!$C$82/10^(AO58/10)+Summary!$C$83/10^(AP58/10))/Summary!$C$84)) -> 0 | AR58: ='Test-AI'!Y56 -> 0 | AS58: ='Test-AI'!Z56 -> 0 | AT58: ='Test-AI'!AA56 -> 0 | AU58: ='Test-AI'!AB56 -> 0 | AV58: ='Test-AI'!AC56 -> 0 | AW58: 0 | BD58: High | BE58: =bdRateExtend($G58:$G61,H58:H61,$AC58:$AC61,AD58:AD61) ->  | BF58: =bdRateExtend($G58:$G63,H58:H63,$AC58:$AC63,AD58:AD63) ->  | BG58: =bdRateExtend($G58:$G63,I58:I63,$AC58:$AC63,AE58:AE63) ->  | BH58: =bdRateExtend($G58:$G63,J58:J63,$AC58:$AC63,AF58:AF63) ->  | BI58: =bdRateExtend($G58:$G63,K58:K63,$AC58:$AC63,AG58:AG63) ->  | BJ58: =(Summary!$C$95*BF58+Summary!$C$96*BG58+Summary!$C$97*BH58)/Summary!$C$98 ->  | BK58: =bdRateExtend($G58:$G61,L58:L61,$AC58:$AC61,AH58:AH61) ->  | BL58: =bdRateExtend($G58:$G63,L58:L63,$AC58:$AC63,AH58:AH63) ->  | BM58: =bdRateExtend($G58:$G61,M58:M61,$AC58:$AC61,AI58:AI61) ->  | BN58: =bdRateExtend($G58:$G63,M58:M63,$AC58:$AC63,AI58:AI63) ->  | BO58: =bdRateExtend($G58:$G61,N58:N61,$AC58:$AC61,AJ58:AJ61,"None", FALSE,1) ->  | BP58: =bdRateExtend($G58:$G63,N58:N63,$AC58:$AC63,AJ58:AJ63,"None", FALSE,1) ->  | BQ58: =bdRateExtend($G58:$G61,O58:O61,$AC58:$AC61,AK58:AK61,"None", FALSE,1) ->  | BR58: =bdRateExtend($G58:$G63,O58:O63,$AC58:$AC63,AK58:AK63,"None", FALSE,1) ->  | BS58: =bdRateExtend($G58:$G61,P58:P61,$AC58:$AC61,AL58:AL61) ->  | BT58: =bdRateExtend($G58:$G63,P58:P63,$AC58:$AC63,AL58:AL63) ->  | BU58: =bdRateExtend($G58:$G61,Q58:Q61,$AC58:$AC61,AM58:AM61) ->  | BV58: =bdRateExtend($G58:$G63,Q58:Q63,$AC58:$AC63,AM58:AM63) ->  | BW58: =bdRateExtend($G58:$G61,R58:R61,$AC58:$AC61,AN58:AN61) ->  | BX58: =bdRateExtend($G58:$G63,R58:R63,$AC58:$AC63,AN58:AN63) ->  | BY58: =bdRateExtend($G58:$G63,S58:S63,$AC58:$AC63,AO58:AO63) ->  | BZ58: =bdRateExtend($G58:$G63,T58:T63,$AC58:$AC63,AP58:AP63) ->  | CA58: =bdRateExtend($G58:$G63,U58:U63,$AC58:$AC63,AQ58:AQ63) ->  | CB58: =(Summary!$C$109*BX58+Summary!$C$110*BY58+Summary!$C$111*BZ58)/Summary!$C$112 ->  | CC58: =bdCAMBIExtend($G58:$G61,V58:V61,$AC58:$AC61,AR58:AR61) ->  | CD58: =bdCAMBIExtend($G58:$G63,V58:V63,$AC58:$AC63,AR58:AR63) ->  | CE58: =testVMAFRange($G58:$G61,N58:N61,$AC58:$AC61,AJ58:AJ61) -> 0 | CF58: =testVMAFRange($G58:$G63,N58:N63,$AC58:$AC63,AJ58:AJ63) -> 0 | CG58: =testVMAFRange($G58:$G61,O58:O61,$AC58:$AC61,AK58:AK61) -> 0 | CH58: =testVMAFRange($G58:$G63,O58:O63,$AC58:$AC63,AK58:AK63) -> 0
